Workbook

Sheet Welcome
A1: Drug and Alcohol Treatment Waiting Times - Prisons
A2: January-March 2020
A3: Published 30th June 2020
A7: LDP standard details
A12: Workbook details
A13: Information available within this workbook:
A15: Table 1: Completed Waits Summary | F15: - Table containing summary of completed waits data
A16: Table 2: Ongoing Waits summary | F16: - Table showing summary of ongoing waits data
A17: Table 3: Compliance by ADP | F17: - Table showing the numbers of services who submitted by ADP
A35: Notes -
A54: Details of compliance

Sheet 1. Completed Waits Summary
C1: ="Table 1 - Waiting Times for Referral to Treatment, " &A6 & ", quarter ending "&A4 -> Table 1 - Waiting Times for Referral to Treatment, Alcohol and Drugs, quarter ending 31st March 2020
C2: Waiting times for clients who have started first treatment
A3: Scotland
A4: 31st March 2020 | B4: =VLOOKUP(A4,quarter,2,FALSE) -> 12 | C4: Quarter ending
A6: Alcohol and Drugs | B6: =VLOOKUP(A6,ClientType,2,FALSE) -> B | C6: Client type
Q7: Performance against standard
A8: Source | E8: Distribution of completed wait
C9: Area | D9: Number of Completed Waits | E9: Up to 1 week (%) | F9: 2 weeks (%) | G9: 3 weeks (%) | H9: 4 weeks (%) | I9: 5 weeks (%) | J9: 6 weeks (%) | K9: 7-8 weeks (%) | L9: 9-12 weeks (%) | M9: 13-16 weeks (%) | N9: 17-20 weeks (%) | O9: 21+ weeks (%) | Q9: % seen within 3 weeks | R9: % seen within 6 weeks
A10: 999 | B10: =CONCATENATE(A10,B$6,B$4) -> 999B12 | C10: Scottish Prison Service | D10: =IF(ISERROR(VLOOKUP($B10,comp1!$A$1:$X$994,D$41,FALSE)),"-",VLOOKUP($B10,comp1!$A$1:$X$994,D$41,FALSE)) -> 811 | E10: =IF(ISERROR(VLOOKUP($B10,comp1!$A$1:$X$994,E$41,FALSE)),"-",VLOOKUP($B10,comp1!$A$1:$X$994,E$41,FALSE)) -> 71.02342787 | F10: =IF(ISERROR(VLOOKUP($B10,comp1!$A$1:$X$994,F$41,FALSE)),"-",VLOOKUP($B10,comp1!$A$1:$X$994,F$41,FALSE)) -> 14.0567201 | G10: =IF(ISERROR(VLOOKUP($B10,comp1!$A$1:$X$994,G$41,FALSE)),"-",VLOOKUP($B10,comp1!$A$1:$X$994,G$41,FALSE)) -> 8.631319359 | H10: =IF(ISERROR(VLOOKUP($B10,comp1!$A$1:$X$994,H$41,FALSE)),"-",VLOOKUP($B10,comp1!$A$1:$X$994,H$41,FALSE)) -> 2.342786683 | I10: =IF(ISERROR(VLOOKUP($B10,comp1!$A$1:$X$994,I$41,FALSE)),"-",VLOOKUP($B10,comp1!$A$1:$X$994,I$41,FALSE)) -> 1.479654747 | J10: =IF(ISERROR(VLOOKUP($B10,comp1!$A$1:$X$994,J$41,FALSE)),"-",VLOOKUP($B10,comp1!$A$1:$X$994,J$41,FALSE)) -> 1.233045623 | K10: =IF(ISERROR(VLOOKUP($B10,comp1!$A$1:$X$994,K$41,FALSE)),"-",VLOOKUP($B10,comp1!$A$1:$X$994,K$41,FALSE)) -> 0.6165228113 | L10: =IF(ISERROR(VLOOKUP($B10,comp1!$A$1:$X$994,L$41,FALSE)),"-",VLOOKUP($B10,comp1!$A$1:$X$994,L$41,FALSE)) -> 0.6165228113 | M10: =IF(ISERROR(VLOOKUP($B10,comp1!$A$1:$X$994,M$41,FALSE)),"-",VLOOKUP($B10,comp1!$A$1:$X$994,M$41,FALSE)) -> 0 | N10: =IF(ISERROR(VLOOKUP($B10,comp1!$A$1:$X$994,N$41,FALSE)),"-",VLOOKUP($B10,comp1!$A$1:$X$994,N$41,FALSE)) -> 0 | O10: =IF(ISERROR(VLOOKUP($B10,comp1!$A$1:$X$994,O$41,FALSE)),"-",VLOOKUP($B10,comp1!$A$1:$X$994,O$41,FALSE)) -> 0 | Q10: =IF(ISERROR(VLOOKUP($B10,'percentage comp'!$A$1:$P$994,15,FALSE)),"-",VLOOKUP($B10,'percentage comp'!$A$1:$P$994,15,FALSE)) -> 93.71146732 | R10: =IF(ISERROR(VLOOKUP($B10,'percentage comp'!$A$1:$P$994,16,FALSE)),"-",VLOOKUP($B10,'percentage comp'!$A$1:$P$994,16,FALSE)) -> 98.76695438
Q11: =IF(ISERROR(VLOOKUP($B11,'percentage comp'!$A$1:$P$345,15,FALSE)),"-",VLOOKUP($B11,'percentage comp'!$A$1:$P$345,15,FALSE)) -> - | R11: =IF(ISERROR(VLOOKUP($B11,'percentage comp'!$A$1:$P$345,16,FALSE)),"-",VLOOKUP($B11,'percentage comp'!$A$1:$P$345,16,FALSE)) -> -
A12: 202 | B12: =CONCATENATE(A12,B$6,B$4) -> 202B12 | C12: Ayrshire & Arran NHS | D12: =IF(ISERROR(VLOOKUP($B12,comp1!$A$1:$X$994,D$41,FALSE)),"-",VLOOKUP($B12,comp1!$A$1:$X$994,D$41,FALSE)) -> 118 | E12: =IF(ISERROR(VLOOKUP($B12,comp1!$A$1:$X$994,E$41,FALSE)),"-",VLOOKUP($B12,comp1!$A$1:$X$994,E$41,FALSE)) -> 88.98305085 | F12: =IF(ISERROR(VLOOKUP($B12,comp1!$A$1:$X$994,F$41,FALSE)),"-",VLOOKUP($B12,comp1!$A$1:$X$994,F$41,FALSE)) -> 7.627118644 | G12: =IF(ISERROR(VLOOKUP($B12,comp1!$A$1:$X$994,G$41,FALSE)),"-",VLOOKUP($B12,comp1!$A$1:$X$994,G$41,FALSE)) -> 3.389830508 | H12: =IF(ISERROR(VLOOKUP($B12,comp1!$A$1:$X$994,H$41,FALSE)),"-",VLOOKUP($B12,comp1!$A$1:$X$994,H$41,FALSE)) -> 0 | I12: =IF(ISERROR(VLOOKUP($B12,comp1!$A$1:$X$994,I$41,FALSE)),"-",VLOOKUP($B12,comp1!$A$1:$X$994,I$41,FALSE)) -> 0 | J12: =IF(ISERROR(VLOOKUP($B12,comp1!$A$1:$X$994,J$41,FALSE)),"-",VLOOKUP($B12,comp1!$A$1:$X$994,J$41,FALSE)) -> 0 | K12: =IF(ISERROR(VLOOKUP($B12,comp1!$A$1:$X$994,K$41,FALSE)),"-",VLOOKUP($B12,comp1!$A$1:$X$994,K$41,FALSE)) -> 0 | L12: =IF(ISERROR(VLOOKUP($B12,comp1!$A$1:$X$994,L$41,FALSE)),"-",VLOOKUP($B12,comp1!$A$1:$X$994,L$41,FALSE)) -> 0 | M12: =IF(ISERROR(VLOOKUP($B12,comp1!$A$1:$X$994,M$41,FALSE)),"-",VLOOKUP($B12,comp1!$A$1:$X$994,M$41,FALSE)) -> 0 | N12: =IF(ISERROR(VLOOKUP($B12,comp1!$A$1:$X$994,N$41,FALSE)),"-",VLOOKUP($B12,comp1!$A$1:$X$994,N$41,FALSE)) -> 0 | O12: =IF(ISERROR(VLOOKUP($B12,comp1!$A$1:$X$994,O$41,FALSE)),"-",VLOOKUP($B12,comp1!$A$1:$X$994,O$41,FALSE)) -> 0 | Q12: =IF(ISERROR(VLOOKUP($B12,'percentage comp'!$A$1:$P$994,15,FALSE)),"-",VLOOKUP($B12,'percentage comp'!$A$1:$P$994,15,FALSE)) -> 100 | R12: =IF(ISERROR(VLOOKUP($B12,'percentage comp'!$A$1:$P$994,16,FALSE)),"-",VLOOKUP($B12,'percentage comp'!$A$1:$P$994,16,FALSE)) -> 100
A13: A202P | B13: =CONCATENATE(A13,B$6,B$4) -> A202PB12 | C13: East Ayrshire ADP: HMP Kilmarnock | D13: =IF(ISERROR(VLOOKUP($B13,comp1!$A$1:$X$994,D$41,FALSE)),"-",VLOOKUP($B13,comp1!$A$1:$X$994,D$41,FALSE)) -> 118 | E13: =IF(ISERROR(VLOOKUP($B13,comp1!$A$1:$X$994,E$41,FALSE)),"-",VLOOKUP($B13,comp1!$A$1:$X$994,E$41,FALSE)) -> 88.98305085 | F13: =IF(ISERROR(VLOOKUP($B13,comp1!$A$1:$X$994,F$41,FALSE)),"-",VLOOKUP($B13,comp1!$A$1:$X$994,F$41,FALSE)) -> 7.627118644 | G13: =IF(ISERROR(VLOOKUP($B13,comp1!$A$1:$X$994,G$41,FALSE)),"-",VLOOKUP($B13,comp1!$A$1:$X$994,G$41,FALSE)) -> 3.389830508 | H13: =IF(ISERROR(VLOOKUP($B13,comp1!$A$1:$X$994,H$41,FALSE)),"-",VLOOKUP($B13,comp1!$A$1:$X$994,H$41,FALSE)) -> 0 | I13: =IF(ISERROR(VLOOKUP($B13,comp1!$A$1:$X$994,I$41,FALSE)),"-",VLOOKUP($B13,comp1!$A$1:$X$994,I$41,FALSE)) -> 0 | J13: =IF(ISERROR(VLOOKUP($B13,comp1!$A$1:$X$994,J$41,FALSE)),"-",VLOOKUP($B13,comp1!$A$1:$X$994,J$41,FALSE)) -> 0 | K13: =IF(ISERROR(VLOOKUP($B13,comp1!$A$1:$X$994,K$41,FALSE)),"-",VLOOKUP($B13,comp1!$A$1:$X$994,K$41,FALSE)) -> 0 | L13: =IF(ISERROR(VLOOKUP($B13,comp1!$A$1:$X$994,L$41,FALSE)),"-",VLOOKUP($B13,comp1!$A$1:$X$994,L$41,FALSE)) -> 0 | M13: =IF(ISERROR(VLOOKUP($B13,comp1!$A$1:$X$994,M$41,FALSE)),"-",VLOOKUP($B13,comp1!$A$1:$X$994,M$41,FALSE)) -> 0 | N13: =IF(ISERROR(VLOOKUP($B13,comp1!$A$1:$X$994,N$41,FALSE)),"-",VLOOKUP($B13,comp1!$A$1:$X$994,N$41,FALSE)) -> 0 | O13: =IF(ISERROR(VLOOKUP($B13,comp1!$A$1:$X$994,O$41,FALSE)),"-",VLOOKUP($B13,comp1!$A$1:$X$994,O$41,FALSE)) -> 0 | Q13: =IF(ISERROR(VLOOKUP($B13,'percentage comp'!$A$1:$P$994,15,FALSE)),"-",VLOOKUP($B13,'percentage comp'!$A$1:$P$994,15,FALSE)) -> 100 | R13: =IF(ISERROR(VLOOKUP($B13,'percentage comp'!$A$1:$P$994,16,FALSE)),"-",VLOOKUP($B13,'percentage comp'!$A$1:$P$994,16,FALSE)) -> 100
A14: 204 | B14: 204B12 | C14: Dumfries & Galloway NHS/ADP | D14: =IF(ISERROR(VLOOKUP($B14,comp1!$A$1:$X$994,D$41,FALSE)),"-",VLOOKUP($B14,comp1!$A$1:$X$994,D$41,FALSE)) -> 23 | E14: =IF(ISERROR(VLOOKUP($B14,comp1!$A$1:$X$994,E$41,FALSE)),"-",VLOOKUP($B14,comp1!$A$1:$X$994,E$41,FALSE)) -> 100 | F14: =IF(ISERROR(VLOOKUP($B14,comp1!$A$1:$X$994,F$41,FALSE)),"-",VLOOKUP($B14,comp1!$A$1:$X$994,F$41,FALSE)) -> 0 | G14: =IF(ISERROR(VLOOKUP($B14,comp1!$A$1:$X$994,G$41,FALSE)),"-",VLOOKUP($B14,comp1!$A$1:$X$994,G$41,FALSE)) -> 0 | H14: =IF(ISERROR(VLOOKUP($B14,comp1!$A$1:$X$994,H$41,FALSE)),"-",VLOOKUP($B14,comp1!$A$1:$X$994,H$41,FALSE)) -> 0 | I14: =IF(ISERROR(VLOOKUP($B14,comp1!$A$1:$X$994,I$41,FALSE)),"-",VLOOKUP($B14,comp1!$A$1:$X$994,I$41,FALSE)) -> 0 | J14: =IF(ISERROR(VLOOKUP($B14,comp1!$A$1:$X$994,J$41,FALSE)),"-",VLOOKUP($B14,comp1!$A$1:$X$994,J$41,FALSE)) -> 0 | K14: =IF(ISERROR(VLOOKUP($B14,comp1!$A$1:$X$994,K$41,FALSE)),"-",VLOOKUP($B14,comp1!$A$1:$X$994,K$41,FALSE)) -> 0 | L14: =IF(ISERROR(VLOOKUP($B14,comp1!$A$1:$X$994,L$41,FALSE)),"-",VLOOKUP($B14,comp1!$A$1:$X$994,L$41,FALSE)) -> 0 | M14: =IF(ISERROR(VLOOKUP($B14,comp1!$A$1:$X$994,M$41,FALSE)),"-",VLOOKUP($B14,comp1!$A$1:$X$994,M$41,FALSE)) -> 0 | N14: =IF(ISERROR(VLOOKUP($B14,comp1!$A$1:$X$994,N$41,FALSE)),"-",VLOOKUP($B14,comp1!$A$1:$X$994,N$41,FALSE)) -> 0 | O14: =IF(ISERROR(VLOOKUP($B14,comp1!$A$1:$X$994,O$41,FALSE)),"-",VLOOKUP($B14,comp1!$A$1:$X$994,O$41,FALSE)) -> 0 | Q14: =IF(ISERROR(VLOOKUP($B14,'percentage comp'!$A$1:$P$994,15,FALSE)),"-",VLOOKUP($B14,'percentage comp'!$A$1:$P$994,15,FALSE)) -> 100 | R14: =IF(ISERROR(VLOOKUP($B14,'percentage comp'!$A$1:$P$994,16,FALSE)),"-",VLOOKUP($B14,'percentage comp'!$A$1:$P$994,16,FALSE)) -> 100
A15: Y101P | B15: Y101PB12 | C15: HMP Dumfries | D15: =IF(ISERROR(VLOOKUP($B15,comp1!$A$1:$X$994,D$41,FALSE)),"-",VLOOKUP($B15,comp1!$A$1:$X$994,D$41,FALSE)) -> 23 | E15: =IF(ISERROR(VLOOKUP($B15,comp1!$A$1:$X$994,E$41,FALSE)),"-",VLOOKUP($B15,comp1!$A$1:$X$994,E$41,FALSE)) -> 100 | F15: =IF(ISERROR(VLOOKUP($B15,comp1!$A$1:$X$994,F$41,FALSE)),"-",VLOOKUP($B15,comp1!$A$1:$X$994,F$41,FALSE)) -> 0 | G15: =IF(ISERROR(VLOOKUP($B15,comp1!$A$1:$X$994,G$41,FALSE)),"-",VLOOKUP($B15,comp1!$A$1:$X$994,G$41,FALSE)) -> 0 | H15: =IF(ISERROR(VLOOKUP($B15,comp1!$A$1:$X$994,H$41,FALSE)),"-",VLOOKUP($B15,comp1!$A$1:$X$994,H$41,FALSE)) -> 0 | I15: =IF(ISERROR(VLOOKUP($B15,comp1!$A$1:$X$994,I$41,FALSE)),"-",VLOOKUP($B15,comp1!$A$1:$X$994,I$41,FALSE)) -> 0 | J15: =IF(ISERROR(VLOOKUP($B15,comp1!$A$1:$X$994,J$41,FALSE)),"-",VLOOKUP($B15,comp1!$A$1:$X$994,J$41,FALSE)) -> 0 | K15: =IF(ISERROR(VLOOKUP($B15,comp1!$A$1:$X$994,K$41,FALSE)),"-",VLOOKUP($B15,comp1!$A$1:$X$994,K$41,FALSE)) -> 0 | L15: =IF(ISERROR(VLOOKUP($B15,comp1!$A$1:$X$994,L$41,FALSE)),"-",VLOOKUP($B15,comp1!$A$1:$X$994,L$41,FALSE)) -> 0 | M15: =IF(ISERROR(VLOOKUP($B15,comp1!$A$1:$X$994,M$41,FALSE)),"-",VLOOKUP($B15,comp1!$A$1:$X$994,M$41,FALSE)) -> 0 | N15: =IF(ISERROR(VLOOKUP($B15,comp1!$A$1:$X$994,N$41,FALSE)),"-",VLOOKUP($B15,comp1!$A$1:$X$994,N$41,FALSE)) -> 0 | O15: =IF(ISERROR(VLOOKUP($B15,comp1!$A$1:$X$994,O$41,FALSE)),"-",VLOOKUP($B15,comp1!$A$1:$X$994,O$41,FALSE)) -> 0 | Q15: =IF(ISERROR(VLOOKUP($B15,'percentage comp'!$A$1:$P$994,15,FALSE)),"-",VLOOKUP($B15,'percentage comp'!$A$1:$P$994,15,FALSE)) -> 100 | R15: =IF(ISERROR(VLOOKUP($B15,'percentage comp'!$A$1:$P$994,16,FALSE)),"-",VLOOKUP($B15,'percentage comp'!$A$1:$P$994,16,FALSE)) -> 100
A16: 206 | B16: 206B12 | C16: Forth Valley NHS | D16: =IF(ISERROR(VLOOKUP($B16,comp1!$A$1:$X$994,D$41,FALSE)),"-",VLOOKUP($B16,comp1!$A$1:$X$994,D$41,FALSE)) -> 123 | E16: =IF(ISERROR(VLOOKUP($B16,comp1!$A$1:$X$994,E$41,FALSE)),"-",VLOOKUP($B16,comp1!$A$1:$X$994,E$41,FALSE)) -> 66.66666667 | F16: =IF(ISERROR(VLOOKUP($B16,comp1!$A$1:$X$994,F$41,FALSE)),"-",VLOOKUP($B16,comp1!$A$1:$X$994,F$41,FALSE)) -> 13.00813008 | G16: =IF(ISERROR(VLOOKUP($B16,comp1!$A$1:$X$994,G$41,FALSE)),"-",VLOOKUP($B16,comp1!$A$1:$X$994,G$41,FALSE)) -> 8.130081301 | H16: =IF(ISERROR(VLOOKUP($B16,comp1!$A$1:$X$994,H$41,FALSE)),"-",VLOOKUP($B16,comp1!$A$1:$X$994,H$41,FALSE)) -> 4.87804878 | I16: =IF(ISERROR(VLOOKUP($B16,comp1!$A$1:$X$994,I$41,FALSE)),"-",VLOOKUP($B16,comp1!$A$1:$X$994,I$41,FALSE)) -> 4.06504065 | J16: =IF(ISERROR(VLOOKUP($B16,comp1!$A$1:$X$994,J$41,FALSE)),"-",VLOOKUP($B16,comp1!$A$1:$X$994,J$41,FALSE)) -> 1.62601626 | K16: =IF(ISERROR(VLOOKUP($B16,comp1!$A$1:$X$994,K$41,FALSE)),"-",VLOOKUP($B16,comp1!$A$1:$X$994,K$41,FALSE)) -> 1.62601626 | L16: =IF(ISERROR(VLOOKUP($B16,comp1!$A$1:$X$994,L$41,FALSE)),"-",VLOOKUP($B16,comp1!$A$1:$X$994,L$41,FALSE)) -> 0 | M16: =IF(ISERROR(VLOOKUP($B16,comp1!$A$1:$X$994,M$41,FALSE)),"-",VLOOKUP($B16,comp1!$A$1:$X$994,M$41,FALSE)) -> 0 | N16: =IF(ISERROR(VLOOKUP($B16,comp1!$A$1:$X$994,N$41,FALSE)),"-",VLOOKUP($B16,comp1!$A$1:$X$994,N$41,FALSE)) -> 0 | O16: =IF(ISERROR(VLOOKUP($B16,comp1!$A$1:$X$994,O$41,FALSE)),"-",VLOOKUP($B16,comp1!$A$1:$X$994,O$41,FALSE)) -> 0 | Q16: =IF(ISERROR(VLOOKUP($B16,'percentage comp'!$A$1:$P$994,15,FALSE)),"-",VLOOKUP($B16,'percentage comp'!$A$1:$P$994,15,FALSE)) -> 87.80487805 | R16: =IF(ISERROR(VLOOKUP($B16,'percentage comp'!$A$1:$P$994,16,FALSE)),"-",VLOOKUP($B16,'percentage comp'!$A$1:$P$994,16,FALSE)) -> 98.37398374
A17: V203P | B17: V203PB12 | C17: Clackmannanshire ADP: HMP Glenochil | D17: =IF(ISERROR(VLOOKUP($B17,comp1!$A$1:$X$994,D$41,FALSE)),"-",VLOOKUP($B17,comp1!$A$1:$X$994,D$41,FALSE)) -> 50 | E17: =IF(ISERROR(VLOOKUP($B17,comp1!$A$1:$X$994,E$41,FALSE)),"-",VLOOKUP($B17,comp1!$A$1:$X$994,E$41,FALSE)) -> 70 | F17: =IF(ISERROR(VLOOKUP($B17,comp1!$A$1:$X$994,F$41,FALSE)),"-",VLOOKUP($B17,comp1!$A$1:$X$994,F$41,FALSE)) -> 24 | G17: =IF(ISERROR(VLOOKUP($B17,comp1!$A$1:$X$994,G$41,FALSE)),"-",VLOOKUP($B17,comp1!$A$1:$X$994,G$41,FALSE)) -> 6 | H17: =IF(ISERROR(VLOOKUP($B17,comp1!$A$1:$X$994,H$41,FALSE)),"-",VLOOKUP($B17,comp1!$A$1:$X$994,H$41,FALSE)) -> 0 | I17: =IF(ISERROR(VLOOKUP($B17,comp1!$A$1:$X$994,I$41,FALSE)),"-",VLOOKUP($B17,comp1!$A$1:$X$994,I$41,FALSE)) -> 0 | J17: =IF(ISERROR(VLOOKUP($B17,comp1!$A$1:$X$994,J$41,FALSE)),"-",VLOOKUP($B17,comp1!$A$1:$X$994,J$41,FALSE)) -> 0 | K17: =IF(ISERROR(VLOOKUP($B17,comp1!$A$1:$X$994,K$41,FALSE)),"-",VLOOKUP($B17,comp1!$A$1:$X$994,K$41,FALSE)) -> 0 | L17: =IF(ISERROR(VLOOKUP($B17,comp1!$A$1:$X$994,L$41,FALSE)),"-",VLOOKUP($B17,comp1!$A$1:$X$994,L$41,FALSE)) -> 0 | M17: =IF(ISERROR(VLOOKUP($B17,comp1!$A$1:$X$994,M$41,FALSE)),"-",VLOOKUP($B17,comp1!$A$1:$X$994,M$41,FALSE)) -> 0 | N17: =IF(ISERROR(VLOOKUP($B17,comp1!$A$1:$X$994,N$41,FALSE)),"-",VLOOKUP($B17,comp1!$A$1:$X$994,N$41,FALSE)) -> 0 | O17: =IF(ISERROR(VLOOKUP($B17,comp1!$A$1:$X$994,O$41,FALSE)),"-",VLOOKUP($B17,comp1!$A$1:$X$994,O$41,FALSE)) -> 0 | Q17: =IF(ISERROR(VLOOKUP($B17,'percentage comp'!$A$1:$P$994,15,FALSE)),"-",VLOOKUP($B17,'percentage comp'!$A$1:$P$994,15,FALSE)) -> 100 | R17: =IF(ISERROR(VLOOKUP($B17,'percentage comp'!$A$1:$P$994,16,FALSE)),"-",VLOOKUP($B17,'percentage comp'!$A$1:$P$994,16,FALSE)) -> 100
A18: V101P | B18: V101PB12 | C18: Falkirk ADP: HMP Young Offenders Institution Polmont | D18: =IF(ISERROR(VLOOKUP($B18,comp1!$A$1:$X$994,D$41,FALSE)),"-",VLOOKUP($B18,comp1!$A$1:$X$994,D$41,FALSE)) -> 40 | E18: =IF(ISERROR(VLOOKUP($B18,comp1!$A$1:$X$994,E$41,FALSE)),"-",VLOOKUP($B18,comp1!$A$1:$X$994,E$41,FALSE)) -> 47.5 | F18: =IF(ISERROR(VLOOKUP($B18,comp1!$A$1:$X$994,F$41,FALSE)),"-",VLOOKUP($B18,comp1!$A$1:$X$994,F$41,FALSE)) -> 7.5 | G18: =IF(ISERROR(VLOOKUP($B18,comp1!$A$1:$X$994,G$41,FALSE)),"-",VLOOKUP($B18,comp1!$A$1:$X$994,G$41,FALSE)) -> 7.5 | H18: =IF(ISERROR(VLOOKUP($B18,comp1!$A$1:$X$994,H$41,FALSE)),"-",VLOOKUP($B18,comp1!$A$1:$X$994,H$41,FALSE)) -> 15 | I18: =IF(ISERROR(VLOOKUP($B18,comp1!$A$1:$X$994,I$41,FALSE)),"-",VLOOKUP($B18,comp1!$A$1:$X$994,I$41,FALSE)) -> 12.5 | J18: =IF(ISERROR(VLOOKUP($B18,comp1!$A$1:$X$994,J$41,FALSE)),"-",VLOOKUP($B18,comp1!$A$1:$X$994,J$41,FALSE)) -> 5 | K18: =IF(ISERROR(VLOOKUP($B18,comp1!$A$1:$X$994,K$41,FALSE)),"-",VLOOKUP($B18,comp1!$A$1:$X$994,K$41,FALSE)) -> 5 | L18: =IF(ISERROR(VLOOKUP($B18,comp1!$A$1:$X$994,L$41,FALSE)),"-",VLOOKUP($B18,comp1!$A$1:$X$994,L$41,FALSE)) -> 0 | M18: =IF(ISERROR(VLOOKUP($B18,comp1!$A$1:$X$994,M$41,FALSE)),"-",VLOOKUP($B18,comp1!$A$1:$X$994,M$41,FALSE)) -> 0 | N18: =IF(ISERROR(VLOOKUP($B18,comp1!$A$1:$X$994,N$41,FALSE)),"-",VLOOKUP($B18,comp1!$A$1:$X$994,N$41,FALSE)) -> 0 | O18: =IF(ISERROR(VLOOKUP($B18,comp1!$A$1:$X$994,O$41,FALSE)),"-",VLOOKUP($B18,comp1!$A$1:$X$994,O$41,FALSE)) -> 0 | Q18: =IF(ISERROR(VLOOKUP($B18,'percentage comp'!$A$1:$P$994,15,FALSE)),"-",VLOOKUP($B18,'percentage comp'!$A$1:$P$994,15,FALSE)) -> 62.5 | R18: =IF(ISERROR(VLOOKUP($B18,'percentage comp'!$A$1:$P$994,16,FALSE)),"-",VLOOKUP($B18,'percentage comp'!$A$1:$P$994,16,FALSE)) -> 95
A19: V202P | B19: V202PB12 | C19: Stirling ADP: HMP & YOI Cornton Vale | D19: =IF(ISERROR(VLOOKUP($B19,comp1!$A$1:$X$994,D$41,FALSE)),"-",VLOOKUP($B19,comp1!$A$1:$X$994,D$41,FALSE)) -> 33 | E19: =IF(ISERROR(VLOOKUP($B19,comp1!$A$1:$X$994,E$41,FALSE)),"-",VLOOKUP($B19,comp1!$A$1:$X$994,E$41,FALSE)) -> 84.84848485 | F19: =IF(ISERROR(VLOOKUP($B19,comp1!$A$1:$X$994,F$41,FALSE)),"-",VLOOKUP($B19,comp1!$A$1:$X$994,F$41,FALSE)) -> 3.03030303 | G19: =IF(ISERROR(VLOOKUP($B19,comp1!$A$1:$X$994,G$41,FALSE)),"-",VLOOKUP($B19,comp1!$A$1:$X$994,G$41,FALSE)) -> 12.12121212 | H19: =IF(ISERROR(VLOOKUP($B19,comp1!$A$1:$X$994,H$41,FALSE)),"-",VLOOKUP($B19,comp1!$A$1:$X$994,H$41,FALSE)) -> 0 | I19: =IF(ISERROR(VLOOKUP($B19,comp1!$A$1:$X$994,I$41,FALSE)),"-",VLOOKUP($B19,comp1!$A$1:$X$994,I$41,FALSE)) -> 0 | J19: =IF(ISERROR(VLOOKUP($B19,comp1!$A$1:$X$994,J$41,FALSE)),"-",VLOOKUP($B19,comp1!$A$1:$X$994,J$41,FALSE)) -> 0 | K19: =IF(ISERROR(VLOOKUP($B19,comp1!$A$1:$X$994,K$41,FALSE)),"-",VLOOKUP($B19,comp1!$A$1:$X$994,K$41,FALSE)) -> 0 | L19: =IF(ISERROR(VLOOKUP($B19,comp1!$A$1:$X$994,L$41,FALSE)),"-",VLOOKUP($B19,comp1!$A$1:$X$994,L$41,FALSE)) -> 0 | M19: =IF(ISERROR(VLOOKUP($B19,comp1!$A$1:$X$994,M$41,FALSE)),"-",VLOOKUP($B19,comp1!$A$1:$X$994,M$41,FALSE)) -> 0 | N19: =IF(ISERROR(VLOOKUP($B19,comp1!$A$1:$X$994,N$41,FALSE)),"-",VLOOKUP($B19,comp1!$A$1:$X$994,N$41,FALSE)) -> 0 | O19: =IF(ISERROR(VLOOKUP($B19,comp1!$A$1:$X$994,O$41,FALSE)),"-",VLOOKUP($B19,comp1!$A$1:$X$994,O$41,FALSE)) -> 0 | Q19: =IF(ISERROR(VLOOKUP($B19,'percentage comp'!$A$1:$P$994,15,FALSE)),"-",VLOOKUP($B19,'percentage comp'!$A$1:$P$994,15,FALSE)) -> 100 | R19: =IF(ISERROR(VLOOKUP($B19,'percentage comp'!$A$1:$P$994,16,FALSE)),"-",VLOOKUP($B19,'percentage comp'!$A$1:$P$994,16,FALSE)) -> 100
A20: 207 | B20: 207B12 | C20: Grampian NHS | D20: =IF(ISERROR(VLOOKUP($B20,comp1!$A$1:$X$994,D$41,FALSE)),"-",VLOOKUP($B20,comp1!$A$1:$X$994,D$41,FALSE)) -> 38 | E20: =IF(ISERROR(VLOOKUP($B20,comp1!$A$1:$X$994,E$41,FALSE)),"-",VLOOKUP($B20,comp1!$A$1:$X$994,E$41,FALSE)) -> 100 | F20: =IF(ISERROR(VLOOKUP($B20,comp1!$A$1:$X$994,F$41,FALSE)),"-",VLOOKUP($B20,comp1!$A$1:$X$994,F$41,FALSE)) -> 0 | G20: =IF(ISERROR(VLOOKUP($B20,comp1!$A$1:$X$994,G$41,FALSE)),"-",VLOOKUP($B20,comp1!$A$1:$X$994,G$41,FALSE)) -> 0 | H20: =IF(ISERROR(VLOOKUP($B20,comp1!$A$1:$X$994,H$41,FALSE)),"-",VLOOKUP($B20,comp1!$A$1:$X$994,H$41,FALSE)) -> 0 | I20: =IF(ISERROR(VLOOKUP($B20,comp1!$A$1:$X$994,I$41,FALSE)),"-",VLOOKUP($B20,comp1!$A$1:$X$994,I$41,FALSE)) -> 0 | J20: =IF(ISERROR(VLOOKUP($B20,comp1!$A$1:$X$994,J$41,FALSE)),"-",VLOOKUP($B20,comp1!$A$1:$X$994,J$41,FALSE)) -> 0 | K20: =IF(ISERROR(VLOOKUP($B20,comp1!$A$1:$X$994,K$41,FALSE)),"-",VLOOKUP($B20,comp1!$A$1:$X$994,K$41,FALSE)) -> 0 | L20: =IF(ISERROR(VLOOKUP($B20,comp1!$A$1:$X$994,L$41,FALSE)),"-",VLOOKUP($B20,comp1!$A$1:$X$994,L$41,FALSE)) -> 0 | M20: =IF(ISERROR(VLOOKUP($B20,comp1!$A$1:$X$994,M$41,FALSE)),"-",VLOOKUP($B20,comp1!$A$1:$X$994,M$41,FALSE)) -> 0 | N20: =IF(ISERROR(VLOOKUP($B20,comp1!$A$1:$X$994,N$41,FALSE)),"-",VLOOKUP($B20,comp1!$A$1:$X$994,N$41,FALSE)) -> 0 | O20: =IF(ISERROR(VLOOKUP($B20,comp1!$A$1:$X$994,O$41,FALSE)),"-",VLOOKUP($B20,comp1!$A$1:$X$994,O$41,FALSE)) -> 0 | Q20: =IF(ISERROR(VLOOKUP($B20,'percentage comp'!$A$1:$P$994,15,FALSE)),"-",VLOOKUP($B20,'percentage comp'!$A$1:$P$994,15,FALSE)) -> 100 | R20: =IF(ISERROR(VLOOKUP($B20,'percentage comp'!$A$1:$P$994,16,FALSE)),"-",VLOOKUP($B20,'percentage comp'!$A$1:$P$994,16,FALSE)) -> 100
A21: N401P | B21: N401PB12 | C21: Aberdeenshire ADP: HMP Grampian and YOI | D21: =IF(ISERROR(VLOOKUP($B21,comp1!$A$1:$X$994,D$41,FALSE)),"-",VLOOKUP($B21,comp1!$A$1:$X$994,D$41,FALSE)) -> 38 | E21: =IF(ISERROR(VLOOKUP($B21,comp1!$A$1:$X$994,E$41,FALSE)),"-",VLOOKUP($B21,comp1!$A$1:$X$994,E$41,FALSE)) -> 100 | F21: =IF(ISERROR(VLOOKUP($B21,comp1!$A$1:$X$994,F$41,FALSE)),"-",VLOOKUP($B21,comp1!$A$1:$X$994,F$41,FALSE)) -> 0 | G21: =IF(ISERROR(VLOOKUP($B21,comp1!$A$1:$X$994,G$41,FALSE)),"-",VLOOKUP($B21,comp1!$A$1:$X$994,G$41,FALSE)) -> 0 | H21: =IF(ISERROR(VLOOKUP($B21,comp1!$A$1:$X$994,H$41,FALSE)),"-",VLOOKUP($B21,comp1!$A$1:$X$994,H$41,FALSE)) -> 0 | I21: =IF(ISERROR(VLOOKUP($B21,comp1!$A$1:$X$994,I$41,FALSE)),"-",VLOOKUP($B21,comp1!$A$1:$X$994,I$41,FALSE)) -> 0 | J21: =IF(ISERROR(VLOOKUP($B21,comp1!$A$1:$X$994,J$41,FALSE)),"-",VLOOKUP($B21,comp1!$A$1:$X$994,J$41,FALSE)) -> 0 | K21: =IF(ISERROR(VLOOKUP($B21,comp1!$A$1:$X$994,K$41,FALSE)),"-",VLOOKUP($B21,comp1!$A$1:$X$994,K$41,FALSE)) -> 0 | L21: =IF(ISERROR(VLOOKUP($B21,comp1!$A$1:$X$994,L$41,FALSE)),"-",VLOOKUP($B21,comp1!$A$1:$X$994,L$41,FALSE)) -> 0 | M21: =IF(ISERROR(VLOOKUP($B21,comp1!$A$1:$X$994,M$41,FALSE)),"-",VLOOKUP($B21,comp1!$A$1:$X$994,M$41,FALSE)) -> 0 | N21: =IF(ISERROR(VLOOKUP($B21,comp1!$A$1:$X$994,N$41,FALSE)),"-",VLOOKUP($B21,comp1!$A$1:$X$994,N$41,FALSE)) -> 0 | O21: =IF(ISERROR(VLOOKUP($B21,comp1!$A$1:$X$994,O$41,FALSE)),"-",VLOOKUP($B21,comp1!$A$1:$X$994,O$41,FALSE)) -> 0 | Q21: =IF(ISERROR(VLOOKUP($B21,'percentage comp'!$A$1:$P$994,15,FALSE)),"-",VLOOKUP($B21,'percentage comp'!$A$1:$P$994,15,FALSE)) -> 100 | R21: =IF(ISERROR(VLOOKUP($B21,'percentage comp'!$A$1:$P$994,16,FALSE)),"-",VLOOKUP($B21,'percentage comp'!$A$1:$P$994,16,FALSE)) -> 100
A22: 218 | B22: 218B12 | C22: Greater Glasgow & Clyde NHS | D22: =IF(ISERROR(VLOOKUP($B22,comp1!$A$1:$X$994,D$41,FALSE)),"-",VLOOKUP($B22,comp1!$A$1:$X$994,D$41,FALSE)) -> 233 | E22: =IF(ISERROR(VLOOKUP($B22,comp1!$A$1:$X$994,E$41,FALSE)),"-",VLOOKUP($B22,comp1!$A$1:$X$994,E$41,FALSE)) -> 96.13733906 | F22: =IF(ISERROR(VLOOKUP($B22,comp1!$A$1:$X$994,F$41,FALSE)),"-",VLOOKUP($B22,comp1!$A$1:$X$994,F$41,FALSE)) -> 2.575107296 | G22: =IF(ISERROR(VLOOKUP($B22,comp1!$A$1:$X$994,G$41,FALSE)),"-",VLOOKUP($B22,comp1!$A$1:$X$994,G$41,FALSE)) -> 0.8583690987 | H22: =IF(ISERROR(VLOOKUP($B22,comp1!$A$1:$X$994,H$41,FALSE)),"-",VLOOKUP($B22,comp1!$A$1:$X$994,H$41,FALSE)) -> 0 | I22: =IF(ISERROR(VLOOKUP($B22,comp1!$A$1:$X$994,I$41,FALSE)),"-",VLOOKUP($B22,comp1!$A$1:$X$994,I$41,FALSE)) -> 0 | J22: =IF(ISERROR(VLOOKUP($B22,comp1!$A$1:$X$994,J$41,FALSE)),"-",VLOOKUP($B22,comp1!$A$1:$X$994,J$41,FALSE)) -> 0.4291845494 | K22: =IF(ISERROR(VLOOKUP($B22,comp1!$A$1:$X$994,K$41,FALSE)),"-",VLOOKUP($B22,comp1!$A$1:$X$994,K$41,FALSE)) -> 0 | L22: =IF(ISERROR(VLOOKUP($B22,comp1!$A$1:$X$994,L$41,FALSE)),"-",VLOOKUP($B22,comp1!$A$1:$X$994,L$41,FALSE)) -> 0 | M22: =IF(ISERROR(VLOOKUP($B22,comp1!$A$1:$X$994,M$41,FALSE)),"-",VLOOKUP($B22,comp1!$A$1:$X$994,M$41,FALSE)) -> 0 | N22: =IF(ISERROR(VLOOKUP($B22,comp1!$A$1:$X$994,N$41,FALSE)),"-",VLOOKUP($B22,comp1!$A$1:$X$994,N$41,FALSE)) -> 0 | O22: =IF(ISERROR(VLOOKUP($B22,comp1!$A$1:$X$994,O$41,FALSE)),"-",VLOOKUP($B22,comp1!$A$1:$X$994,O$41,FALSE)) -> 0 | Q22: =IF(ISERROR(VLOOKUP($B22,'percentage comp'!$A$1:$P$994,15,FALSE)),"-",VLOOKUP($B22,'percentage comp'!$A$1:$P$994,15,FALSE)) -> 99.57081545 | R22: =IF(ISERROR(VLOOKUP($B22,'percentage comp'!$A$1:$P$994,16,FALSE)),"-",VLOOKUP($B22,'percentage comp'!$A$1:$P$994,16,FALSE)) -> 100
A23: G763P | B23: G763PB12 | C23: East Dunbartonshire ADP: HMP Low Moss | D23: =IF(ISERROR(VLOOKUP($B23,comp1!$A$1:$X$994,D$41,FALSE)),"-",VLOOKUP($B23,comp1!$A$1:$X$994,D$41,FALSE)) -> 53 | E23: =IF(ISERROR(VLOOKUP($B23,comp1!$A$1:$X$994,E$41,FALSE)),"-",VLOOKUP($B23,comp1!$A$1:$X$994,E$41,FALSE)) -> 100 | F23: =IF(ISERROR(VLOOKUP($B23,comp1!$A$1:$X$994,F$41,FALSE)),"-",VLOOKUP($B23,comp1!$A$1:$X$994,F$41,FALSE)) -> 0 | G23: =IF(ISERROR(VLOOKUP($B23,comp1!$A$1:$X$994,G$41,FALSE)),"-",VLOOKUP($B23,comp1!$A$1:$X$994,G$41,FALSE)) -> 0 | H23: =IF(ISERROR(VLOOKUP($B23,comp1!$A$1:$X$994,H$41,FALSE)),"-",VLOOKUP($B23,comp1!$A$1:$X$994,H$41,FALSE)) -> 0 | I23: =IF(ISERROR(VLOOKUP($B23,comp1!$A$1:$X$994,I$41,FALSE)),"-",VLOOKUP($B23,comp1!$A$1:$X$994,I$41,FALSE)) -> 0 | J23: =IF(ISERROR(VLOOKUP($B23,comp1!$A$1:$X$994,J$41,FALSE)),"-",VLOOKUP($B23,comp1!$A$1:$X$994,J$41,FALSE)) -> 0 | K23: =IF(ISERROR(VLOOKUP($B23,comp1!$A$1:$X$994,K$41,FALSE)),"-",VLOOKUP($B23,comp1!$A$1:$X$994,K$41,FALSE)) -> 0 | L23: =IF(ISERROR(VLOOKUP($B23,comp1!$A$1:$X$994,L$41,FALSE)),"-",VLOOKUP($B23,comp1!$A$1:$X$994,L$41,FALSE)) -> 0 | M23: =IF(ISERROR(VLOOKUP($B23,comp1!$A$1:$X$994,M$41,FALSE)),"-",VLOOKUP($B23,comp1!$A$1:$X$994,M$41,FALSE)) -> 0 | N23: =IF(ISERROR(VLOOKUP($B23,comp1!$A$1:$X$994,N$41,FALSE)),"-",VLOOKUP($B23,comp1!$A$1:$X$994,N$41,FALSE)) -> 0 | O23: =IF(ISERROR(VLOOKUP($B23,comp1!$A$1:$X$994,O$41,FALSE)),"-",VLOOKUP($B23,comp1!$A$1:$X$994,O$41,FALSE)) -> 0 | Q23: =IF(ISERROR(VLOOKUP($B23,'percentage comp'!$A$1:$P$994,15,FALSE)),"-",VLOOKUP($B23,'percentage comp'!$A$1:$P$994,15,FALSE)) -> 100 | R23: =IF(ISERROR(VLOOKUP($B23,'percentage comp'!$A$1:$P$994,16,FALSE)),"-",VLOOKUP($B23,'percentage comp'!$A$1:$P$994,16,FALSE)) -> 100
A24: G101P | B24: G101PB12 | C24: Glasgow City ADP: HMP Barlinnie Prison | D24: =IF(ISERROR(VLOOKUP($B24,comp1!$A$1:$X$994,D$41,FALSE)),"-",VLOOKUP($B24,comp1!$A$1:$X$994,D$41,FALSE)) -> 138 | E24: =IF(ISERROR(VLOOKUP($B24,comp1!$A$1:$X$994,E$41,FALSE)),"-",VLOOKUP($B24,comp1!$A$1:$X$994,E$41,FALSE)) -> 100 | F24: =IF(ISERROR(VLOOKUP($B24,comp1!$A$1:$X$994,F$41,FALSE)),"-",VLOOKUP($B24,comp1!$A$1:$X$994,F$41,FALSE)) -> 0 | G24: =IF(ISERROR(VLOOKUP($B24,comp1!$A$1:$X$994,G$41,FALSE)),"-",VLOOKUP($B24,comp1!$A$1:$X$994,G$41,FALSE)) -> 0 | H24: =IF(ISERROR(VLOOKUP($B24,comp1!$A$1:$X$994,H$41,FALSE)),"-",VLOOKUP($B24,comp1!$A$1:$X$994,H$41,FALSE)) -> 0 | I24: =IF(ISERROR(VLOOKUP($B24,comp1!$A$1:$X$994,I$41,FALSE)),"-",VLOOKUP($B24,comp1!$A$1:$X$994,I$41,FALSE)) -> 0 | J24: =IF(ISERROR(VLOOKUP($B24,comp1!$A$1:$X$994,J$41,FALSE)),"-",VLOOKUP($B24,comp1!$A$1:$X$994,J$41,FALSE)) -> 0 | K24: =IF(ISERROR(VLOOKUP($B24,comp1!$A$1:$X$994,K$41,FALSE)),"-",VLOOKUP($B24,comp1!$A$1:$X$994,K$41,FALSE)) -> 0 | L24: =IF(ISERROR(VLOOKUP($B24,comp1!$A$1:$X$994,L$41,FALSE)),"-",VLOOKUP($B24,comp1!$A$1:$X$994,L$41,FALSE)) -> 0 | M24: =IF(ISERROR(VLOOKUP($B24,comp1!$A$1:$X$994,M$41,FALSE)),"-",VLOOKUP($B24,comp1!$A$1:$X$994,M$41,FALSE)) -> 0 | N24: =IF(ISERROR(VLOOKUP($B24,comp1!$A$1:$X$994,N$41,FALSE)),"-",VLOOKUP($B24,comp1!$A$1:$X$994,N$41,FALSE)) -> 0 | O24: =IF(ISERROR(VLOOKUP($B24,comp1!$A$1:$X$994,O$41,FALSE)),"-",VLOOKUP($B24,comp1!$A$1:$X$994,O$41,FALSE)) -> 0 | Q24: =IF(ISERROR(VLOOKUP($B24,'percentage comp'!$A$1:$P$994,15,FALSE)),"-",VLOOKUP($B24,'percentage comp'!$A$1:$P$994,15,FALSE)) -> 100 | R24: =IF(ISERROR(VLOOKUP($B24,'percentage comp'!$A$1:$P$994,16,FALSE)),"-",VLOOKUP($B24,'percentage comp'!$A$1:$P$994,16,FALSE)) -> 100
A25: C203P | B25: C203PB12 | C25: Inverclyde ADP: HMP Greenock | D25: =IF(ISERROR(VLOOKUP($B25,comp1!$A$1:$X$994,D$41,FALSE)),"-",VLOOKUP($B25,comp1!$A$1:$X$994,D$41,FALSE)) -> 42 | E25: =IF(ISERROR(VLOOKUP($B25,comp1!$A$1:$X$994,E$41,FALSE)),"-",VLOOKUP($B25,comp1!$A$1:$X$994,E$41,FALSE)) -> 78.57142857 | F25: =IF(ISERROR(VLOOKUP($B25,comp1!$A$1:$X$994,F$41,FALSE)),"-",VLOOKUP($B25,comp1!$A$1:$X$994,F$41,FALSE)) -> 14.28571429 | G25: =IF(ISERROR(VLOOKUP($B25,comp1!$A$1:$X$994,G$41,FALSE)),"-",VLOOKUP($B25,comp1!$A$1:$X$994,G$41,FALSE)) -> 4.761904762 | H25: =IF(ISERROR(VLOOKUP($B25,comp1!$A$1:$X$994,H$41,FALSE)),"-",VLOOKUP($B25,comp1!$A$1:$X$994,H$41,FALSE)) -> 0 | I25: =IF(ISERROR(VLOOKUP($B25,comp1!$A$1:$X$994,I$41,FALSE)),"-",VLOOKUP($B25,comp1!$A$1:$X$994,I$41,FALSE)) -> 0 | J25: =IF(ISERROR(VLOOKUP($B25,comp1!$A$1:$X$994,J$41,FALSE)),"-",VLOOKUP($B25,comp1!$A$1:$X$994,J$41,FALSE)) -> 2.380952381 | K25: =IF(ISERROR(VLOOKUP($B25,comp1!$A$1:$X$994,K$41,FALSE)),"-",VLOOKUP($B25,comp1!$A$1:$X$994,K$41,FALSE)) -> 0 | L25: =IF(ISERROR(VLOOKUP($B25,comp1!$A$1:$X$994,L$41,FALSE)),"-",VLOOKUP($B25,comp1!$A$1:$X$994,L$41,FALSE)) -> 0 | M25: =IF(ISERROR(VLOOKUP($B25,comp1!$A$1:$X$994,M$41,FALSE)),"-",VLOOKUP($B25,comp1!$A$1:$X$994,M$41,FALSE)) -> 0 | N25: =IF(ISERROR(VLOOKUP($B25,comp1!$A$1:$X$994,N$41,FALSE)),"-",VLOOKUP($B25,comp1!$A$1:$X$994,N$41,FALSE)) -> 0 | O25: =IF(ISERROR(VLOOKUP($B25,comp1!$A$1:$X$994,O$41,FALSE)),"-",VLOOKUP($B25,comp1!$A$1:$X$994,O$41,FALSE)) -> 0 | Q25: =IF(ISERROR(VLOOKUP($B25,'percentage comp'!$A$1:$P$994,15,FALSE)),"-",VLOOKUP($B25,'percentage comp'!$A$1:$P$994,15,FALSE)) -> 97.61904762 | R25: =IF(ISERROR(VLOOKUP($B25,'percentage comp'!$A$1:$P$994,16,FALSE)),"-",VLOOKUP($B25,'percentage comp'!$A$1:$P$994,16,FALSE)) -> 100
A26: 209 | B26: =CONCATENATE(A26,B$6,B$4) -> 209B12 | C26: Highland NHS | D26: =IF(ISERROR(VLOOKUP($B26,comp1!$A$1:$X$994,D$41,FALSE)),"-",VLOOKUP($B26,comp1!$A$1:$X$994,D$41,FALSE)) -> 72 | E26: =IF(ISERROR(VLOOKUP($B26,comp1!$A$1:$X$994,E$41,FALSE)),"-",VLOOKUP($B26,comp1!$A$1:$X$994,E$41,FALSE)) -> 79.16666667 | F26: =IF(ISERROR(VLOOKUP($B26,comp1!$A$1:$X$994,F$41,FALSE)),"-",VLOOKUP($B26,comp1!$A$1:$X$994,F$41,FALSE)) -> 11.11111111 | G26: =IF(ISERROR(VLOOKUP($B26,comp1!$A$1:$X$994,G$41,FALSE)),"-",VLOOKUP($B26,comp1!$A$1:$X$994,G$41,FALSE)) -> 6.944444444 | H26: =IF(ISERROR(VLOOKUP($B26,comp1!$A$1:$X$994,H$41,FALSE)),"-",VLOOKUP($B26,comp1!$A$1:$X$994,H$41,FALSE)) -> 2.777777778 | I26: =IF(ISERROR(VLOOKUP($B26,comp1!$A$1:$X$994,I$41,FALSE)),"-",VLOOKUP($B26,comp1!$A$1:$X$994,I$41,FALSE)) -> 0 | J26: =IF(ISERROR(VLOOKUP($B26,comp1!$A$1:$X$994,J$41,FALSE)),"-",VLOOKUP($B26,comp1!$A$1:$X$994,J$41,FALSE)) -> 0 | K26: =IF(ISERROR(VLOOKUP($B26,comp1!$A$1:$X$994,K$41,FALSE)),"-",VLOOKUP($B26,comp1!$A$1:$X$994,K$41,FALSE)) -> 0 | L26: =IF(ISERROR(VLOOKUP($B26,comp1!$A$1:$X$994,L$41,FALSE)),"-",VLOOKUP($B26,comp1!$A$1:$X$994,L$41,FALSE)) -> 0 | M26: =IF(ISERROR(VLOOKUP($B26,comp1!$A$1:$X$994,M$41,FALSE)),"-",VLOOKUP($B26,comp1!$A$1:$X$994,M$41,FALSE)) -> 0 | N26: =IF(ISERROR(VLOOKUP($B26,comp1!$A$1:$X$994,N$41,FALSE)),"-",VLOOKUP($B26,comp1!$A$1:$X$994,N$41,FALSE)) -> 0 | O26: =IF(ISERROR(VLOOKUP($B26,comp1!$A$1:$X$994,O$41,FALSE)),"-",VLOOKUP($B26,comp1!$A$1:$X$994,O$41,FALSE)) -> 0 | Q26: =IF(ISERROR(VLOOKUP($B26,'percentage comp'!$A$1:$P$994,15,FALSE)),"-",VLOOKUP($B26,'percentage comp'!$A$1:$P$994,15,FALSE)) -> 97.22222222 | R26: =IF(ISERROR(VLOOKUP($B26,'percentage comp'!$A$1:$P$994,16,FALSE)),"-",VLOOKUP($B26,'percentage comp'!$A$1:$P$994,16,FALSE)) -> 100
A27: H202P | B27: H202PB12 | C27: Highland ADP: HMP Inverness | D27: =IF(ISERROR(VLOOKUP($B27,comp1!$A$1:$X$994,D$41,FALSE)),"-",VLOOKUP($B27,comp1!$A$1:$X$994,D$41,FALSE)) -> 72 | E27: =IF(ISERROR(VLOOKUP($B27,comp1!$A$1:$X$994,E$41,FALSE)),"-",VLOOKUP($B27,comp1!$A$1:$X$994,E$41,FALSE)) -> 79.16666667 | F27: =IF(ISERROR(VLOOKUP($B27,comp1!$A$1:$X$994,F$41,FALSE)),"-",VLOOKUP($B27,comp1!$A$1:$X$994,F$41,FALSE)) -> 11.11111111 | G27: =IF(ISERROR(VLOOKUP($B27,comp1!$A$1:$X$994,G$41,FALSE)),"-",VLOOKUP($B27,comp1!$A$1:$X$994,G$41,FALSE)) -> 6.944444444 | H27: =IF(ISERROR(VLOOKUP($B27,comp1!$A$1:$X$994,H$41,FALSE)),"-",VLOOKUP($B27,comp1!$A$1:$X$994,H$41,FALSE)) -> 2.777777778 | I27: =IF(ISERROR(VLOOKUP($B27,comp1!$A$1:$X$994,I$41,FALSE)),"-",VLOOKUP($B27,comp1!$A$1:$X$994,I$41,FALSE)) -> 0 | J27: =IF(ISERROR(VLOOKUP($B27,comp1!$A$1:$X$994,J$41,FALSE)),"-",VLOOKUP($B27,comp1!$A$1:$X$994,J$41,FALSE)) -> 0 | K27: =IF(ISERROR(VLOOKUP($B27,comp1!$A$1:$X$994,K$41,FALSE)),"-",VLOOKUP($B27,comp1!$A$1:$X$994,K$41,FALSE)) -> 0 | L27: =IF(ISERROR(VLOOKUP($B27,comp1!$A$1:$X$994,L$41,FALSE)),"-",VLOOKUP($B27,comp1!$A$1:$X$994,L$41,FALSE)) -> 0 | M27: =IF(ISERROR(VLOOKUP($B27,comp1!$A$1:$X$994,M$41,FALSE)),"-",VLOOKUP($B27,comp1!$A$1:$X$994,M$41,FALSE)) -> 0 | N27: =IF(ISERROR(VLOOKUP($B27,comp1!$A$1:$X$994,N$41,FALSE)),"-",VLOOKUP($B27,comp1!$A$1:$X$994,N$41,FALSE)) -> 0 | O27: =IF(ISERROR(VLOOKUP($B27,comp1!$A$1:$X$994,O$41,FALSE)),"-",VLOOKUP($B27,comp1!$A$1:$X$994,O$41,FALSE)) -> 0 | Q27: =IF(ISERROR(VLOOKUP($B27,'percentage comp'!$A$1:$P$994,15,FALSE)),"-",VLOOKUP($B27,'percentage comp'!$A$1:$P$994,15,FALSE)) -> 97.22222222 | R27: =IF(ISERROR(VLOOKUP($B27,'percentage comp'!$A$1:$P$994,16,FALSE)),"-",VLOOKUP($B27,'percentage comp'!$A$1:$P$994,16,FALSE)) -> 100
A28: 210 | B28: 210B12 | C28: Lanarkshire NHS/ADP | D28: =IF(ISERROR(VLOOKUP($B28,comp1!$A$1:$X$994,D$41,FALSE)),"-",VLOOKUP($B28,comp1!$A$1:$X$994,D$41,FALSE)) -> 5 | E28: =IF(ISERROR(VLOOKUP($B28,comp1!$A$1:$X$994,E$41,FALSE)),"-",VLOOKUP($B28,comp1!$A$1:$X$994,E$41,FALSE)) -> 100 | F28: =IF(ISERROR(VLOOKUP($B28,comp1!$A$1:$X$994,F$41,FALSE)),"-",VLOOKUP($B28,comp1!$A$1:$X$994,F$41,FALSE)) -> 0 | G28: =IF(ISERROR(VLOOKUP($B28,comp1!$A$1:$X$994,G$41,FALSE)),"-",VLOOKUP($B28,comp1!$A$1:$X$994,G$41,FALSE)) -> 0 | H28: =IF(ISERROR(VLOOKUP($B28,comp1!$A$1:$X$994,H$41,FALSE)),"-",VLOOKUP($B28,comp1!$A$1:$X$994,H$41,FALSE)) -> 0 | I28: =IF(ISERROR(VLOOKUP($B28,comp1!$A$1:$X$994,I$41,FALSE)),"-",VLOOKUP($B28,comp1!$A$1:$X$994,I$41,FALSE)) -> 0 | J28: =IF(ISERROR(VLOOKUP($B28,comp1!$A$1:$X$994,J$41,FALSE)),"-",VLOOKUP($B28,comp1!$A$1:$X$994,J$41,FALSE)) -> 0 | K28: =IF(ISERROR(VLOOKUP($B28,comp1!$A$1:$X$994,K$41,FALSE)),"-",VLOOKUP($B28,comp1!$A$1:$X$994,K$41,FALSE)) -> 0 | L28: =IF(ISERROR(VLOOKUP($B28,comp1!$A$1:$X$994,L$41,FALSE)),"-",VLOOKUP($B28,comp1!$A$1:$X$994,L$41,FALSE)) -> 0 | M28: =IF(ISERROR(VLOOKUP($B28,comp1!$A$1:$X$994,M$41,FALSE)),"-",VLOOKUP($B28,comp1!$A$1:$X$994,M$41,FALSE)) -> 0 | N28: =IF(ISERROR(VLOOKUP($B28,comp1!$A$1:$X$994,N$41,FALSE)),"-",VLOOKUP($B28,comp1!$A$1:$X$994,N$41,FALSE)) -> 0 | O28: =IF(ISERROR(VLOOKUP($B28,comp1!$A$1:$X$994,O$41,FALSE)),"-",VLOOKUP($B28,comp1!$A$1:$X$994,O$41,FALSE)) -> 0 | Q28: =IF(ISERROR(VLOOKUP($B28,'percentage comp'!$A$1:$P$994,15,FALSE)),"-",VLOOKUP($B28,'percentage comp'!$A$1:$P$994,15,FALSE)) -> 100 | R28: =IF(ISERROR(VLOOKUP($B28,'percentage comp'!$A$1:$P$994,16,FALSE)),"-",VLOOKUP($B28,'percentage comp'!$A$1:$P$994,16,FALSE)) -> 100
A29: L202P | B29: L202PB12 | C29: HMP Shotts | D29: =IF(ISERROR(VLOOKUP($B29,comp1!$A$1:$X$994,D$41,FALSE)),"-",VLOOKUP($B29,comp1!$A$1:$X$994,D$41,FALSE)) -> 5 | E29: =IF(ISERROR(VLOOKUP($B29,comp1!$A$1:$X$994,E$41,FALSE)),"-",VLOOKUP($B29,comp1!$A$1:$X$994,E$41,FALSE)) -> 100 | F29: =IF(ISERROR(VLOOKUP($B29,comp1!$A$1:$X$994,F$41,FALSE)),"-",VLOOKUP($B29,comp1!$A$1:$X$994,F$41,FALSE)) -> 0 | G29: =IF(ISERROR(VLOOKUP($B29,comp1!$A$1:$X$994,G$41,FALSE)),"-",VLOOKUP($B29,comp1!$A$1:$X$994,G$41,FALSE)) -> 0 | H29: =IF(ISERROR(VLOOKUP($B29,comp1!$A$1:$X$994,H$41,FALSE)),"-",VLOOKUP($B29,comp1!$A$1:$X$994,H$41,FALSE)) -> 0 | I29: =IF(ISERROR(VLOOKUP($B29,comp1!$A$1:$X$994,I$41,FALSE)),"-",VLOOKUP($B29,comp1!$A$1:$X$994,I$41,FALSE)) -> 0 | J29: =IF(ISERROR(VLOOKUP($B29,comp1!$A$1:$X$994,J$41,FALSE)),"-",VLOOKUP($B29,comp1!$A$1:$X$994,J$41,FALSE)) -> 0 | K29: =IF(ISERROR(VLOOKUP($B29,comp1!$A$1:$X$994,K$41,FALSE)),"-",VLOOKUP($B29,comp1!$A$1:$X$994,K$41,FALSE)) -> 0 | L29: =IF(ISERROR(VLOOKUP($B29,comp1!$A$1:$X$994,L$41,FALSE)),"-",VLOOKUP($B29,comp1!$A$1:$X$994,L$41,FALSE)) -> 0 | M29: =IF(ISERROR(VLOOKUP($B29,comp1!$A$1:$X$994,M$41,FALSE)),"-",VLOOKUP($B29,comp1!$A$1:$X$994,M$41,FALSE)) -> 0 | N29: =IF(ISERROR(VLOOKUP($B29,comp1!$A$1:$X$994,N$41,FALSE)),"-",VLOOKUP($B29,comp1!$A$1:$X$994,N$41,FALSE)) -> 0 | O29: =IF(ISERROR(VLOOKUP($B29,comp1!$A$1:$X$994,O$41,FALSE)),"-",VLOOKUP($B29,comp1!$A$1:$X$994,O$41,FALSE)) -> 0 | Q29: =IF(ISERROR(VLOOKUP($B29,'percentage comp'!$A$1:$P$994,15,FALSE)),"-",VLOOKUP($B29,'percentage comp'!$A$1:$P$994,15,FALSE)) -> 100 | R29: =IF(ISERROR(VLOOKUP($B29,'percentage comp'!$A$1:$P$994,16,FALSE)),"-",VLOOKUP($B29,'percentage comp'!$A$1:$P$994,16,FALSE)) -> 100
A30: 211 | B30: 211B12 | C30: Lothian NHS | D30: =IF(ISERROR(VLOOKUP($B30,comp1!$A$1:$X$994,D$41,FALSE)),"-",VLOOKUP($B30,comp1!$A$1:$X$994,D$41,FALSE)) -> 176 | E30: =IF(ISERROR(VLOOKUP($B30,comp1!$A$1:$X$994,E$41,FALSE)),"-",VLOOKUP($B30,comp1!$A$1:$X$994,E$41,FALSE)) -> 22.72727273 | F30: =IF(ISERROR(VLOOKUP($B30,comp1!$A$1:$X$994,F$41,FALSE)),"-",VLOOKUP($B30,comp1!$A$1:$X$994,F$41,FALSE)) -> 42.04545455 | G30: =IF(ISERROR(VLOOKUP($B30,comp1!$A$1:$X$994,G$41,FALSE)),"-",VLOOKUP($B30,comp1!$A$1:$X$994,G$41,FALSE)) -> 25 | H30: =IF(ISERROR(VLOOKUP($B30,comp1!$A$1:$X$994,H$41,FALSE)),"-",VLOOKUP($B30,comp1!$A$1:$X$994,H$41,FALSE)) -> 5.113636364 | I30: =IF(ISERROR(VLOOKUP($B30,comp1!$A$1:$X$994,I$41,FALSE)),"-",VLOOKUP($B30,comp1!$A$1:$X$994,I$41,FALSE)) -> 1.704545455 | J30: =IF(ISERROR(VLOOKUP($B30,comp1!$A$1:$X$994,J$41,FALSE)),"-",VLOOKUP($B30,comp1!$A$1:$X$994,J$41,FALSE)) -> 1.704545455 | K30: =IF(ISERROR(VLOOKUP($B30,comp1!$A$1:$X$994,K$41,FALSE)),"-",VLOOKUP($B30,comp1!$A$1:$X$994,K$41,FALSE)) -> 0 | L30: =IF(ISERROR(VLOOKUP($B30,comp1!$A$1:$X$994,L$41,FALSE)),"-",VLOOKUP($B30,comp1!$A$1:$X$994,L$41,FALSE)) -> 1.704545455 | M30: =IF(ISERROR(VLOOKUP($B30,comp1!$A$1:$X$994,M$41,FALSE)),"-",VLOOKUP($B30,comp1!$A$1:$X$994,M$41,FALSE)) -> 0 | N30: =IF(ISERROR(VLOOKUP($B30,comp1!$A$1:$X$994,N$41,FALSE)),"-",VLOOKUP($B30,comp1!$A$1:$X$994,N$41,FALSE)) -> 0 | O30: =IF(ISERROR(VLOOKUP($B30,comp1!$A$1:$X$994,O$41,FALSE)),"-",VLOOKUP($B30,comp1!$A$1:$X$994,O$41,FALSE)) -> 0 | Q30: =IF(ISERROR(VLOOKUP($B30,'percentage comp'!$A$1:$P$994,15,FALSE)),"-",VLOOKUP($B30,'percentage comp'!$A$1:$P$994,15,FALSE)) -> 89.77272727 | R30: =IF(ISERROR(VLOOKUP($B30,'percentage comp'!$A$1:$P$994,16,FALSE)),"-",VLOOKUP($B30,'percentage comp'!$A$1:$P$994,16,FALSE)) -> 98.29545455
A31: S400P | B31: S400PB12 | C31: West Lothian ADP: HMP Addiewell | D31: =IF(ISERROR(VLOOKUP($B31,comp1!$A$1:$X$994,D$41,FALSE)),"-",VLOOKUP($B31,comp1!$A$1:$X$994,D$41,FALSE)) -> 54 | E31: =IF(ISERROR(VLOOKUP($B31,comp1!$A$1:$X$994,E$41,FALSE)),"-",VLOOKUP($B31,comp1!$A$1:$X$994,E$41,FALSE)) -> 14.81481481 | F31: =IF(ISERROR(VLOOKUP($B31,comp1!$A$1:$X$994,F$41,FALSE)),"-",VLOOKUP($B31,comp1!$A$1:$X$994,F$41,FALSE)) -> 40.74074074 | G31: =IF(ISERROR(VLOOKUP($B31,comp1!$A$1:$X$994,G$41,FALSE)),"-",VLOOKUP($B31,comp1!$A$1:$X$994,G$41,FALSE)) -> 25.92592593 | H31: =IF(ISERROR(VLOOKUP($B31,comp1!$A$1:$X$994,H$41,FALSE)),"-",VLOOKUP($B31,comp1!$A$1:$X$994,H$41,FALSE)) -> 7.407407407 | I31: =IF(ISERROR(VLOOKUP($B31,comp1!$A$1:$X$994,I$41,FALSE)),"-",VLOOKUP($B31,comp1!$A$1:$X$994,I$41,FALSE)) -> 3.703703704 | J31: =IF(ISERROR(VLOOKUP($B31,comp1!$A$1:$X$994,J$41,FALSE)),"-",VLOOKUP($B31,comp1!$A$1:$X$994,J$41,FALSE)) -> 1.851851852 | K31: =IF(ISERROR(VLOOKUP($B31,comp1!$A$1:$X$994,K$41,FALSE)),"-",VLOOKUP($B31,comp1!$A$1:$X$994,K$41,FALSE)) -> 0 | L31: =IF(ISERROR(VLOOKUP($B31,comp1!$A$1:$X$994,L$41,FALSE)),"-",VLOOKUP($B31,comp1!$A$1:$X$994,L$41,FALSE)) -> 5.555555556 | M31: =IF(ISERROR(VLOOKUP($B31,comp1!$A$1:$X$994,M$41,FALSE)),"-",VLOOKUP($B31,comp1!$A$1:$X$994,M$41,FALSE)) -> 0 | N31: =IF(ISERROR(VLOOKUP($B31,comp1!$A$1:$X$994,N$41,FALSE)),"-",VLOOKUP($B31,comp1!$A$1:$X$994,N$41,FALSE)) -> 0 | O31: =IF(ISERROR(VLOOKUP($B31,comp1!$A$1:$X$994,O$41,FALSE)),"-",VLOOKUP($B31,comp1!$A$1:$X$994,O$41,FALSE)) -> 0 | Q31: =IF(ISERROR(VLOOKUP($B31,'percentage comp'!$A$1:$P$994,15,FALSE)),"-",VLOOKUP($B31,'percentage comp'!$A$1:$P$994,15,FALSE)) -> 81.48148148 | R31: =IF(ISERROR(VLOOKUP($B31,'percentage comp'!$A$1:$P$994,16,FALSE)),"-",VLOOKUP($B31,'percentage comp'!$A$1:$P$994,16,FALSE)) -> 94.44444444
A32: S203P | B32: S203PB12 | C32: Edinburgh City ADP: HMP Edinburgh | D32: =IF(ISERROR(VLOOKUP($B32,comp1!$A$1:$X$994,D$41,FALSE)),"-",VLOOKUP($B32,comp1!$A$1:$X$994,D$41,FALSE)) -> 122 | E32: =IF(ISERROR(VLOOKUP($B32,comp1!$A$1:$X$994,E$41,FALSE)),"-",VLOOKUP($B32,comp1!$A$1:$X$994,E$41,FALSE)) -> 26.2295082 | F32: =IF(ISERROR(VLOOKUP($B32,comp1!$A$1:$X$994,F$41,FALSE)),"-",VLOOKUP($B32,comp1!$A$1:$X$994,F$41,FALSE)) -> 42.62295082 | G32: =IF(ISERROR(VLOOKUP($B32,comp1!$A$1:$X$994,G$41,FALSE)),"-",VLOOKUP($B32,comp1!$A$1:$X$994,G$41,FALSE)) -> 24.59016393 | H32: =IF(ISERROR(VLOOKUP($B32,comp1!$A$1:$X$994,H$41,FALSE)),"-",VLOOKUP($B32,comp1!$A$1:$X$994,H$41,FALSE)) -> 4.098360656 | I32: =IF(ISERROR(VLOOKUP($B32,comp1!$A$1:$X$994,I$41,FALSE)),"-",VLOOKUP($B32,comp1!$A$1:$X$994,I$41,FALSE)) -> 0.8196721311 | J32: =IF(ISERROR(VLOOKUP($B32,comp1!$A$1:$X$994,J$41,FALSE)),"-",VLOOKUP($B32,comp1!$A$1:$X$994,J$41,FALSE)) -> 1.639344262 | K32: =IF(ISERROR(VLOOKUP($B32,comp1!$A$1:$X$994,K$41,FALSE)),"-",VLOOKUP($B32,comp1!$A$1:$X$994,K$41,FALSE)) -> 0 | L32: =IF(ISERROR(VLOOKUP($B32,comp1!$A$1:$X$994,L$41,FALSE)),"-",VLOOKUP($B32,comp1!$A$1:$X$994,L$41,FALSE)) -> 0 | M32: =IF(ISERROR(VLOOKUP($B32,comp1!$A$1:$X$994,M$41,FALSE)),"-",VLOOKUP($B32,comp1!$A$1:$X$994,M$41,FALSE)) -> 0 | N32: =IF(ISERROR(VLOOKUP($B32,comp1!$A$1:$X$994,N$41,FALSE)),"-",VLOOKUP($B32,comp1!$A$1:$X$994,N$41,FALSE)) -> 0 | O32: =IF(ISERROR(VLOOKUP($B32,comp1!$A$1:$X$994,O$41,FALSE)),"-",VLOOKUP($B32,comp1!$A$1:$X$994,O$41,FALSE)) -> 0 | Q32: =IF(ISERROR(VLOOKUP($B32,'percentage comp'!$A$1:$P$994,15,FALSE)),"-",VLOOKUP($B32,'percentage comp'!$A$1:$P$994,15,FALSE)) -> 93.44262295 | R32: =IF(ISERROR(VLOOKUP($B32,'percentage comp'!$A$1:$P$994,16,FALSE)),"-",VLOOKUP($B32,'percentage comp'!$A$1:$P$994,16,FALSE)) -> 100
A33: 214 | B33: 214B12 | C33: Tayside NHS | D33: =IF(ISERROR(VLOOKUP($B33,comp1!$A$1:$X$994,D$41,FALSE)),"-",VLOOKUP($B33,comp1!$A$1:$X$994,D$41,FALSE)) -> 23 | E33: =IF(ISERROR(VLOOKUP($B33,comp1!$A$1:$X$994,E$41,FALSE)),"-",VLOOKUP($B33,comp1!$A$1:$X$994,E$41,FALSE)) -> 8.695652174 | F33: =IF(ISERROR(VLOOKUP($B33,comp1!$A$1:$X$994,F$41,FALSE)),"-",VLOOKUP($B33,comp1!$A$1:$X$994,F$41,FALSE)) -> 4.347826087 | G33: =IF(ISERROR(VLOOKUP($B33,comp1!$A$1:$X$994,G$41,FALSE)),"-",VLOOKUP($B33,comp1!$A$1:$X$994,G$41,FALSE)) -> 21.73913043 | H33: =IF(ISERROR(VLOOKUP($B33,comp1!$A$1:$X$994,H$41,FALSE)),"-",VLOOKUP($B33,comp1!$A$1:$X$994,H$41,FALSE)) -> 8.695652174 | I33: =IF(ISERROR(VLOOKUP($B33,comp1!$A$1:$X$994,I$41,FALSE)),"-",VLOOKUP($B33,comp1!$A$1:$X$994,I$41,FALSE)) -> 17.39130435 | J33: =IF(ISERROR(VLOOKUP($B33,comp1!$A$1:$X$994,J$41,FALSE)),"-",VLOOKUP($B33,comp1!$A$1:$X$994,J$41,FALSE)) -> 17.39130435 | K33: =IF(ISERROR(VLOOKUP($B33,comp1!$A$1:$X$994,K$41,FALSE)),"-",VLOOKUP($B33,comp1!$A$1:$X$994,K$41,FALSE)) -> 13.04347826 | L33: =IF(ISERROR(VLOOKUP($B33,comp1!$A$1:$X$994,L$41,FALSE)),"-",VLOOKUP($B33,comp1!$A$1:$X$994,L$41,FALSE)) -> 8.695652174 | M33: =IF(ISERROR(VLOOKUP($B33,comp1!$A$1:$X$994,M$41,FALSE)),"-",VLOOKUP($B33,comp1!$A$1:$X$994,M$41,FALSE)) -> 0 | N33: =IF(ISERROR(VLOOKUP($B33,comp1!$A$1:$X$994,N$41,FALSE)),"-",VLOOKUP($B33,comp1!$A$1:$X$994,N$41,FALSE)) -> 0 | O33: =IF(ISERROR(VLOOKUP($B33,comp1!$A$1:$X$994,O$41,FALSE)),"-",VLOOKUP($B33,comp1!$A$1:$X$994,O$41,FALSE)) -> 0 | Q33: =IF(ISERROR(VLOOKUP($B33,'percentage comp'!$A$1:$P$994,15,FALSE)),"-",VLOOKUP($B33,'percentage comp'!$A$1:$P$994,15,FALSE)) -> 34.7826087 | R33: =IF(ISERROR(VLOOKUP($B33,'percentage comp'!$A$1:$P$994,16,FALSE)),"-",VLOOKUP($B33,'percentage comp'!$A$1:$P$994,16,FALSE)) -> 78.26086957
A34: T300P | B34: T300PB12 | C34: Perth and Kinross ADP: HMP Open Estate | D34: =IF(ISERROR(VLOOKUP($B34,comp1!$A$1:$X$994,D$41,FALSE)),"-",VLOOKUP($B34,comp1!$A$1:$X$994,D$41,FALSE)) -> - | E34: =IF(ISERROR(VLOOKUP($B34,comp1!$A$1:$X$994,E$41,FALSE)),"-",VLOOKUP($B34,comp1!$A$1:$X$994,E$41,FALSE)) -> - | F34: =IF(ISERROR(VLOOKUP($B34,comp1!$A$1:$X$994,F$41,FALSE)),"-",VLOOKUP($B34,comp1!$A$1:$X$994,F$41,FALSE)) -> - | G34: =IF(ISERROR(VLOOKUP($B34,comp1!$A$1:$X$994,G$41,FALSE)),"-",VLOOKUP($B34,comp1!$A$1:$X$994,G$41,FALSE)) -> - | H34: =IF(ISERROR(VLOOKUP($B34,comp1!$A$1:$X$994,H$41,FALSE)),"-",VLOOKUP($B34,comp1!$A$1:$X$994,H$41,FALSE)) -> - | I34: =IF(ISERROR(VLOOKUP($B34,comp1!$A$1:$X$994,I$41,FALSE)),"-",VLOOKUP($B34,comp1!$A$1:$X$994,I$41,FALSE)) -> - | J34: =IF(ISERROR(VLOOKUP($B34,comp1!$A$1:$X$994,J$41,FALSE)),"-",VLOOKUP($B34,comp1!$A$1:$X$994,J$41,FALSE)) -> - | K34: =IF(ISERROR(VLOOKUP($B34,comp1!$A$1:$X$994,K$41,FALSE)),"-",VLOOKUP($B34,comp1!$A$1:$X$994,K$41,FALSE)) -> - | L34: =IF(ISERROR(VLOOKUP($B34,comp1!$A$1:$X$994,L$41,FALSE)),"-",VLOOKUP($B34,comp1!$A$1:$X$994,L$41,FALSE)) -> - | M34: =IF(ISERROR(VLOOKUP($B34,comp1!$A$1:$X$994,M$41,FALSE)),"-",VLOOKUP($B34,comp1!$A$1:$X$994,M$41,FALSE)) -> - | N34: =IF(ISERROR(VLOOKUP($B34,comp1!$A$1:$X$994,N$41,FALSE)),"-",VLOOKUP($B34,comp1!$A$1:$X$994,N$41,FALSE)) -> - | O34: =IF(ISERROR(VLOOKUP($B34,comp1!$A$1:$X$994,O$41,FALSE)),"-",VLOOKUP($B34,comp1!$A$1:$X$994,O$41,FALSE)) -> - | Q34: =IF(ISERROR(VLOOKUP($B34,'percentage comp'!$A$1:$P$994,15,FALSE)),"-",VLOOKUP($B34,'percentage comp'!$A$1:$P$994,15,FALSE)) -> - | R34: =IF(ISERROR(VLOOKUP($B34,'percentage comp'!$A$1:$P$994,16,FALSE)),"-",VLOOKUP($B34,'percentage comp'!$A$1:$P$994,16,FALSE)) -> -
A35: T101P | B35: T101PB12 | C35: Perth and Kinross ADP: HMP Perth Prison | D35: =IF(ISERROR(VLOOKUP($B35,comp1!$A$1:$X$994,D$41,FALSE)),"-",VLOOKUP($B35,comp1!$A$1:$X$994,D$41,FALSE)) -> 23 | E35: =IF(ISERROR(VLOOKUP($B35,comp1!$A$1:$X$994,E$41,FALSE)),"-",VLOOKUP($B35,comp1!$A$1:$X$994,E$41,FALSE)) -> 8.695652174 | F35: =IF(ISERROR(VLOOKUP($B35,comp1!$A$1:$X$994,F$41,FALSE)),"-",VLOOKUP($B35,comp1!$A$1:$X$994,F$41,FALSE)) -> 4.347826087 | G35: =IF(ISERROR(VLOOKUP($B35,comp1!$A$1:$X$994,G$41,FALSE)),"-",VLOOKUP($B35,comp1!$A$1:$X$994,G$41,FALSE)) -> 21.73913043 | H35: =IF(ISERROR(VLOOKUP($B35,comp1!$A$1:$X$994,H$41,FALSE)),"-",VLOOKUP($B35,comp1!$A$1:$X$994,H$41,FALSE)) -> 8.695652174 | I35: =IF(ISERROR(VLOOKUP($B35,comp1!$A$1:$X$994,I$41,FALSE)),"-",VLOOKUP($B35,comp1!$A$1:$X$994,I$41,FALSE)) -> 17.39130435 | J35: =IF(ISERROR(VLOOKUP($B35,comp1!$A$1:$X$994,J$41,FALSE)),"-",VLOOKUP($B35,comp1!$A$1:$X$994,J$41,FALSE)) -> 17.39130435 | K35: =IF(ISERROR(VLOOKUP($B35,comp1!$A$1:$X$994,K$41,FALSE)),"-",VLOOKUP($B35,comp1!$A$1:$X$994,K$41,FALSE)) -> 13.04347826 | L35: =IF(ISERROR(VLOOKUP($B35,comp1!$A$1:$X$994,L$41,FALSE)),"-",VLOOKUP($B35,comp1!$A$1:$X$994,L$41,FALSE)) -> 8.695652174 | M35: =IF(ISERROR(VLOOKUP($B35,comp1!$A$1:$X$994,M$41,FALSE)),"-",VLOOKUP($B35,comp1!$A$1:$X$994,M$41,FALSE)) -> 0 | N35: =IF(ISERROR(VLOOKUP($B35,comp1!$A$1:$X$994,N$41,FALSE)),"-",VLOOKUP($B35,comp1!$A$1:$X$994,N$41,FALSE)) -> 0 | O35: =IF(ISERROR(VLOOKUP($B35,comp1!$A$1:$X$994,O$41,FALSE)),"-",VLOOKUP($B35,comp1!$A$1:$X$994,O$41,FALSE)) -> 0 | Q35: =IF(ISERROR(VLOOKUP($B35,'percentage comp'!$A$1:$P$994,15,FALSE)),"-",VLOOKUP($B35,'percentage comp'!$A$1:$P$994,15,FALSE)) -> 34.7826087 | R35: =IF(ISERROR(VLOOKUP($B35,'percentage comp'!$A$1:$P$994,16,FALSE)),"-",VLOOKUP($B35,'percentage comp'!$A$1:$P$994,16,FALSE)) -> 78.26086957
C37: Source: Drug and Alcohol Treatment Waiting Times Database
C39: 1 indicates there are services within this ADP/Health Board that have been excluded due to data non-compliance for quarter's ending 31st Decemebr 2019. The exclusion may affect the ADP/Health Board's performace for those quarters.
D41: 13 | E41: 14 | F41: 15 | G41: 16 | H41: 17 | I41: 18 | J41: 19 | K41: 20 | L41: 21 | M41: 22 | N41: 23 | O41: 24
C42: Notes:
C43: 1. If menu is not active, change macro security settings using Tools, Macro, Security - set security level to Medium and re-open this report.
C44: Data for previous quarters has been revised. Data for the most recent quarter is provisional and will be subject to revisions in future publications.
C47: * Indicates values that have been suppressed due to the potential risk of disclosure and to help maintain client confidentiality.
C49: Details of compliance
C50: Index

Sheet comp1 (hidden)
A1: desc | B1: u8 | C1: d8to14 | D1: d15to21 | E1: d22to28 | F1: d29to35 | G1: d36to42 | H1: w7to8wk | I1: w9to12wk | J1: w13to16wk | K1: w17to20wk | L1: w21plus | M1: t1 | N1: pc_u8 | O1: pc_d8to14 | P1: pc_d15to21 | Q1: pc_d22to28 | R1: pc_d29to35 | S1: pc_d36to42 | T1: pc_w7to8wk | U1: pc_w9to12wk | V1: pc_w13to16wk | W1: pc_w17to20wk | X1: pc_w21plus
A2: A202Pb11 | B2: 111 | C2: 17 | D2: 5 | E2: 0 | F2: 0 | G2: 0 | H2: 0 | I2: 0 | J2: 0 | K2: 0 | L2: 0 | M2: 133 | N2: 83.45864662 | O2: 12.78195489 | P2: 3.759398496 | Q2: 0 | R2: 0 | S2: 0 | T2: 0 | U2: 0 | V2: 0 | W2: 0 | X2: 0
A3: C203Pb11 | B3: 31 | C3: 0 | D3: 0 | E3: 0 | F3: 0 | G3: 0 | H3: 0 | I3: 0 | J3: 0 | K3: 0 | L3: 0 | M3: 31 | N3: 100 | O3: 0 | P3: 0 | Q3: 0 | R3: 0 | S3: 0 | T3: 0 | U3: 0 | V3: 0 | W3: 0 | X3: 0
A4: G101Pb11 | B4: 208 | C4: 0 | D4: 0 | E4: 0 | F4: 0 | G4: 0 | H4: 0 | I4: 0 | J4: 0 | K4: 0 | L4: 0 | M4: 208 | N4: 100 | O4: 0 | P4: 0 | Q4: 0 | R4: 0 | S4: 0 | T4: 0 | U4: 0 | V4: 0 | W4: 0 | X4: 0
A5: G763Pb11 | B5: 81 | C5: 0 | D5: 0 | E5: 0 | F5: 0 | G5: 0 | H5: 0 | I5: 0 | J5: 0 | K5: 0 | L5: 0 | M5: 81 | N5: 100 | O5: 0 | P5: 0 | Q5: 0 | R5: 0 | S5: 0 | T5: 0 | U5: 0 | V5: 0 | W5: 0 | X5: 0
A6: H202Pb11 | B6: 28 | C6: 18 | D6: 17 | E6: 2 | F6: 1 | G6: 1 | H6: 1 | I6: 0 | J6: 0 | K6: 0 | L6: 0 | M6: 68 | N6: 41.17647059 | O6: 26.47058824 | P6: 25 | Q6: 2.941176471 | R6: 1.470588235 | S6: 1.470588235 | T6: 1.470588235 | U6: 0 | V6: 0 | W6: 0 | X6: 0
A7: L202Pb11 | B7: 7 | C7: 0 | D7: 0 | E7: 0 | F7: 0 | G7: 0 | H7: 0 | I7: 0 | J7: 0 | K7: 0 | L7: 0 | M7: 7 | N7: 100 | O7: 0 | P7: 0 | Q7: 0 | R7: 0 | S7: 0 | T7: 0 | U7: 0 | V7: 0 | W7: 0 | X7: 0
A8: N401Pb11 | B8: 56 | C8: 0 | D8: 0 | E8: 0 | F8: 0 | G8: 0 | H8: 0 | I8: 0 | J8: 0 | K8: 0 | L8: 0 | M8: 56 | N8: 100 | O8: 0 | P8: 0 | Q8: 0 | R8: 0 | S8: 0 | T8: 0 | U8: 0 | V8: 0 | W8: 0 | X8: 0
A9: S203Pb11 | B9: 39 | C9: 48 | D9: 23 | E9: 1 | F9: 0 | G9: 0 | H9: 1 | I9: 3 | J9: 1 | K9: 0 | L9: 0 | M9: 116 | N9: 33.62068966 | O9: 41.37931034 | P9: 19.82758621 | Q9: 0.8620689655 | R9: 0 | S9: 0 | T9: 0.8620689655 | U9: 2.586206897 | V9: 0.8620689655 | W9: 0 | X9: 0
A10: S400Pb11 | B10: 20 | C10: 17 | D10: 8 | E10: 4 | F10: 0 | G10: 4 | H10: 1 | I10: 2 | J10: 1 | K10: 0 | L10: 0 | M10: 57 | N10: 35.0877193 | O10: 29.8245614 | P10: 14.03508772 | Q10: 7.01754386 | R10: 0 | S10: 7.01754386 | T10: 1.754385965 | U10: 3.50877193 | V10: 1.754385965 | W10: 0 | X10: 0
A11: T101Pb11 | B11: 4 | C11: 26 | D11: 11 | E11: 1 | F11: 0 | G11: 1 | H11: 1 | I11: 0 | J11: 0 | K11: 0 | L11: 0 | M11: 44 | N11: 9.090909091 | O11: 59.09090909 | P11: 25 | Q11: 2.272727273 | R11: 0 | S11: 2.272727273 | T11: 2.272727273 | U11: 0 | V11: 0 | W11: 0 | X11: 0
A12: V101Pb11 | B12: 21 | C12: 27 | D12: 10 | E12: 3 | F12: 1 | G12: 1 | H12: 0 | I12: 0 | J12: 0 | K12: 0 | L12: 0 | M12: 63 | N12: 33.33333333 | O12: 42.85714286 | P12: 15.87301587 | Q12: 4.761904762 | R12: 1.587301587 | S12: 1.587301587 | T12: 0 | U12: 0 | V12: 0 | W12: 0 | X12: 0
A13: V202Pb11 | B13: 21 | C13: 6 | D13: 3 | E13: 0 | F13: 0 | G13: 0 | H13: 0 | I13: 0 | J13: 0 | K13: 0 | L13: 0 | M13: 30 | N13: 70 | O13: 20 | P13: 10 | Q13: 0 | R13: 0 | S13: 0 | T13: 0 | U13: 0 | V13: 0 | W13: 0 | X13: 0
A14: V203Pb11 | B14: 63 | C14: 29 | D14: 4 | E14: 0 | F14: 0 | G14: 0 | H14: 0 | I14: 0 | J14: 0 | K14: 0 | L14: 0 | M14: 96 | N14: 65.625 | O14: 30.20833333 | P14: 4.166666667 | Q14: 0 | R14: 0 | S14: 0 | T14: 0 | U14: 0 | V14: 0 | W14: 0 | X14: 0
A15: Y101Pb11 | B15: 24 | C15: 0 | D15: 0 | E15: 0 | F15: 0 | G15: 0 | H15: 0 | I15: 0 | J15: 0 | K15: 0 | L15: 0 | M15: 24 | N15: 100 | O15: 0 | P15: 0 | Q15: 0 | R15: 0 | S15: 0 | T15: 0 | U15: 0 | V15: 0 | W15: 0 | X15: 0
A16: A202Pb12 | B16: 105 | C16: 9 | D16: 4 | E16: 0 | F16: 0 | G16: 0 | H16: 0 | I16: 0 | J16: 0 | K16: 0 | L16: 0 | M16: 118 | N16: 88.98305085 | O16: 7.627118644 | P16: 3.389830508 | Q16: 0 | R16: 0 | S16: 0 | T16: 0 | U16: 0 | V16: 0 | W16: 0 | X16: 0
A17: C203Pb12 | B17: 33 | C17: 6 | D17: 2 | E17: 0 | F17: 0 | G17: 1 | H17: 0 | I17: 0 | J17: 0 | K17: 0 | L17: 0 | M17: 42 | N17: 78.57142857 | O17: 14.28571429 | P17: 4.761904762 | Q17: 0 | R17: 0 | S17: 2.380952381 | T17: 0 | U17: 0 | V17: 0 | W17: 0 | X17: 0
A18: G101Pb12 | B18: 138 | C18: 0 | D18: 0 | E18: 0 | F18: 0 | G18: 0 | H18: 0 | I18: 0 | J18: 0 | K18: 0 | L18: 0 | M18: 138 | N18: 100 | O18: 0 | P18: 0 | Q18: 0 | R18: 0 | S18: 0 | T18: 0 | U18: 0 | V18: 0 | W18: 0 | X18: 0
A19: G763Pb12 | B19: 53 | C19: 0 | D19: 0 | E19: 0 | F19: 0 | G19: 0 | H19: 0 | I19: 0 | J19: 0 | K19: 0 | L19: 0 | M19: 53 | N19: 100 | O19: 0 | P19: 0 | Q19: 0 | R19: 0 | S19: 0 | T19: 0 | U19: 0 | V19: 0 | W19: 0 | X19: 0
A20: H202Pb12 | B20: 57 | C20: 8 | D20: 5 | E20: 2 | F20: 0 | G20: 0 | H20: 0 | I20: 0 | J20: 0 | K20: 0 | L20: 0 | M20: 72 | N20: 79.16666667 | O20: 11.11111111 | P20: 6.944444444 | Q20: 2.777777778 | R20: 0 | S20: 0 | T20: 0 | U20: 0 | V20: 0 | W20: 0 | X20: 0
A21: L202Pb12 | B21: 5 | C21: 0 | D21: 0 | E21: 0 | F21: 0 | G21: 0 | H21: 0 | I21: 0 | J21: 0 | K21: 0 | L21: 0 | M21: 5 | N21: 100 | O21: 0 | P21: 0 | Q21: 0 | R21: 0 | S21: 0 | T21: 0 | U21: 0 | V21: 0 | W21: 0 | X21: 0
A22: N401Pb12 | B22: 38 | C22: 0 | D22: 0 | E22: 0 | F22: 0 | G22: 0 | H22: 0 | I22: 0 | J22: 0 | K22: 0 | L22: 0 | M22: 38 | N22: 100 | O22: 0 | P22: 0 | Q22: 0 | R22: 0 | S22: 0 | T22: 0 | U22: 0 | V22: 0 | W22: 0 | X22: 0
A23: S203Pb12 | B23: 32 | C23: 52 | D23: 30 | E23: 5 | F23: 1 | G23: 2 | H23: 0 | I23: 0 | J23: 0 | K23: 0 | L23: 0 | M23: 122 | N23: 26.2295082 | O23: 42.62295082 | P23: 24.59016393 | Q23: 4.098360656 | R23: 0.8196721311 | S23: 1.639344262 | T23: 0 | U23: 0 | V23: 0 | W23: 0 | X23: 0
A24: S400Pb12 | B24: 8 | C24: 22 | D24: 14 | E24: 4 | F24: 2 | G24: 1 | H24: 0 | I24: 3 | J24: 0 | K24: 0 | L24: 0 | M24: 54 | N24: 14.81481481 | O24: 40.74074074 | P24: 25.92592593 | Q24: 7.407407407 | R24: 3.703703704 | S24: 1.851851852 | T24: 0 | U24: 5.555555556 | V24: 0 | W24: 0 | X24: 0
A25: T101Pb12 | B25: 2 | C25: 1 | D25: 5 | E25: 2 | F25: 4 | G25: 4 | H25: 3 | I25: 2 | J25: 0 | K25: 0 | L25: 0 | M25: 23 | N25: 8.695652174 | O25: 4.347826087 | P25: 21.73913043 | Q25: 8.695652174 | R25: 17.39130435 | S25: 17.39130435 | T25: 13.04347826 | U25: 8.695652174 | V25: 0 | W25: 0 | X25: 0
A26: V101Pb12 | B26: 19 | C26: 3 | D26: 3 | E26: 6 | F26: 5 | G26: 2 | H26: 2 | I26: 0 | J26: 0 | K26: 0 | L26: 0 | M26: 40 | N26: 47.5 | O26: 7.5 | P26: 7.5 | Q26: 15 | R26: 12.5 | S26: 5 | T26: 5 | U26: 0 | V26: 0 | W26: 0 | X26: 0
A27: V202Pb12 | B27: 28 | C27: 1 | D27: 4 | E27: 0 | F27: 0 | G27: 0 | H27: 0 | I27: 0 | J27: 0 | K27: 0 | L27: 0 | M27: 33 | N27: 84.84848485 | O27: 3.03030303 | P27: 12.12121212 | Q27: 0 | R27: 0 | S27: 0 | T27: 0 | U27: 0 | V27: 0 | W27: 0 | X27: 0
A28: V203Pb12 | B28: 35 | C28: 12 | D28: 3 | E28: 0 | F28: 0 | G28: 0 | H28: 0 | I28: 0 | J28: 0 | K28: 0 | L28: 0 | M28: 50 | N28: 70 | O28: 24 | P28: 6 | Q28: 0 | R28: 0 | S28: 0 | T28: 0 | U28: 0 | V28: 0 | W28: 0 | X28: 0
A29: Y101Pb12 | B29: 23 | C29: 0 | D29: 0 | E29: 0 | F29: 0 | G29: 0 | H29: 0 | I29: 0 | J29: 0 | K29: 0 | L29: 0 | M29: 23 | N29: 100 | O29: 0 | P29: 0 | Q29: 0 | R29: 0 | S29: 0 | T29: 0 | U29: 0 | V29: 0 | W29: 0 | X29: 0
A30: A202Pb21 | B30: 85 | C30: 21 | D30: 19 | E30: 0 | F30: 0 | G30: 0 | H30: 0 | I30: 0 | J30: 0 | K30: 0 | L30: 0 | M30: 125 | N30: 68 | O30: 16.8 | P30: 15.2 | Q30: 0 | R30: 0 | S30: 0 | T30: 0 | U30: 0 | V30: 0 | W30: 0 | X30: 0
A31: C203Pb21 | B31: 36 | C31: 8 | D31: 2 | E31: 0 | F31: 0 | G31: 0 | H31: 0 | I31: 0 | J31: 0 | K31: 0 | L31: 0 | M31: 46 | N31: 78.26086957 | O31: 17.39130435 | P31: 4.347826087 | Q31: 0 | R31: 0 | S31: 0 | T31: 0 | U31: 0 | V31: 0 | W31: 0 | X31: 0
A32: G101Pb21 | B32: 197 | C32: 0 | D32: 0 | E32: 0 | F32: 0 | G32: 0 | H32: 0 | I32: 0 | J32: 0 | K32: 0 | L32: 0 | M32: 197 | N32: 100 | O32: 0 | P32: 0 | Q32: 0 | R32: 0 | S32: 0 | T32: 0 | U32: 0 | V32: 0 | W32: 0 | X32: 0
A33: G763Pb21 | B33: 164 | C33: 0 | D33: 0 | E33: 0 | F33: 0 | G33: 0 | H33: 0 | I33: 0 | J33: 0 | K33: 0 | L33: 0 | M33: 164 | N33: 100 | O33: 0 | P33: 0 | Q33: 0 | R33: 0 | S33: 0 | T33: 0 | U33: 0 | V33: 0 | W33: 0 | X33: 0
A34: H202Pb21 | B34: 44 | C34: 12 | D34: 14 | E34: 4 | F34: 0 | G34: 0 | H34: 0 | I34: 0 | J34: 0 | K34: 0 | L34: 0 | M34: 74 | N34: 59.45945946 | O34: 16.21621622 | P34: 18.91891892 | Q34: 5.405405405 | R34: 0 | S34: 0 | T34: 0 | U34: 0 | V34: 0 | W34: 0 | X34: 0
A35: L202Pb21 | B35: 4 | C35: 0 | D35: 0 | E35: 0 | F35: 0 | G35: 0 | H35: 0 | I35: 0 | J35: 0 | K35: 0 | L35: 0 | M35: * | N35: 100 | O35: 0 | P35: 0 | Q35: 0 | R35: 0 | S35: 0 | T35: 0 | U35: 0 | V35: 0 | W35: 0 | X35: 0
A36: N401Pb21 | B36: 75 | C36: 0 | D36: 0 | E36: 0 | F36: 0 | G36: 0 | H36: 0 | I36: 0 | J36: 0 | K36: 0 | L36: 0 | M36: 75 | N36: 100 | O36: 0 | P36: 0 | Q36: 0 | R36: 0 | S36: 0 | T36: 0 | U36: 0 | V36: 0 | W36: 0 | X36: 0
A37: S203Pb21 | B37: 56 | C37: 32 | D37: 22 | E37: 2 | F37: 0 | G37: 1 | H37: 0 | I37: 0 | J37: 0 | K37: 0 | L37: 0 | M37: 113 | N37: 49.55752212 | O37: 28.31858407 | P37: 19.46902655 | Q37: 1.769911504 | R37: 0 | S37: 0.8849557522 | T37: 0 | U37: 0 | V37: 0 | W37: 0 | X37: 0
A38: S400Pb21 | B38: 33 | C38: 66 | D38: 20 | E38: 6 | F38: 7 | G38: 3 | H38: 2 | I38: 0 | J38: 0 | K38: 0 | L38: 0 | M38: 137 | N38: 24.08759124 | O38: 48.17518248 | P38: 14.59854015 | Q38: 4.379562044 | R38: 5.109489051 | S38: 2.189781022 | T38: 1.459854015 | U38: 0 | V38: 0 | W38: 0 | X38: 0
A39: T101Pb21 | B39: 6 | C39: 5 | D39: 8 | E39: 26 | F39: 8 | G39: 2 | H39: 0 | I39: 0 | J39: 0 | K39: 0 | L39: 0 | M39: 55 | N39: 10.90909091 | O39: 9.090909091 | P39: 14.54545455 | Q39: 47.27272727 | R39: 14.54545455 | S39: 3.636363636 | T39: 0 | U39: 0 | V39: 0 | W39: 0 | X39: 0
A40: V101Pb21 | B40: 22 | C40: 21 | D40: 18 | E40: 2 | F40: 1 | G40: 0 | H40: 2 | I40: 0 | J40: 0 | K40: 0 | L40: 0 | M40: 66 | N40: 33.33333333 | O40: 31.81818182 | P40: 27.27272727 | Q40: 3.03030303 | R40: 1.515151515 | S40: 0 | T40: 3.03030303 | U40: 0 | V40: 0 | W40: 0 | X40: 0
A41: V202Pb21 | B41: 32 | C41: 9 | D41: 3 | E41: 1 | F41: 0 | G41: 0 | H41: 0 | I41: 0 | J41: 0 | K41: 0 | L41: 0 | M41: 45 | N41: 71.11111111 | O41: 20 | P41: 6.666666667 | Q41: 2.222222222 | R41: 0 | S41: 0 | T41: 0 | U41: 0 | V41: 0 | W41: 0 | X41: 0
A42: V203Pb21 | B42: 74 | C42: 8 | D42: 0 | E42: 0 | F42: 0 | G42: 0 | H42: 0 | I42: 0 | J42: 0 | K42: 0 | L42: 0 | M42: 82 | N42: 90.24390244 | O42: 9.756097561 | P42: 0 | Q42: 0 | R42: 0 | S42: 0 | T42: 0 | U42: 0 | V42: 0 | W42: 0 | X42: 0
A43: Y101Pb21 | B43: 21 | C43: 0 | D43: 0 | E43: 0 | F43: 0 | G43: 0 | H43: 0 | I43: 0 | J43: 0 | K43: 0 | L43: 0 | M43: * | N43: 100 | O43: 0 | P43: 0 | Q43: 0 | R43: 0 | S43: 0 | T43: 0 | U43: 0 | V43: 0 | W43: 0 | X43: 0
A44: A202Pb31 | B44: 121 | C44: 15 | D44: 14 | E44: 0 | F44: 0 | G44: 0 | H44: 0 | I44: 0 | J44: 0 | K44: 0 | L44: 0 | M44: 150 | N44: 80.66666667 | O44: 10 | P44: 9.333333333 | Q44: 0 | R44: 0 | S44: 0 | T44: 0 | U44: 0 | V44: 0 | W44: 0 | X44: 0
A45: C203Pb31 | B45: 30 | C45: 10 | D45: 4 | E45: 2 | F45: 0 | G45: 0 | H45: 0 | I45: 0 | J45: 0 | K45: 0 | L45: 0 | M45: 46 | N45: 65.2173913 | O45: 21.73913043 | P45: 8.695652174 | Q45: 4.347826087 | R45: 0 | S45: 0 | T45: 0 | U45: 0 | V45: 0 | W45: 0 | X45: 0
A46: G101Pb31 | B46: 10 | C46: 0 | D46: 0 | E46: 0 | F46: 0 | G46: 0 | H46: 0 | I46: 0 | J46: 0 | K46: 0 | L46: 0 | M46: 10 | N46: 100 | O46: 0 | P46: 0 | Q46: 0 | R46: 0 | S46: 0 | T46: 0 | U46: 0 | V46: 0 | W46: 0 | X46: 0
A47: G763Pb31 | B47: 202 | C47: 0 | D47: 0 | E47: 0 | F47: 0 | G47: 0 | H47: 0 | I47: 0 | J47: 0 | K47: 0 | L47: 0 | M47: 202 | N47: 100 | O47: 0 | P47: 0 | Q47: 0 | R47: 0 | S47: 0 | T47: 0 | U47: 0 | V47: 0 | W47: 0 | X47: 0
A48: H202Pb31 | B48: 50 | C48: 8 | D48: 7 | E48: 1 | F48: 3 | G48: 0 | H48: 1 | I48: 0 | J48: 0 | K48: 0 | L48: 0 | M48: 70 | N48: 71.42857143 | O48: 11.42857143 | P48: 10 | Q48: 1.428571429 | R48: 4.285714286 | S48: 0 | T48: 1.428571429 | U48: 0 | V48: 0 | W48: 0 | X48: 0
A49: N401Pb31 | B49: 128 | C49: 0 | D49: 0 | E49: 0 | F49: 0 | G49: 0 | H49: 0 | I49: 0 | J49: 0 | K49: 0 | L49: 0 | M49: 128 | N49: 100 | O49: 0 | P49: 0 | Q49: 0 | R49: 0 | S49: 0 | T49: 0 | U49: 0 | V49: 0 | W49: 0 | X49: 0
A50: S203Pb31 | B50: 67 | C50: 27 | D50: 17 | E50: 2 | F50: 3 | G50: 2 | H50: 0 | I50: 1 | J50: 0 | K50: 0 | L50: 0 | M50: 119 | N50: 56.30252101 | O50: 22.68907563 | P50: 14.28571429 | Q50: 1.680672269 | R50: 2.521008403 | S50: 1.680672269 | T50: 0 | U50: 0.8403361345 | V50: 0 | W50: 0 | X50: 0
A51: S400Pb31 | B51: 29 | C51: 43 | D51: 8 | E51: 4 | F51: 0 | G51: 1 | H51: 1 | I51: 0 | J51: 0 | K51: 0 | L51: 0 | M51: 86 | N51: 33.72093023 | O51: 50 | P51: 9.302325581 | Q51: 4.651162791 | R51: 0 | S51: 1.162790698 | T51: 1.162790698 | U51: 0 | V51: 0 | W51: 0 | X51: 0
A52: T101Pb31 | B52: 4 | C52: 4 | D52: 4 | E52: 22 | F52: 13 | G52: 2 | H52: 2 | I52: 2 | J52: 0 | K52: 0 | L52: 0 | M52: 53 | N52: 7.547169811 | O52: 7.547169811 | P52: 7.547169811 | Q52: 41.50943396 | R52: 24.52830189 | S52: 3.773584906 | T52: 3.773584906 | U52: 3.773584906 | V52: 0 | W52: 0 | X52: 0
A53: V101Pb31 | B53: 7 | C53: 10 | D53: 4 | E53: 0 | F53: 0 | G53: 0 | H53: 0 | I53: 0 | J53: 0 | K53: 0 | L53: 0 | M53: 21 | N53: 33.33333333 | O53: 47.61904762 | P53: 19.04761905 | Q53: 0 | R53: 0 | S53: 0 | T53: 0 | U53: 0 | V53: 0 | W53: 0 | X53: 0
A54: V202Pb31 | B54: 35 | C54: 3 | D54: 0 | E54: 0 | F54: 0 | G54: 0 | H54: 0 | I54: 0 | J54: 0 | K54: 0 | L54: 0 | M54: 38 | N54: 92.10526316 | O54: 7.894736842 | P54: 0 | Q54: 0 | R54: 0 | S54: 0 | T54: 0 | U54: 0 | V54: 0 | W54: 0 | X54: 0
A55: V203Pb31 | B55: 55 | C55: 10 | D55: 0 | E55: 1 | F55: 0 | G55: 0 | H55: 0 | I55: 0 | J55: 0 | K55: 0 | L55: 0 | M55: 66 | N55: 83.33333333 | O55: 15.15151515 | P55: 0 | Q55: 1.515151515 | R55: 0 | S55: 0 | T55: 0 | U55: 0 | V55: 0 | W55: 0 | X55: 0
A56: Y101Pb31 | B56: 16 | C56: 0 | D56: 0 | E56: 0 | F56: 0 | G56: 0 | H56: 0 | I56: 0 | J56: 0 | K56: 0 | L56: 0 | M56: 16 | N56: 100 | O56: 0 | P56: 0 | Q56: 0 | R56: 0 | S56: 0 | T56: 0 | U56: 0 | V56: 0 | W56: 0 | X56: 0
A57: A202Pb41 | B57: 99 | C57: 24 | D57: 4 | E57: 0 | F57: 1 | G57: 0 | H57: 0 | I57: 0 | J57: 0 | K57: 0 | L57: 0 | M57: 128 | N57: 77.34375 | O57: 18.75 | P57: 3.125 | Q57: 0 | R57: 0.78125 | S57: 0 | T57: 0 | U57: 0 | V57: 0 | W57: 0 | X57: 0
A58: C203Pb41 | B58: 12 | C58: 8 | D58: 1 | E58: 0 | F58: 0 | G58: 0 | H58: 0 | I58: 0 | J58: 0 | K58: 0 | L58: 0 | M58: 21 | N58: 57.14285714 | O58: 38.0952381 | P58: 4.761904762 | Q58: 0 | R58: 0 | S58: 0 | T58: 0 | U58: 0 | V58: 0 | W58: 0 | X58: 0
A59: G101Pb41 | B59: 106 | C59: 0 | D59: 0 | E59: 0 | F59: 0 | G59: 0 | H59: 0 | I59: 0 | J59: 0 | K59: 0 | L59: 0 | M59: 106 | N59: 100 | O59: 0 | P59: 0 | Q59: 0 | R59: 0 | S59: 0 | T59: 0 | U59: 0 | V59: 0 | W59: 0 | X59: 0
A60: G763Pb41 | B60: 115 | C60: 0 | D60: 0 | E60: 0 | F60: 0 | G60: 0 | H60: 0 | I60: 0 | J60: 0 | K60: 0 | L60: 0 | M60: 115 | N60: 100 | O60: 0 | P60: 0 | Q60: 0 | R60: 0 | S60: 0 | T60: 0 | U60: 0 | V60: 0 | W60: 0 | X60: 0
A61: H202Pb41 | B61: 32 | C61: 5 | D61: 8 | E61: 2 | F61: 0 | G61: 0 | H61: 0 | I61: 0 | J61: 0 | K61: 0 | L61: 0 | M61: 47 | N61: 68.08510638 | O61: 10.63829787 | P61: 17.0212766 | Q61: 4.255319149 | R61: 0 | S61: 0 | T61: 0 | U61: 0 | V61: 0 | W61: 0 | X61: 0
A62: L202Pb41 | B62: 3 | C62: 0 | D62: 0 | E62: 0 | F62: 0 | G62: 0 | H62: 0 | I62: 0 | J62: 0 | K62: 0 | L62: 0 | M62: * | N62: 100 | O62: 0 | P62: 0 | Q62: 0 | R62: 0 | S62: 0 | T62: 0 | U62: 0 | V62: 0 | W62: 0 | X62: 0
A63: N401Pb41 | B63: 108 | C63: 0 | D63: 0 | E63: 0 | F63: 0 | G63: 0 | H63: 0 | I63: 0 | J63: 0 | K63: 0 | L63: 0 | M63: 108 | N63: 100 | O63: 0 | P63: 0 | Q63: 0 | R63: 0 | S63: 0 | T63: 0 | U63: 0 | V63: 0 | W63: 0 | X63: 0
A64: S203Pb41 | B64: 37 | C64: 39 | D64: 21 | E64: 7 | F64: 1 | G64: 0 | H64: 1 | I64: 0 | J64: 1 | K64: 0 | L64: 0 | M64: 107 | N64: 34.57943925 | O64: 36.44859813 | P64: 19.62616822 | Q64: 6.542056075 | R64: 0.9345794393 | S64: 0 | T64: 0.9345794393 | U64: 0 | V64: 0.9345794393 | W64: 0 | X64: 0
A65: S400Pb41 | B65: 20 | C65: 43 | D65: 23 | E65: 11 | F65: 2 | G65: 2 | H65: 1 | I65: 0 | J65: 0 | K65: 1 | L65: 0 | M65: 103 | N65: 19.41747573 | O65: 41.74757282 | P65: 22.33009709 | Q65: 10.67961165 | R65: 1.941747573 | S65: 1.941747573 | T65: 0.9708737864 | U65: 0 | V65: 0 | W65: 0.9708737864 | X65: 0
A66: T101Pb41 | B66: 2 | C66: 9 | D66: 12 | E66: 12 | F66: 11 | G66: 4 | H66: 1 | I66: 1 | J66: 0 | K66: 0 | L66: 0 | M66: 52 | N66: 3.846153846 | O66: 17.30769231 | P66: 23.07692308 | Q66: 23.07692308 | R66: 21.15384615 | S66: 7.692307692 | T66: 1.923076923 | U66: 1.923076923 | V66: 0 | W66: 0 | X66: 0
A67: V101Pb41 | B67: 14 | C67: 6 | D67: 8 | E67: 4 | F67: 5 | G67: 2 | H67: 5 | I67: 0 | J67: 0 | K67: 0 | L67: 0 | M67: 44 | N67: 31.81818182 | O67: 13.63636364 | P67: 18.18181818 | Q67: 9.090909091 | R67: 11.36363636 | S67: 4.545454545 | T67: 11.36363636 | U67: 0 | V67: 0 | W67: 0 | X67: 0
A68: V202Pb41 | B68: 39 | C68: 6 | D68: 1 | E68: 0 | F68: 1 | G68: 0 | H68: 0 | I68: 0 | J68: 0 | K68: 0 | L68: 0 | M68: 47 | N68: 82.9787234 | O68: 12.76595745 | P68: 2.127659574 | Q68: 0 | R68: 2.127659574 | S68: 0 | T68: 0 | U68: 0 | V68: 0 | W68: 0 | X68: 0
A69: V203Pb41 | B69: 33 | C69: 10 | D69: 4 | E69: 2 | F69: 0 | G69: 0 | H69: 0 | I69: 0 | J69: 0 | K69: 0 | L69: 0 | M69: 49 | N69: 67.34693878 | O69: 20.40816327 | P69: 8.163265306 | Q69: 4.081632653 | R69: 0 | S69: 0 | T69: 0 | U69: 0 | V69: 0 | W69: 0 | X69: 0
A70: Y101Pb41 | B70: 24 | C70: 0 | D70: 0 | E70: 0 | F70: 0 | G70: 0 | H70: 0 | I70: 0 | J70: 0 | K70: 0 | L70: 0 | M70: * | N70: 100 | O70: 0 | P70: 0 | Q70: 0 | R70: 0 | S70: 0 | T70: 0 | U70: 0 | V70: 0 | W70: 0 | X70: 0
A71: A202Pd11 | B71: 109 | C71: 16 | D71: 5 | E71: 0 | F71: 0 | G71: 0 | H71: 0 | I71: 0 | J71: 0 | K71: 0 | L71: 0 | M71: * | N71: 83.84615385 | O71: 12.30769231 | P71: 3.846153846 | Q71: 0 | R71: 0 | S71: 0 | T71: 0 | U71: 0 | V71: 0 | W71: 0 | X71: 0
A72: C203Pd11 | B72: 16 | C72: 0 | D72: 0 | E72: 0 | F72: 0 | G72: 0 | H72: 0 | I72: 0 | J72: 0 | K72: 0 | L72: 0 | M72: 16 | N72: 100 | O72: 0 | P72: 0 | Q72: 0 | R72: 0 | S72: 0 | T72: 0 | U72: 0 | V72: 0 | W72: 0 | X72: 0
A73: G101Pd11 | B73: 208 | C73: 0 | D73: 0 | E73: 0 | F73: 0 | G73: 0 | H73: 0 | I73: 0 | J73: 0 | K73: 0 | L73: 0 | M73: 208 | N73: 100 | O73: 0 | P73: 0 | Q73: 0 | R73: 0 | S73: 0 | T73: 0 | U73: 0 | V73: 0 | W73: 0 | X73: 0
A74: G763Pd11 | B74: 51 | C74: 0 | D74: 0 | E74: 0 | F74: 0 | G74: 0 | H74: 0 | I74: 0 | J74: 0 | K74: 0 | L74: 0 | M74: 51 | N74: 100 | O74: 0 | P74: 0 | Q74: 0 | R74: 0 | S74: 0 | T74: 0 | U74: 0 | V74: 0 | W74: 0 | X74: 0
A75: H202Pd11 | B75: 28 | C75: 16 | D75: 11 | E75: 2 | F75: 1 | G75: 0 | H75: 1 | I75: 0 | J75: 0 | K75: 0 | L75: 0 | M75: 59 | N75: 47.45762712 | O75: 27.11864407 | P75: 18.6440678 | Q75: 3.389830508 | R75: 1.694915254 | S75: 0 | T75: 1.694915254 | U75: 0 | V75: 0 | W75: 0 | X75: 0
A76: L202Pd11 | B76: 7 | C76: 0 | D76: 0 | E76: 0 | F76: 0 | G76: 0 | H76: 0 | I76: 0 | J76: 0 | K76: 0 | L76: 0 | M76: 7 | N76: 100 | O76: 0 | P76: 0 | Q76: 0 | R76: 0 | S76: 0 | T76: 0 | U76: 0 | V76: 0 | W76: 0 | X76: 0
A77: N401Pd11 | B77: 55 | C77: 0 | D77: 0 | E77: 0 | F77: 0 | G77: 0 | H77: 0 | I77: 0 | J77: 0 | K77: 0 | L77: 0 | M77: * | N77: 100 | O77: 0 | P77: 0 | Q77: 0 | R77: 0 | S77: 0 | T77: 0 | U77: 0 | V77: 0 | W77: 0 | X77: 0
A78: S203Pd11 | B78: 21 | C78: 28 | D78: 12 | E78: 0 | F78: 0 | G78: 0 | H78: 1 | I78: 3 | J78: 1 | K78: 0 | L78: 0 | M78: * | N78: 31.81818182 | O78: 42.42424242 | P78: 18.18181818 | Q78: 0 | R78: 0 | S78: 0 | T78: 1.515151515 | U78: 4.545454545 | V78: 1.515151515 | W78: 0 | X78: 0
A79: S400Pd11 | B79: 20 | C79: 17 | D79: 7 | E79: 4 | F79: 0 | G79: 3 | H79: 1 | I79: 2 | J79: 1 | K79: 0 | L79: 0 | M79: * | N79: 36.36363636 | O79: 30.90909091 | P79: 12.72727273 | Q79: 7.272727273 | R79: 0 | S79: 5.454545455 | T79: 1.818181818 | U79: 3.636363636 | V79: 1.818181818 | W79: 0 | X79: 0
A80: T101Pd11 | B80: 4 | C80: 26 | D80: 11 | E80: 1 | F80: 0 | G80: 1 | H80: 1 | I80: 0 | J80: 0 | K80: 0 | L80: 0 | M80: 44 | N80: 9.090909091 | O80: 59.09090909 | P80: 25 | Q80: 2.272727273 | R80: 0 | S80: 2.272727273 | T80: 2.272727273 | U80: 0 | V80: 0 | W80: 0 | X80: 0
A81: V101Pd11 | B81: 18 | C81: 27 | D81: 10 | E81: 3 | F81: 1 | G81: 0 | H81: 0 | I81: 0 | J81: 0 | K81: 0 | L81: 0 | M81: * | N81: 30.50847458 | O81: 45.76271186 | P81: 16.94915254 | Q81: 5.084745763 | R81: 1.694915254 | S81: 0 | T81: 0 | U81: 0 | V81: 0 | W81: 0 | X81: 0
A82: V202Pd11 | B82: 21 | C82: 6 | D82: 3 | E82: 0 | F82: 0 | G82: 0 | H82: 0 | I82: 0 | J82: 0 | K82: 0 | L82: 0 | M82: * | N82: 70 | O82: 20 | P82: 10 | Q82: 0 | R82: 0 | S82: 0 | T82: 0 | U82: 0 | V82: 0 | W82: 0 | X82: 0
A83: V203Pd11 | B83: 59 | C83: 20 | D83: 3 | E83: 0 | F83: 0 | G83: 0 | H83: 0 | I83: 0 | J83: 0 | K83: 0 | L83: 0 | M83: * | N83: 71.95121951 | O83: 24.3902439 | P83: 3.658536585 | Q83: 0 | R83: 0 | S83: 0 | T83: 0 | U83: 0 | V83: 0 | W83: 0 | X83: 0
A84: Y101Pd11 | B84: 15 | C84: 0 | D84: 0 | E84: 0 | F84: 0 | G84: 0 | H84: 0 | I84: 0 | J84: 0 | K84: 0 | L84: 0 | M84: 15 | N84: 100 | O84: 0 | P84: 0 | Q84: 0 | R84: 0 | S84: 0 | T84: 0 | U84: 0 | V84: 0 | W84: 0 | X84: 0
A85: A202Pd12 | B85: 103 | C85: 9 | D85: 4 | E85: 0 | F85: 0 | G85: 0 | H85: 0 | I85: 0 | J85: 0 | K85: 0 | L85: 0 | M85: * | N85: 88.79310345 | O85: 7.75862069 | P85: 3.448275862 | Q85: 0 | R85: 0 | S85: 0 | T85: 0 | U85: 0 | V85: 0 | W85: 0 | X85: 0
A86: C203Pd12 | B86: 31 | C86: 5 | D86: 1 | E86: 0 | F86: 0 | G86: 1 | H86: 0 | I86: 0 | J86: 0 | K86: 0 | L86: 0 | M86: * | N86: 81.57894737 | O86: 13.15789474 | P86: 2.631578947 | Q86: 0 | R86: 0 | S86: 2.631578947 | T86: 0 | U86: 0 | V86: 0 | W86: 0 | X86: 0
A87: G101Pd12 | B87: 138 | C87: 0 | D87: 0 | E87: 0 | F87: 0 | G87: 0 | H87: 0 | I87: 0 | J87: 0 | K87: 0 | L87: 0 | M87: 138 | N87: 100 | O87: 0 | P87: 0 | Q87: 0 | R87: 0 | S87: 0 | T87: 0 | U87: 0 | V87: 0 | W87: 0 | X87: 0
A88: G763Pd12 | B88: * | C88: 0 | D88: 0 | E88: 0 | F88: 0 | G88: 0 | H88: 0 | I88: 0 | J88: 0 | K88: 0 | L88: 0 | M88: * | N88: 100 | O88: 0 | P88: 0 | Q88: 0 | R88: 0 | S88: 0 | T88: 0 | U88: 0 | V88: 0 | W88: 0 | X88: 0
A89: H202Pd12 | B89: 49 | C89: 4 | D89: 5 | E89: 2 | F89: 0 | G89: 0 | H89: 0 | I89: 0 | J89: 0 | K89: 0 | L89: 0 | M89: 60 | N89: 81.66666667 | O89: 6.666666667 | P89: 8.333333333 | Q89: 3.333333333 | R89: 0 | S89: 0 | T89: 0 | U89: 0 | V89: 0 | W89: 0 | X89: 0
A90: L202Pd12 | B90: 5 | C90: 0 | D90: 0 | E90: 0 | F90: 0 | G90: 0 | H90: 0 | I90: 0 | J90: 0 | K90: 0 | L90: 0 | M90: 5 | N90: 100 | O90: 0 | P90: 0 | Q90: 0 | R90: 0 | S90: 0 | T90: 0 | U90: 0 | V90: 0 | W90: 0 | X90: 0
A91: N401Pd12 | B91: 31 | C91: 0 | D91: 0 | E91: 0 | F91: 0 | G91: 0 | H91: 0 | I91: 0 | J91: 0 | K91: 0 | L91: 0 | M91: 31 | N91: 100 | O91: 0 | P91: 0 | Q91: 0 | R91: 0 | S91: 0 | T91: 0 | U91: 0 | V91: 0 | W91: 0 | X91: 0
A92: S203Pd12 | B92: 25 | C92: 36 | D92: 21 | E92: 5 | F92: 1 | G92: 2 | H92: 0 | I92: 0 | J92: 0 | K92: 0 | L92: 0 | M92: 90 | N92: 27.77777778 | O92: 40 | P92: 23.33333333 | Q92: 5.555555556 | R92: 1.111111111 | S92: 2.222222222 | T92: 0 | U92: 0 | V92: 0 | W92: 0 | X92: 0
A93: S400Pd12 | B93: 8 | C93: 22 | D93: 14 | E93: 4 | F93: 2 | G93: 1 | H93: 0 | I93: 3 | J93: 0 | K93: 0 | L93: 0 | M93: 54 | N93: 14.81481481 | O93: 40.74074074 | P93: 25.92592593 | Q93: 7.407407407 | R93: 3.703703704 | S93: 1.851851852 | T93: 0 | U93: 5.555555556 | V93: 0 | W93: 0 | X93: 0
A94: T101Pd12 | B94: 2 | C94: 1 | D94: 5 | E94: 2 | F94: 4 | G94: 4 | H94: 3 | I94: 2 | J94: 0 | K94: 0 | L94: 0 | M94: 23 | N94: 8.695652174 | O94: 4.347826087 | P94: 21.73913043 | Q94: 8.695652174 | R94: 17.39130435 | S94: 17.39130435 | T94: 13.04347826 | U94: 8.695652174 | V94: 0 | W94: 0 | X94: 0
A95: V101Pd12 | B95: 15 | C95: 2 | D95: 3 | E95: 6 | F95: 4 | G95: 1 | H95: 2 | I95: 0 | J95: 0 | K95: 0 | L95: 0 | M95: 33 | N95: 45.45454545 | O95: 6.060606061 | P95: 9.090909091 | Q95: 18.18181818 | R95: 12.12121212 | S95: 3.03030303 | T95: 6.060606061 | U95: 0 | V95: 0 | W95: 0 | X95: 0
A96: V202Pd12 | B96: 25 | C96: 1 | D96: 3 | E96: 0 | F96: 0 | G96: 0 | H96: 0 | I96: 0 | J96: 0 | K96: 0 | L96: 0 | M96: * | N96: 86.20689655 | O96: 3.448275862 | P96: 10.34482759 | Q96: 0 | R96: 0 | S96: 0 | T96: 0 | U96: 0 | V96: 0 | W96: 0 | X96: 0
A97: V203Pd12 | B97: 34 | C97: 12 | D97: 3 | E97: 0 | F97: 0 | G97: 0 | H97: 0 | I97: 0 | J97: 0 | K97: 0 | L97: 0 | M97: * | N97: 69.3877551 | O97: 24.48979592 | P97: 6.12244898 | Q97: 0 | R97: 0 | S97: 0 | T97: 0 | U97: 0 | V97: 0 | W97: 0 | X97: 0
A98: Y101Pd12 | B98: 14 | C98: 0 | D98: 0 | E98: 0 | F98: 0 | G98: 0 | H98: 0 | I98: 0 | J98: 0 | K98: 0 | L98: 0 | M98: 14 | N98: 100 | O98: 0 | P98: 0 | Q98: 0 | R98: 0 | S98: 0 | T98: 0 | U98: 0 | V98: 0 | W98: 0 | X98: 0
A99: A202Pd21 | B99: 85 | C99: 21 | D99: 17 | E99: 0 | F99: 0 | G99: 0 | H99: 0 | I99: 0 | J99: 0 | K99: 0 | L99: 0 | M99: * | N99: 69.10569106 | O99: 17.07317073 | P99: 13.82113821 | Q99: 0 | R99: 0 | S99: 0 | T99: 0 | U99: 0 | V99: 0 | W99: 0 | X99: 0
A100: C203Pd21 | B100: 33 | C100: 6 | D100: 2 | E100: 0 | F100: 0 | G100: 0 | H100: 0 | I100: 0 | J100: 0 | K100: 0 | L100: 0 | M100: 41 | N100: 80.48780488 | O100: 14.63414634 | P100: 4.87804878 | Q100: 0 | R100: 0 | S100: 0 | T100: 0 | U100: 0 | V100: 0 | W100: 0 | X100: 0
A101: G101Pd21 | B101: 197 | C101: 0 | D101: 0 | E101: 0 | F101: 0 | G101: 0 | H101: 0 | I101: 0 | J101: 0 | K101: 0 | L101: 0 | M101: 197 | N101: 100 | O101: 0 | P101: 0 | Q101: 0 | R101: 0 | S101: 0 | T101: 0 | U101: 0 | V101: 0 | W101: 0 | X101: 0
A102: G763Pd21 | B102: 99 | C102: 0 | D102: 0 | E102: 0 | F102: 0 | G102: 0 | H102: 0 | I102: 0 | J102: 0 | K102: 0 | L102: 0 | M102: 99 | N102: 100 | O102: 0 | P102: 0 | Q102: 0 | R102: 0 | S102: 0 | T102: 0 | U102: 0 | V102: 0 | W102: 0 | X102: 0
A103: H202Pd21 | B103: 42 | C103: 7 | D103: 10 | E103: 3 | F103: 0 | G103: 0 | H103: 0 | I103: 0 | J103: 0 | K103: 0 | L103: 0 | M103: 62 | N103: 67.74193548 | O103: 11.29032258 | P103: 16.12903226 | Q103: 4.838709677 | R103: 0 | S103: 0 | T103: 0 | U103: 0 | V103: 0 | W103: 0 | X103: 0
A104: L202Pd21 | B104: 4 | C104: 0 | D104: 0 | E104: 0 | F104: 0 | G104: 0 | H104: 0 | I104: 0 | J104: 0 | K104: 0 | L104: 0 | M104: * | N104: 100 | O104: 0 | P104: 0 | Q104: 0 | R104: 0 | S104: 0 | T104: 0 | U104: 0 | V104: 0 | W104: 0 | X104: 0
A105: N401Pd21 | B105: 74 | C105: 0 | D105: 0 | E105: 0 | F105: 0 | G105: 0 | H105: 0 | I105: 0 | J105: 0 | K105: 0 | L105: 0 | M105: * | N105: 100 | O105: 0 | P105: 0 | Q105: 0 | R105: 0 | S105: 0 | T105: 0 | U105: 0 | V105: 0 | W105: 0 | X105: 0
A106: S203Pd21 | B106: 27 | C106: 22 | D106: 16 | E106: 0 | F106: 0 | G106: 0 | H106: 0 | I106: 0 | J106: 0 | K106: 0 | L106: 0 | M106: * | N106: 41.53846154 | O106: 33.84615385 | P106: 24.61538462 | Q106: 0 | R106: 0 | S106: 0 | T106: 0 | U106: 0 | V106: 0 | W106: 0 | X106: 0
A107: S400Pd21 | B107: 31 | C107: 66 | D107: 20 | E107: 6 | F107: 7 | G107: 2 | H107: 2 | I107: 0 | J107: 0 | K107: 0 | L107: 0 | M107: * | N107: 23.13432836 | O107: 49.25373134 | P107: 14.92537313 | Q107: 4.47761194 | R107: 5.223880597 | S107: 1.492537313 | T107: 1.492537313 | U107: 0 | V107: 0 | W107: 0 | X107: 0
A108: T101Pd21 | B108: 6 | C108: 5 | D108: 8 | E108: 26 | F108: 8 | G108: 2 | H108: 0 | I108: 0 | J108: 0 | K108: 0 | L108: 0 | M108: 55 | N108: 10.90909091 | O108: 9.090909091 | P108: 14.54545455 | Q108: 47.27272727 | R108: 14.54545455 | S108: 3.636363636 | T108: 0 | U108: 0 | V108: 0 | W108: 0 | X108: 0
A109: V101Pd21 | B109: 21 | C109: 15 | D109: 15 | E109: 2 | F109: 0 | G109: 0 | H109: 2 | I109: 0 | J109: 0 | K109: 0 | L109: 0 | M109: 55 | N109: 38.18181818 | O109: 27.27272727 | P109: 27.27272727 | Q109: 3.636363636 | R109: 0 | S109: 0 | T109: 3.636363636 | U109: 0 | V109: 0 | W109: 0 | X109: 0
A110: V202Pd21 | B110: 27 | C110: 7 | D110: 3 | E110: 1 | F110: 0 | G110: 0 | H110: 0 | I110: 0 | J110: 0 | K110: 0 | L110: 0 | M110: * | N110: 71.05263158 | O110: 18.42105263 | P110: 7.894736842 | Q110: 2.631578947 | R110: 0 | S110: 0 | T110: 0 | U110: 0 | V110: 0 | W110: 0 | X110: 0
A111: V203Pd21 | B111: 73 | C111: 8 | D111: 0 | E111: 0 | F111: 0 | G111: 0 | H111: 0 | I111: 0 | J111: 0 | K111: 0 | L111: 0 | M111: * | N111: 90.12345679 | O111: 9.87654321 | P111: 0 | Q111: 0 | R111: 0 | S111: 0 | T111: 0 | U111: 0 | V111: 0 | W111: 0 | X111: 0
A112: Y101Pd21 | B112: 13 | C112: 0 | D112: 0 | E112: 0 | F112: 0 | G112: 0 | H112: 0 | I112: 0 | J112: 0 | K112: 0 | L112: 0 | M112: * | N112: 100 | O112: 0 | P112: 0 | Q112: 0 | R112: 0 | S112: 0 | T112: 0 | U112: 0 | V112: 0 | W112: 0 | X112: 0
A113: A202Pd31 | B113: 120 | C113: 12 | D113: 13 | E113: 0 | F113: 0 | G113: 0 | H113: 0 | I113: 0 | J113: 0 | K113: 0 | L113: 0 | M113: 145 | N113: 82.75862069 | O113: 8.275862069 | P113: 8.965517241 | Q113: 0 | R113: 0 | S113: 0 | T113: 0 | U113: 0 | V113: 0 | W113: 0 | X113: 0
A114: C203Pd31 | B114: 28 | C114: 9 | D114: 4 | E114: 1 | F114: 0 | G114: 0 | H114: 0 | I114: 0 | J114: 0 | K114: 0 | L114: 0 | M114: * | N114: 66.66666667 | O114: 21.42857143 | P114: 9.523809524 | Q114: 2.380952381 | R114: 0 | S114: 0 | T114: 0 | U114: 0 | V114: 0 | W114: 0 | X114: 0
A115: G101Pd31 | B115: 10 | C115: 0 | D115: 0 | E115: 0 | F115: 0 | G115: 0 | H115: 0 | I115: 0 | J115: 0 | K115: 0 | L115: 0 | M115: 10 | N115: 100 | O115: 0 | P115: 0 | Q115: 0 | R115: 0 | S115: 0 | T115: 0 | U115: 0 | V115: 0 | W115: 0 | X115: 0
A116: G763Pd31 | B116: 121 | C116: 0 | D116: 0 | E116: 0 | F116: 0 | G116: 0 | H116: 0 | I116: 0 | J116: 0 | K116: 0 | L116: 0 | M116: * | N116: 100 | O116: 0 | P116: 0 | Q116: 0 | R116: 0 | S116: 0 | T116: 0 | U116: 0 | V116: 0 | W116: 0 | X116: 0
A117: H202Pd31 | B117: 40 | C117: 6 | D117: 5 | E117: 1 | F117: 2 | G117: 0 | H117: 1 | I117: 0 | J117: 0 | K117: 0 | L117: 0 | M117: 55 | N117: 72.72727273 | O117: 10.90909091 | P117: 9.090909091 | Q117: 1.818181818 | R117: 3.636363636 | S117: 0 | T117: 1.818181818 | U117: 0 | V117: 0 | W117: 0 | X117: 0
A118: N401Pd31 | B118: 116 | C118: 0 | D118: 0 | E118: 0 | F118: 0 | G118: 0 | H118: 0 | I118: 0 | J118: 0 | K118: 0 | L118: 0 | M118: 116 | N118: 100 | O118: 0 | P118: 0 | Q118: 0 | R118: 0 | S118: 0 | T118: 0 | U118: 0 | V118: 0 | W118: 0 | X118: 0
A119: S203Pd31 | B119: 33 | C119: 20 | D119: 8 | E119: 2 | F119: 3 | G119: 2 | H119: 0 | I119: 1 | J119: 0 | K119: 0 | L119: 0 | M119: * | N119: 47.82608696 | O119: 28.98550725 | P119: 11.5942029 | Q119: 2.898550725 | R119: 4.347826087 | S119: 2.898550725 | T119: 0 | U119: 1.449275362 | V119: 0 | W119: 0 | X119: 0
A120: S400Pd31 | B120: 29 | C120: 43 | D120: 7 | E120: 4 | F120: 0 | G120: 0 | H120: 1 | I120: 0 | J120: 0 | K120: 0 | L120: 0 | M120: * | N120: 34.52380952 | O120: 51.19047619 | P120: 8.333333333 | Q120: 4.761904762 | R120: 0 | S120: 0 | T120: 1.19047619 | U120: 0 | V120: 0 | W120: 0 | X120: 0
A121: T101Pd31 | B121: 4 | C121: 4 | D121: 4 | E121: 22 | F121: 13 | G121: 2 | H121: 2 | I121: 2 | J121: 0 | K121: 0 | L121: 0 | M121: 53 | N121: 7.547169811 | O121: 7.547169811 | P121: 7.547169811 | Q121: 41.50943396 | R121: 24.52830189 | S121: 3.773584906 | T121: 3.773584906 | U121: 3.773584906 | V121: 0 | W121: 0 | X121: 0
A122: V101Pd31 | B122: 7 | C122: 10 | D122: 4 | E122: 0 | F122: 0 | G122: 0 | H122: 0 | I122: 0 | J122: 0 | K122: 0 | L122: 0 | M122: 21 | N122: 33.33333333 | O122: 47.61904762 | P122: 19.04761905 | Q122: 0 | R122: 0 | S122: 0 | T122: 0 | U122: 0 | V122: 0 | W122: 0 | X122: 0
A123: V202Pd31 | B123: 33 | C123: 3 | D123: 0 | E123: 0 | F123: 0 | G123: 0 | H123: 0 | I123: 0 | J123: 0 | K123: 0 | L123: 0 | M123: * | N123: 91.66666667 | O123: 8.333333333 | P123: 0 | Q123: 0 | R123: 0 | S123: 0 | T123: 0 | U123: 0 | V123: 0 | W123: 0 | X123: 0
A124: V203Pd31 | B124: 54 | C124: 7 | D124: 0 | E124: 1 | F124: 0 | G124: 0 | H124: 0 | I124: 0 | J124: 0 | K124: 0 | L124: 0 | M124: * | N124: 87.09677419 | O124: 11.29032258 | P124: 0 | Q124: 1.612903226 | R124: 0 | S124: 0 | T124: 0 | U124: 0 | V124: 0 | W124: 0 | X124: 0
A125: Y101Pd31 | B125: 12 | C125: 0 | D125: 0 | E125: 0 | F125: 0 | G125: 0 | H125: 0 | I125: 0 | J125: 0 | K125: 0 | L125: 0 | M125: * | N125: 100 | O125: 0 | P125: 0 | Q125: 0 | R125: 0 | S125: 0 | T125: 0 | U125: 0 | V125: 0 | W125: 0 | X125: 0
A126: A202Pd41 | B126: 99 | C126: 23 | D126: 4 | E126: 0 | F126: 1 | G126: 0 | H126: 0 | I126: 0 | J126: 0 | K126: 0 | L126: 0 | M126: * | N126: 77.95275591 | O126: 18.11023622 | P126: 3.149606299 | Q126: 0 | R126: 0.7874015748 | S126: 0 | T126: 0 | U126: 0 | V126: 0 | W126: 0 | X126: 0
A127: C203Pd41 | B127: 11 | C127: 6 | D127: 0 | E127: 0 | F127: 0 | G127: 0 | H127: 0 | I127: 0 | J127: 0 | K127: 0 | L127: 0 | M127: * | N127: 64.70588235 | O127: 35.29411765 | P127: 0 | Q127: 0 | R127: 0 | S127: 0 | T127: 0 | U127: 0 | V127: 0 | W127: 0 | X127: 0
A128: G101Pd41 | B128: 106 | C128: 0 | D128: 0 | E128: 0 | F128: 0 | G128: 0 | H128: 0 | I128: 0 | J128: 0 | K128: 0 | L128: 0 | M128: 106 | N128: 100 | O128: 0 | P128: 0 | Q128: 0 | R128: 0 | S128: 0 | T128: 0 | U128: 0 | V128: 0 | W128: 0 | X128: 0
A129: G763Pd41 | B129: 75 | C129: 0 | D129: 0 | E129: 0 | F129: 0 | G129: 0 | H129: 0 | I129: 0 | J129: 0 | K129: 0 | L129: 0 | M129: * | N129: 100 | O129: 0 | P129: 0 | Q129: 0 | R129: 0 | S129: 0 | T129: 0 | U129: 0 | V129: 0 | W129: 0 | X129: 0
A130: H202Pd41 | B130: 29 | C130: 4 | D130: 7 | E130: 2 | F130: 0 | G130: 0 | H130: 0 | I130: 0 | J130: 0 | K130: 0 | L130: 0 | M130: 42 | N130: 69.04761905 | O130: 9.523809524 | P130: 16.66666667 | Q130: 4.761904762 | R130: 0 | S130: 0 | T130: 0 | U130: 0 | V130: 0 | W130: 0 | X130: 0
A131: L202Pd41 | B131: 3 | C131: 0 | D131: 0 | E131: 0 | F131: 0 | G131: 0 | H131: 0 | I131: 0 | J131: 0 | K131: 0 | L131: 0 | M131: * | N131: 100 | O131: 0 | P131: 0 | Q131: 0 | R131: 0 | S131: 0 | T131: 0 | U131: 0 | V131: 0 | W131: 0 | X131: 0
A132: N401Pd41 | B132: 79 | C132: 0 | D132: 0 | E132: 0 | F132: 0 | G132: 0 | H132: 0 | I132: 0 | J132: 0 | K132: 0 | L132: 0 | M132: 79 | N132: 100 | O132: 0 | P132: 0 | Q132: 0 | R132: 0 | S132: 0 | T132: 0 | U132: 0 | V132: 0 | W132: 0 | X132: 0
A133: S203Pd41 | B133: 25 | C133: 32 | D133: 14 | E133: 5 | F133: 1 | G133: 0 | H133: 1 | I133: 0 | J133: 1 | K133: 0 | L133: 0 | M133: * | N133: 31.64556962 | O133: 40.50632911 | P133: 17.72151899 | Q133: 6.329113924 | R133: 1.265822785 | S133: 0 | T133: 1.265822785 | U133: 0 | V133: 1.265822785 | W133: 0 | X133: 0
A134: S400Pd41 | B134: 19 | C134: 43 | D134: 23 | E134: 9 | F134: 1 | G134: 2 | H134: 1 | I134: 0 | J134: 0 | K134: 1 | L134: 0 | M134: * | N134: 19.19191919 | O134: 43.43434343 | P134: 23.23232323 | Q134: 9.090909091 | R134: 1.01010101 | S134: 2.02020202 | T134: 1.01010101 | U134: 0 | V134: 0 | W134: 1.01010101 | X134: 0
A135: T101Pd41 | B135: 2 | C135: 9 | D135: 12 | E135: 11 | F135: 11 | G135: 4 | H135: 1 | I135: 1 | J135: 0 | K135: 0 | L135: 0 | M135: * | N135: 3.921568627 | O135: 17.64705882 | P135: 23.52941176 | Q135: 21.56862745 | R135: 21.56862745 | S135: 7.843137255 | T135: 1.960784314 | U135: 1.960784314 | V135: 0 | W135: 0 | X135: 0
A136: V101Pd41 | B136: 13 | C136: 5 | D136: 7 | E136: 4 | F136: 4 | G136: 2 | H136: 4 | I136: 0 | J136: 0 | K136: 0 | L136: 0 | M136: * | N136: 33.33333333 | O136: 12.82051282 | P136: 17.94871795 | Q136: 10.25641026 | R136: 10.25641026 | S136: 5.128205128 | T136: 10.25641026 | U136: 0 | V136: 0 | W136: 0 | X136: 0
A137: V202Pd41 | B137: 32 | C137: 6 | D137: 1 | E137: 0 | F137: 1 | G137: 0 | H137: 0 | I137: 0 | J137: 0 | K137: 0 | L137: 0 | M137: 40 | N137: 80 | O137: 15 | P137: 2.5 | Q137: 0 | R137: 2.5 | S137: 0 | T137: 0 | U137: 0 | V137: 0 | W137: 0 | X137: 0
A138: V203Pd41 | B138: 32 | C138: 8 | D138: 4 | E138: 2 | F138: 0 | G138: 0 | H138: 0 | I138: 0 | J138: 0 | K138: 0 | L138: 0 | M138: * | N138: 69.56521739 | O138: 17.39130435 | P138: 8.695652174 | Q138: 4.347826087 | R138: 0 | S138: 0 | T138: 0 | U138: 0 | V138: 0 | W138: 0 | X138: 0
A139: Y101Pd41 | B139: 14 | C139: 0 | D139: 0 | E139: 0 | F139: 0 | G139: 0 | H139: 0 | I139: 0 | J139: 0 | K139: 0 | L139: 0 | M139: * | N139: 100 | O139: 0 | P139: 0 | Q139: 0 | R139: 0 | S139: 0 | T139: 0 | U139: 0 | V139: 0 | W139: 0 | X139: 0
A140: A202Pa11 | B140: 2 | C140: 1 | D140: 0 | E140: 0 | F140: 0 | G140: 0 | H140: 0 | I140: 0 | J140: 0 | K140: 0 | L140: 0 | M140: * | N140: 66.66666667 | O140: 33.33333333 | P140: 0 | Q140: 0 | R140: 0 | S140: 0 | T140: 0 | U140: 0 | V140: 0 | W140: 0 | X140: 0
A141: C203Pa11 | B141: 15 | C141: 0 | D141: 0 | E141: 0 | F141: 0 | G141: 0 | H141: 0 | I141: 0 | J141: 0 | K141: 0 | L141: 0 | M141: 15 | N141: 100 | O141: 0 | P141: 0 | Q141: 0 | R141: 0 | S141: 0 | T141: 0 | U141: 0 | V141: 0 | W141: 0 | X141: 0
A142: G763Pa11 | B142: 30 | C142: 0 | D142: 0 | E142: 0 | F142: 0 | G142: 0 | H142: 0 | I142: 0 | J142: 0 | K142: 0 | L142: 0 | M142: 30 | N142: 100 | O142: 0 | P142: 0 | Q142: 0 | R142: 0 | S142: 0 | T142: 0 | U142: 0 | V142: 0 | W142: 0 | X142: 0
A143: H202Pa11 | B143: 0 | C143: 2 | D143: 6 | E143: 0 | F143: 0 | G143: 1 | H143: 0 | I143: 0 | J143: 0 | K143: 0 | L143: 0 | M143: 9 | N143: 0 | O143: 22.22222222 | P143: 66.66666667 | Q143: 0 | R143: 0 | S143: 11.11111111 | T143: 0 | U143: 0 | V143: 0 | W143: 0 | X143: 0
A144: N401Pa11 | B144: 1 | C144: 0 | D144: 0 | E144: 0 | F144: 0 | G144: 0 | H144: 0 | I144: 0 | J144: 0 | K144: 0 | L144: 0 | M144: * | N144: 100 | O144: 0 | P144: 0 | Q144: 0 | R144: 0 | S144: 0 | T144: 0 | U144: 0 | V144: 0 | W144: 0 | X144: 0
A145: S203Pa11 | B145: 18 | C145: 20 | D145: 11 | E145: 1 | F145: 0 | G145: 0 | H145: 0 | I145: 0 | J145: 0 | K145: 0 | L145: 0 | M145: * | N145: 36 | O145: 40 | P145: 22 | Q145: 2 | R145: 0 | S145: 0 | T145: 0 | U145: 0 | V145: 0 | W145: 0 | X145: 0
A146: S400Pa11 | B146: 0 | C146: 0 | D146: 1 | E146: 0 | F146: 0 | G146: 1 | H146: 0 | I146: 0 | J146: 0 | K146: 0 | L146: 0 | M146: * | N146: 0 | O146: 0 | P146: 50 | Q146: 0 | R146: 0 | S146: 50 | T146: 0 | U146: 0 | V146: 0 | W146: 0 | X146: 0
A147: V101Pa11 | B147: 3 | C147: 0 | D147: 0 | E147: 0 | F147: 0 | G147: 1 | H147: 0 | I147: 0 | J147: 0 | K147: 0 | L147: 0 | M147: * | N147: 75 | O147: 0 | P147: 0 | Q147: 0 | R147: 0 | S147: 25 | T147: 0 | U147: 0 | V147: 0 | W147: 0 | X147: 0
A148: V203Pa11 | B148: 4 | C148: 9 | D148: 1 | E148: 0 | F148: 0 | G148: 0 | H148: 0 | I148: 0 | J148: 0 | K148: 0 | L148: 0 | M148: * | N148: 28.57142857 | O148: 64.28571429 | P148: 7.142857143 | Q148: 0 | R148: 0 | S148: 0 | T148: 0 | U148: 0 | V148: 0 | W148: 0 | X148: 0
A149: Y101Pa11 | B149: 9 | C149: 0 | D149: 0 | E149: 0 | F149: 0 | G149: 0 | H149: 0 | I149: 0 | J149: 0 | K149: 0 | L149: 0 | M149: 9 | N149: 100 | O149: 0 | P149: 0 | Q149: 0 | R149: 0 | S149: 0 | T149: 0 | U149: 0 | V149: 0 | W149: 0 | X149: 0
A150: A202Pa12 | B150: 2 | C150: 0 | D150: 0 | E150: 0 | F150: 0 | G150: 0 | H150: 0 | I150: 0 | J150: 0 | K150: 0 | L150: 0 | M150: * | N150: 100 | O150: 0 | P150: 0 | Q150: 0 | R150: 0 | S150: 0 | T150: 0 | U150: 0 | V150: 0 | W150: 0 | X150: 0
A151: C203Pa12 | B151: 2 | C151: 1 | D151: 1 | E151: 0 | F151: 0 | G151: 0 | H151: 0 | I151: 0 | J151: 0 | K151: 0 | L151: 0 | M151: * | N151: 50 | O151: 25 | P151: 25 | Q151: 0 | R151: 0 | S151: 0 | T151: 0 | U151: 0 | V151: 0 | W151: 0 | X151: 0
A152: G763Pa12 | B152: * | C152: 0 | D152: 0 | E152: 0 | F152: 0 | G152: 0 | H152: 0 | I152: 0 | J152: 0 | K152: 0 | L152: 0 | M152: * | N152: 100 | O152: 0 | P152: 0 | Q152: 0 | R152: 0 | S152: 0 | T152: 0 | U152: 0 | V152: 0 | W152: 0 | X152: 0
A153: H202Pa12 | B153: 8 | C153: 4 | D153: 0 | E153: 0 | F153: 0 | G153: 0 | H153: 0 | I153: 0 | J153: 0 | K153: 0 | L153: 0 | M153: 12 | N153: 66.66666667 | O153: 33.33333333 | P153: 0 | Q153: 0 | R153: 0 | S153: 0 | T153: 0 | U153: 0 | V153: 0 | W153: 0 | X153: 0
A154: N401Pa12 | B154: 7 | C154: 0 | D154: 0 | E154: 0 | F154: 0 | G154: 0 | H154: 0 | I154: 0 | J154: 0 | K154: 0 | L154: 0 | M154: 7 | N154: 100 | O154: 0 | P154: 0 | Q154: 0 | R154: 0 | S154: 0 | T154: 0 | U154: 0 | V154: 0 | W154: 0 | X154: 0
A155: S203Pa12 | B155: 7 | C155: 16 | D155: 9 | E155: 0 | F155: 0 | G155: 0 | H155: 0 | I155: 0 | J155: 0 | K155: 0 | L155: 0 | M155: 32 | N155: 21.875 | O155: 50 | P155: 28.125 | Q155: 0 | R155: 0 | S155: 0 | T155: 0 | U155: 0 | V155: 0 | W155: 0 | X155: 0
A156: V101Pa12 | B156: 4 | C156: 1 | D156: 0 | E156: 0 | F156: 1 | G156: 1 | H156: 0 | I156: 0 | J156: 0 | K156: 0 | L156: 0 | M156: 7 | N156: 57.14285714 | O156: 14.28571429 | P156: 0 | Q156: 0 | R156: 14.28571429 | S156: 14.28571429 | T156: 0 | U156: 0 | V156: 0 | W156: 0 | X156: 0
A157: V202Pa12 | B157: 3 | C157: 0 | D157: 1 | E157: 0 | F157: 0 | G157: 0 | H157: 0 | I157: 0 | J157: 0 | K157: 0 | L157: 0 | M157: * | N157: 75 | O157: 0 | P157: 25 | Q157: 0 | R157: 0 | S157: 0 | T157: 0 | U157: 0 | V157: 0 | W157: 0 | X157: 0
A158: V203Pa12 | B158: 1 | C158: 0 | D158: 0 | E158: 0 | F158: 0 | G158: 0 | H158: 0 | I158: 0 | J158: 0 | K158: 0 | L158: 0 | M158: * | N158: 100 | O158: 0 | P158: 0 | Q158: 0 | R158: 0 | S158: 0 | T158: 0 | U158: 0 | V158: 0 | W158: 0 | X158: 0
A159: Y101Pa12 | B159: 9 | C159: 0 | D159: 0 | E159: 0 | F159: 0 | G159: 0 | H159: 0 | I159: 0 | J159: 0 | K159: 0 | L159: 0 | M159: 9 | N159: 100 | O159: 0 | P159: 0 | Q159: 0 | R159: 0 | S159: 0 | T159: 0 | U159: 0 | V159: 0 | W159: 0 | X159: 0
A160: A202Pa21 | B160: 0 | C160: 0 | D160: 2 | E160: 0 | F160: 0 | G160: 0 | H160: 0 | I160: 0 | J160: 0 | K160: 0 | L160: 0 | M160: * | N160: 0 | O160: 0 | P160: 100 | Q160: 0 | R160: 0 | S160: 0 | T160: 0 | U160: 0 | V160: 0 | W160: 0 | X160: 0
A161: C203Pa21 | B161: 3 | C161: 2 | D161: 0 | E161: 0 | F161: 0 | G161: 0 | H161: 0 | I161: 0 | J161: 0 | K161: 0 | L161: 0 | M161: 5 | N161: 60 | O161: 40 | P161: 0 | Q161: 0 | R161: 0 | S161: 0 | T161: 0 | U161: 0 | V161: 0 | W161: 0 | X161: 0
A162: G763Pa21 | B162: 65 | C162: 0 | D162: 0 | E162: 0 | F162: 0 | G162: 0 | H162: 0 | I162: 0 | J162: 0 | K162: 0 | L162: 0 | M162: 65 | N162: 100 | O162: 0 | P162: 0 | Q162: 0 | R162: 0 | S162: 0 | T162: 0 | U162: 0 | V162: 0 | W162: 0 | X162: 0
A163: H202Pa21 | B163: 2 | C163: 5 | D163: 4 | E163: 1 | F163: 0 | G163: 0 | H163: 0 | I163: 0 | J163: 0 | K163: 0 | L163: 0 | M163: 12 | N163: 16.66666667 | O163: 41.66666667 | P163: 33.33333333 | Q163: 8.333333333 | R163: 0 | S163: 0 | T163: 0 | U163: 0 | V163: 0 | W163: 0 | X163: 0
A164: N401Pa21 | B164: 1 | C164: 0 | D164: 0 | E164: 0 | F164: 0 | G164: 0 | H164: 0 | I164: 0 | J164: 0 | K164: 0 | L164: 0 | M164: * | N164: 100 | O164: 0 | P164: 0 | Q164: 0 | R164: 0 | S164: 0 | T164: 0 | U164: 0 | V164: 0 | W164: 0 | X164: 0
A165: S203Pa21 | B165: 29 | C165: 10 | D165: 6 | E165: 2 | F165: 0 | G165: 1 | H165: 0 | I165: 0 | J165: 0 | K165: 0 | L165: 0 | M165: * | N165: 60.41666667 | O165: 20.83333333 | P165: 12.5 | Q165: 4.166666667 | R165: 0 | S165: 2.083333333 | T165: 0 | U165: 0 | V165: 0 | W165: 0 | X165: 0
A166: S400Pa21 | B166: 2 | C166: 0 | D166: 0 | E166: 0 | F166: 0 | G166: 1 | H166: 0 | I166: 0 | J166: 0 | K166: 0 | L166: 0 | M166: * | N166: 66.66666667 | O166: 0 | P166: 0 | Q166: 0 | R166: 0 | S166: 33.33333333 | T166: 0 | U166: 0 | V166: 0 | W166: 0 | X166: 0
A167: V101Pa21 | B167: 1 | C167: 6 | D167: 3 | E167: 0 | F167: 1 | G167: 0 | H167: 0 | I167: 0 | J167: 0 | K167: 0 | L167: 0 | M167: 11 | N167: 9.090909091 | O167: 54.54545455 | P167: 27.27272727 | Q167: 0 | R167: 9.090909091 | S167: 0 | T167: 0 | U167: 0 | V167: 0 | W167: 0 | X167: 0
A168: V202Pa21 | B168: 5 | C168: 2 | D168: 0 | E168: 0 | F168: 0 | G168: 0 | H168: 0 | I168: 0 | J168: 0 | K168: 0 | L168: 0 | M168: * | N168: 71.42857143 | O168: 28.57142857 | P168: 0 | Q168: 0 | R168: 0 | S168: 0 | T168: 0 | U168: 0 | V168: 0 | W168: 0 | X168: 0
A169: V203Pa21 | B169: 1 | C169: 0 | D169: 0 | E169: 0 | F169: 0 | G169: 0 | H169: 0 | I169: 0 | J169: 0 | K169: 0 | L169: 0 | M169: * | N169: 100 | O169: 0 | P169: 0 | Q169: 0 | R169: 0 | S169: 0 | T169: 0 | U169: 0 | V169: 0 | W169: 0 | X169: 0
A170: Y101Pa21 | B170: 8 | C170: 0 | D170: 0 | E170: 0 | F170: 0 | G170: 0 | H170: 0 | I170: 0 | J170: 0 | K170: 0 | L170: 0 | M170: * | N170: 100 | O170: 0 | P170: 0 | Q170: 0 | R170: 0 | S170: 0 | T170: 0 | U170: 0 | V170: 0 | W170: 0 | X170: 0
A171: A202Pa31 | B171: 1 | C171: 3 | D171: 1 | E171: 0 | F171: 0 | G171: 0 | H171: 0 | I171: 0 | J171: 0 | K171: 0 | L171: 0 | M171: 5 | N171: 20 | O171: 60 | P171: 20 | Q171: 0 | R171: 0 | S171: 0 | T171: 0 | U171: 0 | V171: 0 | W171: 0 | X171: 0
A172: C203Pa31 | B172: 2 | C172: 1 | D172: 0 | E172: 1 | F172: 0 | G172: 0 | H172: 0 | I172: 0 | J172: 0 | K172: 0 | L172: 0 | M172: * | N172: 50 | O172: 25 | P172: 0 | Q172: 25 | R172: 0 | S172: 0 | T172: 0 | U172: 0 | V172: 0 | W172: 0 | X172: 0
A173: G763Pa31 | B173: 81 | C173: 0 | D173: 0 | E173: 0 | F173: 0 | G173: 0 | H173: 0 | I173: 0 | J173: 0 | K173: 0 | L173: 0 | M173: * | N173: 100 | O173: 0 | P173: 0 | Q173: 0 | R173: 0 | S173: 0 | T173: 0 | U173: 0 | V173: 0 | W173: 0 | X173: 0
A174: H202Pa31 | B174: 10 | C174: 2 | D174: 2 | E174: 0 | F174: 1 | G174: 0 | H174: 0 | I174: 0 | J174: 0 | K174: 0 | L174: 0 | M174: 15 | N174: 66.66666667 | O174: 13.33333333 | P174: 13.33333333 | Q174: 0 | R174: 6.666666667 | S174: 0 | T174: 0 | U174: 0 | V174: 0 | W174: 0 | X174: 0
A175: N401Pa31 | B175: 12 | C175: 0 | D175: 0 | E175: 0 | F175: 0 | G175: 0 | H175: 0 | I175: 0 | J175: 0 | K175: 0 | L175: 0 | M175: 12 | N175: 100 | O175: 0 | P175: 0 | Q175: 0 | R175: 0 | S175: 0 | T175: 0 | U175: 0 | V175: 0 | W175: 0 | X175: 0
A176: S203Pa31 | B176: 34 | C176: 7 | D176: 9 | E176: 0 | F176: 0 | G176: 0 | H176: 0 | I176: 0 | J176: 0 | K176: 0 | L176: 0 | M176: * | N176: 68 | O176: 14 | P176: 18 | Q176: 0 | R176: 0 | S176: 0 | T176: 0 | U176: 0 | V176: 0 | W176: 0 | X176: 0
A177: S400Pa31 | B177: 0 | C177: 0 | D177: 1 | E177: 0 | F177: 0 | G177: 1 | H177: 0 | I177: 0 | J177: 0 | K177: 0 | L177: 0 | M177: * | N177: 0 | O177: 0 | P177: 50 | Q177: 0 | R177: 0 | S177: 50 | T177: 0 | U177: 0 | V177: 0 | W177: 0 | X177: 0
A178: V202Pa31 | B178: 2 | C178: 0 | D178: 0 | E178: 0 | F178: 0 | G178: 0 | H178: 0 | I178: 0 | J178: 0 | K178: 0 | L178: 0 | M178: * | N178: 100 | O178: 0 | P178: 0 | Q178: 0 | R178: 0 | S178: 0 | T178: 0 | U178: 0 | V178: 0 | W178: 0 | X178: 0
A179: V203Pa31 | B179: 1 | C179: 3 | D179: 0 | E179: 0 | F179: 0 | G179: 0 | H179: 0 | I179: 0 | J179: 0 | K179: 0 | L179: 0 | M179: * | N179: 25 | O179: 75 | P179: 0 | Q179: 0 | R179: 0 | S179: 0 | T179: 0 | U179: 0 | V179: 0 | W179: 0 | X179: 0
A180: Y101Pa31 | B180: 4 | C180: 0 | D180: 0 | E180: 0 | F180: 0 | G180: 0 | H180: 0 | I180: 0 | J180: 0 | K180: 0 | L180: 0 | M180: * | N180: 100 | O180: 0 | P180: 0 | Q180: 0 | R180: 0 | S180: 0 | T180: 0 | U180: 0 | V180: 0 | W180: 0 | X180: 0
A181: A202Pa41 | B181: 0 | C181: 1 | D181: 0 | E181: 0 | F181: 0 | G181: 0 | H181: 0 | I181: 0 | J181: 0 | K181: 0 | L181: 0 | M181: * | N181: 0 | O181: 100 | P181: 0 | Q181: 0 | R181: 0 | S181: 0 | T181: 0 | U181: 0 | V181: 0 | W181: 0 | X181: 0
A182: C203Pa41 | B182: 1 | C182: 2 | D182: 1 | E182: 0 | F182: 0 | G182: 0 | H182: 0 | I182: 0 | J182: 0 | K182: 0 | L182: 0 | M182: * | N182: 25 | O182: 50 | P182: 25 | Q182: 0 | R182: 0 | S182: 0 | T182: 0 | U182: 0 | V182: 0 | W182: 0 | X182: 0
A183: G763Pa41 | B183: 40 | C183: 0 | D183: 0 | E183: 0 | F183: 0 | G183: 0 | H183: 0 | I183: 0 | J183: 0 | K183: 0 | L183: 0 | M183: * | N183: 100 | O183: 0 | P183: 0 | Q183: 0 | R183: 0 | S183: 0 | T183: 0 | U183: 0 | V183: 0 | W183: 0 | X183: 0
A184: H202Pa41 | B184: 3 | C184: 1 | D184: 1 | E184: 0 | F184: 0 | G184: 0 | H184: 0 | I184: 0 | J184: 0 | K184: 0 | L184: 0 | M184: 5 | N184: 60 | O184: 20 | P184: 20 | Q184: 0 | R184: 0 | S184: 0 | T184: 0 | U184: 0 | V184: 0 | W184: 0 | X184: 0
A185: N401Pa41 | B185: 29 | C185: 0 | D185: 0 | E185: 0 | F185: 0 | G185: 0 | H185: 0 | I185: 0 | J185: 0 | K185: 0 | L185: 0 | M185: 29 | N185: 100 | O185: 0 | P185: 0 | Q185: 0 | R185: 0 | S185: 0 | T185: 0 | U185: 0 | V185: 0 | W185: 0 | X185: 0
A186: S203Pa41 | B186: 12 | C186: 7 | D186: 7 | E186: 2 | F186: 0 | G186: 0 | H186: 0 | I186: 0 | J186: 0 | K186: 0 | L186: 0 | M186: * | N186: 42.85714286 | O186: 25 | P186: 25 | Q186: 7.142857143 | R186: 0 | S186: 0 | T186: 0 | U186: 0 | V186: 0 | W186: 0 | X186: 0
A187: S400Pa41 | B187: 1 | C187: 0 | D187: 0 | E187: 2 | F187: 1 | G187: 0 | H187: 0 | I187: 0 | J187: 0 | K187: 0 | L187: 0 | M187: * | N187: 25 | O187: 0 | P187: 0 | Q187: 50 | R187: 25 | S187: 0 | T187: 0 | U187: 0 | V187: 0 | W187: 0 | X187: 0
A188: T101Pa41 | B188: 0 | C188: 0 | D188: 0 | E188: 1 | F188: 0 | G188: 0 | H188: 0 | I188: 0 | J188: 0 | K188: 0 | L188: 0 | M188: * | N188: 0 | O188: 0 | P188: 0 | Q188: 100 | R188: 0 | S188: 0 | T188: 0 | U188: 0 | V188: 0 | W188: 0 | X188: 0
A189: V101Pa41 | B189: 1 | C189: 1 | D189: 1 | E189: 0 | F189: 1 | G189: 0 | H189: 1 | I189: 0 | J189: 0 | K189: 0 | L189: 0 | M189: * | N189: 20 | O189: 20 | P189: 20 | Q189: 0 | R189: 20 | S189: 0 | T189: 20 | U189: 0 | V189: 0 | W189: 0 | X189: 0
A190: V202Pa41 | B190: 7 | C190: 0 | D190: 0 | E190: 0 | F190: 0 | G190: 0 | H190: 0 | I190: 0 | J190: 0 | K190: 0 | L190: 0 | M190: 7 | N190: 100 | O190: 0 | P190: 0 | Q190: 0 | R190: 0 | S190: 0 | T190: 0 | U190: 0 | V190: 0 | W190: 0 | X190: 0
A191: V203Pa41 | B191: 1 | C191: 2 | D191: 0 | E191: 0 | F191: 0 | G191: 0 | H191: 0 | I191: 0 | J191: 0 | K191: 0 | L191: 0 | M191: * | N191: 33.33333333 | O191: 66.66666667 | P191: 0 | Q191: 0 | R191: 0 | S191: 0 | T191: 0 | U191: 0 | V191: 0 | W191: 0 | X191: 0
A192: Y101Pa41 | B192: 10 | C192: 0 | D192: 0 | E192: 0 | F192: 0 | G192: 0 | H192: 0 | I192: 0 | J192: 0 | K192: 0 | L192: 0 | M192: * | N192: 100 | O192: 0 | P192: 0 | Q192: 0 | R192: 0 | S192: 0 | T192: 0 | U192: 0 | V192: 0 | W192: 0 | X192: 0
A193: 202b11 | B193: 111 | C193: 17 | D193: 5 | E193: 0 | F193: 0 | G193: 0 | H193: 0 | I193: 0 | J193: 0 | K193: 0 | L193: 0 | M193: 133 | N193: 83.45864662 | O193: 12.78195489 | P193: 3.759398496 | Q193: 0 | R193: 0 | S193: 0 | T193: 0 | U193: 0 | V193: 0 | W193: 0 | X193: 0
A194: 204b11 | B194: 24 | C194: 0 | D194: 0 | E194: 0 | F194: 0 | G194: 0 | H194: 0 | I194: 0 | J194: 0 | K194: 0 | L194: 0 | M194: 24 | N194: 100 | O194: 0 | P194: 0 | Q194: 0 | R194: 0 | S194: 0 | T194: 0 | U194: 0 | V194: 0 | W194: 0 | X194: 0
A195: 206b11 | B195: 105 | C195: 62 | D195: 17 | E195: 3 | F195: 1 | G195: 1 | H195: 0 | I195: 0 | J195: 0 | K195: 0 | L195: 0 | M195: 189 | N195: 55.55555556 | O195: 32.8042328 | P195: 8.994708995 | Q195: 1.587301587 | R195: 0.5291005291 | S195: 0.5291005291 | T195: 0 | U195: 0 | V195: 0 | W195: 0 | X195: 0
A196: 207b11 | B196: 56 | C196: 0 | D196: 0 | E196: 0 | F196: 0 | G196: 0 | H196: 0 | I196: 0 | J196: 0 | K196: 0 | L196: 0 | M196: 56 | N196: 100 | O196: 0 | P196: 0 | Q196: 0 | R196: 0 | S196: 0 | T196: 0 | U196: 0 | V196: 0 | W196: 0 | X196: 0
A197: 209b11 | B197: 28 | C197: 18 | D197: 17 | E197: 2 | F197: 1 | G197: 1 | H197: 1 | I197: 0 | J197: 0 | K197: 0 | L197: 0 | M197: 68 | N197: 41.17647059 | O197: 26.47058824 | P197: 25 | Q197: 2.941176471 | R197: 1.470588235 | S197: 1.470588235 | T197: 1.470588235 | U197: 0 | V197: 0 | W197: 0 | X197: 0
A198: 210b11 | B198: 7 | C198: 0 | D198: 0 | E198: 0 | F198: 0 | G198: 0 | H198: 0 | I198: 0 | J198: 0 | K198: 0 | L198: 0 | M198: 7 | N198: 100 | O198: 0 | P198: 0 | Q198: 0 | R198: 0 | S198: 0 | T198: 0 | U198: 0 | V198: 0 | W198: 0 | X198: 0
A199: 211b11 | B199: 59 | C199: 65 | D199: 31 | E199: 5 | F199: 0 | G199: 4 | H199: 2 | I199: 5 | J199: 2 | K199: 0 | L199: 0 | M199: 173 | N199: 34.10404624 | O199: 37.57225434 | P199: 17.91907514 | Q199: 2.89017341 | R199: 0 | S199: 2.312138728 | T199: 1.156069364 | U199: 2.89017341 | V199: 1.156069364 | W199: 0 | X199: 0
A200: 214b11 | B200: 4 | C200: 26 | D200: 11 | E200: 1 | F200: 0 | G200: 1 | H200: 1 | I200: 0 | J200: 0 | K200: 0 | L200: 0 | M200: 44 | N200: 9.090909091 | O200: 59.09090909 | P200: 25 | Q200: 2.272727273 | R200: 0 | S200: 2.272727273 | T200: 2.272727273 | U200: 0 | V200: 0 | W200: 0 | X200: 0
... 131 more rows

Sheet percentage comp (hidden)
A1: desc | B1: t1 | C1: pc_u8 | D1: pc_d8to14 | E1: pc_d15to21 | F1: pc_d22to28 | G1: pc_d29to35 | H1: pc_d36to42 | I1: pc_w7to8wk | J1: pc_w9to12wk | K1: pc_w13to16wk | L1: pc_w17to20wk | M1: pc_w21plus | O1: 3weeks | P1: 6weeks
A2: A202Pb11 | B2: 133 | C2: 83.45864662 | D2: 12.78195489 | E2: 3.759398496 | F2: 0 | G2: 0 | H2: 0 | I2: 0 | J2: 0 | K2: 0 | L2: 0 | M2: 0 | O2: =SUM(C2:E2) -> 100 | P2: =SUM(C2:H2) -> 100
A3: C203Pb11 | B3: 31 | C3: 100 | D3: 0 | E3: 0 | F3: 0 | G3: 0 | H3: 0 | I3: 0 | J3: 0 | K3: 0 | L3: 0 | M3: 0 | O3: =SUM(C3:E3) -> 100 | P3: =SUM(C3:H3) -> 100
A4: G101Pb11 | B4: 208 | C4: 100 | D4: 0 | E4: 0 | F4: 0 | G4: 0 | H4: 0 | I4: 0 | J4: 0 | K4: 0 | L4: 0 | M4: 0 | O4: 100 | P4: 100
A5: G763Pb11 | B5: 81 | C5: 100 | D5: 0 | E5: 0 | F5: 0 | G5: 0 | H5: 0 | I5: 0 | J5: 0 | K5: 0 | L5: 0 | M5: 0 | O5: 100 | P5: 100
A6: H202Pb11 | B6: 68 | C6: 41.17647059 | D6: 26.47058824 | E6: 25 | F6: 2.941176471 | G6: 1.470588235 | H6: 1.470588235 | I6: 1.470588235 | J6: 0 | K6: 0 | L6: 0 | M6: 0 | O6: 92.64705882 | P6: 98.52941176
A7: L202Pb11 | B7: 7 | C7: 100 | D7: 0 | E7: 0 | F7: 0 | G7: 0 | H7: 0 | I7: 0 | J7: 0 | K7: 0 | L7: 0 | M7: 0 | O7: 100 | P7: 100
A8: N401Pb11 | B8: 56 | C8: 100 | D8: 0 | E8: 0 | F8: 0 | G8: 0 | H8: 0 | I8: 0 | J8: 0 | K8: 0 | L8: 0 | M8: 0 | O8: 100 | P8: 100
A9: S203Pb11 | B9: 116 | C9: 33.62068966 | D9: 41.37931034 | E9: 19.82758621 | F9: 0.8620689655 | G9: 0 | H9: 0 | I9: 0.8620689655 | J9: 2.586206897 | K9: 0.8620689655 | L9: 0 | M9: 0 | O9: 94.82758621 | P9: 95.68965517
A10: S400Pb11 | B10: 57 | C10: 35.0877193 | D10: 29.8245614 | E10: 14.03508772 | F10: 7.01754386 | G10: 0 | H10: 7.01754386 | I10: 1.754385965 | J10: 3.50877193 | K10: 1.754385965 | L10: 0 | M10: 0 | O10: 78.94736842 | P10: 92.98245614
A11: T101Pb11 | B11: 44 | C11: 9.090909091 | D11: 59.09090909 | E11: 25 | F11: 2.272727273 | G11: 0 | H11: 2.272727273 | I11: 2.272727273 | J11: 0 | K11: 0 | L11: 0 | M11: 0 | O11: 93.18181818 | P11: 97.72727273
A12: V101Pb11 | B12: 63 | C12: 33.33333333 | D12: 42.85714286 | E12: 15.87301587 | F12: 4.761904762 | G12: 1.587301587 | H12: 1.587301587 | I12: 0 | J12: 0 | K12: 0 | L12: 0 | M12: 0 | O12: 92.06349206 | P12: 100
A13: V202Pb11 | B13: 30 | C13: 70 | D13: 20 | E13: 10 | F13: 0 | G13: 0 | H13: 0 | I13: 0 | J13: 0 | K13: 0 | L13: 0 | M13: 0 | O13: 100 | P13: 100
A14: V203Pb11 | B14: 96 | C14: 65.625 | D14: 30.20833333 | E14: 4.166666667 | F14: 0 | G14: 0 | H14: 0 | I14: 0 | J14: 0 | K14: 0 | L14: 0 | M14: 0 | O14: 100 | P14: 100
A15: Y101Pb11 | B15: 24 | C15: 100 | D15: 0 | E15: 0 | F15: 0 | G15: 0 | H15: 0 | I15: 0 | J15: 0 | K15: 0 | L15: 0 | M15: 0 | O15: 100 | P15: 100
A16: A202Pb12 | B16: 118 | C16: 88.98305085 | D16: 7.627118644 | E16: 3.389830508 | F16: 0 | G16: 0 | H16: 0 | I16: 0 | J16: 0 | K16: 0 | L16: 0 | M16: 0 | O16: 100 | P16: 100
A17: C203Pb12 | B17: 42 | C17: 78.57142857 | D17: 14.28571429 | E17: 4.761904762 | F17: 0 | G17: 0 | H17: 2.380952381 | I17: 0 | J17: 0 | K17: 0 | L17: 0 | M17: 0 | O17: 97.61904762 | P17: 100
A18: G101Pb12 | B18: 138 | C18: 100 | D18: 0 | E18: 0 | F18: 0 | G18: 0 | H18: 0 | I18: 0 | J18: 0 | K18: 0 | L18: 0 | M18: 0 | O18: 100 | P18: 100
A19: G763Pb12 | B19: 53 | C19: 100 | D19: 0 | E19: 0 | F19: 0 | G19: 0 | H19: 0 | I19: 0 | J19: 0 | K19: 0 | L19: 0 | M19: 0 | O19: 100 | P19: 100
A20: H202Pb12 | B20: 72 | C20: 79.16666667 | D20: 11.11111111 | E20: 6.944444444 | F20: 2.777777778 | G20: 0 | H20: 0 | I20: 0 | J20: 0 | K20: 0 | L20: 0 | M20: 0 | O20: 97.22222222 | P20: 100
A21: L202Pb12 | B21: 5 | C21: 100 | D21: 0 | E21: 0 | F21: 0 | G21: 0 | H21: 0 | I21: 0 | J21: 0 | K21: 0 | L21: 0 | M21: 0 | O21: 100 | P21: 100
A22: N401Pb12 | B22: 38 | C22: 100 | D22: 0 | E22: 0 | F22: 0 | G22: 0 | H22: 0 | I22: 0 | J22: 0 | K22: 0 | L22: 0 | M22: 0 | O22: 100 | P22: 100
A23: S203Pb12 | B23: 122 | C23: 26.2295082 | D23: 42.62295082 | E23: 24.59016393 | F23: 4.098360656 | G23: 0.8196721311 | H23: 1.639344262 | I23: 0 | J23: 0 | K23: 0 | L23: 0 | M23: 0 | O23: 93.44262295 | P23: 100
A24: S400Pb12 | B24: 54 | C24: 14.81481481 | D24: 40.74074074 | E24: 25.92592593 | F24: 7.407407407 | G24: 3.703703704 | H24: 1.851851852 | I24: 0 | J24: 5.555555556 | K24: 0 | L24: 0 | M24: 0 | O24: 81.48148148 | P24: 94.44444444
A25: T101Pb12 | B25: 23 | C25: 8.695652174 | D25: 4.347826087 | E25: 21.73913043 | F25: 8.695652174 | G25: 17.39130435 | H25: 17.39130435 | I25: 13.04347826 | J25: 8.695652174 | K25: 0 | L25: 0 | M25: 0 | O25: 34.7826087 | P25: 78.26086957
A26: V101Pb12 | B26: 40 | C26: 47.5 | D26: 7.5 | E26: 7.5 | F26: 15 | G26: 12.5 | H26: 5 | I26: 5 | J26: 0 | K26: 0 | L26: 0 | M26: 0 | O26: =SUM(C26:E26) -> 62.5 | P26: =SUM(C26:H26) -> 95
A27: V202Pb12 | B27: 33 | C27: 84.84848485 | D27: 3.03030303 | E27: 12.12121212 | F27: 0 | G27: 0 | H27: 0 | I27: 0 | J27: 0 | K27: 0 | L27: 0 | M27: 0 | O27: 100 | P27: 100
A28: V203Pb12 | B28: 50 | C28: 70 | D28: 24 | E28: 6 | F28: 0 | G28: 0 | H28: 0 | I28: 0 | J28: 0 | K28: 0 | L28: 0 | M28: 0 | O28: 100 | P28: 100
A29: Y101Pb12 | B29: 23 | C29: 100 | D29: 0 | E29: 0 | F29: 0 | G29: 0 | H29: 0 | I29: 0 | J29: 0 | K29: 0 | L29: 0 | M29: 0 | O29: 100 | P29: 100
A30: A202Pb21 | B30: 125 | C30: 68 | D30: 16.8 | E30: 15.2 | F30: 0 | G30: 0 | H30: 0 | I30: 0 | J30: 0 | K30: 0 | L30: 0 | M30: 0 | O30: 100 | P30: 100
A31: C203Pb21 | B31: 46 | C31: 78.26086957 | D31: 17.39130435 | E31: 4.347826087 | F31: 0 | G31: 0 | H31: 0 | I31: 0 | J31: 0 | K31: 0 | L31: 0 | M31: 0 | O31: 100 | P31: 100
A32: G101Pb21 | B32: 197 | C32: 100 | D32: 0 | E32: 0 | F32: 0 | G32: 0 | H32: 0 | I32: 0 | J32: 0 | K32: 0 | L32: 0 | M32: 0 | O32: 100 | P32: 100
A33: G763Pb21 | B33: 164 | C33: 100 | D33: 0 | E33: 0 | F33: 0 | G33: 0 | H33: 0 | I33: 0 | J33: 0 | K33: 0 | L33: 0 | M33: 0 | O33: 100 | P33: 100
A34: H202Pb21 | B34: 74 | C34: 59.45945946 | D34: 16.21621622 | E34: 18.91891892 | F34: 5.405405405 | G34: 0 | H34: 0 | I34: 0 | J34: 0 | K34: 0 | L34: 0 | M34: 0 | O34: 94.59459459 | P34: 100
A35: L202Pb21 | B35: 4 | C35: 100 | D35: 0 | E35: 0 | F35: 0 | G35: 0 | H35: 0 | I35: 0 | J35: 0 | K35: 0 | L35: 0 | M35: 0 | O35: 100 | P35: 100
A36: N401Pb21 | B36: 75 | C36: 100 | D36: 0 | E36: 0 | F36: 0 | G36: 0 | H36: 0 | I36: 0 | J36: 0 | K36: 0 | L36: 0 | M36: 0 | O36: 100 | P36: 100
A37: S203Pb21 | B37: 113 | C37: 49.55752212 | D37: 28.31858407 | E37: 19.46902655 | F37: 1.769911504 | G37: 0 | H37: 0.8849557522 | I37: 0 | J37: 0 | K37: 0 | L37: 0 | M37: 0 | O37: 97.34513274 | P37: 100
A38: S400Pb21 | B38: 137 | C38: 24.08759124 | D38: 48.17518248 | E38: 14.59854015 | F38: 4.379562044 | G38: 5.109489051 | H38: 2.189781022 | I38: 1.459854015 | J38: 0 | K38: 0 | L38: 0 | M38: 0 | O38: 86.86131387 | P38: 98.54014599
A39: T101Pb21 | B39: 55 | C39: 10.90909091 | D39: 9.090909091 | E39: 14.54545455 | F39: 47.27272727 | G39: 14.54545455 | H39: 3.636363636 | I39: 0 | J39: 0 | K39: 0 | L39: 0 | M39: 0 | O39: 34.54545455 | P39: 100
A40: V101Pb21 | B40: 66 | C40: 33.33333333 | D40: 31.81818182 | E40: 27.27272727 | F40: 3.03030303 | G40: 1.515151515 | H40: 0 | I40: 3.03030303 | J40: 0 | K40: 0 | L40: 0 | M40: 0 | O40: 92.42424242 | P40: 96.96969697
A41: V202Pb21 | B41: 45 | C41: 71.11111111 | D41: 20 | E41: 6.666666667 | F41: 2.222222222 | G41: 0 | H41: 0 | I41: 0 | J41: 0 | K41: 0 | L41: 0 | M41: 0 | O41: 97.77777778 | P41: 100
A42: V203Pb21 | B42: 82 | C42: 90.24390244 | D42: 9.756097561 | E42: 0 | F42: 0 | G42: 0 | H42: 0 | I42: 0 | J42: 0 | K42: 0 | L42: 0 | M42: 0 | O42: 100 | P42: 100
A43: Y101Pb21 | B43: 21 | C43: 100 | D43: 0 | E43: 0 | F43: 0 | G43: 0 | H43: 0 | I43: 0 | J43: 0 | K43: 0 | L43: 0 | M43: 0 | O43: 100 | P43: 100
A44: A202Pb31 | B44: 150 | C44: 80.66666667 | D44: 10 | E44: 9.333333333 | F44: 0 | G44: 0 | H44: 0 | I44: 0 | J44: 0 | K44: 0 | L44: 0 | M44: 0 | O44: 100 | P44: 100
A45: C203Pb31 | B45: 46 | C45: 65.2173913 | D45: 21.73913043 | E45: 8.695652174 | F45: 4.347826087 | G45: 0 | H45: 0 | I45: 0 | J45: 0 | K45: 0 | L45: 0 | M45: 0 | O45: 95.65217391 | P45: 100
A46: G101Pb31 | B46: 10 | C46: 100 | D46: 0 | E46: 0 | F46: 0 | G46: 0 | H46: 0 | I46: 0 | J46: 0 | K46: 0 | L46: 0 | M46: 0 | O46: 100 | P46: 100
A47: G763Pb31 | B47: 202 | C47: 100 | D47: 0 | E47: 0 | F47: 0 | G47: 0 | H47: 0 | I47: 0 | J47: 0 | K47: 0 | L47: 0 | M47: 0 | O47: 100 | P47: 100
A48: H202Pb31 | B48: 70 | C48: 71.42857143 | D48: 11.42857143 | E48: 10 | F48: 1.428571429 | G48: 4.285714286 | H48: 0 | I48: 1.428571429 | J48: 0 | K48: 0 | L48: 0 | M48: 0 | O48: 92.85714286 | P48: 98.57142857
A49: N401Pb31 | B49: 128 | C49: 100 | D49: 0 | E49: 0 | F49: 0 | G49: 0 | H49: 0 | I49: 0 | J49: 0 | K49: 0 | L49: 0 | M49: 0 | O49: 100 | P49: 100
A50: S203Pb31 | B50: 119 | C50: 56.30252101 | D50: 22.68907563 | E50: 14.28571429 | F50: 1.680672269 | G50: 2.521008403 | H50: 1.680672269 | I50: 0 | J50: 0.8403361345 | K50: 0 | L50: 0 | M50: 0 | O50: 93.27731092 | P50: 99.15966387
A51: S400Pb31 | B51: 86 | C51: 33.72093023 | D51: 50 | E51: 9.302325581 | F51: 4.651162791 | G51: 0 | H51: 1.162790698 | I51: 1.162790698 | J51: 0 | K51: 0 | L51: 0 | M51: 0 | O51: 93.02325581 | P51: 98.8372093
A52: T101Pb31 | B52: 53 | C52: 7.547169811 | D52: 7.547169811 | E52: 7.547169811 | F52: 41.50943396 | G52: 24.52830189 | H52: 3.773584906 | I52: 3.773584906 | J52: 3.773584906 | K52: 0 | L52: 0 | M52: 0 | O52: 22.64150943 | P52: 92.45283019
A53: V101Pb31 | B53: 21 | C53: 33.33333333 | D53: 47.61904762 | E53: 19.04761905 | F53: 0 | G53: 0 | H53: 0 | I53: 0 | J53: 0 | K53: 0 | L53: 0 | M53: 0 | O53: 100 | P53: 100
A54: V202Pb31 | B54: 38 | C54: 92.10526316 | D54: 7.894736842 | E54: 0 | F54: 0 | G54: 0 | H54: 0 | I54: 0 | J54: 0 | K54: 0 | L54: 0 | M54: 0 | O54: 100 | P54: 100
A55: V203Pb31 | B55: 66 | C55: 83.33333333 | D55: 15.15151515 | E55: 0 | F55: 1.515151515 | G55: 0 | H55: 0 | I55: 0 | J55: 0 | K55: 0 | L55: 0 | M55: 0 | O55: 98.48484848 | P55: 100
A56: Y101Pb31 | B56: 16 | C56: 100 | D56: 0 | E56: 0 | F56: 0 | G56: 0 | H56: 0 | I56: 0 | J56: 0 | K56: 0 | L56: 0 | M56: 0 | O56: 100 | P56: 100
A57: A202Pb41 | B57: 128 | C57: 77.34375 | D57: 18.75 | E57: 3.125 | F57: 0 | G57: 0.78125 | H57: 0 | I57: 0 | J57: 0 | K57: 0 | L57: 0 | M57: 0 | O57: 99.21875 | P57: 100
A58: C203Pb41 | B58: 21 | C58: 57.14285714 | D58: 38.0952381 | E58: 4.761904762 | F58: 0 | G58: 0 | H58: 0 | I58: 0 | J58: 0 | K58: 0 | L58: 0 | M58: 0 | O58: 100 | P58: 100
A59: G101Pb41 | B59: 106 | C59: 100 | D59: 0 | E59: 0 | F59: 0 | G59: 0 | H59: 0 | I59: 0 | J59: 0 | K59: 0 | L59: 0 | M59: 0 | O59: 100 | P59: 100
A60: G763Pb41 | B60: 115 | C60: 100 | D60: 0 | E60: 0 | F60: 0 | G60: 0 | H60: 0 | I60: 0 | J60: 0 | K60: 0 | L60: 0 | M60: 0 | O60: 100 | P60: 100
A61: H202Pb41 | B61: 47 | C61: 68.08510638 | D61: 10.63829787 | E61: 17.0212766 | F61: 4.255319149 | G61: 0 | H61: 0 | I61: 0 | J61: 0 | K61: 0 | L61: 0 | M61: 0 | O61: 95.74468085 | P61: 100
A62: L202Pb41 | B62: 3 | C62: 100 | D62: 0 | E62: 0 | F62: 0 | G62: 0 | H62: 0 | I62: 0 | J62: 0 | K62: 0 | L62: 0 | M62: 0 | O62: 100 | P62: 100
A63: N401Pb41 | B63: 108 | C63: 100 | D63: 0 | E63: 0 | F63: 0 | G63: 0 | H63: 0 | I63: 0 | J63: 0 | K63: 0 | L63: 0 | M63: 0 | O63: 100 | P63: 100
A64: S203Pb41 | B64: 107 | C64: 34.57943925 | D64: 36.44859813 | E64: 19.62616822 | F64: 6.542056075 | G64: 0.9345794393 | H64: 0 | I64: 0.9345794393 | J64: 0 | K64: 0.9345794393 | L64: 0 | M64: 0 | O64: 90.65420561 | P64: 98.13084112
A65: S400Pb41 | B65: 103 | C65: 19.41747573 | D65: 41.74757282 | E65: 22.33009709 | F65: 10.67961165 | G65: 1.941747573 | H65: 1.941747573 | I65: 0.9708737864 | J65: 0 | K65: 0 | L65: 0.9708737864 | M65: 0 | O65: 83.49514563 | P65: 98.05825243
A66: T101Pb41 | B66: 52 | C66: 3.846153846 | D66: 17.30769231 | E66: 23.07692308 | F66: 23.07692308 | G66: 21.15384615 | H66: 7.692307692 | I66: 1.923076923 | J66: 1.923076923 | K66: 0 | L66: 0 | M66: 0 | O66: 44.23076923 | P66: 96.15384615
A67: V101Pb41 | B67: 44 | C67: 31.81818182 | D67: 13.63636364 | E67: 18.18181818 | F67: 9.090909091 | G67: 11.36363636 | H67: 4.545454545 | I67: 11.36363636 | J67: 0 | K67: 0 | L67: 0 | M67: 0 | O67: =SUM(C67:E67) -> 63.63636364 | P67: =SUM(C67:H67) -> 88.63636364
A68: V202Pb41 | B68: 47 | C68: 82.9787234 | D68: 12.76595745 | E68: 2.127659574 | F68: 0 | G68: 2.127659574 | H68: 0 | I68: 0 | J68: 0 | K68: 0 | L68: 0 | M68: 0 | O68: =SUM(C68:E68) -> 97.87234043 | P68: 100
A69: V203Pb41 | B69: 49 | C69: 67.34693878 | D69: 20.40816327 | E69: 8.163265306 | F69: 4.081632653 | G69: 0 | H69: 0 | I69: 0 | J69: 0 | K69: 0 | L69: 0 | M69: 0 | O69: =SUM(C69:E69) -> 95.91836735 | P69: 100
A70: Y101Pb41 | B70: 24 | C70: 100 | D70: 0 | E70: 0 | F70: 0 | G70: 0 | H70: 0 | I70: 0 | J70: 0 | K70: 0 | L70: 0 | M70: 0 | O70: =SUM(C70:E70) -> 100 | P70: 100
A71: A202Pd11 | B71: 130 | C71: 83.84615385 | D71: 12.30769231 | E71: 3.846153846 | F71: 0 | G71: 0 | H71: 0 | I71: 0 | J71: 0 | K71: 0 | L71: 0 | M71: 0 | O71: =SUM(C71:E71) -> 100 | P71: 100
A72: C203Pd11 | B72: 16 | C72: 100 | D72: 0 | E72: 0 | F72: 0 | G72: 0 | H72: 0 | I72: 0 | J72: 0 | K72: 0 | L72: 0 | M72: 0 | O72: =SUM(C72:E72) -> 100 | P72: 100
A73: G101Pd11 | B73: 208 | C73: 100 | D73: 0 | E73: 0 | F73: 0 | G73: 0 | H73: 0 | I73: 0 | J73: 0 | K73: 0 | L73: 0 | M73: 0 | O73: 100 | P73: 100
A74: G763Pd11 | B74: 51 | C74: 100 | D74: 0 | E74: 0 | F74: 0 | G74: 0 | H74: 0 | I74: 0 | J74: 0 | K74: 0 | L74: 0 | M74: 0 | O74: 100 | P74: 100
A75: H202Pd11 | B75: 59 | C75: 47.45762712 | D75: 27.11864407 | E75: 18.6440678 | F75: 3.389830508 | G75: 1.694915254 | H75: 0 | I75: 1.694915254 | J75: 0 | K75: 0 | L75: 0 | M75: 0 | O75: 93.22033898 | P75: 98.30508475
A76: L202Pd11 | B76: 7 | C76: 100 | D76: 0 | E76: 0 | F76: 0 | G76: 0 | H76: 0 | I76: 0 | J76: 0 | K76: 0 | L76: 0 | M76: 0 | O76: 100 | P76: 100
A77: N401Pd11 | B77: 55 | C77: 100 | D77: 0 | E77: 0 | F77: 0 | G77: 0 | H77: 0 | I77: 0 | J77: 0 | K77: 0 | L77: 0 | M77: 0 | O77: 100 | P77: 100
A78: S203Pd11 | B78: 66 | C78: 31.81818182 | D78: 42.42424242 | E78: 18.18181818 | F78: 0 | G78: 0 | H78: 0 | I78: 1.515151515 | J78: 4.545454545 | K78: 1.515151515 | L78: 0 | M78: 0 | O78: 92.42424242 | P78: 92.42424242
A79: S400Pd11 | B79: 55 | C79: 36.36363636 | D79: 30.90909091 | E79: 12.72727273 | F79: 7.272727273 | G79: 0 | H79: 5.454545455 | I79: 1.818181818 | J79: 3.636363636 | K79: 1.818181818 | L79: 0 | M79: 0 | O79: 80 | P79: 92.72727273
A80: T101Pd11 | B80: 44 | C80: 9.090909091 | D80: 59.09090909 | E80: 25 | F80: 2.272727273 | G80: 0 | H80: 2.272727273 | I80: 2.272727273 | J80: 0 | K80: 0 | L80: 0 | M80: 0 | O80: 93.18181818 | P80: 97.72727273
A81: V101Pd11 | B81: 59 | C81: 30.50847458 | D81: 45.76271186 | E81: 16.94915254 | F81: 5.084745763 | G81: 1.694915254 | H81: 0 | I81: 0 | J81: 0 | K81: 0 | L81: 0 | M81: 0 | O81: 93.22033898 | P81: 100
A82: V202Pd11 | B82: 30 | C82: 70 | D82: 20 | E82: 10 | F82: 0 | G82: 0 | H82: 0 | I82: 0 | J82: 0 | K82: 0 | L82: 0 | M82: 0 | O82: 100 | P82: 100
A83: V203Pd11 | B83: 82 | C83: 71.95121951 | D83: 24.3902439 | E83: 3.658536585 | F83: 0 | G83: 0 | H83: 0 | I83: 0 | J83: 0 | K83: 0 | L83: 0 | M83: 0 | O83: 100 | P83: 100
A84: Y101Pd11 | B84: 15 | C84: 100 | D84: 0 | E84: 0 | F84: 0 | G84: 0 | H84: 0 | I84: 0 | J84: 0 | K84: 0 | L84: 0 | M84: 0 | O84: 100 | P84: 100
A85: A202Pd12 | B85: 116 | C85: 88.79310345 | D85: 7.75862069 | E85: 3.448275862 | F85: 0 | G85: 0 | H85: 0 | I85: 0 | J85: 0 | K85: 0 | L85: 0 | M85: 0 | O85: 100 | P85: 100
A86: C203Pd12 | B86: 38 | C86: 81.57894737 | D86: 13.15789474 | E86: 2.631578947 | F86: 0 | G86: 0 | H86: 2.631578947 | I86: 0 | J86: 0 | K86: 0 | L86: 0 | M86: 0 | O86: 97.36842105 | P86: 100
A87: G101Pd12 | B87: 138 | C87: 100 | D87: 0 | E87: 0 | F87: 0 | G87: 0 | H87: 0 | I87: 0 | J87: 0 | K87: 0 | L87: 0 | M87: 0 | O87: 100 | P87: 100
A88: G763Pd12 | B88: 41 | C88: 100 | D88: 0 | E88: 0 | F88: 0 | G88: 0 | H88: 0 | I88: 0 | J88: 0 | K88: 0 | L88: 0 | M88: 0 | O88: 100 | P88: 100
A89: H202Pd12 | B89: 60 | C89: 81.66666667 | D89: 6.666666667 | E89: 8.333333333 | F89: 3.333333333 | G89: 0 | H89: 0 | I89: 0 | J89: 0 | K89: 0 | L89: 0 | M89: 0 | O89: 96.66666667 | P89: 100
A90: L202Pd12 | B90: 5 | C90: 100 | D90: 0 | E90: 0 | F90: 0 | G90: 0 | H90: 0 | I90: 0 | J90: 0 | K90: 0 | L90: 0 | M90: 0 | O90: 100 | P90: 100
A91: N401Pd12 | B91: 31 | C91: 100 | D91: 0 | E91: 0 | F91: 0 | G91: 0 | H91: 0 | I91: 0 | J91: 0 | K91: 0 | L91: 0 | M91: 0 | O91: 100 | P91: 100
A92: S203Pd12 | B92: 90 | C92: 27.77777778 | D92: 40 | E92: 23.33333333 | F92: 5.555555556 | G92: 1.111111111 | H92: 2.222222222 | I92: 0 | J92: 0 | K92: 0 | L92: 0 | M92: 0 | O92: 91.11111111 | P92: 100
A93: S400Pd12 | B93: 54 | C93: 14.81481481 | D93: 40.74074074 | E93: 25.92592593 | F93: 7.407407407 | G93: 3.703703704 | H93: 1.851851852 | I93: 0 | J93: 5.555555556 | K93: 0 | L93: 0 | M93: 0 | O93: 81.48148148 | P93: 94.44444444
A94: T101Pd12 | B94: 23 | C94: 8.695652174 | D94: 4.347826087 | E94: 21.73913043 | F94: 8.695652174 | G94: 17.39130435 | H94: 17.39130435 | I94: 13.04347826 | J94: 8.695652174 | K94: 0 | L94: 0 | M94: 0 | O94: 34.7826087 | P94: 78.26086957
A95: V101Pd12 | B95: 33 | C95: 45.45454545 | D95: 6.060606061 | E95: 9.090909091 | F95: 18.18181818 | G95: 12.12121212 | H95: 3.03030303 | I95: 6.060606061 | J95: 0 | K95: 0 | L95: 0 | M95: 0 | O95: 60.60606061 | P95: 93.93939394
A96: V202Pd12 | B96: 29 | C96: 86.20689655 | D96: 3.448275862 | E96: 10.34482759 | F96: 0 | G96: 0 | H96: 0 | I96: 0 | J96: 0 | K96: 0 | L96: 0 | M96: 0 | O96: 100 | P96: 100
A97: V203Pd12 | B97: 49 | C97: 69.3877551 | D97: 24.48979592 | E97: 6.12244898 | F97: 0 | G97: 0 | H97: 0 | I97: 0 | J97: 0 | K97: 0 | L97: 0 | M97: 0 | O97: 100 | P97: 100
A98: Y101Pd12 | B98: 14 | C98: 100 | D98: 0 | E98: 0 | F98: 0 | G98: 0 | H98: 0 | I98: 0 | J98: 0 | K98: 0 | L98: 0 | M98: 0 | O98: 100 | P98: 100
A99: A202Pd21 | B99: 123 | C99: 69.10569106 | D99: 17.07317073 | E99: 13.82113821 | F99: 0 | G99: 0 | H99: 0 | I99: 0 | J99: 0 | K99: 0 | L99: 0 | M99: 0 | O99: 100 | P99: 100
A100: C203Pd21 | B100: 41 | C100: 80.48780488 | D100: 14.63414634 | E100: 4.87804878 | F100: 0 | G100: 0 | H100: 0 | I100: 0 | J100: 0 | K100: 0 | L100: 0 | M100: 0 | O100: 100 | P100: 100
A101: G101Pd21 | B101: 197 | C101: 100 | D101: 0 | E101: 0 | F101: 0 | G101: 0 | H101: 0 | I101: 0 | J101: 0 | K101: 0 | L101: 0 | M101: 0 | O101: 100 | P101: 100
A102: G763Pd21 | B102: 99 | C102: 100 | D102: 0 | E102: 0 | F102: 0 | G102: 0 | H102: 0 | I102: 0 | J102: 0 | K102: 0 | L102: 0 | M102: 0 | O102: 100 | P102: 100
A103: H202Pd21 | B103: 62 | C103: 67.74193548 | D103: 11.29032258 | E103: 16.12903226 | F103: 4.838709677 | G103: 0 | H103: 0 | I103: 0 | J103: 0 | K103: 0 | L103: 0 | M103: 0 | O103: 95.16129032 | P103: 100
A104: L202Pd21 | B104: 4 | C104: 100 | D104: 0 | E104: 0 | F104: 0 | G104: 0 | H104: 0 | I104: 0 | J104: 0 | K104: 0 | L104: 0 | M104: 0 | O104: 100 | P104: 100
A105: N401Pd21 | B105: 74 | C105: 100 | D105: 0 | E105: 0 | F105: 0 | G105: 0 | H105: 0 | I105: 0 | J105: 0 | K105: 0 | L105: 0 | M105: 0 | O105: 100 | P105: 100
A106: S203Pd21 | B106: 65 | C106: 41.53846154 | D106: 33.84615385 | E106: 24.61538462 | F106: 0 | G106: 0 | H106: 0 | I106: 0 | J106: 0 | K106: 0 | L106: 0 | M106: 0 | O106: 100 | P106: 100
A107: S400Pd21 | B107: 134 | C107: 23.13432836 | D107: 49.25373134 | E107: 14.92537313 | F107: 4.47761194 | G107: 5.223880597 | H107: 1.492537313 | I107: 1.492537313 | J107: 0 | K107: 0 | L107: 0 | M107: 0 | O107: 87.31343284 | P107: 98.50746269
A108: T101Pd21 | B108: 55 | C108: 10.90909091 | D108: 9.090909091 | E108: 14.54545455 | F108: 47.27272727 | G108: 14.54545455 | H108: 3.636363636 | I108: 0 | J108: 0 | K108: 0 | L108: 0 | M108: 0 | O108: 34.54545455 | P108: 100
A109: V101Pd21 | B109: 55 | C109: 38.18181818 | D109: 27.27272727 | E109: 27.27272727 | F109: 3.636363636 | G109: 0 | H109: 0 | I109: 3.636363636 | J109: 0 | K109: 0 | L109: 0 | M109: 0 | O109: 92.72727273 | P109: 96.36363636
A110: V202Pd21 | B110: 38 | C110: 71.05263158 | D110: 18.42105263 | E110: 7.894736842 | F110: 2.631578947 | G110: 0 | H110: 0 | I110: 0 | J110: 0 | K110: 0 | L110: 0 | M110: 0 | O110: 97.36842105 | P110: 100
A111: V203Pd21 | B111: 81 | C111: 90.12345679 | D111: 9.87654321 | E111: 0 | F111: 0 | G111: 0 | H111: 0 | I111: 0 | J111: 0 | K111: 0 | L111: 0 | M111: 0 | O111: 100 | P111: 100
A112: Y101Pd21 | B112: 13 | C112: 100 | D112: 0 | E112: 0 | F112: 0 | G112: 0 | H112: 0 | I112: 0 | J112: 0 | K112: 0 | L112: 0 | M112: 0 | O112: 100 | P112: 100
A113: A202Pd31 | B113: 145 | C113: 82.75862069 | D113: 8.275862069 | E113: 8.965517241 | F113: 0 | G113: 0 | H113: 0 | I113: 0 | J113: 0 | K113: 0 | L113: 0 | M113: 0 | O113: 100 | P113: 100
A114: C203Pd31 | B114: 42 | C114: 66.66666667 | D114: 21.42857143 | E114: 9.523809524 | F114: 2.380952381 | G114: 0 | H114: 0 | I114: 0 | J114: 0 | K114: 0 | L114: 0 | M114: 0 | O114: 97.61904762 | P114: 100
A115: G101Pd31 | B115: 10 | C115: 100 | D115: 0 | E115: 0 | F115: 0 | G115: 0 | H115: 0 | I115: 0 | J115: 0 | K115: 0 | L115: 0 | M115: 0 | O115: 100 | P115: 100
A116: G763Pd31 | B116: 121 | C116: 100 | D116: 0 | E116: 0 | F116: 0 | G116: 0 | H116: 0 | I116: 0 | J116: 0 | K116: 0 | L116: 0 | M116: 0 | O116: 100 | P116: 100
A117: H202Pd31 | B117: 55 | C117: 72.72727273 | D117: 10.90909091 | E117: 9.090909091 | F117: 1.818181818 | G117: 3.636363636 | H117: 0 | I117: 1.818181818 | J117: 0 | K117: 0 | L117: 0 | M117: 0 | O117: 92.72727273 | P117: 98.18181818
A118: N401Pd31 | B118: 116 | C118: 100 | D118: 0 | E118: 0 | F118: 0 | G118: 0 | H118: 0 | I118: 0 | J118: 0 | K118: 0 | L118: 0 | M118: 0 | O118: 100 | P118: 100
A119: S203Pd31 | B119: 69 | C119: 47.82608696 | D119: 28.98550725 | E119: 11.5942029 | F119: 2.898550725 | G119: 4.347826087 | H119: 2.898550725 | I119: 0 | J119: 1.449275362 | K119: 0 | L119: 0 | M119: 0 | O119: 88.4057971 | P119: 98.55072464
A120: S400Pd31 | B120: 84 | C120: 34.52380952 | D120: 51.19047619 | E120: 8.333333333 | F120: 4.761904762 | G120: 0 | H120: 0 | I120: 1.19047619 | J120: 0 | K120: 0 | L120: 0 | M120: 0 | O120: 94.04761905 | P120: 98.80952381
A121: T101Pd31 | B121: 53 | C121: 7.547169811 | D121: 7.547169811 | E121: 7.547169811 | F121: 41.50943396 | G121: 24.52830189 | H121: 3.773584906 | I121: 3.773584906 | J121: 3.773584906 | K121: 0 | L121: 0 | M121: 0 | O121: 22.64150943 | P121: 92.45283019
A122: V101Pd31 | B122: 21 | C122: 33.33333333 | D122: 47.61904762 | E122: 19.04761905 | F122: 0 | G122: 0 | H122: 0 | I122: 0 | J122: 0 | K122: 0 | L122: 0 | M122: 0 | O122: 100 | P122: 100
A123: V202Pd31 | B123: 36 | C123: 91.66666667 | D123: 8.333333333 | E123: 0 | F123: 0 | G123: 0 | H123: 0 | I123: 0 | J123: 0 | K123: 0 | L123: 0 | M123: 0 | O123: 100 | P123: 100
A124: V203Pd31 | B124: 62 | C124: 87.09677419 | D124: 11.29032258 | E124: 0 | F124: 1.612903226 | G124: 0 | H124: 0 | I124: 0 | J124: 0 | K124: 0 | L124: 0 | M124: 0 | O124: 98.38709677 | P124: 100
A125: Y101Pd31 | B125: 12 | C125: 100 | D125: 0 | E125: 0 | F125: 0 | G125: 0 | H125: 0 | I125: 0 | J125: 0 | K125: 0 | L125: 0 | M125: 0 | O125: 100 | P125: 100
A126: A202Pd41 | B126: 127 | C126: 77.95275591 | D126: 18.11023622 | E126: 3.149606299 | F126: 0 | G126: 0.7874015748 | H126: 0 | I126: 0 | J126: 0 | K126: 0 | L126: 0 | M126: 0 | O126: 99.21259843 | P126: 100
A127: C203Pd41 | B127: 17 | C127: 64.70588235 | D127: 35.29411765 | E127: 0 | F127: 0 | G127: 0 | H127: 0 | I127: 0 | J127: 0 | K127: 0 | L127: 0 | M127: 0 | O127: 100 | P127: 100
A128: G101Pd41 | B128: 106 | C128: 100 | D128: 0 | E128: 0 | F128: 0 | G128: 0 | H128: 0 | I128: 0 | J128: 0 | K128: 0 | L128: 0 | M128: 0 | O128: 100 | P128: 100
A129: G763Pd41 | B129: 75 | C129: 100 | D129: 0 | E129: 0 | F129: 0 | G129: 0 | H129: 0 | I129: 0 | J129: 0 | K129: 0 | L129: 0 | M129: 0 | O129: 100 | P129: 100
A130: H202Pd41 | B130: 42 | C130: 69.04761905 | D130: 9.523809524 | E130: 16.66666667 | F130: 4.761904762 | G130: 0 | H130: 0 | I130: 0 | J130: 0 | K130: 0 | L130: 0 | M130: 0 | O130: 95.23809524 | P130: 100
A131: L202Pd41 | B131: 3 | C131: 100 | D131: 0 | E131: 0 | F131: 0 | G131: 0 | H131: 0 | I131: 0 | J131: 0 | K131: 0 | L131: 0 | M131: 0 | O131: 100 | P131: =SUM(C131:H131) -> 100
A132: N401Pd41 | B132: 79 | C132: 100 | D132: 0 | E132: 0 | F132: 0 | G132: 0 | H132: 0 | I132: 0 | J132: 0 | K132: 0 | L132: 0 | M132: 0 | O132: 100 | P132: 100
A133: S203Pd41 | B133: 79 | C133: 31.64556962 | D133: 40.50632911 | E133: 17.72151899 | F133: 6.329113924 | G133: 1.265822785 | H133: 0 | I133: 1.265822785 | J133: 0 | K133: 1.265822785 | L133: 0 | M133: 0 | O133: 89.87341772 | P133: 97.46835443
A134: S400Pd41 | B134: 99 | C134: 19.19191919 | D134: 43.43434343 | E134: 23.23232323 | F134: 9.090909091 | G134: 1.01010101 | H134: 2.02020202 | I134: 1.01010101 | J134: 0 | K134: 0 | L134: 1.01010101 | M134: 0 | O134: 85.85858586 | P134: 97.97979798
A135: T101Pd41 | B135: 51 | C135: 3.921568627 | D135: 17.64705882 | E135: 23.52941176 | F135: 21.56862745 | G135: 21.56862745 | H135: 7.843137255 | I135: 1.960784314 | J135: 1.960784314 | K135: 0 | L135: 0 | M135: 0 | O135: 45.09803922 | P135: 96.07843137
A136: V101Pd41 | B136: 39 | C136: 33.33333333 | D136: 12.82051282 | E136: 17.94871795 | F136: 10.25641026 | G136: 10.25641026 | H136: 5.128205128 | I136: 10.25641026 | J136: 0 | K136: 0 | L136: 0 | M136: 0 | O136: =SUM(C136:E136) -> 64.1025641 | P136: 89.74358974
A137: V202Pd41 | B137: 40 | C137: 80 | D137: 15 | E137: 2.5 | F137: 0 | G137: 2.5 | H137: 0 | I137: 0 | J137: 0 | K137: 0 | L137: 0 | M137: 0 | O137: 97.5 | P137: 100
A138: V203Pd41 | B138: 46 | C138: 69.56521739 | D138: 17.39130435 | E138: 8.695652174 | F138: 4.347826087 | G138: 0 | H138: 0 | I138: 0 | J138: 0 | K138: 0 | L138: 0 | M138: 0 | O138: 95.65217391 | P138: 100
A139: Y101Pd41 | B139: 14 | C139: 100 | D139: 0 | E139: 0 | F139: 0 | G139: 0 | H139: 0 | I139: 0 | J139: 0 | K139: 0 | L139: 0 | M139: 0 | O139: 100 | P139: 100
A140: A202Pa11 | B140: 3 | C140: 66.66666667 | D140: 33.33333333 | E140: 0 | F140: 0 | G140: 0 | H140: 0 | I140: 0 | J140: 0 | K140: 0 | L140: 0 | M140: 0 | O140: 100 | P140: 100
A141: C203Pa11 | B141: 15 | C141: 100 | D141: 0 | E141: 0 | F141: 0 | G141: 0 | H141: 0 | I141: 0 | J141: 0 | K141: 0 | L141: 0 | M141: 0 | O141: 100 | P141: 100
A142: G763Pa11 | B142: 30 | C142: 100 | D142: 0 | E142: 0 | F142: 0 | G142: 0 | H142: 0 | I142: 0 | J142: 0 | K142: 0 | L142: 0 | M142: 0 | O142: 100 | P142: 100
A143: H202Pa11 | B143: 9 | C143: 0 | D143: 22.22222222 | E143: 66.66666667 | F143: 0 | G143: 0 | H143: 11.11111111 | I143: 0 | J143: 0 | K143: 0 | L143: 0 | M143: 0 | O143: 88.88888889 | P143: 100
A144: N401Pa11 | B144: 1 | C144: 100 | D144: 0 | E144: 0 | F144: 0 | G144: 0 | H144: 0 | I144: 0 | J144: 0 | K144: 0 | L144: 0 | M144: 0 | O144: 100 | P144: 100
A145: S203Pa11 | B145: 50 | C145: 36 | D145: 40 | E145: 22 | F145: 2 | G145: 0 | H145: 0 | I145: 0 | J145: 0 | K145: 0 | L145: 0 | M145: 0 | O145: 98 | P145: 100
A146: S400Pa11 | B146: 2 | C146: 0 | D146: 0 | E146: 50 | F146: 0 | G146: 0 | H146: 50 | I146: 0 | J146: 0 | K146: 0 | L146: 0 | M146: 0 | O146: 50 | P146: 100
A147: V101Pa11 | B147: 4 | C147: 75 | D147: 0 | E147: 0 | F147: 0 | G147: 0 | H147: 25 | I147: 0 | J147: 0 | K147: 0 | L147: 0 | M147: 0 | O147: 75 | P147: 100
A148: V203Pa11 | B148: 14 | C148: 28.57142857 | D148: 64.28571429 | E148: 7.142857143 | F148: 0 | G148: 0 | H148: 0 | I148: 0 | J148: 0 | K148: 0 | L148: 0 | M148: 0 | O148: 100 | P148: 100
A149: Y101Pa11 | B149: 9 | C149: 100 | D149: 0 | E149: 0 | F149: 0 | G149: 0 | H149: 0 | I149: 0 | J149: 0 | K149: 0 | L149: 0 | M149: 0 | O149: 100 | P149: 100
A150: A202Pa12 | B150: 2 | C150: 100 | D150: 0 | E150: 0 | F150: 0 | G150: 0 | H150: 0 | I150: 0 | J150: 0 | K150: 0 | L150: 0 | M150: 0 | O150: 100 | P150: 100
A151: C203Pa12 | B151: 4 | C151: 50 | D151: 25 | E151: 25 | F151: 0 | G151: 0 | H151: 0 | I151: 0 | J151: 0 | K151: 0 | L151: 0 | M151: 0 | O151: 100 | P151: 100
A152: G763Pa12 | B152: 12 | C152: 100 | D152: 0 | E152: 0 | F152: 0 | G152: 0 | H152: 0 | I152: 0 | J152: 0 | K152: 0 | L152: 0 | M152: 0 | O152: 100 | P152: 100
A153: H202Pa12 | B153: 12 | C153: 66.66666667 | D153: 33.33333333 | E153: 0 | F153: 0 | G153: 0 | H153: 0 | I153: 0 | J153: 0 | K153: 0 | L153: 0 | M153: 0 | O153: 100 | P153: 100
A154: N401Pa12 | B154: 7 | C154: 100 | D154: 0 | E154: 0 | F154: 0 | G154: 0 | H154: 0 | I154: 0 | J154: 0 | K154: 0 | L154: 0 | M154: 0 | O154: 100 | P154: 100
A155: S203Pa12 | B155: 32 | C155: 21.875 | D155: 50 | E155: 28.125 | F155: 0 | G155: 0 | H155: 0 | I155: 0 | J155: 0 | K155: 0 | L155: 0 | M155: 0 | O155: 100 | P155: 100
A156: V101Pa12 | B156: 7 | C156: 57.14285714 | D156: 14.28571429 | E156: 0 | F156: 0 | G156: 14.28571429 | H156: 14.28571429 | I156: 0 | J156: 0 | K156: 0 | L156: 0 | M156: 0 | O156: 71.42857143 | P156: 100
A157: V202Pa12 | B157: 4 | C157: 75 | D157: 0 | E157: 25 | F157: 0 | G157: 0 | H157: 0 | I157: 0 | J157: 0 | K157: 0 | L157: 0 | M157: 0 | O157: 100 | P157: 100
A158: V203Pa12 | B158: 1 | C158: 100 | D158: 0 | E158: 0 | F158: 0 | G158: 0 | H158: 0 | I158: 0 | J158: 0 | K158: 0 | L158: 0 | M158: 0 | O158: 100 | P158: 100
A159: Y101Pa12 | B159: 9 | C159: 100 | D159: 0 | E159: 0 | F159: 0 | G159: 0 | H159: 0 | I159: 0 | J159: 0 | K159: 0 | L159: 0 | M159: 0 | O159: 100 | P159: 100
A160: A202Pa21 | B160: 2 | C160: 0 | D160: 0 | E160: 100 | F160: 0 | G160: 0 | H160: 0 | I160: 0 | J160: 0 | K160: 0 | L160: 0 | M160: 0 | O160: 100 | P160: 100
A161: C203Pa21 | B161: 5 | C161: 60 | D161: 40 | E161: 0 | F161: 0 | G161: 0 | H161: 0 | I161: 0 | J161: 0 | K161: 0 | L161: 0 | M161: 0 | O161: 100 | P161: 100
A162: G763Pa21 | B162: 65 | C162: 100 | D162: 0 | E162: 0 | F162: 0 | G162: 0 | H162: 0 | I162: 0 | J162: 0 | K162: 0 | L162: 0 | M162: 0 | O162: 100 | P162: 100
A163: H202Pa21 | B163: 12 | C163: 16.66666667 | D163: 41.66666667 | E163: 33.33333333 | F163: 8.333333333 | G163: 0 | H163: 0 | I163: 0 | J163: 0 | K163: 0 | L163: 0 | M163: 0 | O163: 91.66666667 | P163: 100
A164: N401Pa21 | B164: 1 | C164: 100 | D164: 0 | E164: 0 | F164: 0 | G164: 0 | H164: 0 | I164: 0 | J164: 0 | K164: 0 | L164: 0 | M164: 0 | O164: 100 | P164: 100
A165: S203Pa21 | B165: 48 | C165: 60.41666667 | D165: 20.83333333 | E165: 12.5 | F165: 4.166666667 | G165: 0 | H165: 2.083333333 | I165: 0 | J165: 0 | K165: 0 | L165: 0 | M165: 0 | O165: 93.75 | P165: 100
A166: S400Pa21 | B166: 3 | C166: 66.66666667 | D166: 0 | E166: 0 | F166: 0 | G166: 0 | H166: 33.33333333 | I166: 0 | J166: 0 | K166: 0 | L166: 0 | M166: 0 | O166: 66.66666667 | P166: 100
A167: V101Pa21 | B167: 11 | C167: 9.090909091 | D167: 54.54545455 | E167: 27.27272727 | F167: 0 | G167: 9.090909091 | H167: 0 | I167: 0 | J167: 0 | K167: 0 | L167: 0 | M167: 0 | O167: 90.90909091 | P167: 100
A168: V202Pa21 | B168: 7 | C168: 71.42857143 | D168: 28.57142857 | E168: 0 | F168: 0 | G168: 0 | H168: 0 | I168: 0 | J168: 0 | K168: 0 | L168: 0 | M168: 0 | O168: 100 | P168: 100
A169: V203Pa21 | B169: 1 | C169: 100 | D169: 0 | E169: 0 | F169: 0 | G169: 0 | H169: 0 | I169: 0 | J169: 0 | K169: 0 | L169: 0 | M169: 0 | O169: 100 | P169: 100
A170: Y101Pa21 | B170: 8 | C170: 100 | D170: 0 | E170: 0 | F170: 0 | G170: 0 | H170: 0 | I170: 0 | J170: 0 | K170: 0 | L170: 0 | M170: 0 | O170: 100 | P170: 100
A171: A202Pa31 | B171: 5 | C171: 20 | D171: 60 | E171: 20 | F171: 0 | G171: 0 | H171: 0 | I171: 0 | J171: 0 | K171: 0 | L171: 0 | M171: 0 | O171: 100 | P171: 100
A172: C203Pa31 | B172: 4 | C172: 50 | D172: 25 | E172: 0 | F172: 25 | G172: 0 | H172: 0 | I172: 0 | J172: 0 | K172: 0 | L172: 0 | M172: 0 | O172: 75 | P172: 100
A173: G763Pa31 | B173: 81 | C173: 100 | D173: 0 | E173: 0 | F173: 0 | G173: 0 | H173: 0 | I173: 0 | J173: 0 | K173: 0 | L173: 0 | M173: 0 | O173: 100 | P173: 100
A174: H202Pa31 | B174: 15 | C174: 66.66666667 | D174: 13.33333333 | E174: 13.33333333 | F174: 0 | G174: 6.666666667 | H174: 0 | I174: 0 | J174: 0 | K174: 0 | L174: 0 | M174: 0 | O174: 93.33333333 | P174: 100
A175: N401Pa31 | B175: 12 | C175: 100 | D175: 0 | E175: 0 | F175: 0 | G175: 0 | H175: 0 | I175: 0 | J175: 0 | K175: 0 | L175: 0 | M175: 0 | O175: 100 | P175: 100
A176: S203Pa31 | B176: 50 | C176: 68 | D176: 14 | E176: 18 | F176: 0 | G176: 0 | H176: 0 | I176: 0 | J176: 0 | K176: 0 | L176: 0 | M176: 0 | O176: 100 | P176: 100
A177: S400Pa31 | B177: 2 | C177: 0 | D177: 0 | E177: 50 | F177: 0 | G177: 0 | H177: 50 | I177: 0 | J177: 0 | K177: 0 | L177: 0 | M177: 0 | O177: 50 | P177: 100
A178: V202Pa31 | B178: 2 | C178: 100 | D178: 0 | E178: 0 | F178: 0 | G178: 0 | H178: 0 | I178: 0 | J178: 0 | K178: 0 | L178: 0 | M178: 0 | O178: 100 | P178: 100
A179: V203Pa31 | B179: 4 | C179: 25 | D179: 75 | E179: 0 | F179: 0 | G179: 0 | H179: 0 | I179: 0 | J179: 0 | K179: 0 | L179: 0 | M179: 0 | O179: 100 | P179: 100
A180: Y101Pa31 | B180: 4 | C180: 100 | D180: 0 | E180: 0 | F180: 0 | G180: 0 | H180: 0 | I180: 0 | J180: 0 | K180: 0 | L180: 0 | M180: 0 | O180: 100 | P180: 100
A181: A202Pa41 | B181: 1 | C181: 0 | D181: 100 | E181: 0 | F181: 0 | G181: 0 | H181: 0 | I181: 0 | J181: 0 | K181: 0 | L181: 0 | M181: 0 | O181: 100 | P181: 100
A182: C203Pa41 | B182: 4 | C182: 25 | D182: 50 | E182: 25 | F182: 0 | G182: 0 | H182: 0 | I182: 0 | J182: 0 | K182: 0 | L182: 0 | M182: 0 | O182: 100 | P182: 100
A183: G763Pa41 | B183: 40 | C183: 100 | D183: 0 | E183: 0 | F183: 0 | G183: 0 | H183: 0 | I183: 0 | J183: 0 | K183: 0 | L183: 0 | M183: 0 | O183: 100 | P183: 100
A184: H202Pa41 | B184: 5 | C184: 60 | D184: 20 | E184: 20 | F184: 0 | G184: 0 | H184: 0 | I184: 0 | J184: 0 | K184: 0 | L184: 0 | M184: 0 | O184: 100 | P184: 100
A185: N401Pa41 | B185: 29 | C185: 100 | D185: 0 | E185: 0 | F185: 0 | G185: 0 | H185: 0 | I185: 0 | J185: 0 | K185: 0 | L185: 0 | M185: 0 | O185: 100 | P185: 100
A186: S203Pa41 | B186: 28 | C186: 42.85714286 | D186: 25 | E186: 25 | F186: 7.142857143 | G186: 0 | H186: 0 | I186: 0 | J186: 0 | K186: 0 | L186: 0 | M186: 0 | O186: 92.85714286 | P186: 100
A187: S400Pa41 | B187: 4 | C187: 25 | D187: 0 | E187: 0 | F187: 50 | G187: 25 | H187: 0 | I187: 0 | J187: 0 | K187: 0 | L187: 0 | M187: 0 | O187: 25 | P187: 100
A188: T101Pa41 | B188: 1 | C188: 0 | D188: 0 | E188: 0 | F188: 100 | G188: 0 | H188: 0 | I188: 0 | J188: 0 | K188: 0 | L188: 0 | M188: 0 | O188: 0 | P188: 100
A189: V101Pa41 | B189: 5 | C189: 20 | D189: 20 | E189: 20 | F189: 0 | G189: 20 | H189: 0 | I189: 20 | J189: 0 | K189: 0 | L189: 0 | M189: 0 | O189: 60 | P189: 80
A190: V202Pa41 | B190: 7 | C190: 100 | D190: 0 | E190: 0 | F190: 0 | G190: 0 | H190: 0 | I190: 0 | J190: 0 | K190: 0 | L190: 0 | M190: 0 | O190: 100 | P190: 100
A191: V203Pa41 | B191: 3 | C191: 33.33333333 | D191: 66.66666667 | E191: 0 | F191: 0 | G191: 0 | H191: 0 | I191: 0 | J191: 0 | K191: 0 | L191: 0 | M191: 0 | O191: 100 | P191: 100
A192: Y101Pa41 | B192: 10 | C192: 100 | D192: 0 | E192: 0 | F192: 0 | G192: 0 | H192: 0 | I192: 0 | J192: 0 | K192: 0 | L192: 0 | M192: 0 | O192: 100 | P192: 100
A193: 202b11 | B193: 133 | C193: 83.45864662 | D193: 12.78195489 | E193: 3.759398496 | F193: 0 | G193: 0 | H193: 0 | I193: 0 | J193: 0 | K193: 0 | L193: 0 | M193: 0 | O193: 100 | P193: 100
A194: 204b11 | B194: 24 | C194: 100 | D194: 0 | E194: 0 | F194: 0 | G194: 0 | H194: 0 | I194: 0 | J194: 0 | K194: 0 | L194: 0 | M194: 0 | O194: 100 | P194: 100
A195: 206b11 | B195: 189 | C195: 55.55555556 | D195: 32.8042328 | E195: 8.994708995 | F195: 1.587301587 | G195: 0.5291005291 | H195: 0.5291005291 | I195: 0 | J195: 0 | K195: 0 | L195: 0 | M195: 0 | O195: 97.35449735 | P195: =SUM(C195:H195) -> 100
A196: 207b11 | B196: 56 | C196: 100 | D196: 0 | E196: 0 | F196: 0 | G196: 0 | H196: 0 | I196: 0 | J196: 0 | K196: 0 | L196: 0 | M196: 0 | O196: 100 | P196: 100
A197: 209b11 | B197: 68 | C197: 41.17647059 | D197: 26.47058824 | E197: 25 | F197: 2.941176471 | G197: 1.470588235 | H197: 1.470588235 | I197: 1.470588235 | J197: 0 | K197: 0 | L197: 0 | M197: 0 | O197: 92.64705882 | P197: 98.52941176
A198: 210b11 | B198: 7 | C198: 100 | D198: 0 | E198: 0 | F198: 0 | G198: 0 | H198: 0 | I198: 0 | J198: 0 | K198: 0 | L198: 0 | M198: 0 | O198: 100 | P198: 100
A199: 211b11 | B199: 173 | C199: 34.10404624 | D199: 37.57225434 | E199: 17.91907514 | F199: 2.89017341 | G199: 0 | H199: 2.312138728 | I199: 1.156069364 | J199: 2.89017341 | K199: 1.156069364 | L199: 0 | M199: 0 | O199: 89.59537572 | P199: 94.79768786
A200: 214b11 | B200: 44 | C200: 9.090909091 | D200: 59.09090909 | E200: 25 | F200: 2.272727273 | G200: 0 | H200: 2.272727273 | I200: 2.272727273 | J200: 0 | K200: 0 | L200: 0 | M200: 0 | O200: =SUM(C200:E200) -> 93.18181818 | P200: 97.72727273
... 163 more rows

Sheet 2. Ongoing Waits Summary
C1: ="Table 2 - Waiting Times for Referral to Treatment, " & A6 & ", quarter ending " & A4 -> Table 2 - Waiting Times for Referral to Treatment, Alcohol and Drugs, quarter ending 31st March 2020
C2: Waiting times for clients still waiting to start first treatment as of the end of the quarter
A3: Scotland
A4: 31st March 2020 | B4: =VLOOKUP(A4,quarter,2,FALSE) -> 12 | C4: Quarter ending
A6: Alcohol and Drugs | B6: =VLOOKUP(A6,ClientType,2,FALSE) -> B | C6: Client type
C7: Alcohol and Drugs
A8: Source | E8: Distribution of ongoing wait (as of end of quarter) | Q8: Performance against standard
C9: Area | D9: Number of Ongoing Waits | E9: Up to 1 week (%) | F9: 2 weeks (%) | G9: 3 weeks (%) | H9: 4 weeks (%) | I9: 5 weeks (%) | J9: 6 weeks (%) | K9: 7-8 weeks (%) | L9: 9-12 weeks (%) | M9: 13-16 weeks (%) | N9: 17-20 weeks (%) | O9: 21+ weeks (%) | Q9: % waiting 3 weeks or less | R9: % waiting 6 weeks or less
A10: 999 | B10: =CONCATENATE(A10,B$6,B$4) -> 999B12 | C10: Scottish Prison Service | D10: =IF(ISERROR(VLOOKUP($B10,ongoing1!$A$1:$X$700,D$41,FALSE)),"-",VLOOKUP($B10,ongoing1!$A$1:$X$700,D$41,FALSE)) -> 104 | E10: =IF(ISERROR(VLOOKUP($B10,ongoing1!$A$1:$X$700,E$41,FALSE)),"-",VLOOKUP($B10,ongoing1!$A$1:$X$700,E$41,FALSE)) -> 22.11538462 | F10: =IF(ISERROR(VLOOKUP($B10,ongoing1!$A$1:$X$700,F$41,FALSE)),"-",VLOOKUP($B10,ongoing1!$A$1:$X$700,F$41,FALSE)) -> 11.53846154 | G10: =IF(ISERROR(VLOOKUP($B10,ongoing1!$A$1:$X$700,G$41,FALSE)),"-",VLOOKUP($B10,ongoing1!$A$1:$X$700,G$41,FALSE)) -> 12.5 | H10: =IF(ISERROR(VLOOKUP($B10,ongoing1!$A$1:$X$700,H$41,FALSE)),"-",VLOOKUP($B10,ongoing1!$A$1:$X$700,H$41,FALSE)) -> 10.57692308 | I10: =IF(ISERROR(VLOOKUP($B10,ongoing1!$A$1:$X$700,I$41,FALSE)),"-",VLOOKUP($B10,ongoing1!$A$1:$X$700,I$41,FALSE)) -> 3.846153846 | J10: =IF(ISERROR(VLOOKUP($B10,ongoing1!$A$1:$X$700,J$41,FALSE)),"-",VLOOKUP($B10,ongoing1!$A$1:$X$700,J$41,FALSE)) -> 9.615384615 | K10: =IF(ISERROR(VLOOKUP($B10,ongoing1!$A$1:$X$700,K$41,FALSE)),"-",VLOOKUP($B10,ongoing1!$A$1:$X$700,K$41,FALSE)) -> 6.730769231 | L10: =IF(ISERROR(VLOOKUP($B10,ongoing1!$A$1:$X$700,L$41,FALSE)),"-",VLOOKUP($B10,ongoing1!$A$1:$X$700,L$41,FALSE)) -> 4.807692308 | M10: =IF(ISERROR(VLOOKUP($B10,ongoing1!$A$1:$X$700,M$41,FALSE)),"-",VLOOKUP($B10,ongoing1!$A$1:$X$700,M$41,FALSE)) -> 3.846153846 | N10: =IF(ISERROR(VLOOKUP($B10,ongoing1!$A$1:$X$700,N$41,FALSE)),"-",VLOOKUP($B10,ongoing1!$A$1:$X$700,N$41,FALSE)) -> 0.9615384615 | O10: =IF(ISERROR(VLOOKUP($B10,ongoing1!$A$1:$X$700,O$41,FALSE)),"-",VLOOKUP($B10,ongoing1!$A$1:$X$700,O$41,FALSE)) -> 13.46153846 | Q10: =IF(ISERROR(VLOOKUP($B10,'percentage ongoing'!$A$1:$P$800,15,FALSE)),"-",VLOOKUP($B10,'percentage ongoing'!$A$1:$P$800,15,FALSE)) -> 46.15384615 | R10: =IF(ISERROR(VLOOKUP($B10,'percentage ongoing'!$A$1:$P$800,15,FALSE)),"-",VLOOKUP($B10,'percentage ongoing'!$A$1:$P$800,16,FALSE)) -> 70.19230769
A12: 202 | B12: =CONCATENATE(A12,B$6,B$4) -> 202B12 | C12: Ayrshire & Arran NHS | D12: =IF(ISERROR(VLOOKUP($B12,ongoing1!$A$1:$X$800,D$41,FALSE)),"-",VLOOKUP($B12,ongoing1!$A$1:$X$800,D$41,FALSE)) -> * | E12: =IF(ISERROR(VLOOKUP($B12,ongoing1!$A$1:$X$800,E$41,FALSE)),"-",VLOOKUP($B12,ongoing1!$A$1:$X$800,E$41,FALSE)) -> 100 | F12: =IF(ISERROR(VLOOKUP($B12,ongoing1!$A$1:$X$800,F$41,FALSE)),"-",VLOOKUP($B12,ongoing1!$A$1:$X$800,F$41,FALSE)) -> 0 | G12: =IF(ISERROR(VLOOKUP($B12,ongoing1!$A$1:$X$800,G$41,FALSE)),"-",VLOOKUP($B12,ongoing1!$A$1:$X$800,G$41,FALSE)) -> 0 | H12: =IF(ISERROR(VLOOKUP($B12,ongoing1!$A$1:$X$800,H$41,FALSE)),"-",VLOOKUP($B12,ongoing1!$A$1:$X$800,H$41,FALSE)) -> 0 | I12: =IF(ISERROR(VLOOKUP($B12,ongoing1!$A$1:$X$800,I$41,FALSE)),"-",VLOOKUP($B12,ongoing1!$A$1:$X$800,I$41,FALSE)) -> 0 | J12: =IF(ISERROR(VLOOKUP($B12,ongoing1!$A$1:$X$800,J$41,FALSE)),"-",VLOOKUP($B12,ongoing1!$A$1:$X$800,J$41,FALSE)) -> 0 | K12: =IF(ISERROR(VLOOKUP($B12,ongoing1!$A$1:$X$800,K$41,FALSE)),"-",VLOOKUP($B12,ongoing1!$A$1:$X$800,K$41,FALSE)) -> 0 | L12: =IF(ISERROR(VLOOKUP($B12,ongoing1!$A$1:$X$800,L$41,FALSE)),"-",VLOOKUP($B12,ongoing1!$A$1:$X$800,L$41,FALSE)) -> 0 | M12: =IF(ISERROR(VLOOKUP($B12,ongoing1!$A$1:$X$800,M$41,FALSE)),"-",VLOOKUP($B12,ongoing1!$A$1:$X$800,M$41,FALSE)) -> 0 | N12: =IF(ISERROR(VLOOKUP($B12,ongoing1!$A$1:$X$800,N$41,FALSE)),"-",VLOOKUP($B12,ongoing1!$A$1:$X$800,N$41,FALSE)) -> 0 | O12: =IF(ISERROR(VLOOKUP($B12,ongoing1!$A$1:$X$800,O$41,FALSE)),"-",VLOOKUP($B12,ongoing1!$A$1:$X$800,O$41,FALSE)) -> 0 | Q12: =IF(ISERROR(VLOOKUP($B12,'percentage ongoing'!$A$1:$P$800,15,FALSE)),"-",VLOOKUP($B12,'percentage ongoing'!$A$1:$P$800,15,FALSE)) -> 100 | R12: =IF(ISERROR(VLOOKUP($B12,'percentage ongoing'!$A$1:$P$800,15,FALSE)),"-",VLOOKUP($B12,'percentage ongoing'!$A$1:$P$800,16,FALSE)) -> 100
A13: A202P | B13: =CONCATENATE(A13,B$6,B$4) -> A202PB12 | C13: East Ayrshire ADP:HMP Kilmarnock | D13: =IF(ISERROR(VLOOKUP($B13,ongoing1!$A$1:$X$800,D$41,FALSE)),"-",VLOOKUP($B13,ongoing1!$A$1:$X$800,D$41,FALSE)) -> * | E13: =IF(ISERROR(VLOOKUP($B13,ongoing1!$A$1:$X$800,E$41,FALSE)),"-",VLOOKUP($B13,ongoing1!$A$1:$X$800,E$41,FALSE)) -> 100 | F13: =IF(ISERROR(VLOOKUP($B13,ongoing1!$A$1:$X$800,F$41,FALSE)),"-",VLOOKUP($B13,ongoing1!$A$1:$X$800,F$41,FALSE)) -> 0 | G13: =IF(ISERROR(VLOOKUP($B13,ongoing1!$A$1:$X$800,G$41,FALSE)),"-",VLOOKUP($B13,ongoing1!$A$1:$X$800,G$41,FALSE)) -> 0 | H13: =IF(ISERROR(VLOOKUP($B13,ongoing1!$A$1:$X$800,H$41,FALSE)),"-",VLOOKUP($B13,ongoing1!$A$1:$X$800,H$41,FALSE)) -> 0 | I13: =IF(ISERROR(VLOOKUP($B13,ongoing1!$A$1:$X$800,I$41,FALSE)),"-",VLOOKUP($B13,ongoing1!$A$1:$X$800,I$41,FALSE)) -> 0 | J13: =IF(ISERROR(VLOOKUP($B13,ongoing1!$A$1:$X$800,J$41,FALSE)),"-",VLOOKUP($B13,ongoing1!$A$1:$X$800,J$41,FALSE)) -> 0 | K13: =IF(ISERROR(VLOOKUP($B13,ongoing1!$A$1:$X$800,K$41,FALSE)),"-",VLOOKUP($B13,ongoing1!$A$1:$X$800,K$41,FALSE)) -> 0 | L13: =IF(ISERROR(VLOOKUP($B13,ongoing1!$A$1:$X$800,L$41,FALSE)),"-",VLOOKUP($B13,ongoing1!$A$1:$X$800,L$41,FALSE)) -> 0 | M13: =IF(ISERROR(VLOOKUP($B13,ongoing1!$A$1:$X$800,M$41,FALSE)),"-",VLOOKUP($B13,ongoing1!$A$1:$X$800,M$41,FALSE)) -> 0 | N13: =IF(ISERROR(VLOOKUP($B13,ongoing1!$A$1:$X$800,N$41,FALSE)),"-",VLOOKUP($B13,ongoing1!$A$1:$X$800,N$41,FALSE)) -> 0 | O13: =IF(ISERROR(VLOOKUP($B13,ongoing1!$A$1:$X$800,O$41,FALSE)),"-",VLOOKUP($B13,ongoing1!$A$1:$X$800,O$41,FALSE)) -> 0 | Q13: =IF(ISERROR(VLOOKUP($B13,'percentage ongoing'!$A$1:$P$800,15,FALSE)),"-",VLOOKUP($B13,'percentage ongoing'!$A$1:$P$800,15,FALSE)) -> 100 | R13: =IF(ISERROR(VLOOKUP($B13,'percentage ongoing'!$A$1:$P$800,15,FALSE)),"-",VLOOKUP($B13,'percentage ongoing'!$A$1:$P$800,16,FALSE)) -> 100
A14: 204 | B14: 204B12 | C14: Dumfries & Galloway NHS/ADP | D14: =IF(ISERROR(VLOOKUP($B14,ongoing1!$A$1:$X$800,D$41,FALSE)),"-",VLOOKUP($B14,ongoing1!$A$1:$X$800,D$41,FALSE)) -> - | E14: =IF(ISERROR(VLOOKUP($B14,ongoing1!$A$1:$X$800,E$41,FALSE)),"-",VLOOKUP($B14,ongoing1!$A$1:$X$800,E$41,FALSE)) -> - | F14: =IF(ISERROR(VLOOKUP($B14,ongoing1!$A$1:$X$800,F$41,FALSE)),"-",VLOOKUP($B14,ongoing1!$A$1:$X$800,F$41,FALSE)) -> - | G14: =IF(ISERROR(VLOOKUP($B14,ongoing1!$A$1:$X$800,G$41,FALSE)),"-",VLOOKUP($B14,ongoing1!$A$1:$X$800,G$41,FALSE)) -> - | H14: =IF(ISERROR(VLOOKUP($B14,ongoing1!$A$1:$X$800,H$41,FALSE)),"-",VLOOKUP($B14,ongoing1!$A$1:$X$800,H$41,FALSE)) -> - | I14: =IF(ISERROR(VLOOKUP($B14,ongoing1!$A$1:$X$800,I$41,FALSE)),"-",VLOOKUP($B14,ongoing1!$A$1:$X$800,I$41,FALSE)) -> - | J14: =IF(ISERROR(VLOOKUP($B14,ongoing1!$A$1:$X$800,J$41,FALSE)),"-",VLOOKUP($B14,ongoing1!$A$1:$X$800,J$41,FALSE)) -> - | K14: =IF(ISERROR(VLOOKUP($B14,ongoing1!$A$1:$X$800,K$41,FALSE)),"-",VLOOKUP($B14,ongoing1!$A$1:$X$800,K$41,FALSE)) -> - | L14: =IF(ISERROR(VLOOKUP($B14,ongoing1!$A$1:$X$800,L$41,FALSE)),"-",VLOOKUP($B14,ongoing1!$A$1:$X$800,L$41,FALSE)) -> - | M14: =IF(ISERROR(VLOOKUP($B14,ongoing1!$A$1:$X$800,M$41,FALSE)),"-",VLOOKUP($B14,ongoing1!$A$1:$X$800,M$41,FALSE)) -> - | N14: =IF(ISERROR(VLOOKUP($B14,ongoing1!$A$1:$X$800,N$41,FALSE)),"-",VLOOKUP($B14,ongoing1!$A$1:$X$800,N$41,FALSE)) -> - | O14: =IF(ISERROR(VLOOKUP($B14,ongoing1!$A$1:$X$800,O$41,FALSE)),"-",VLOOKUP($B14,ongoing1!$A$1:$X$800,O$41,FALSE)) -> - | Q14: =IF(ISERROR(VLOOKUP($B14,'percentage ongoing'!$A$1:$P$800,15,FALSE)),"-",VLOOKUP($B14,'percentage ongoing'!$A$1:$P$800,15,FALSE)) -> - | R14: =IF(ISERROR(VLOOKUP($B14,'percentage ongoing'!$A$1:$P$800,15,FALSE)),"-",VLOOKUP($B14,'percentage ongoing'!$A$1:$P$800,16,FALSE)) -> -
A15: Y101P | B15: Y101PB12 | C15: HMP Dumfries | D15: =IF(ISERROR(VLOOKUP($B15,ongoing1!$A$1:$X$800,D$41,FALSE)),"-",VLOOKUP($B15,ongoing1!$A$1:$X$800,D$41,FALSE)) -> - | E15: =IF(ISERROR(VLOOKUP($B15,ongoing1!$A$1:$X$800,E$41,FALSE)),"-",VLOOKUP($B15,ongoing1!$A$1:$X$800,E$41,FALSE)) -> - | F15: =IF(ISERROR(VLOOKUP($B15,ongoing1!$A$1:$X$800,F$41,FALSE)),"-",VLOOKUP($B15,ongoing1!$A$1:$X$800,F$41,FALSE)) -> - | G15: =IF(ISERROR(VLOOKUP($B15,ongoing1!$A$1:$X$800,G$41,FALSE)),"-",VLOOKUP($B15,ongoing1!$A$1:$X$800,G$41,FALSE)) -> - | H15: =IF(ISERROR(VLOOKUP($B15,ongoing1!$A$1:$X$800,H$41,FALSE)),"-",VLOOKUP($B15,ongoing1!$A$1:$X$800,H$41,FALSE)) -> - | I15: =IF(ISERROR(VLOOKUP($B15,ongoing1!$A$1:$X$800,I$41,FALSE)),"-",VLOOKUP($B15,ongoing1!$A$1:$X$800,I$41,FALSE)) -> - | J15: =IF(ISERROR(VLOOKUP($B15,ongoing1!$A$1:$X$800,J$41,FALSE)),"-",VLOOKUP($B15,ongoing1!$A$1:$X$800,J$41,FALSE)) -> - | K15: =IF(ISERROR(VLOOKUP($B15,ongoing1!$A$1:$X$800,K$41,FALSE)),"-",VLOOKUP($B15,ongoing1!$A$1:$X$800,K$41,FALSE)) -> - | L15: =IF(ISERROR(VLOOKUP($B15,ongoing1!$A$1:$X$800,L$41,FALSE)),"-",VLOOKUP($B15,ongoing1!$A$1:$X$800,L$41,FALSE)) -> - | M15: =IF(ISERROR(VLOOKUP($B15,ongoing1!$A$1:$X$800,M$41,FALSE)),"-",VLOOKUP($B15,ongoing1!$A$1:$X$800,M$41,FALSE)) -> - | N15: =IF(ISERROR(VLOOKUP($B15,ongoing1!$A$1:$X$800,N$41,FALSE)),"-",VLOOKUP($B15,ongoing1!$A$1:$X$800,N$41,FALSE)) -> - | O15: =IF(ISERROR(VLOOKUP($B15,ongoing1!$A$1:$X$800,O$41,FALSE)),"-",VLOOKUP($B15,ongoing1!$A$1:$X$800,O$41,FALSE)) -> - | Q15: =IF(ISERROR(VLOOKUP($B15,'percentage ongoing'!$A$1:$P$800,15,FALSE)),"-",VLOOKUP($B15,'percentage ongoing'!$A$1:$P$800,15,FALSE)) -> - | R15: =IF(ISERROR(VLOOKUP($B15,'percentage ongoing'!$A$1:$P$800,15,FALSE)),"-",VLOOKUP($B15,'percentage ongoing'!$A$1:$P$800,16,FALSE)) -> -
A16: 206 | B16: 206B12 | C16: Forth Valley NHS | D16: =IF(ISERROR(VLOOKUP($B16,ongoing1!$A$1:$X$800,D$41,FALSE)),"-",VLOOKUP($B16,ongoing1!$A$1:$X$800,D$41,FALSE)) -> 27 | E16: =IF(ISERROR(VLOOKUP($B16,ongoing1!$A$1:$X$800,E$41,FALSE)),"-",VLOOKUP($B16,ongoing1!$A$1:$X$800,E$41,FALSE)) -> 18.51851852 | F16: =IF(ISERROR(VLOOKUP($B16,ongoing1!$A$1:$X$800,F$41,FALSE)),"-",VLOOKUP($B16,ongoing1!$A$1:$X$800,F$41,FALSE)) -> 29.62962963 | G16: =IF(ISERROR(VLOOKUP($B16,ongoing1!$A$1:$X$800,G$41,FALSE)),"-",VLOOKUP($B16,ongoing1!$A$1:$X$800,G$41,FALSE)) -> 25.92592593 | H16: =IF(ISERROR(VLOOKUP($B16,ongoing1!$A$1:$X$800,H$41,FALSE)),"-",VLOOKUP($B16,ongoing1!$A$1:$X$800,H$41,FALSE)) -> 7.407407407 | I16: =IF(ISERROR(VLOOKUP($B16,ongoing1!$A$1:$X$800,I$41,FALSE)),"-",VLOOKUP($B16,ongoing1!$A$1:$X$800,I$41,FALSE)) -> 3.703703704 | J16: =IF(ISERROR(VLOOKUP($B16,ongoing1!$A$1:$X$800,J$41,FALSE)),"-",VLOOKUP($B16,ongoing1!$A$1:$X$800,J$41,FALSE)) -> 14.81481481 | K16: =IF(ISERROR(VLOOKUP($B16,ongoing1!$A$1:$X$800,K$41,FALSE)),"-",VLOOKUP($B16,ongoing1!$A$1:$X$800,K$41,FALSE)) -> 0 | L16: =IF(ISERROR(VLOOKUP($B16,ongoing1!$A$1:$X$800,L$41,FALSE)),"-",VLOOKUP($B16,ongoing1!$A$1:$X$800,L$41,FALSE)) -> 0 | M16: =IF(ISERROR(VLOOKUP($B16,ongoing1!$A$1:$X$800,M$41,FALSE)),"-",VLOOKUP($B16,ongoing1!$A$1:$X$800,M$41,FALSE)) -> 0 | N16: =IF(ISERROR(VLOOKUP($B16,ongoing1!$A$1:$X$800,N$41,FALSE)),"-",VLOOKUP($B16,ongoing1!$A$1:$X$800,N$41,FALSE)) -> 0 | O16: =IF(ISERROR(VLOOKUP($B16,ongoing1!$A$1:$X$800,O$41,FALSE)),"-",VLOOKUP($B16,ongoing1!$A$1:$X$800,O$41,FALSE)) -> 0 | Q16: =IF(ISERROR(VLOOKUP($B16,'percentage ongoing'!$A$1:$P$800,15,FALSE)),"-",VLOOKUP($B16,'percentage ongoing'!$A$1:$P$800,15,FALSE)) -> 74.07407407 | R16: =IF(ISERROR(VLOOKUP($B16,'percentage ongoing'!$A$1:$P$800,15,FALSE)),"-",VLOOKUP($B16,'percentage ongoing'!$A$1:$P$800,16,FALSE)) -> 100
A17: V203P | B17: V203PB12 | C17: Clackmannanshire ADP: HMP Glenochil | D17: =IF(ISERROR(VLOOKUP($B17,ongoing1!$A$1:$X$800,D$41,FALSE)),"-",VLOOKUP($B17,ongoing1!$A$1:$X$800,D$41,FALSE)) -> * | E17: =IF(ISERROR(VLOOKUP($B17,ongoing1!$A$1:$X$800,E$41,FALSE)),"-",VLOOKUP($B17,ongoing1!$A$1:$X$800,E$41,FALSE)) -> 100 | F17: =IF(ISERROR(VLOOKUP($B17,ongoing1!$A$1:$X$800,F$41,FALSE)),"-",VLOOKUP($B17,ongoing1!$A$1:$X$800,F$41,FALSE)) -> 0 | G17: =IF(ISERROR(VLOOKUP($B17,ongoing1!$A$1:$X$800,G$41,FALSE)),"-",VLOOKUP($B17,ongoing1!$A$1:$X$800,G$41,FALSE)) -> 0 | H17: =IF(ISERROR(VLOOKUP($B17,ongoing1!$A$1:$X$800,H$41,FALSE)),"-",VLOOKUP($B17,ongoing1!$A$1:$X$800,H$41,FALSE)) -> 0 | I17: =IF(ISERROR(VLOOKUP($B17,ongoing1!$A$1:$X$800,I$41,FALSE)),"-",VLOOKUP($B17,ongoing1!$A$1:$X$800,I$41,FALSE)) -> 0 | J17: =IF(ISERROR(VLOOKUP($B17,ongoing1!$A$1:$X$800,J$41,FALSE)),"-",VLOOKUP($B17,ongoing1!$A$1:$X$800,J$41,FALSE)) -> 0 | K17: =IF(ISERROR(VLOOKUP($B17,ongoing1!$A$1:$X$800,K$41,FALSE)),"-",VLOOKUP($B17,ongoing1!$A$1:$X$800,K$41,FALSE)) -> 0 | L17: =IF(ISERROR(VLOOKUP($B17,ongoing1!$A$1:$X$800,L$41,FALSE)),"-",VLOOKUP($B17,ongoing1!$A$1:$X$800,L$41,FALSE)) -> 0 | M17: =IF(ISERROR(VLOOKUP($B17,ongoing1!$A$1:$X$800,M$41,FALSE)),"-",VLOOKUP($B17,ongoing1!$A$1:$X$800,M$41,FALSE)) -> 0 | N17: =IF(ISERROR(VLOOKUP($B17,ongoing1!$A$1:$X$800,N$41,FALSE)),"-",VLOOKUP($B17,ongoing1!$A$1:$X$800,N$41,FALSE)) -> 0 | O17: =IF(ISERROR(VLOOKUP($B17,ongoing1!$A$1:$X$800,O$41,FALSE)),"-",VLOOKUP($B17,ongoing1!$A$1:$X$800,O$41,FALSE)) -> 0 | Q17: =IF(ISERROR(VLOOKUP($B17,'percentage ongoing'!$A$1:$P$800,15,FALSE)),"-",VLOOKUP($B17,'percentage ongoing'!$A$1:$P$800,15,FALSE)) -> 100 | R17: =IF(ISERROR(VLOOKUP($B17,'percentage ongoing'!$A$1:$P$800,15,FALSE)),"-",VLOOKUP($B17,'percentage ongoing'!$A$1:$P$800,16,FALSE)) -> 100
A18: V101P | B18: V101PB12 | C18: Falkirk ADP: HMP Young Offenders Institution Polmont | D18: =IF(ISERROR(VLOOKUP($B18,ongoing1!$A$1:$X$800,D$41,FALSE)),"-",VLOOKUP($B18,ongoing1!$A$1:$X$800,D$41,FALSE)) -> 23 | E18: =IF(ISERROR(VLOOKUP($B18,ongoing1!$A$1:$X$800,E$41,FALSE)),"-",VLOOKUP($B18,ongoing1!$A$1:$X$800,E$41,FALSE)) -> 13.04347826 | F18: =IF(ISERROR(VLOOKUP($B18,ongoing1!$A$1:$X$800,F$41,FALSE)),"-",VLOOKUP($B18,ongoing1!$A$1:$X$800,F$41,FALSE)) -> 34.7826087 | G18: =IF(ISERROR(VLOOKUP($B18,ongoing1!$A$1:$X$800,G$41,FALSE)),"-",VLOOKUP($B18,ongoing1!$A$1:$X$800,G$41,FALSE)) -> 30.43478261 | H18: =IF(ISERROR(VLOOKUP($B18,ongoing1!$A$1:$X$800,H$41,FALSE)),"-",VLOOKUP($B18,ongoing1!$A$1:$X$800,H$41,FALSE)) -> 0 | I18: =IF(ISERROR(VLOOKUP($B18,ongoing1!$A$1:$X$800,I$41,FALSE)),"-",VLOOKUP($B18,ongoing1!$A$1:$X$800,I$41,FALSE)) -> 4.347826087 | J18: =IF(ISERROR(VLOOKUP($B18,ongoing1!$A$1:$X$800,J$41,FALSE)),"-",VLOOKUP($B18,ongoing1!$A$1:$X$800,J$41,FALSE)) -> 17.39130435 | K18: =IF(ISERROR(VLOOKUP($B18,ongoing1!$A$1:$X$800,K$41,FALSE)),"-",VLOOKUP($B18,ongoing1!$A$1:$X$800,K$41,FALSE)) -> 0 | L18: =IF(ISERROR(VLOOKUP($B18,ongoing1!$A$1:$X$800,L$41,FALSE)),"-",VLOOKUP($B18,ongoing1!$A$1:$X$800,L$41,FALSE)) -> 0 | M18: =IF(ISERROR(VLOOKUP($B18,ongoing1!$A$1:$X$800,M$41,FALSE)),"-",VLOOKUP($B18,ongoing1!$A$1:$X$800,M$41,FALSE)) -> 0 | N18: =IF(ISERROR(VLOOKUP($B18,ongoing1!$A$1:$X$800,N$41,FALSE)),"-",VLOOKUP($B18,ongoing1!$A$1:$X$800,N$41,FALSE)) -> 0 | O18: =IF(ISERROR(VLOOKUP($B18,ongoing1!$A$1:$X$800,O$41,FALSE)),"-",VLOOKUP($B18,ongoing1!$A$1:$X$800,O$41,FALSE)) -> 0 | Q18: =IF(ISERROR(VLOOKUP($B18,'percentage ongoing'!$A$1:$P$800,15,FALSE)),"-",VLOOKUP($B18,'percentage ongoing'!$A$1:$P$800,15,FALSE)) -> 78.26086957 | R18: =IF(ISERROR(VLOOKUP($B18,'percentage ongoing'!$A$1:$P$800,15,FALSE)),"-",VLOOKUP($B18,'percentage ongoing'!$A$1:$P$800,16,FALSE)) -> 100
A19: V202P | B19: V202PB12 | C19: Stirling ADP: HMP & YOI Cornton Vale | D19: =IF(ISERROR(VLOOKUP($B19,ongoing1!$A$1:$X$800,D$41,FALSE)),"-",VLOOKUP($B19,ongoing1!$A$1:$X$800,D$41,FALSE)) -> * | E19: =IF(ISERROR(VLOOKUP($B19,ongoing1!$A$1:$X$800,E$41,FALSE)),"-",VLOOKUP($B19,ongoing1!$A$1:$X$800,E$41,FALSE)) -> 0 | F19: =IF(ISERROR(VLOOKUP($B19,ongoing1!$A$1:$X$800,F$41,FALSE)),"-",VLOOKUP($B19,ongoing1!$A$1:$X$800,F$41,FALSE)) -> 0 | G19: =IF(ISERROR(VLOOKUP($B19,ongoing1!$A$1:$X$800,G$41,FALSE)),"-",VLOOKUP($B19,ongoing1!$A$1:$X$800,G$41,FALSE)) -> 0 | H19: =IF(ISERROR(VLOOKUP($B19,ongoing1!$A$1:$X$800,H$41,FALSE)),"-",VLOOKUP($B19,ongoing1!$A$1:$X$800,H$41,FALSE)) -> 100 | I19: =IF(ISERROR(VLOOKUP($B19,ongoing1!$A$1:$X$800,I$41,FALSE)),"-",VLOOKUP($B19,ongoing1!$A$1:$X$800,I$41,FALSE)) -> 0 | J19: =IF(ISERROR(VLOOKUP($B19,ongoing1!$A$1:$X$800,J$41,FALSE)),"-",VLOOKUP($B19,ongoing1!$A$1:$X$800,J$41,FALSE)) -> 0 | K19: =IF(ISERROR(VLOOKUP($B19,ongoing1!$A$1:$X$800,K$41,FALSE)),"-",VLOOKUP($B19,ongoing1!$A$1:$X$800,K$41,FALSE)) -> 0 | L19: =IF(ISERROR(VLOOKUP($B19,ongoing1!$A$1:$X$800,L$41,FALSE)),"-",VLOOKUP($B19,ongoing1!$A$1:$X$800,L$41,FALSE)) -> 0 | M19: =IF(ISERROR(VLOOKUP($B19,ongoing1!$A$1:$X$800,M$41,FALSE)),"-",VLOOKUP($B19,ongoing1!$A$1:$X$800,M$41,FALSE)) -> 0 | N19: =IF(ISERROR(VLOOKUP($B19,ongoing1!$A$1:$X$800,N$41,FALSE)),"-",VLOOKUP($B19,ongoing1!$A$1:$X$800,N$41,FALSE)) -> 0 | O19: =IF(ISERROR(VLOOKUP($B19,ongoing1!$A$1:$X$800,O$41,FALSE)),"-",VLOOKUP($B19,ongoing1!$A$1:$X$800,O$41,FALSE)) -> 0 | Q19: =IF(ISERROR(VLOOKUP($B19,'percentage ongoing'!$A$1:$P$800,15,FALSE)),"-",VLOOKUP($B19,'percentage ongoing'!$A$1:$P$800,15,FALSE)) -> 0 | R19: =IF(ISERROR(VLOOKUP($B19,'percentage ongoing'!$A$1:$P$800,15,FALSE)),"-",VLOOKUP($B19,'percentage ongoing'!$A$1:$P$800,16,FALSE)) -> 100
A20: 207 | B20: 207B12 | C20: Grampian NHS | D20: =IF(ISERROR(VLOOKUP($B20,ongoing1!$A$1:$X$800,D$41,FALSE)),"-",VLOOKUP($B20,ongoing1!$A$1:$X$800,D$41,FALSE)) -> - | E20: =IF(ISERROR(VLOOKUP($B20,ongoing1!$A$1:$X$800,E$41,FALSE)),"-",VLOOKUP($B20,ongoing1!$A$1:$X$800,E$41,FALSE)) -> - | F20: =IF(ISERROR(VLOOKUP($B20,ongoing1!$A$1:$X$800,F$41,FALSE)),"-",VLOOKUP($B20,ongoing1!$A$1:$X$800,F$41,FALSE)) -> - | G20: =IF(ISERROR(VLOOKUP($B20,ongoing1!$A$1:$X$800,G$41,FALSE)),"-",VLOOKUP($B20,ongoing1!$A$1:$X$800,G$41,FALSE)) -> - | H20: =IF(ISERROR(VLOOKUP($B20,ongoing1!$A$1:$X$800,H$41,FALSE)),"-",VLOOKUP($B20,ongoing1!$A$1:$X$800,H$41,FALSE)) -> - | I20: =IF(ISERROR(VLOOKUP($B20,ongoing1!$A$1:$X$800,I$41,FALSE)),"-",VLOOKUP($B20,ongoing1!$A$1:$X$800,I$41,FALSE)) -> - | J20: =IF(ISERROR(VLOOKUP($B20,ongoing1!$A$1:$X$800,J$41,FALSE)),"-",VLOOKUP($B20,ongoing1!$A$1:$X$800,J$41,FALSE)) -> - | K20: =IF(ISERROR(VLOOKUP($B20,ongoing1!$A$1:$X$800,K$41,FALSE)),"-",VLOOKUP($B20,ongoing1!$A$1:$X$800,K$41,FALSE)) -> - | L20: =IF(ISERROR(VLOOKUP($B20,ongoing1!$A$1:$X$800,L$41,FALSE)),"-",VLOOKUP($B20,ongoing1!$A$1:$X$800,L$41,FALSE)) -> - | M20: =IF(ISERROR(VLOOKUP($B20,ongoing1!$A$1:$X$800,M$41,FALSE)),"-",VLOOKUP($B20,ongoing1!$A$1:$X$800,M$41,FALSE)) -> - | N20: =IF(ISERROR(VLOOKUP($B20,ongoing1!$A$1:$X$800,N$41,FALSE)),"-",VLOOKUP($B20,ongoing1!$A$1:$X$800,N$41,FALSE)) -> - | O20: =IF(ISERROR(VLOOKUP($B20,ongoing1!$A$1:$X$800,O$41,FALSE)),"-",VLOOKUP($B20,ongoing1!$A$1:$X$800,O$41,FALSE)) -> - | Q20: =IF(ISERROR(VLOOKUP($B20,'percentage ongoing'!$A$1:$P$800,15,FALSE)),"-",VLOOKUP($B20,'percentage ongoing'!$A$1:$P$800,15,FALSE)) -> - | R20: =IF(ISERROR(VLOOKUP($B20,'percentage ongoing'!$A$1:$P$800,15,FALSE)),"-",VLOOKUP($B20,'percentage ongoing'!$A$1:$P$800,16,FALSE)) -> -
A21: N401P | B21: N401PB12 | C21: Aberdeenshire ADP: HMP Grampian and YOI | D21: =IF(ISERROR(VLOOKUP($B21,ongoing1!$A$1:$X$800,D$41,FALSE)),"-",VLOOKUP($B21,ongoing1!$A$1:$X$800,D$41,FALSE)) -> - | E21: =IF(ISERROR(VLOOKUP($B21,ongoing1!$A$1:$X$800,E$41,FALSE)),"-",VLOOKUP($B21,ongoing1!$A$1:$X$800,E$41,FALSE)) -> - | F21: =IF(ISERROR(VLOOKUP($B21,ongoing1!$A$1:$X$800,F$41,FALSE)),"-",VLOOKUP($B21,ongoing1!$A$1:$X$800,F$41,FALSE)) -> - | G21: =IF(ISERROR(VLOOKUP($B21,ongoing1!$A$1:$X$800,G$41,FALSE)),"-",VLOOKUP($B21,ongoing1!$A$1:$X$800,G$41,FALSE)) -> - | H21: =IF(ISERROR(VLOOKUP($B21,ongoing1!$A$1:$X$800,H$41,FALSE)),"-",VLOOKUP($B21,ongoing1!$A$1:$X$800,H$41,FALSE)) -> - | I21: =IF(ISERROR(VLOOKUP($B21,ongoing1!$A$1:$X$800,I$41,FALSE)),"-",VLOOKUP($B21,ongoing1!$A$1:$X$800,I$41,FALSE)) -> - | J21: =IF(ISERROR(VLOOKUP($B21,ongoing1!$A$1:$X$800,J$41,FALSE)),"-",VLOOKUP($B21,ongoing1!$A$1:$X$800,J$41,FALSE)) -> - | K21: =IF(ISERROR(VLOOKUP($B21,ongoing1!$A$1:$X$800,K$41,FALSE)),"-",VLOOKUP($B21,ongoing1!$A$1:$X$800,K$41,FALSE)) -> - | L21: =IF(ISERROR(VLOOKUP($B21,ongoing1!$A$1:$X$800,L$41,FALSE)),"-",VLOOKUP($B21,ongoing1!$A$1:$X$800,L$41,FALSE)) -> - | M21: =IF(ISERROR(VLOOKUP($B21,ongoing1!$A$1:$X$800,M$41,FALSE)),"-",VLOOKUP($B21,ongoing1!$A$1:$X$800,M$41,FALSE)) -> - | N21: =IF(ISERROR(VLOOKUP($B21,ongoing1!$A$1:$X$800,N$41,FALSE)),"-",VLOOKUP($B21,ongoing1!$A$1:$X$800,N$41,FALSE)) -> - | O21: =IF(ISERROR(VLOOKUP($B21,ongoing1!$A$1:$X$800,O$41,FALSE)),"-",VLOOKUP($B21,ongoing1!$A$1:$X$800,O$41,FALSE)) -> - | Q21: =IF(ISERROR(VLOOKUP($B21,'percentage ongoing'!$A$1:$P$800,15,FALSE)),"-",VLOOKUP($B21,'percentage ongoing'!$A$1:$P$800,15,FALSE)) -> - | R21: =IF(ISERROR(VLOOKUP($B21,'percentage ongoing'!$A$1:$P$800,15,FALSE)),"-",VLOOKUP($B21,'percentage ongoing'!$A$1:$P$800,16,FALSE)) -> -
A22: 218 | B22: 218B12 | C22: Greater Glasgow & Clyde NHS | D22: =IF(ISERROR(VLOOKUP($B22,ongoing1!$A$1:$X$800,D$41,FALSE)),"-",VLOOKUP($B22,ongoing1!$A$1:$X$800,D$41,FALSE)) -> 9 | E22: =IF(ISERROR(VLOOKUP($B22,ongoing1!$A$1:$X$800,E$41,FALSE)),"-",VLOOKUP($B22,ongoing1!$A$1:$X$800,E$41,FALSE)) -> 55.55555556 | F22: =IF(ISERROR(VLOOKUP($B22,ongoing1!$A$1:$X$800,F$41,FALSE)),"-",VLOOKUP($B22,ongoing1!$A$1:$X$800,F$41,FALSE)) -> 11.11111111 | G22: =IF(ISERROR(VLOOKUP($B22,ongoing1!$A$1:$X$800,G$41,FALSE)),"-",VLOOKUP($B22,ongoing1!$A$1:$X$800,G$41,FALSE)) -> 22.22222222 | H22: =IF(ISERROR(VLOOKUP($B22,ongoing1!$A$1:$X$800,H$41,FALSE)),"-",VLOOKUP($B22,ongoing1!$A$1:$X$800,H$41,FALSE)) -> 11.11111111 | I22: =IF(ISERROR(VLOOKUP($B22,ongoing1!$A$1:$X$800,I$41,FALSE)),"-",VLOOKUP($B22,ongoing1!$A$1:$X$800,I$41,FALSE)) -> 0 | J22: =IF(ISERROR(VLOOKUP($B22,ongoing1!$A$1:$X$800,J$41,FALSE)),"-",VLOOKUP($B22,ongoing1!$A$1:$X$800,J$41,FALSE)) -> 0 | K22: =IF(ISERROR(VLOOKUP($B22,ongoing1!$A$1:$X$800,K$41,FALSE)),"-",VLOOKUP($B22,ongoing1!$A$1:$X$800,K$41,FALSE)) -> 0 | L22: =IF(ISERROR(VLOOKUP($B22,ongoing1!$A$1:$X$800,L$41,FALSE)),"-",VLOOKUP($B22,ongoing1!$A$1:$X$800,L$41,FALSE)) -> 0 | M22: =IF(ISERROR(VLOOKUP($B22,ongoing1!$A$1:$X$800,M$41,FALSE)),"-",VLOOKUP($B22,ongoing1!$A$1:$X$800,M$41,FALSE)) -> 0 | N22: =IF(ISERROR(VLOOKUP($B22,ongoing1!$A$1:$X$800,N$41,FALSE)),"-",VLOOKUP($B22,ongoing1!$A$1:$X$800,N$41,FALSE)) -> 0 | O22: =IF(ISERROR(VLOOKUP($B22,ongoing1!$A$1:$X$800,O$41,FALSE)),"-",VLOOKUP($B22,ongoing1!$A$1:$X$800,O$41,FALSE)) -> 0 | Q22: =IF(ISERROR(VLOOKUP($B22,'percentage ongoing'!$A$1:$P$800,15,FALSE)),"-",VLOOKUP($B22,'percentage ongoing'!$A$1:$P$800,15,FALSE)) -> 88.88888889 | R22: =IF(ISERROR(VLOOKUP($B22,'percentage ongoing'!$A$1:$P$800,15,FALSE)),"-",VLOOKUP($B22,'percentage ongoing'!$A$1:$P$800,16,FALSE)) -> 100
A23: G763P | B23: G763PB12 | C23: East Dunbartonshire ADP: HMP Low Moss¹ | D23: =IF(ISERROR(VLOOKUP($B23,ongoing1!$A$1:$X$800,D$41,FALSE)),"-",VLOOKUP($B23,ongoing1!$A$1:$X$800,D$41,FALSE)) -> - | E23: =IF(ISERROR(VLOOKUP($B23,ongoing1!$A$1:$X$800,E$41,FALSE)),"-",VLOOKUP($B23,ongoing1!$A$1:$X$800,E$41,FALSE)) -> - | F23: =IF(ISERROR(VLOOKUP($B23,ongoing1!$A$1:$X$800,F$41,FALSE)),"-",VLOOKUP($B23,ongoing1!$A$1:$X$800,F$41,FALSE)) -> - | G23: =IF(ISERROR(VLOOKUP($B23,ongoing1!$A$1:$X$800,G$41,FALSE)),"-",VLOOKUP($B23,ongoing1!$A$1:$X$800,G$41,FALSE)) -> - | H23: =IF(ISERROR(VLOOKUP($B23,ongoing1!$A$1:$X$800,H$41,FALSE)),"-",VLOOKUP($B23,ongoing1!$A$1:$X$800,H$41,FALSE)) -> - | I23: =IF(ISERROR(VLOOKUP($B23,ongoing1!$A$1:$X$800,I$41,FALSE)),"-",VLOOKUP($B23,ongoing1!$A$1:$X$800,I$41,FALSE)) -> - | J23: =IF(ISERROR(VLOOKUP($B23,ongoing1!$A$1:$X$800,J$41,FALSE)),"-",VLOOKUP($B23,ongoing1!$A$1:$X$800,J$41,FALSE)) -> - | K23: =IF(ISERROR(VLOOKUP($B23,ongoing1!$A$1:$X$800,K$41,FALSE)),"-",VLOOKUP($B23,ongoing1!$A$1:$X$800,K$41,FALSE)) -> - | L23: =IF(ISERROR(VLOOKUP($B23,ongoing1!$A$1:$X$800,L$41,FALSE)),"-",VLOOKUP($B23,ongoing1!$A$1:$X$800,L$41,FALSE)) -> - | M23: =IF(ISERROR(VLOOKUP($B23,ongoing1!$A$1:$X$800,M$41,FALSE)),"-",VLOOKUP($B23,ongoing1!$A$1:$X$800,M$41,FALSE)) -> - | N23: =IF(ISERROR(VLOOKUP($B23,ongoing1!$A$1:$X$800,N$41,FALSE)),"-",VLOOKUP($B23,ongoing1!$A$1:$X$800,N$41,FALSE)) -> - | O23: =IF(ISERROR(VLOOKUP($B23,ongoing1!$A$1:$X$800,O$41,FALSE)),"-",VLOOKUP($B23,ongoing1!$A$1:$X$800,O$41,FALSE)) -> - | Q23: =IF(ISERROR(VLOOKUP($B23,'percentage ongoing'!$A$1:$P$800,15,FALSE)),"-",VLOOKUP($B23,'percentage ongoing'!$A$1:$P$800,15,FALSE)) -> - | R23: =IF(ISERROR(VLOOKUP($B23,'percentage ongoing'!$A$1:$P$800,15,FALSE)),"-",VLOOKUP($B23,'percentage ongoing'!$A$1:$P$800,16,FALSE)) -> -
A24: G101P | B24: G101PB12 | C24: Glasgow City ADP: HMP Barlinnie Prison | D24: =IF(ISERROR(VLOOKUP($B24,ongoing1!$A$1:$X$800,D$41,FALSE)),"-",VLOOKUP($B24,ongoing1!$A$1:$X$800,D$41,FALSE)) -> * | E24: =IF(ISERROR(VLOOKUP($B24,ongoing1!$A$1:$X$800,E$41,FALSE)),"-",VLOOKUP($B24,ongoing1!$A$1:$X$800,E$41,FALSE)) -> 100 | F24: =IF(ISERROR(VLOOKUP($B24,ongoing1!$A$1:$X$800,F$41,FALSE)),"-",VLOOKUP($B24,ongoing1!$A$1:$X$800,F$41,FALSE)) -> 0 | G24: =IF(ISERROR(VLOOKUP($B24,ongoing1!$A$1:$X$800,G$41,FALSE)),"-",VLOOKUP($B24,ongoing1!$A$1:$X$800,G$41,FALSE)) -> 0 | H24: =IF(ISERROR(VLOOKUP($B24,ongoing1!$A$1:$X$800,H$41,FALSE)),"-",VLOOKUP($B24,ongoing1!$A$1:$X$800,H$41,FALSE)) -> 0 | I24: =IF(ISERROR(VLOOKUP($B24,ongoing1!$A$1:$X$800,I$41,FALSE)),"-",VLOOKUP($B24,ongoing1!$A$1:$X$800,I$41,FALSE)) -> 0 | J24: =IF(ISERROR(VLOOKUP($B24,ongoing1!$A$1:$X$800,J$41,FALSE)),"-",VLOOKUP($B24,ongoing1!$A$1:$X$800,J$41,FALSE)) -> 0 | K24: =IF(ISERROR(VLOOKUP($B24,ongoing1!$A$1:$X$800,K$41,FALSE)),"-",VLOOKUP($B24,ongoing1!$A$1:$X$800,K$41,FALSE)) -> 0 | L24: =IF(ISERROR(VLOOKUP($B24,ongoing1!$A$1:$X$800,L$41,FALSE)),"-",VLOOKUP($B24,ongoing1!$A$1:$X$800,L$41,FALSE)) -> 0 | M24: =IF(ISERROR(VLOOKUP($B24,ongoing1!$A$1:$X$800,M$41,FALSE)),"-",VLOOKUP($B24,ongoing1!$A$1:$X$800,M$41,FALSE)) -> 0 | N24: =IF(ISERROR(VLOOKUP($B24,ongoing1!$A$1:$X$800,N$41,FALSE)),"-",VLOOKUP($B24,ongoing1!$A$1:$X$800,N$41,FALSE)) -> 0 | O24: =IF(ISERROR(VLOOKUP($B24,ongoing1!$A$1:$X$800,O$41,FALSE)),"-",VLOOKUP($B24,ongoing1!$A$1:$X$800,O$41,FALSE)) -> 0 | Q24: =IF(ISERROR(VLOOKUP($B24,'percentage ongoing'!$A$1:$P$800,15,FALSE)),"-",VLOOKUP($B24,'percentage ongoing'!$A$1:$P$800,15,FALSE)) -> 100 | R24: =IF(ISERROR(VLOOKUP($B24,'percentage ongoing'!$A$1:$P$800,15,FALSE)),"-",VLOOKUP($B24,'percentage ongoing'!$A$1:$P$800,16,FALSE)) -> 100
A25: C203P | B25: C203PB12 | C25: Inverclyde ADP: HMP Greenock | D25: =IF(ISERROR(VLOOKUP($B25,ongoing1!$A$1:$X$800,D$41,FALSE)),"-",VLOOKUP($B25,ongoing1!$A$1:$X$800,D$41,FALSE)) -> * | E25: =IF(ISERROR(VLOOKUP($B25,ongoing1!$A$1:$X$800,E$41,FALSE)),"-",VLOOKUP($B25,ongoing1!$A$1:$X$800,E$41,FALSE)) -> 33.33333333 | F25: =IF(ISERROR(VLOOKUP($B25,ongoing1!$A$1:$X$800,F$41,FALSE)),"-",VLOOKUP($B25,ongoing1!$A$1:$X$800,F$41,FALSE)) -> 16.66666667 | G25: =IF(ISERROR(VLOOKUP($B25,ongoing1!$A$1:$X$800,G$41,FALSE)),"-",VLOOKUP($B25,ongoing1!$A$1:$X$800,G$41,FALSE)) -> 33.33333333 | H25: =IF(ISERROR(VLOOKUP($B25,ongoing1!$A$1:$X$800,H$41,FALSE)),"-",VLOOKUP($B25,ongoing1!$A$1:$X$800,H$41,FALSE)) -> 16.66666667 | I25: =IF(ISERROR(VLOOKUP($B25,ongoing1!$A$1:$X$800,I$41,FALSE)),"-",VLOOKUP($B25,ongoing1!$A$1:$X$800,I$41,FALSE)) -> 0 | J25: =IF(ISERROR(VLOOKUP($B25,ongoing1!$A$1:$X$800,J$41,FALSE)),"-",VLOOKUP($B25,ongoing1!$A$1:$X$800,J$41,FALSE)) -> 0 | K25: =IF(ISERROR(VLOOKUP($B25,ongoing1!$A$1:$X$800,K$41,FALSE)),"-",VLOOKUP($B25,ongoing1!$A$1:$X$800,K$41,FALSE)) -> 0 | L25: =IF(ISERROR(VLOOKUP($B25,ongoing1!$A$1:$X$800,L$41,FALSE)),"-",VLOOKUP($B25,ongoing1!$A$1:$X$800,L$41,FALSE)) -> 0 | M25: =IF(ISERROR(VLOOKUP($B25,ongoing1!$A$1:$X$800,M$41,FALSE)),"-",VLOOKUP($B25,ongoing1!$A$1:$X$800,M$41,FALSE)) -> 0 | N25: =IF(ISERROR(VLOOKUP($B25,ongoing1!$A$1:$X$800,N$41,FALSE)),"-",VLOOKUP($B25,ongoing1!$A$1:$X$800,N$41,FALSE)) -> 0 | O25: =IF(ISERROR(VLOOKUP($B25,ongoing1!$A$1:$X$800,O$41,FALSE)),"-",VLOOKUP($B25,ongoing1!$A$1:$X$800,O$41,FALSE)) -> 0 | Q25: =IF(ISERROR(VLOOKUP($B25,'percentage ongoing'!$A$1:$P$800,15,FALSE)),"-",VLOOKUP($B25,'percentage ongoing'!$A$1:$P$800,15,FALSE)) -> 83.33333333 | R25: =IF(ISERROR(VLOOKUP($B25,'percentage ongoing'!$A$1:$P$800,15,FALSE)),"-",VLOOKUP($B25,'percentage ongoing'!$A$1:$P$800,16,FALSE)) -> 100
A26: 209 | B26: 209B12 | C26: Highland NHS | D26: =IF(ISERROR(VLOOKUP($B26,ongoing1!$A$1:$X$800,D$41,FALSE)),"-",VLOOKUP($B26,ongoing1!$A$1:$X$800,D$41,FALSE)) -> - | E26: =IF(ISERROR(VLOOKUP($B26,ongoing1!$A$1:$X$800,E$41,FALSE)),"-",VLOOKUP($B26,ongoing1!$A$1:$X$800,E$41,FALSE)) -> - | F26: =IF(ISERROR(VLOOKUP($B26,ongoing1!$A$1:$X$800,F$41,FALSE)),"-",VLOOKUP($B26,ongoing1!$A$1:$X$800,F$41,FALSE)) -> - | G26: =IF(ISERROR(VLOOKUP($B26,ongoing1!$A$1:$X$800,G$41,FALSE)),"-",VLOOKUP($B26,ongoing1!$A$1:$X$800,G$41,FALSE)) -> - | H26: =IF(ISERROR(VLOOKUP($B26,ongoing1!$A$1:$X$800,H$41,FALSE)),"-",VLOOKUP($B26,ongoing1!$A$1:$X$800,H$41,FALSE)) -> - | I26: =IF(ISERROR(VLOOKUP($B26,ongoing1!$A$1:$X$800,I$41,FALSE)),"-",VLOOKUP($B26,ongoing1!$A$1:$X$800,I$41,FALSE)) -> - | J26: =IF(ISERROR(VLOOKUP($B26,ongoing1!$A$1:$X$800,J$41,FALSE)),"-",VLOOKUP($B26,ongoing1!$A$1:$X$800,J$41,FALSE)) -> - | K26: =IF(ISERROR(VLOOKUP($B26,ongoing1!$A$1:$X$800,K$41,FALSE)),"-",VLOOKUP($B26,ongoing1!$A$1:$X$800,K$41,FALSE)) -> - | L26: =IF(ISERROR(VLOOKUP($B26,ongoing1!$A$1:$X$800,L$41,FALSE)),"-",VLOOKUP($B26,ongoing1!$A$1:$X$800,L$41,FALSE)) -> - | M26: =IF(ISERROR(VLOOKUP($B26,ongoing1!$A$1:$X$800,M$41,FALSE)),"-",VLOOKUP($B26,ongoing1!$A$1:$X$800,M$41,FALSE)) -> - | N26: =IF(ISERROR(VLOOKUP($B26,ongoing1!$A$1:$X$800,N$41,FALSE)),"-",VLOOKUP($B26,ongoing1!$A$1:$X$800,N$41,FALSE)) -> - | O26: =IF(ISERROR(VLOOKUP($B26,ongoing1!$A$1:$X$800,O$41,FALSE)),"-",VLOOKUP($B26,ongoing1!$A$1:$X$800,O$41,FALSE)) -> - | Q26: =IF(ISERROR(VLOOKUP($B26,'percentage ongoing'!$A$1:$P$800,15,FALSE)),"-",VLOOKUP($B26,'percentage ongoing'!$A$1:$P$800,15,FALSE)) -> - | R26: =IF(ISERROR(VLOOKUP($B26,'percentage ongoing'!$A$1:$P$800,15,FALSE)),"-",VLOOKUP($B26,'percentage ongoing'!$A$1:$P$800,16,FALSE)) -> -
A27: H202P | B27: H202PB12 | C27: Highland ADP: HMP Inverness | D27: =IF(ISERROR(VLOOKUP($B27,ongoing1!$A$1:$X$800,D$41,FALSE)),"-",VLOOKUP($B27,ongoing1!$A$1:$X$800,D$41,FALSE)) -> - | E27: =IF(ISERROR(VLOOKUP($B27,ongoing1!$A$1:$X$800,E$41,FALSE)),"-",VLOOKUP($B27,ongoing1!$A$1:$X$800,E$41,FALSE)) -> - | F27: =IF(ISERROR(VLOOKUP($B27,ongoing1!$A$1:$X$800,F$41,FALSE)),"-",VLOOKUP($B27,ongoing1!$A$1:$X$800,F$41,FALSE)) -> - | G27: =IF(ISERROR(VLOOKUP($B27,ongoing1!$A$1:$X$800,G$41,FALSE)),"-",VLOOKUP($B27,ongoing1!$A$1:$X$800,G$41,FALSE)) -> - | H27: =IF(ISERROR(VLOOKUP($B27,ongoing1!$A$1:$X$800,H$41,FALSE)),"-",VLOOKUP($B27,ongoing1!$A$1:$X$800,H$41,FALSE)) -> - | I27: =IF(ISERROR(VLOOKUP($B27,ongoing1!$A$1:$X$800,I$41,FALSE)),"-",VLOOKUP($B27,ongoing1!$A$1:$X$800,I$41,FALSE)) -> - | J27: =IF(ISERROR(VLOOKUP($B27,ongoing1!$A$1:$X$800,J$41,FALSE)),"-",VLOOKUP($B27,ongoing1!$A$1:$X$800,J$41,FALSE)) -> - | K27: =IF(ISERROR(VLOOKUP($B27,ongoing1!$A$1:$X$800,K$41,FALSE)),"-",VLOOKUP($B27,ongoing1!$A$1:$X$800,K$41,FALSE)) -> - | L27: =IF(ISERROR(VLOOKUP($B27,ongoing1!$A$1:$X$800,L$41,FALSE)),"-",VLOOKUP($B27,ongoing1!$A$1:$X$800,L$41,FALSE)) -> - | M27: =IF(ISERROR(VLOOKUP($B27,ongoing1!$A$1:$X$800,M$41,FALSE)),"-",VLOOKUP($B27,ongoing1!$A$1:$X$800,M$41,FALSE)) -> - | N27: =IF(ISERROR(VLOOKUP($B27,ongoing1!$A$1:$X$800,N$41,FALSE)),"-",VLOOKUP($B27,ongoing1!$A$1:$X$800,N$41,FALSE)) -> - | O27: =IF(ISERROR(VLOOKUP($B27,ongoing1!$A$1:$X$800,O$41,FALSE)),"-",VLOOKUP($B27,ongoing1!$A$1:$X$800,O$41,FALSE)) -> - | Q27: =IF(ISERROR(VLOOKUP($B27,'percentage ongoing'!$A$1:$P$800,15,FALSE)),"-",VLOOKUP($B27,'percentage ongoing'!$A$1:$P$800,15,FALSE)) -> - | R27: =IF(ISERROR(VLOOKUP($B27,'percentage ongoing'!$A$1:$P$800,15,FALSE)),"-",VLOOKUP($B27,'percentage ongoing'!$A$1:$P$800,16,FALSE)) -> -
A28: 210 | B28: 210B12 | C28: Lanarkshire NHS/ADP | D28: =IF(ISERROR(VLOOKUP($B28,ongoing1!$A$1:$X$800,D$41,FALSE)),"-",VLOOKUP($B28,ongoing1!$A$1:$X$800,D$41,FALSE)) -> * | E28: =IF(ISERROR(VLOOKUP($B28,ongoing1!$A$1:$X$800,E$41,FALSE)),"-",VLOOKUP($B28,ongoing1!$A$1:$X$800,E$41,FALSE)) -> 100 | F28: =IF(ISERROR(VLOOKUP($B28,ongoing1!$A$1:$X$800,F$41,FALSE)),"-",VLOOKUP($B28,ongoing1!$A$1:$X$800,F$41,FALSE)) -> 0 | G28: =IF(ISERROR(VLOOKUP($B28,ongoing1!$A$1:$X$800,G$41,FALSE)),"-",VLOOKUP($B28,ongoing1!$A$1:$X$800,G$41,FALSE)) -> 0 | H28: =IF(ISERROR(VLOOKUP($B28,ongoing1!$A$1:$X$800,H$41,FALSE)),"-",VLOOKUP($B28,ongoing1!$A$1:$X$800,H$41,FALSE)) -> 0 | I28: =IF(ISERROR(VLOOKUP($B28,ongoing1!$A$1:$X$800,I$41,FALSE)),"-",VLOOKUP($B28,ongoing1!$A$1:$X$800,I$41,FALSE)) -> 0 | J28: =IF(ISERROR(VLOOKUP($B28,ongoing1!$A$1:$X$800,J$41,FALSE)),"-",VLOOKUP($B28,ongoing1!$A$1:$X$800,J$41,FALSE)) -> 0 | K28: =IF(ISERROR(VLOOKUP($B28,ongoing1!$A$1:$X$800,K$41,FALSE)),"-",VLOOKUP($B28,ongoing1!$A$1:$X$800,K$41,FALSE)) -> 0 | L28: =IF(ISERROR(VLOOKUP($B28,ongoing1!$A$1:$X$800,L$41,FALSE)),"-",VLOOKUP($B28,ongoing1!$A$1:$X$800,L$41,FALSE)) -> 0 | M28: =IF(ISERROR(VLOOKUP($B28,ongoing1!$A$1:$X$800,M$41,FALSE)),"-",VLOOKUP($B28,ongoing1!$A$1:$X$800,M$41,FALSE)) -> 0 | N28: =IF(ISERROR(VLOOKUP($B28,ongoing1!$A$1:$X$800,N$41,FALSE)),"-",VLOOKUP($B28,ongoing1!$A$1:$X$800,N$41,FALSE)) -> 0 | O28: =IF(ISERROR(VLOOKUP($B28,ongoing1!$A$1:$X$800,O$41,FALSE)),"-",VLOOKUP($B28,ongoing1!$A$1:$X$800,O$41,FALSE)) -> 0 | Q28: =IF(ISERROR(VLOOKUP($B28,'percentage ongoing'!$A$1:$P$800,15,FALSE)),"-",VLOOKUP($B28,'percentage ongoing'!$A$1:$P$800,15,FALSE)) -> 100 | R28: =IF(ISERROR(VLOOKUP($B28,'percentage ongoing'!$A$1:$P$800,15,FALSE)),"-",VLOOKUP($B28,'percentage ongoing'!$A$1:$P$800,16,FALSE)) -> 100
A29: L202P | B29: L202PB12 | C29: HMP Shotts | D29: =IF(ISERROR(VLOOKUP($B29,ongoing1!$A$1:$X$800,D$41,FALSE)),"-",VLOOKUP($B29,ongoing1!$A$1:$X$800,D$41,FALSE)) -> * | E29: =IF(ISERROR(VLOOKUP($B29,ongoing1!$A$1:$X$800,E$41,FALSE)),"-",VLOOKUP($B29,ongoing1!$A$1:$X$800,E$41,FALSE)) -> 100 | F29: =IF(ISERROR(VLOOKUP($B29,ongoing1!$A$1:$X$800,F$41,FALSE)),"-",VLOOKUP($B29,ongoing1!$A$1:$X$800,F$41,FALSE)) -> 0 | G29: =IF(ISERROR(VLOOKUP($B29,ongoing1!$A$1:$X$800,G$41,FALSE)),"-",VLOOKUP($B29,ongoing1!$A$1:$X$800,G$41,FALSE)) -> 0 | H29: =IF(ISERROR(VLOOKUP($B29,ongoing1!$A$1:$X$800,H$41,FALSE)),"-",VLOOKUP($B29,ongoing1!$A$1:$X$800,H$41,FALSE)) -> 0 | I29: =IF(ISERROR(VLOOKUP($B29,ongoing1!$A$1:$X$800,I$41,FALSE)),"-",VLOOKUP($B29,ongoing1!$A$1:$X$800,I$41,FALSE)) -> 0 | J29: =IF(ISERROR(VLOOKUP($B29,ongoing1!$A$1:$X$800,J$41,FALSE)),"-",VLOOKUP($B29,ongoing1!$A$1:$X$800,J$41,FALSE)) -> 0 | K29: =IF(ISERROR(VLOOKUP($B29,ongoing1!$A$1:$X$800,K$41,FALSE)),"-",VLOOKUP($B29,ongoing1!$A$1:$X$800,K$41,FALSE)) -> 0 | L29: =IF(ISERROR(VLOOKUP($B29,ongoing1!$A$1:$X$800,L$41,FALSE)),"-",VLOOKUP($B29,ongoing1!$A$1:$X$800,L$41,FALSE)) -> 0 | M29: =IF(ISERROR(VLOOKUP($B29,ongoing1!$A$1:$X$800,M$41,FALSE)),"-",VLOOKUP($B29,ongoing1!$A$1:$X$800,M$41,FALSE)) -> 0 | N29: =IF(ISERROR(VLOOKUP($B29,ongoing1!$A$1:$X$800,N$41,FALSE)),"-",VLOOKUP($B29,ongoing1!$A$1:$X$800,N$41,FALSE)) -> 0 | O29: =IF(ISERROR(VLOOKUP($B29,ongoing1!$A$1:$X$800,O$41,FALSE)),"-",VLOOKUP($B29,ongoing1!$A$1:$X$800,O$41,FALSE)) -> 0 | Q29: =IF(ISERROR(VLOOKUP($B29,'percentage ongoing'!$A$1:$P$800,15,FALSE)),"-",VLOOKUP($B29,'percentage ongoing'!$A$1:$P$800,15,FALSE)) -> 100 | R29: =IF(ISERROR(VLOOKUP($B29,'percentage ongoing'!$A$1:$P$800,15,FALSE)),"-",VLOOKUP($B29,'percentage ongoing'!$A$1:$P$800,16,FALSE)) -> 100
A30: 211 | B30: 211B12 | C30: Lothian NHS | D30: =IF(ISERROR(VLOOKUP($B30,ongoing1!$A$1:$X$800,D$41,FALSE)),"-",VLOOKUP($B30,ongoing1!$A$1:$X$800,D$41,FALSE)) -> 54 | E30: =IF(ISERROR(VLOOKUP($B30,ongoing1!$A$1:$X$800,E$41,FALSE)),"-",VLOOKUP($B30,ongoing1!$A$1:$X$800,E$41,FALSE)) -> 5.555555556 | F30: =IF(ISERROR(VLOOKUP($B30,ongoing1!$A$1:$X$800,F$41,FALSE)),"-",VLOOKUP($B30,ongoing1!$A$1:$X$800,F$41,FALSE)) -> 5.555555556 | G30: =IF(ISERROR(VLOOKUP($B30,ongoing1!$A$1:$X$800,G$41,FALSE)),"-",VLOOKUP($B30,ongoing1!$A$1:$X$800,G$41,FALSE)) -> 3.703703704 | H30: =IF(ISERROR(VLOOKUP($B30,ongoing1!$A$1:$X$800,H$41,FALSE)),"-",VLOOKUP($B30,ongoing1!$A$1:$X$800,H$41,FALSE)) -> 14.81481481 | I30: =IF(ISERROR(VLOOKUP($B30,ongoing1!$A$1:$X$800,I$41,FALSE)),"-",VLOOKUP($B30,ongoing1!$A$1:$X$800,I$41,FALSE)) -> 5.555555556 | J30: =IF(ISERROR(VLOOKUP($B30,ongoing1!$A$1:$X$800,J$41,FALSE)),"-",VLOOKUP($B30,ongoing1!$A$1:$X$800,J$41,FALSE)) -> 11.11111111 | K30: =IF(ISERROR(VLOOKUP($B30,ongoing1!$A$1:$X$800,K$41,FALSE)),"-",VLOOKUP($B30,ongoing1!$A$1:$X$800,K$41,FALSE)) -> 11.11111111 | L30: =IF(ISERROR(VLOOKUP($B30,ongoing1!$A$1:$X$800,L$41,FALSE)),"-",VLOOKUP($B30,ongoing1!$A$1:$X$800,L$41,FALSE)) -> 7.407407407 | M30: =IF(ISERROR(VLOOKUP($B30,ongoing1!$A$1:$X$800,M$41,FALSE)),"-",VLOOKUP($B30,ongoing1!$A$1:$X$800,M$41,FALSE)) -> 7.407407407 | N30: =IF(ISERROR(VLOOKUP($B30,ongoing1!$A$1:$X$800,N$41,FALSE)),"-",VLOOKUP($B30,ongoing1!$A$1:$X$800,N$41,FALSE)) -> 1.851851852 | O30: =IF(ISERROR(VLOOKUP($B30,ongoing1!$A$1:$X$800,O$41,FALSE)),"-",VLOOKUP($B30,ongoing1!$A$1:$X$800,O$41,FALSE)) -> 25.92592593 | Q30: =IF(ISERROR(VLOOKUP($B30,'percentage ongoing'!$A$1:$P$800,15,FALSE)),"-",VLOOKUP($B30,'percentage ongoing'!$A$1:$P$800,15,FALSE)) -> 14.81481481 | R30: =IF(ISERROR(VLOOKUP($B30,'percentage ongoing'!$A$1:$P$800,15,FALSE)),"-",VLOOKUP($B30,'percentage ongoing'!$A$1:$P$800,16,FALSE)) -> 46.2962963
A31: S400P | B31: =CONCATENATE(A31,B$6,B$4) -> S400PB12 | C31: West Lothian ADP: HMP Addiewell | D31: =IF(ISERROR(VLOOKUP($B31,ongoing1!$A$1:$X$800,D$41,FALSE)),"-",VLOOKUP($B31,ongoing1!$A$1:$X$800,D$41,FALSE)) -> 47 | E31: =IF(ISERROR(VLOOKUP($B31,ongoing1!$A$1:$X$800,E$41,FALSE)),"-",VLOOKUP($B31,ongoing1!$A$1:$X$800,E$41,FALSE)) -> 6.382978723 | F31: =IF(ISERROR(VLOOKUP($B31,ongoing1!$A$1:$X$800,F$41,FALSE)),"-",VLOOKUP($B31,ongoing1!$A$1:$X$800,F$41,FALSE)) -> 2.127659574 | G31: =IF(ISERROR(VLOOKUP($B31,ongoing1!$A$1:$X$800,G$41,FALSE)),"-",VLOOKUP($B31,ongoing1!$A$1:$X$800,G$41,FALSE)) -> 4.255319149 | H31: =IF(ISERROR(VLOOKUP($B31,ongoing1!$A$1:$X$800,H$41,FALSE)),"-",VLOOKUP($B31,ongoing1!$A$1:$X$800,H$41,FALSE)) -> 17.0212766 | I31: =IF(ISERROR(VLOOKUP($B31,ongoing1!$A$1:$X$800,I$41,FALSE)),"-",VLOOKUP($B31,ongoing1!$A$1:$X$800,I$41,FALSE)) -> 2.127659574 | J31: =IF(ISERROR(VLOOKUP($B31,ongoing1!$A$1:$X$800,J$41,FALSE)),"-",VLOOKUP($B31,ongoing1!$A$1:$X$800,J$41,FALSE)) -> 12.76595745 | K31: =IF(ISERROR(VLOOKUP($B31,ongoing1!$A$1:$X$800,K$41,FALSE)),"-",VLOOKUP($B31,ongoing1!$A$1:$X$800,K$41,FALSE)) -> 10.63829787 | L31: =IF(ISERROR(VLOOKUP($B31,ongoing1!$A$1:$X$800,L$41,FALSE)),"-",VLOOKUP($B31,ongoing1!$A$1:$X$800,L$41,FALSE)) -> 6.382978723 | M31: =IF(ISERROR(VLOOKUP($B31,ongoing1!$A$1:$X$800,M$41,FALSE)),"-",VLOOKUP($B31,ongoing1!$A$1:$X$800,M$41,FALSE)) -> 8.510638298 | N31: =IF(ISERROR(VLOOKUP($B31,ongoing1!$A$1:$X$800,N$41,FALSE)),"-",VLOOKUP($B31,ongoing1!$A$1:$X$800,N$41,FALSE)) -> 2.127659574 | O31: =IF(ISERROR(VLOOKUP($B31,ongoing1!$A$1:$X$800,O$41,FALSE)),"-",VLOOKUP($B31,ongoing1!$A$1:$X$800,O$41,FALSE)) -> 27.65957447 | Q31: =IF(ISERROR(VLOOKUP($B31,'percentage ongoing'!$A$1:$P$800,15,FALSE)),"-",VLOOKUP($B31,'percentage ongoing'!$A$1:$P$800,15,FALSE)) -> 12.76595745 | R31: =IF(ISERROR(VLOOKUP($B31,'percentage ongoing'!$A$1:$P$800,15,FALSE)),"-",VLOOKUP($B31,'percentage ongoing'!$A$1:$P$800,16,FALSE)) -> 44.68085106
A32: S203P | B32: S203PB12 | C32: Edinburgh City ADP: HMP Edinburgh | D32: =IF(ISERROR(VLOOKUP($B32,ongoing1!$A$1:$X$800,D$41,FALSE)),"-",VLOOKUP($B32,ongoing1!$A$1:$X$800,D$41,FALSE)) -> 7 | E32: =IF(ISERROR(VLOOKUP($B32,ongoing1!$A$1:$X$800,E$41,FALSE)),"-",VLOOKUP($B32,ongoing1!$A$1:$X$800,E$41,FALSE)) -> 0 | F32: =IF(ISERROR(VLOOKUP($B32,ongoing1!$A$1:$X$800,F$41,FALSE)),"-",VLOOKUP($B32,ongoing1!$A$1:$X$800,F$41,FALSE)) -> 28.57142857 | G32: =IF(ISERROR(VLOOKUP($B32,ongoing1!$A$1:$X$800,G$41,FALSE)),"-",VLOOKUP($B32,ongoing1!$A$1:$X$800,G$41,FALSE)) -> 0 | H32: =IF(ISERROR(VLOOKUP($B32,ongoing1!$A$1:$X$800,H$41,FALSE)),"-",VLOOKUP($B32,ongoing1!$A$1:$X$800,H$41,FALSE)) -> 0 | I32: =IF(ISERROR(VLOOKUP($B32,ongoing1!$A$1:$X$800,I$41,FALSE)),"-",VLOOKUP($B32,ongoing1!$A$1:$X$800,I$41,FALSE)) -> 28.57142857 | J32: =IF(ISERROR(VLOOKUP($B32,ongoing1!$A$1:$X$800,J$41,FALSE)),"-",VLOOKUP($B32,ongoing1!$A$1:$X$800,J$41,FALSE)) -> 0 | K32: =IF(ISERROR(VLOOKUP($B32,ongoing1!$A$1:$X$800,K$41,FALSE)),"-",VLOOKUP($B32,ongoing1!$A$1:$X$800,K$41,FALSE)) -> 14.28571429 | L32: =IF(ISERROR(VLOOKUP($B32,ongoing1!$A$1:$X$800,L$41,FALSE)),"-",VLOOKUP($B32,ongoing1!$A$1:$X$800,L$41,FALSE)) -> 14.28571429 | M32: =IF(ISERROR(VLOOKUP($B32,ongoing1!$A$1:$X$800,M$41,FALSE)),"-",VLOOKUP($B32,ongoing1!$A$1:$X$800,M$41,FALSE)) -> 0 | N32: =IF(ISERROR(VLOOKUP($B32,ongoing1!$A$1:$X$800,N$41,FALSE)),"-",VLOOKUP($B32,ongoing1!$A$1:$X$800,N$41,FALSE)) -> 0 | O32: =IF(ISERROR(VLOOKUP($B32,ongoing1!$A$1:$X$800,O$41,FALSE)),"-",VLOOKUP($B32,ongoing1!$A$1:$X$800,O$41,FALSE)) -> 14.28571429 | Q32: =IF(ISERROR(VLOOKUP($B32,'percentage ongoing'!$A$1:$P$800,15,FALSE)),"-",VLOOKUP($B32,'percentage ongoing'!$A$1:$P$800,15,FALSE)) -> 28.57142857 | R32: =IF(ISERROR(VLOOKUP($B32,'percentage ongoing'!$A$1:$P$800,15,FALSE)),"-",VLOOKUP($B32,'percentage ongoing'!$A$1:$P$800,16,FALSE)) -> 57.14285714
A33: 214 | B33: 214B12 | C33: Tayside NHS | D33: =IF(ISERROR(VLOOKUP($B33,ongoing1!$A$1:$X$800,D$41,FALSE)),"-",VLOOKUP($B33,ongoing1!$A$1:$X$800,D$41,FALSE)) -> 12 | E33: =IF(ISERROR(VLOOKUP($B33,ongoing1!$A$1:$X$800,E$41,FALSE)),"-",VLOOKUP($B33,ongoing1!$A$1:$X$800,E$41,FALSE)) -> 66.66666667 | F33: =IF(ISERROR(VLOOKUP($B33,ongoing1!$A$1:$X$800,F$41,FALSE)),"-",VLOOKUP($B33,ongoing1!$A$1:$X$800,F$41,FALSE)) -> 0 | G33: =IF(ISERROR(VLOOKUP($B33,ongoing1!$A$1:$X$800,G$41,FALSE)),"-",VLOOKUP($B33,ongoing1!$A$1:$X$800,G$41,FALSE)) -> 16.66666667 | H33: =IF(ISERROR(VLOOKUP($B33,ongoing1!$A$1:$X$800,H$41,FALSE)),"-",VLOOKUP($B33,ongoing1!$A$1:$X$800,H$41,FALSE)) -> 0 | I33: =IF(ISERROR(VLOOKUP($B33,ongoing1!$A$1:$X$800,I$41,FALSE)),"-",VLOOKUP($B33,ongoing1!$A$1:$X$800,I$41,FALSE)) -> 0 | J33: =IF(ISERROR(VLOOKUP($B33,ongoing1!$A$1:$X$800,J$41,FALSE)),"-",VLOOKUP($B33,ongoing1!$A$1:$X$800,J$41,FALSE)) -> 0 | K33: =IF(ISERROR(VLOOKUP($B33,ongoing1!$A$1:$X$800,K$41,FALSE)),"-",VLOOKUP($B33,ongoing1!$A$1:$X$800,K$41,FALSE)) -> 8.333333333 | L33: =IF(ISERROR(VLOOKUP($B33,ongoing1!$A$1:$X$800,L$41,FALSE)),"-",VLOOKUP($B33,ongoing1!$A$1:$X$800,L$41,FALSE)) -> 8.333333333 | M33: =IF(ISERROR(VLOOKUP($B33,ongoing1!$A$1:$X$800,M$41,FALSE)),"-",VLOOKUP($B33,ongoing1!$A$1:$X$800,M$41,FALSE)) -> 0 | N33: =IF(ISERROR(VLOOKUP($B33,ongoing1!$A$1:$X$800,N$41,FALSE)),"-",VLOOKUP($B33,ongoing1!$A$1:$X$800,N$41,FALSE)) -> 0 | O33: =IF(ISERROR(VLOOKUP($B33,ongoing1!$A$1:$X$800,O$41,FALSE)),"-",VLOOKUP($B33,ongoing1!$A$1:$X$800,O$41,FALSE)) -> 0 | Q33: =IF(ISERROR(VLOOKUP($B33,'percentage ongoing'!$A$1:$P$800,15,FALSE)),"-",VLOOKUP($B33,'percentage ongoing'!$A$1:$P$800,15,FALSE)) -> 83.33333333 | R33: =IF(ISERROR(VLOOKUP($B33,'percentage ongoing'!$A$1:$P$800,15,FALSE)),"-",VLOOKUP($B33,'percentage ongoing'!$A$1:$P$800,16,FALSE)) -> 83.33333333
A34: T300P | B34: T300PB12 | C34: Perth and Kinross ADP: HMP Open Estate | D34: =IF(ISERROR(VLOOKUP($B34,ongoing1!$A$1:$X$800,D$41,FALSE)),"-",VLOOKUP($B34,ongoing1!$A$1:$X$800,D$41,FALSE)) -> - | E34: =IF(ISERROR(VLOOKUP($B34,ongoing1!$A$1:$X$800,E$41,FALSE)),"-",VLOOKUP($B34,ongoing1!$A$1:$X$800,E$41,FALSE)) -> - | F34: =IF(ISERROR(VLOOKUP($B34,ongoing1!$A$1:$X$800,F$41,FALSE)),"-",VLOOKUP($B34,ongoing1!$A$1:$X$800,F$41,FALSE)) -> - | G34: =IF(ISERROR(VLOOKUP($B34,ongoing1!$A$1:$X$800,G$41,FALSE)),"-",VLOOKUP($B34,ongoing1!$A$1:$X$800,G$41,FALSE)) -> - | H34: =IF(ISERROR(VLOOKUP($B34,ongoing1!$A$1:$X$800,H$41,FALSE)),"-",VLOOKUP($B34,ongoing1!$A$1:$X$800,H$41,FALSE)) -> - | I34: =IF(ISERROR(VLOOKUP($B34,ongoing1!$A$1:$X$800,I$41,FALSE)),"-",VLOOKUP($B34,ongoing1!$A$1:$X$800,I$41,FALSE)) -> - | J34: =IF(ISERROR(VLOOKUP($B34,ongoing1!$A$1:$X$800,J$41,FALSE)),"-",VLOOKUP($B34,ongoing1!$A$1:$X$800,J$41,FALSE)) -> - | K34: =IF(ISERROR(VLOOKUP($B34,ongoing1!$A$1:$X$800,K$41,FALSE)),"-",VLOOKUP($B34,ongoing1!$A$1:$X$800,K$41,FALSE)) -> - | L34: =IF(ISERROR(VLOOKUP($B34,ongoing1!$A$1:$X$800,L$41,FALSE)),"-",VLOOKUP($B34,ongoing1!$A$1:$X$800,L$41,FALSE)) -> - | M34: =IF(ISERROR(VLOOKUP($B34,ongoing1!$A$1:$X$800,M$41,FALSE)),"-",VLOOKUP($B34,ongoing1!$A$1:$X$800,M$41,FALSE)) -> - | N34: =IF(ISERROR(VLOOKUP($B34,ongoing1!$A$1:$X$800,N$41,FALSE)),"-",VLOOKUP($B34,ongoing1!$A$1:$X$800,N$41,FALSE)) -> - | O34: =IF(ISERROR(VLOOKUP($B34,ongoing1!$A$1:$X$800,O$41,FALSE)),"-",VLOOKUP($B34,ongoing1!$A$1:$X$800,O$41,FALSE)) -> - | Q34: =IF(ISERROR(VLOOKUP($B34,'percentage ongoing'!$A$1:$P$800,15,FALSE)),"-",VLOOKUP($B34,'percentage ongoing'!$A$1:$P$800,15,FALSE)) -> - | R34: =IF(ISERROR(VLOOKUP($B34,'percentage ongoing'!$A$1:$P$800,15,FALSE)),"-",VLOOKUP($B34,'percentage ongoing'!$A$1:$P$800,16,FALSE)) -> -
A35: T101P | B35: T101PB12 | C35: Perth and Kinross ADP: HMP Perth Prison | D35: =IF(ISERROR(VLOOKUP($B35,ongoing1!$A$1:$X$800,D$41,FALSE)),"-",VLOOKUP($B35,ongoing1!$A$1:$X$800,D$41,FALSE)) -> 12 | E35: =IF(ISERROR(VLOOKUP($B35,ongoing1!$A$1:$X$800,E$41,FALSE)),"-",VLOOKUP($B35,ongoing1!$A$1:$X$800,E$41,FALSE)) -> 66.66666667 | F35: =IF(ISERROR(VLOOKUP($B35,ongoing1!$A$1:$X$800,F$41,FALSE)),"-",VLOOKUP($B35,ongoing1!$A$1:$X$800,F$41,FALSE)) -> 0 | G35: =IF(ISERROR(VLOOKUP($B35,ongoing1!$A$1:$X$800,G$41,FALSE)),"-",VLOOKUP($B35,ongoing1!$A$1:$X$800,G$41,FALSE)) -> 16.66666667 | H35: =IF(ISERROR(VLOOKUP($B35,ongoing1!$A$1:$X$800,H$41,FALSE)),"-",VLOOKUP($B35,ongoing1!$A$1:$X$800,H$41,FALSE)) -> 0 | I35: =IF(ISERROR(VLOOKUP($B35,ongoing1!$A$1:$X$800,I$41,FALSE)),"-",VLOOKUP($B35,ongoing1!$A$1:$X$800,I$41,FALSE)) -> 0 | J35: =IF(ISERROR(VLOOKUP($B35,ongoing1!$A$1:$X$800,J$41,FALSE)),"-",VLOOKUP($B35,ongoing1!$A$1:$X$800,J$41,FALSE)) -> 0 | K35: =IF(ISERROR(VLOOKUP($B35,ongoing1!$A$1:$X$800,K$41,FALSE)),"-",VLOOKUP($B35,ongoing1!$A$1:$X$800,K$41,FALSE)) -> 8.333333333 | L35: =IF(ISERROR(VLOOKUP($B35,ongoing1!$A$1:$X$800,L$41,FALSE)),"-",VLOOKUP($B35,ongoing1!$A$1:$X$800,L$41,FALSE)) -> 8.333333333 | M35: =IF(ISERROR(VLOOKUP($B35,ongoing1!$A$1:$X$800,M$41,FALSE)),"-",VLOOKUP($B35,ongoing1!$A$1:$X$800,M$41,FALSE)) -> 0 | N35: =IF(ISERROR(VLOOKUP($B35,ongoing1!$A$1:$X$800,N$41,FALSE)),"-",VLOOKUP($B35,ongoing1!$A$1:$X$800,N$41,FALSE)) -> 0 | O35: =IF(ISERROR(VLOOKUP($B35,ongoing1!$A$1:$X$800,O$41,FALSE)),"-",VLOOKUP($B35,ongoing1!$A$1:$X$800,O$41,FALSE)) -> 0 | Q35: =IF(ISERROR(VLOOKUP($B35,'percentage ongoing'!$A$1:$P$800,15,FALSE)),"-",VLOOKUP($B35,'percentage ongoing'!$A$1:$P$800,15,FALSE)) -> 83.33333333 | R35: =IF(ISERROR(VLOOKUP($B35,'percentage ongoing'!$A$1:$P$800,15,FALSE)),"-",VLOOKUP($B35,'percentage ongoing'!$A$1:$P$800,16,FALSE)) -> 83.33333333
I36: -
C37: Source: Drug and Alcohol Treatment Waiting Times Database
C39: 1 indicates there are services within this ADP/Health Board that have been excluded due to data non-compliance for quarter's ending 31st December 2019. The exclusion may affect the ADP/Health Board's performace for those quarters.
D41: 13 | E41: 14 | F41: 15 | G41: 16 | H41: 17 | I41: 18 | J41: 19 | K41: 20 | L41: 21 | M41: 22 | N41: 23 | O41: 24
C42: Notes:
C43: 1. If menus are not active, change macro security settings using Tools, Macro, Security - set security level to Medium and re-open this report.
C44: Data for previous quarters has been revised. Data for the most recent quarter is provisional and will be subject to revisions in future publications.
C46: * Indicates values that have been suppressed due to the potential risk of disclosure and to help maintain client confidentiality.
C48: Details of compliance
C49: Index

Sheet ongoing1 (hidden)
A1: desc | B1: u8 | C1: d8to14 | D1: d15to21 | E1: d22to28 | F1: d29to35 | G1: d36to42 | H1: w7to8wk | I1: w9to12wk | J1: w13to16wk | K1: w17to20wk | L1: w21plus | M1: t1 | N1: pc_u8 | O1: pc_d8to14 | P1: pc_d15to21 | Q1: pc_d22to28 | R1: pc_d29to35 | S1: pc_d36to42 | T1: pc_w7to8wk | U1: pc_w9to12wk | V1: pc_w13to16wk | W1: pc_w17to20wk | X1: pc_w21plus
A2: A202Pb11 | B2: 8 | C2: 2 | D2: 1 | E2: 0 | F2: 0 | G2: 0 | H2: 0 | I2: 0 | J2: 0 | K2: 0 | L2: 0 | M2: 11 | N2: 72.72727273 | O2: 18.18181818 | P2: 9.090909091 | Q2: 0 | R2: 0 | S2: 0 | T2: 0 | U2: 0 | V2: 0 | W2: 0 | X2: 0
A3: H202Pb11 | B3: 4 | C3: 1 | D3: 1 | E3: 0 | F3: 0 | G3: 0 | H3: 0 | I3: 0 | J3: 0 | K3: 0 | L3: 0 | M3: 6 | N3: 66.66666667 | O3: 16.66666667 | P3: 16.66666667 | Q3: 0 | R3: 0 | S3: 0 | T3: 0 | U3: 0 | V3: 0 | W3: 0 | X3: 0
A4: L202Pb11 | B4: 1 | C4: 0 | D4: 0 | E4: 0 | F4: 0 | G4: 0 | H4: 0 | I4: 0 | J4: 0 | K4: 0 | L4: 0 | M4: * | N4: 100 | O4: 0 | P4: 0 | Q4: 0 | R4: 0 | S4: 0 | T4: 0 | U4: 0 | V4: 0 | W4: 0 | X4: 0
A5: S203Pb11 | B5: 17 | C5: 6 | D5: 6 | E5: 0 | F5: 0 | G5: 0 | H5: 1 | I5: 2 | J5: 0 | K5: 0 | L5: 0 | M5: 32 | N5: 53.125 | O5: 18.75 | P5: 18.75 | Q5: 0 | R5: 0 | S5: 0 | T5: 3.125 | U5: 6.25 | V5: 0 | W5: 0 | X5: 0
A6: S400Pb11 | B6: 8 | C6: 12 | D6: 5 | E6: 6 | F6: 2 | G6: 1 | H6: 2 | I6: 0 | J6: 0 | K6: 0 | L6: 4 | M6: 40 | N6: 20 | O6: 30 | P6: 12.5 | Q6: 15 | R6: 5 | S6: 2.5 | T6: 5 | U6: 0 | V6: 0 | W6: 0 | X6: 10
A7: T101Pb11 | B7: 6 | C7: 4 | D7: 2 | E7: 0 | F7: 0 | G7: 0 | H7: 0 | I7: 0 | J7: 0 | K7: 0 | L7: 0 | M7: 12 | N7: 50 | O7: 33.33333333 | P7: 16.66666667 | Q7: 0 | R7: 0 | S7: 0 | T7: 0 | U7: 0 | V7: 0 | W7: 0 | X7: 0
A8: V101Pb11 | B8: 2 | C8: 3 | D8: 1 | E8: 2 | F8: 0 | G8: 0 | H8: 2 | I8: 0 | J8: 0 | K8: 0 | L8: 0 | M8: * | N8: 20 | O8: 30 | P8: 10 | Q8: 20 | R8: 0 | S8: 0 | T8: 20 | U8: 0 | V8: 0 | W8: 0 | X8: 0
A9: V202Pb11 | B9: 0 | C9: 2 | D9: 0 | E9: 0 | F9: 0 | G9: 0 | H9: 0 | I9: 0 | J9: 0 | K9: 0 | L9: 0 | M9: * | N9: 0 | O9: 100 | P9: 0 | Q9: 0 | R9: 0 | S9: 0 | T9: 0 | U9: 0 | V9: 0 | W9: 0 | X9: 0
A10: Y101Pb11 | B10: 0 | C10: 1 | D10: 0 | E10: 0 | F10: 0 | G10: 0 | H10: 0 | I10: 0 | J10: 0 | K10: 0 | L10: 1 | M10: * | N10: 0 | O10: 50 | P10: 0 | Q10: 0 | R10: 0 | S10: 0 | T10: 0 | U10: 0 | V10: 0 | W10: 0 | X10: 50
A11: A202Pb12 | B11: 1 | C11: 0 | D11: 0 | E11: 0 | F11: 0 | G11: 0 | H11: 0 | I11: 0 | J11: 0 | K11: 0 | L11: 0 | M11: * | N11: 100 | O11: 0 | P11: 0 | Q11: 0 | R11: 0 | S11: 0 | T11: 0 | U11: 0 | V11: 0 | W11: 0 | X11: 0
A12: C203Pb12 | B12: 2 | C12: 1 | D12: 2 | E12: 1 | F12: 0 | G12: 0 | H12: 0 | I12: 0 | J12: 0 | K12: 0 | L12: 0 | M12: * | N12: 33.33333333 | O12: 16.66666667 | P12: 33.33333333 | Q12: 16.66666667 | R12: 0 | S12: 0 | T12: 0 | U12: 0 | V12: 0 | W12: 0 | X12: 0
A13: G101Pb12 | B13: 3 | C13: 0 | D13: 0 | E13: 0 | F13: 0 | G13: 0 | H13: 0 | I13: 0 | J13: 0 | K13: 0 | L13: 0 | M13: * | N13: 100 | O13: 0 | P13: 0 | Q13: 0 | R13: 0 | S13: 0 | T13: 0 | U13: 0 | V13: 0 | W13: 0 | X13: 0
A14: L202Pb12 | B14: 1 | C14: 0 | D14: 0 | E14: 0 | F14: 0 | G14: 0 | H14: 0 | I14: 0 | J14: 0 | K14: 0 | L14: 0 | M14: * | N14: 100 | O14: 0 | P14: 0 | Q14: 0 | R14: 0 | S14: 0 | T14: 0 | U14: 0 | V14: 0 | W14: 0 | X14: 0
A15: S203Pb12 | B15: 0 | C15: 2 | D15: 0 | E15: 0 | F15: 2 | G15: 0 | H15: 1 | I15: 1 | J15: 0 | K15: 0 | L15: 1 | M15: 7 | N15: 0 | O15: 28.57142857 | P15: 0 | Q15: 0 | R15: 28.57142857 | S15: 0 | T15: 14.28571429 | U15: 14.28571429 | V15: 0 | W15: 0 | X15: 14.28571429
A16: S400Pb12 | B16: 3 | C16: 1 | D16: 2 | E16: 8 | F16: 1 | G16: 6 | H16: 5 | I16: 3 | J16: 4 | K16: 1 | L16: 13 | M16: 47 | N16: 6.382978723 | O16: 2.127659574 | P16: 4.255319149 | Q16: 17.0212766 | R16: 2.127659574 | S16: 12.76595745 | T16: 10.63829787 | U16: 6.382978723 | V16: 8.510638298 | W16: 2.127659574 | X16: 27.65957447
A17: T101Pb12 | B17: 8 | C17: 0 | D17: 2 | E17: 0 | F17: 0 | G17: 0 | H17: 1 | I17: 1 | J17: 0 | K17: 0 | L17: 0 | M17: 12 | N17: 66.66666667 | O17: 0 | P17: 16.66666667 | Q17: 0 | R17: 0 | S17: 0 | T17: 8.333333333 | U17: 8.333333333 | V17: 0 | W17: 0 | X17: 0
A18: V101Pb12 | B18: 3 | C18: 8 | D18: 7 | E18: 0 | F18: 1 | G18: 4 | H18: 0 | I18: 0 | J18: 0 | K18: 0 | L18: 0 | M18: 23 | N18: 13.04347826 | O18: 34.7826087 | P18: 30.43478261 | Q18: 0 | R18: 4.347826087 | S18: 17.39130435 | T18: 0 | U18: 0 | V18: 0 | W18: 0 | X18: 0
A19: V202Pb12 | B19: 0 | C19: 0 | D19: 0 | E19: 2 | F19: 0 | G19: 0 | H19: 0 | I19: 0 | J19: 0 | K19: 0 | L19: 0 | M19: * | N19: 0 | O19: 0 | P19: 0 | Q19: 100 | R19: 0 | S19: 0 | T19: 0 | U19: 0 | V19: 0 | W19: 0 | X19: 0
A20: V203Pb12 | B20: 2 | C20: 0 | D20: 0 | E20: 0 | F20: 0 | G20: 0 | H20: 0 | I20: 0 | J20: 0 | K20: 0 | L20: 0 | M20: * | N20: 100 | O20: 0 | P20: 0 | Q20: 0 | R20: 0 | S20: 0 | T20: 0 | U20: 0 | V20: 0 | W20: 0 | X20: 0
A21: A202Pb21 | B21: 3 | C21: 0 | D21: 0 | E21: 0 | F21: 0 | G21: 0 | H21: 0 | I21: 0 | J21: 0 | K21: 0 | L21: 0 | M21: * | N21: 100 | O21: 0 | P21: 0 | Q21: 0 | R21: 0 | S21: 0 | T21: 0 | U21: 0 | V21: 0 | W21: 0 | X21: 0
A22: H202Pb21 | B22: 1 | C22: 1 | D22: 2 | E22: 0 | F22: 0 | G22: 1 | H22: 0 | I22: 0 | J22: 0 | K22: 0 | L22: 0 | M22: 5 | N22: 20 | O22: 20 | P22: 40 | Q22: 0 | R22: 0 | S22: 20 | T22: 0 | U22: 0 | V22: 0 | W22: 0 | X22: 0
A23: L202Pb21 | B23: 4 | C23: 0 | D23: 0 | E23: 0 | F23: 0 | G23: 0 | H23: 0 | I23: 0 | J23: 0 | K23: 0 | L23: 0 | M23: * | N23: 100 | O23: 0 | P23: 0 | Q23: 0 | R23: 0 | S23: 0 | T23: 0 | U23: 0 | V23: 0 | W23: 0 | X23: 0
A24: S203Pb21 | B24: 5 | C24: 4 | D24: 2 | E24: 6 | F24: 0 | G24: 0 | H24: 0 | I24: 0 | J24: 0 | K24: 0 | L24: 1 | M24: 18 | N24: 27.77777778 | O24: 22.22222222 | P24: 11.11111111 | Q24: 33.33333333 | R24: 0 | S24: 0 | T24: 0 | U24: 0 | V24: 0 | W24: 0 | X24: 5.555555556
A25: S400Pb21 | B25: 13 | C25: 19 | D25: 2 | E25: 0 | F25: 1 | G25: 1 | H25: 1 | I25: 0 | J25: 0 | K25: 1 | L25: 4 | M25: 42 | N25: 30.95238095 | O25: 45.23809524 | P25: 4.761904762 | Q25: 0 | R25: 2.380952381 | S25: 2.380952381 | T25: 2.380952381 | U25: 0 | V25: 0 | W25: 2.380952381 | X25: 9.523809524
A26: T101Pb21 | B26: 6 | C26: 11 | D26: 0 | E26: 4 | F26: 4 | G26: 0 | H26: 0 | I26: 1 | J26: 0 | K26: 0 | L26: 0 | M26: 26 | N26: 23.07692308 | O26: 42.30769231 | P26: 0 | Q26: 15.38461538 | R26: 15.38461538 | S26: 0 | T26: 0 | U26: 3.846153846 | V26: 0 | W26: 0 | X26: 0
A27: V101Pb21 | B27: 3 | C27: 2 | D27: 1 | E27: 0 | F27: 0 | G27: 0 | H27: 0 | I27: 0 | J27: 0 | K27: 0 | L27: 0 | M27: 6 | N27: 50 | O27: 33.33333333 | P27: 16.66666667 | Q27: 0 | R27: 0 | S27: 0 | T27: 0 | U27: 0 | V27: 0 | W27: 0 | X27: 0
A28: V202Pb21 | B28: 0 | C28: 1 | D28: 0 | E28: 0 | F28: 0 | G28: 0 | H28: 0 | I28: 0 | J28: 0 | K28: 0 | L28: 0 | M28: * | N28: 0 | O28: 100 | P28: 0 | Q28: 0 | R28: 0 | S28: 0 | T28: 0 | U28: 0 | V28: 0 | W28: 0 | X28: 0
A29: V203Pb21 | B29: 1 | C29: 1 | D29: 0 | E29: 0 | F29: 0 | G29: 0 | H29: 0 | I29: 0 | J29: 0 | K29: 0 | L29: 0 | M29: * | N29: 50 | O29: 50 | P29: 0 | Q29: 0 | R29: 0 | S29: 0 | T29: 0 | U29: 0 | V29: 0 | W29: 0 | X29: 0
A30: Y101Pb21 | B30: 0 | C30: 0 | D30: 0 | E30: 0 | F30: 0 | G30: 0 | H30: 0 | I30: 0 | J30: 1 | K30: 0 | L30: 1 | M30: * | N30: 0 | O30: 0 | P30: 0 | Q30: 0 | R30: 0 | S30: 0 | T30: 0 | U30: 0 | V30: 50 | W30: 0 | X30: 50
A31: A202Pb31 | B31: 6 | C31: 3 | D31: 0 | E31: 0 | F31: 0 | G31: 0 | H31: 0 | I31: 0 | J31: 0 | K31: 0 | L31: 0 | M31: 9 | N31: 66.66666667 | O31: 33.33333333 | P31: 0 | Q31: 0 | R31: 0 | S31: 0 | T31: 0 | U31: 0 | V31: 0 | W31: 0 | X31: 0
A32: C203Pb31 | B32: 1 | C32: 0 | D32: 0 | E32: 0 | F32: 0 | G32: 0 | H32: 0 | I32: 0 | J32: 0 | K32: 0 | L32: 0 | M32: * | N32: 100 | O32: 0 | P32: 0 | Q32: 0 | R32: 0 | S32: 0 | T32: 0 | U32: 0 | V32: 0 | W32: 0 | X32: 0
A33: S203Pb31 | B33: 12 | C33: 11 | D33: 11 | E33: 5 | F33: 1 | G33: 1 | H33: 1 | I33: 3 | J33: 0 | K33: 0 | L33: 1 | M33: 46 | N33: 26.08695652 | O33: 23.91304348 | P33: 23.91304348 | Q33: 10.86956522 | R33: 2.173913043 | S33: 2.173913043 | T33: 2.173913043 | U33: 6.52173913 | V33: 0 | W33: 0 | X33: 2.173913043
A34: S400Pb31 | B34: 13 | C34: 6 | D34: 1 | E34: 1 | F34: 2 | G34: 0 | H34: 2 | I34: 0 | J34: 2 | K34: 1 | L34: 6 | M34: 34 | N34: 38.23529412 | O34: 17.64705882 | P34: 2.941176471 | Q34: 2.941176471 | R34: 5.882352941 | S34: 0 | T34: 5.882352941 | U34: 0 | V34: 5.882352941 | W34: 2.941176471 | X34: 17.64705882
A35: T101Pb31 | B35: 4 | C35: 6 | D35: 2 | E35: 1 | F35: 1 | G35: 0 | H35: 0 | I35: 0 | J35: 0 | K35: 0 | L35: 0 | M35: 14 | N35: 28.57142857 | O35: 42.85714286 | P35: 14.28571429 | Q35: 7.142857143 | R35: 7.142857143 | S35: 0 | T35: 0 | U35: 0 | V35: 0 | W35: 0 | X35: 0
A36: V101Pb31 | B36: 9 | C36: 0 | D36: 6 | E36: 4 | F36: 0 | G36: 0 | H36: 0 | I36: 0 | J36: 0 | K36: 0 | L36: 0 | M36: 19 | N36: 47.36842105 | O36: 0 | P36: 31.57894737 | Q36: 21.05263158 | R36: 0 | S36: 0 | T36: 0 | U36: 0 | V36: 0 | W36: 0 | X36: 0
A37: V202Pb31 | B37: 3 | C37: 0 | D37: 0 | E37: 0 | F37: 0 | G37: 0 | H37: 0 | I37: 0 | J37: 0 | K37: 0 | L37: 0 | M37: * | N37: 100 | O37: 0 | P37: 0 | Q37: 0 | R37: 0 | S37: 0 | T37: 0 | U37: 0 | V37: 0 | W37: 0 | X37: 0
A38: V203Pb31 | B38: 2 | C38: 1 | D38: 0 | E38: 0 | F38: 0 | G38: 0 | H38: 0 | I38: 0 | J38: 0 | K38: 0 | L38: 0 | M38: * | N38: 66.66666667 | O38: 33.33333333 | P38: 0 | Q38: 0 | R38: 0 | S38: 0 | T38: 0 | U38: 0 | V38: 0 | W38: 0 | X38: 0
A39: Y101Pb31 | B39: 0 | C39: 0 | D39: 0 | E39: 0 | F39: 0 | G39: 0 | H39: 0 | I39: 0 | J39: 0 | K39: 0 | L39: 2 | M39: * | N39: 0 | O39: 0 | P39: 0 | Q39: 0 | R39: 0 | S39: 0 | T39: 0 | U39: 0 | V39: 0 | W39: 0 | X39: 100
A40: A202Pb41 | B40: 1 | C40: 2 | D40: 0 | E40: 0 | F40: 0 | G40: 0 | H40: 0 | I40: 0 | J40: 0 | K40: 0 | L40: 0 | M40: * | N40: 33.33333333 | O40: 66.66666667 | P40: 0 | Q40: 0 | R40: 0 | S40: 0 | T40: 0 | U40: 0 | V40: 0 | W40: 0 | X40: 0
A41: C203Pb41 | B41: 1 | C41: 1 | D41: 1 | E41: 0 | F41: 0 | G41: 0 | H41: 1 | I41: 0 | J41: 0 | K41: 0 | L41: 0 | M41: * | N41: 25 | O41: 25 | P41: 25 | Q41: 0 | R41: 0 | S41: 0 | T41: 25 | U41: 0 | V41: 0 | W41: 0 | X41: 0
A42: G101Pb41 | B42: 6 | C42: 0 | D42: 0 | E42: 0 | F42: 0 | G42: 0 | H42: 0 | I42: 0 | J42: 0 | K42: 0 | L42: 0 | M42: * | N42: 100 | O42: 0 | P42: 0 | Q42: 0 | R42: 0 | S42: 0 | T42: 0 | U42: 0 | V42: 0 | W42: 0 | X42: 0
A43: H202Pb41 | B43: 4 | C43: 4 | D43: 1 | E43: 0 | F43: 0 | G43: 0 | H43: 0 | I43: 0 | J43: 0 | K43: 0 | L43: 0 | M43: 9 | N43: 44.44444444 | O43: 44.44444444 | P43: 11.11111111 | Q43: 0 | R43: 0 | S43: 0 | T43: 0 | U43: 0 | V43: 0 | W43: 0 | X43: 0
A44: S203Pb41 | B44: 14 | C44: 15 | D44: 8 | E44: 0 | F44: 0 | G44: 0 | H44: 5 | I44: 6 | J44: 4 | K44: 1 | L44: 1 | M44: 54 | N44: 25.92592593 | O44: 27.77777778 | P44: 14.81481481 | Q44: 0 | R44: 0 | S44: 0 | T44: 9.259259259 | U44: 11.11111111 | V44: 7.407407407 | W44: 1.851851852 | X44: 1.851851852
A45: S400Pb41 | B45: 9 | C45: 6 | D45: 6 | E45: 1 | F45: 0 | G45: 0 | H45: 3 | I45: 1 | J45: 1 | K45: 1 | L45: 9 | M45: 37 | N45: 24.32432432 | O45: 16.21621622 | P45: 16.21621622 | Q45: 2.702702703 | R45: 0 | S45: 0 | T45: 8.108108108 | U45: 2.702702703 | V45: 2.702702703 | W45: 2.702702703 | X45: 24.32432432
A46: T101Pb41 | B46: 7 | C46: 5 | D46: 4 | E46: 4 | F46: 1 | G46: 1 | H46: 0 | I46: 0 | J46: 0 | K46: 0 | L46: 0 | M46: 22 | N46: 31.81818182 | O46: 22.72727273 | P46: 18.18181818 | Q46: 18.18181818 | R46: 4.545454545 | S46: 4.545454545 | T46: 0 | U46: 0 | V46: 0 | W46: 0 | X46: 0
A47: V101Pb41 | B47: 0 | C47: 0 | D47: 3 | E47: 1 | F47: 0 | G47: 0 | H47: 0 | I47: 0 | J47: 0 | K47: 0 | L47: 0 | M47: * | N47: 0 | O47: 0 | P47: 75 | Q47: 25 | R47: 0 | S47: 0 | T47: 0 | U47: 0 | V47: 0 | W47: 0 | X47: 0
A48: V202Pb41 | B48: 2 | C48: 0 | D48: 0 | E48: 0 | F48: 0 | G48: 0 | H48: 0 | I48: 0 | J48: 0 | K48: 0 | L48: 0 | M48: * | N48: 100 | O48: 0 | P48: 0 | Q48: 0 | R48: 0 | S48: 0 | T48: 0 | U48: 0 | V48: 0 | W48: 0 | X48: 0
A49: V203Pb41 | B49: 1 | C49: 1 | D49: 0 | E49: 0 | F49: 0 | G49: 0 | H49: 0 | I49: 0 | J49: 0 | K49: 0 | L49: 0 | M49: * | N49: 50 | O49: 50 | P49: 0 | Q49: 0 | R49: 0 | S49: 0 | T49: 0 | U49: 0 | V49: 0 | W49: 0 | X49: 0
A50: A202Pd11 | B50: 8 | C50: 2 | D50: 1 | E50: 0 | F50: 0 | G50: 0 | H50: 0 | I50: 0 | J50: 0 | K50: 0 | L50: 0 | M50: 11 | N50: 72.72727273 | O50: 18.18181818 | P50: 9.090909091 | Q50: 0 | R50: 0 | S50: 0 | T50: 0 | U50: 0 | V50: 0 | W50: 0 | X50: 0
A51: H202Pd11 | B51: 3 | C51: 0 | D51: 1 | E51: 0 | F51: 0 | G51: 0 | H51: 0 | I51: 0 | J51: 0 | K51: 0 | L51: 0 | M51: * | N51: 75 | O51: 0 | P51: 25 | Q51: 0 | R51: 0 | S51: 0 | T51: 0 | U51: 0 | V51: 0 | W51: 0 | X51: 0
A52: L202Pd11 | B52: 1 | C52: 0 | D52: 0 | E52: 0 | F52: 0 | G52: 0 | H52: 0 | I52: 0 | J52: 0 | K52: 0 | L52: 0 | M52: * | N52: 100 | O52: 0 | P52: 0 | Q52: 0 | R52: 0 | S52: 0 | T52: 0 | U52: 0 | V52: 0 | W52: 0 | X52: 0
A53: S203Pd11 | B53: 6 | C53: 5 | D53: 5 | E53: 0 | F53: 0 | G53: 0 | H53: 0 | I53: 1 | J53: 0 | K53: 0 | L53: 0 | M53: * | N53: 35.29411765 | O53: 29.41176471 | P53: 29.41176471 | Q53: 0 | R53: 0 | S53: 0 | T53: 0 | U53: 5.882352941 | V53: 0 | W53: 0 | X53: 0
A54: S400Pd11 | B54: 8 | C54: 12 | D54: 5 | E54: 6 | F54: 2 | G54: 1 | H54: 1 | I54: 0 | J54: 0 | K54: 0 | L54: 4 | M54: * | N54: 20.51282051 | O54: 30.76923077 | P54: 12.82051282 | Q54: 15.38461538 | R54: 5.128205128 | S54: 2.564102564 | T54: 2.564102564 | U54: 0 | V54: 0 | W54: 0 | X54: 10.25641026
A55: T101Pd11 | B55: 6 | C55: 4 | D55: 2 | E55: 0 | F55: 0 | G55: 0 | H55: 0 | I55: 0 | J55: 0 | K55: 0 | L55: 0 | M55: 12 | N55: 50 | O55: 33.33333333 | P55: 16.66666667 | Q55: 0 | R55: 0 | S55: 0 | T55: 0 | U55: 0 | V55: 0 | W55: 0 | X55: 0
A56: V101Pd11 | B56: 1 | C56: 1 | D56: 1 | E56: 1 | F56: 0 | G56: 0 | H56: 2 | I56: 0 | J56: 0 | K56: 0 | L56: 0 | M56: * | N56: 16.66666667 | O56: 16.66666667 | P56: 16.66666667 | Q56: 16.66666667 | R56: 0 | S56: 0 | T56: 33.33333333 | U56: 0 | V56: 0 | W56: 0 | X56: 0
A57: V202Pd11 | B57: 0 | C57: 2 | D57: 0 | E57: 0 | F57: 0 | G57: 0 | H57: 0 | I57: 0 | J57: 0 | K57: 0 | L57: 0 | M57: * | N57: 0 | O57: 100 | P57: 0 | Q57: 0 | R57: 0 | S57: 0 | T57: 0 | U57: 0 | V57: 0 | W57: 0 | X57: 0
A58: Y101Pd11 | B58: 0 | C58: 1 | D58: 0 | E58: 0 | F58: 0 | G58: 0 | H58: 0 | I58: 0 | J58: 0 | K58: 0 | L58: 1 | M58: * | N58: 0 | O58: 50 | P58: 0 | Q58: 0 | R58: 0 | S58: 0 | T58: 0 | U58: 0 | V58: 0 | W58: 0 | X58: 50
A59: A202Pd12 | B59: 1 | C59: 0 | D59: 0 | E59: 0 | F59: 0 | G59: 0 | H59: 0 | I59: 0 | J59: 0 | K59: 0 | L59: 0 | M59: * | N59: 100 | O59: 0 | P59: 0 | Q59: 0 | R59: 0 | S59: 0 | T59: 0 | U59: 0 | V59: 0 | W59: 0 | X59: 0
A60: C203Pd12 | B60: 2 | C60: 1 | D60: 2 | E60: 1 | F60: 0 | G60: 0 | H60: 0 | I60: 0 | J60: 0 | K60: 0 | L60: 0 | M60: * | N60: 33.33333333 | O60: 16.66666667 | P60: 33.33333333 | Q60: 16.66666667 | R60: 0 | S60: 0 | T60: 0 | U60: 0 | V60: 0 | W60: 0 | X60: 0
A61: G101Pd12 | B61: 3 | C61: 0 | D61: 0 | E61: 0 | F61: 0 | G61: 0 | H61: 0 | I61: 0 | J61: 0 | K61: 0 | L61: 0 | M61: * | N61: 100 | O61: 0 | P61: 0 | Q61: 0 | R61: 0 | S61: 0 | T61: 0 | U61: 0 | V61: 0 | W61: 0 | X61: 0
A62: L202Pd12 | B62: 1 | C62: 0 | D62: 0 | E62: 0 | F62: 0 | G62: 0 | H62: 0 | I62: 0 | J62: 0 | K62: 0 | L62: 0 | M62: * | N62: 100 | O62: 0 | P62: 0 | Q62: 0 | R62: 0 | S62: 0 | T62: 0 | U62: 0 | V62: 0 | W62: 0 | X62: 0
A63: S203Pd12 | B63: 0 | C63: 2 | D63: 0 | E63: 0 | F63: 2 | G63: 0 | H63: 0 | I63: 0 | J63: 0 | K63: 0 | L63: 1 | M63: * | N63: 0 | O63: 40 | P63: 0 | Q63: 0 | R63: 40 | S63: 0 | T63: 0 | U63: 0 | V63: 0 | W63: 0 | X63: 20
A64: S400Pd12 | B64: 3 | C64: 1 | D64: 2 | E64: 8 | F64: 1 | G64: 6 | H64: 5 | I64: 3 | J64: 4 | K64: 1 | L64: 13 | M64: 47 | N64: 6.382978723 | O64: 2.127659574 | P64: 4.255319149 | Q64: 17.0212766 | R64: 2.127659574 | S64: 12.76595745 | T64: 10.63829787 | U64: 6.382978723 | V64: 8.510638298 | W64: 2.127659574 | X64: 27.65957447
A65: T101Pd12 | B65: 7 | C65: 0 | D65: 2 | E65: 0 | F65: 0 | G65: 0 | H65: 1 | I65: 1 | J65: 0 | K65: 0 | L65: 0 | M65: * | N65: 63.63636364 | O65: 0 | P65: 18.18181818 | Q65: 0 | R65: 0 | S65: 0 | T65: 9.090909091 | U65: 9.090909091 | V65: 0 | W65: 0 | X65: 0
A66: V101Pd12 | B66: 2 | C66: 5 | D66: 6 | E66: 0 | F66: 0 | G66: 4 | H66: 0 | I66: 0 | J66: 0 | K66: 0 | L66: 0 | M66: 17 | N66: 11.76470588 | O66: 29.41176471 | P66: 35.29411765 | Q66: 0 | R66: 0 | S66: 23.52941176 | T66: 0 | U66: 0 | V66: 0 | W66: 0 | X66: 0
A67: V202Pd12 | B67: 0 | C67: 0 | D67: 0 | E67: 2 | F67: 0 | G67: 0 | H67: 0 | I67: 0 | J67: 0 | K67: 0 | L67: 0 | M67: * | N67: 0 | O67: 0 | P67: 0 | Q67: 100 | R67: 0 | S67: 0 | T67: 0 | U67: 0 | V67: 0 | W67: 0 | X67: 0
A68: V203Pd12 | B68: 2 | C68: 0 | D68: 0 | E68: 0 | F68: 0 | G68: 0 | H68: 0 | I68: 0 | J68: 0 | K68: 0 | L68: 0 | M68: * | N68: 100 | O68: 0 | P68: 0 | Q68: 0 | R68: 0 | S68: 0 | T68: 0 | U68: 0 | V68: 0 | W68: 0 | X68: 0
A69: A202Pd21 | B69: 3 | C69: 0 | D69: 0 | E69: 0 | F69: 0 | G69: 0 | H69: 0 | I69: 0 | J69: 0 | K69: 0 | L69: 0 | M69: * | N69: 100 | O69: 0 | P69: 0 | Q69: 0 | R69: 0 | S69: 0 | T69: 0 | U69: 0 | V69: 0 | W69: 0 | X69: 0
A70: H202Pd21 | B70: 0 | C70: 1 | D70: 0 | E70: 0 | F70: 0 | G70: 0 | H70: 0 | I70: 0 | J70: 0 | K70: 0 | L70: 0 | M70: * | N70: 0 | O70: 100 | P70: 0 | Q70: 0 | R70: 0 | S70: 0 | T70: 0 | U70: 0 | V70: 0 | W70: 0 | X70: 0
A71: L202Pd21 | B71: 4 | C71: 0 | D71: 0 | E71: 0 | F71: 0 | G71: 0 | H71: 0 | I71: 0 | J71: 0 | K71: 0 | L71: 0 | M71: * | N71: 100 | O71: 0 | P71: 0 | Q71: 0 | R71: 0 | S71: 0 | T71: 0 | U71: 0 | V71: 0 | W71: 0 | X71: 0
A72: S203Pd21 | B72: 4 | C72: 4 | D72: 2 | E72: 6 | F72: 0 | G72: 0 | H72: 0 | I72: 0 | J72: 0 | K72: 0 | L72: 0 | M72: * | N72: 25 | O72: 25 | P72: 12.5 | Q72: 37.5 | R72: 0 | S72: 0 | T72: 0 | U72: 0 | V72: 0 | W72: 0 | X72: 0
A73: S400Pd21 | B73: 13 | C73: 17 | D73: 2 | E73: 0 | F73: 1 | G73: 1 | H73: 1 | I73: 0 | J73: 0 | K73: 1 | L73: 4 | M73: * | N73: 32.5 | O73: 42.5 | P73: 5 | Q73: 0 | R73: 2.5 | S73: 2.5 | T73: 2.5 | U73: 0 | V73: 0 | W73: 2.5 | X73: 10
A74: T101Pd21 | B74: 6 | C74: 11 | D74: 0 | E74: 4 | F74: 4 | G74: 0 | H74: 0 | I74: 1 | J74: 0 | K74: 0 | L74: 0 | M74: 26 | N74: 23.07692308 | O74: 42.30769231 | P74: 0 | Q74: 15.38461538 | R74: 15.38461538 | S74: 0 | T74: 0 | U74: 3.846153846 | V74: 0 | W74: 0 | X74: 0
A75: V101Pd21 | B75: 3 | C75: 2 | D75: 1 | E75: 0 | F75: 0 | G75: 0 | H75: 0 | I75: 0 | J75: 0 | K75: 0 | L75: 0 | M75: 6 | N75: 50 | O75: 33.33333333 | P75: 16.66666667 | Q75: 0 | R75: 0 | S75: 0 | T75: 0 | U75: 0 | V75: 0 | W75: 0 | X75: 0
A76: V202Pd21 | B76: 0 | C76: 1 | D76: 0 | E76: 0 | F76: 0 | G76: 0 | H76: 0 | I76: 0 | J76: 0 | K76: 0 | L76: 0 | M76: * | N76: 0 | O76: 100 | P76: 0 | Q76: 0 | R76: 0 | S76: 0 | T76: 0 | U76: 0 | V76: 0 | W76: 0 | X76: 0
A77: Y101Pd21 | B77: 0 | C77: 0 | D77: 0 | E77: 0 | F77: 0 | G77: 0 | H77: 0 | I77: 0 | J77: 1 | K77: 0 | L77: 1 | M77: * | N77: 0 | O77: 0 | P77: 0 | Q77: 0 | R77: 0 | S77: 0 | T77: 0 | U77: 0 | V77: 50 | W77: 0 | X77: 50
A78: A202Pd31 | B78: 6 | C78: 3 | D78: 0 | E78: 0 | F78: 0 | G78: 0 | H78: 0 | I78: 0 | J78: 0 | K78: 0 | L78: 0 | M78: 9 | N78: 66.66666667 | O78: 33.33333333 | P78: 0 | Q78: 0 | R78: 0 | S78: 0 | T78: 0 | U78: 0 | V78: 0 | W78: 0 | X78: 0
A79: S203Pd31 | B79: 8 | C79: 10 | D79: 8 | E79: 5 | F79: 1 | G79: 1 | H79: 1 | I79: 2 | J79: 0 | K79: 0 | L79: 0 | M79: 36 | N79: 22.22222222 | O79: 27.77777778 | P79: 22.22222222 | Q79: 13.88888889 | R79: 2.777777778 | S79: 2.777777778 | T79: 2.777777778 | U79: 5.555555556 | V79: 0 | W79: 0 | X79: 0
A80: S400Pd31 | B80: 13 | C80: 6 | D80: 1 | E80: 1 | F80: 2 | G80: 0 | H80: 2 | I80: 0 | J80: 2 | K80: 1 | L80: 6 | M80: 34 | N80: 38.23529412 | O80: 17.64705882 | P80: 2.941176471 | Q80: 2.941176471 | R80: 5.882352941 | S80: 0 | T80: 5.882352941 | U80: 0 | V80: 5.882352941 | W80: 2.941176471 | X80: 17.64705882
A81: T101Pd31 | B81: 4 | C81: 6 | D81: 2 | E81: 1 | F81: 1 | G81: 0 | H81: 0 | I81: 0 | J81: 0 | K81: 0 | L81: 0 | M81: 14 | N81: 28.57142857 | O81: 42.85714286 | P81: 14.28571429 | Q81: 7.142857143 | R81: 7.142857143 | S81: 0 | T81: 0 | U81: 0 | V81: 0 | W81: 0 | X81: 0
A82: V101Pd31 | B82: 8 | C82: 0 | D82: 5 | E82: 3 | F82: 0 | G82: 0 | H82: 0 | I82: 0 | J82: 0 | K82: 0 | L82: 0 | M82: * | N82: 50 | O82: 0 | P82: 31.25 | Q82: 18.75 | R82: 0 | S82: 0 | T82: 0 | U82: 0 | V82: 0 | W82: 0 | X82: 0
A83: V202Pd31 | B83: 3 | C83: 0 | D83: 0 | E83: 0 | F83: 0 | G83: 0 | H83: 0 | I83: 0 | J83: 0 | K83: 0 | L83: 0 | M83: * | N83: 100 | O83: 0 | P83: 0 | Q83: 0 | R83: 0 | S83: 0 | T83: 0 | U83: 0 | V83: 0 | W83: 0 | X83: 0
A84: V203Pd31 | B84: 2 | C84: 1 | D84: 0 | E84: 0 | F84: 0 | G84: 0 | H84: 0 | I84: 0 | J84: 0 | K84: 0 | L84: 0 | M84: * | N84: 66.66666667 | O84: 33.33333333 | P84: 0 | Q84: 0 | R84: 0 | S84: 0 | T84: 0 | U84: 0 | V84: 0 | W84: 0 | X84: 0
A85: Y101Pd31 | B85: 0 | C85: 0 | D85: 0 | E85: 0 | F85: 0 | G85: 0 | H85: 0 | I85: 0 | J85: 0 | K85: 0 | L85: 2 | M85: * | N85: 0 | O85: 0 | P85: 0 | Q85: 0 | R85: 0 | S85: 0 | T85: 0 | U85: 0 | V85: 0 | W85: 0 | X85: 100
A86: A202Pd41 | B86: 1 | C86: 2 | D86: 0 | E86: 0 | F86: 0 | G86: 0 | H86: 0 | I86: 0 | J86: 0 | K86: 0 | L86: 0 | M86: * | N86: 33.33333333 | O86: 66.66666667 | P86: 0 | Q86: 0 | R86: 0 | S86: 0 | T86: 0 | U86: 0 | V86: 0 | W86: 0 | X86: 0
A87: C203Pd41 | B87: 1 | C87: 1 | D87: 1 | E87: 0 | F87: 0 | G87: 0 | H87: 1 | I87: 0 | J87: 0 | K87: 0 | L87: 0 | M87: * | N87: 25 | O87: 25 | P87: 25 | Q87: 0 | R87: 0 | S87: 0 | T87: 25 | U87: 0 | V87: 0 | W87: 0 | X87: 0
A88: G101Pd41 | B88: 6 | C88: 0 | D88: 0 | E88: 0 | F88: 0 | G88: 0 | H88: 0 | I88: 0 | J88: 0 | K88: 0 | L88: 0 | M88: * | N88: 100 | O88: 0 | P88: 0 | Q88: 0 | R88: 0 | S88: 0 | T88: 0 | U88: 0 | V88: 0 | W88: 0 | X88: 0
A89: H202Pd41 | B89: 3 | C89: 3 | D89: 1 | E89: 0 | F89: 0 | G89: 0 | H89: 0 | I89: 0 | J89: 0 | K89: 0 | L89: 0 | M89: * | N89: 42.85714286 | O89: 42.85714286 | P89: 14.28571429 | Q89: 0 | R89: 0 | S89: 0 | T89: 0 | U89: 0 | V89: 0 | W89: 0 | X89: 0
A90: S203Pd41 | B90: 14 | C90: 11 | D90: 8 | E90: 0 | F90: 0 | G90: 0 | H90: 5 | I90: 5 | J90: 2 | K90: 1 | L90: 1 | M90: 47 | N90: 29.78723404 | O90: 23.40425532 | P90: 17.0212766 | Q90: 0 | R90: 0 | S90: 0 | T90: 10.63829787 | U90: 10.63829787 | V90: 4.255319149 | W90: 2.127659574 | X90: 2.127659574
A91: S400Pd41 | B91: 9 | C91: 6 | D91: 6 | E91: 1 | F91: 0 | G91: 0 | H91: 3 | I91: 1 | J91: 1 | K91: 1 | L91: 9 | M91: 37 | N91: 24.32432432 | O91: 16.21621622 | P91: 16.21621622 | Q91: 2.702702703 | R91: 0 | S91: 0 | T91: 8.108108108 | U91: 2.702702703 | V91: 2.702702703 | W91: 2.702702703 | X91: 24.32432432
A92: T101Pd41 | B92: 7 | C92: 5 | D92: 4 | E92: 4 | F92: 1 | G92: 1 | H92: 0 | I92: 0 | J92: 0 | K92: 0 | L92: 0 | M92: 22 | N92: 31.81818182 | O92: 22.72727273 | P92: 18.18181818 | Q92: 18.18181818 | R92: 4.545454545 | S92: 4.545454545 | T92: 0 | U92: 0 | V92: 0 | W92: 0 | X92: 0
A93: V101Pd41 | B93: 0 | C93: 0 | D93: 3 | E93: 1 | F93: 0 | G93: 0 | H93: 0 | I93: 0 | J93: 0 | K93: 0 | L93: 0 | M93: * | N93: 0 | O93: 0 | P93: 75 | Q93: 25 | R93: 0 | S93: 0 | T93: 0 | U93: 0 | V93: 0 | W93: 0 | X93: 0
A94: V202Pd41 | B94: 2 | C94: 0 | D94: 0 | E94: 0 | F94: 0 | G94: 0 | H94: 0 | I94: 0 | J94: 0 | K94: 0 | L94: 0 | M94: * | N94: 100 | O94: 0 | P94: 0 | Q94: 0 | R94: 0 | S94: 0 | T94: 0 | U94: 0 | V94: 0 | W94: 0 | X94: 0
A95: V203Pd41 | B95: 1 | C95: 1 | D95: 0 | E95: 0 | F95: 0 | G95: 0 | H95: 0 | I95: 0 | J95: 0 | K95: 0 | L95: 0 | M95: * | N95: 50 | O95: 50 | P95: 0 | Q95: 0 | R95: 0 | S95: 0 | T95: 0 | U95: 0 | V95: 0 | W95: 0 | X95: 0
A96: H202Pa11 | B96: 1 | C96: 1 | D96: 0 | E96: 0 | F96: 0 | G96: 0 | H96: 0 | I96: 0 | J96: 0 | K96: 0 | L96: 0 | M96: * | N96: 50 | O96: 50 | P96: 0 | Q96: 0 | R96: 0 | S96: 0 | T96: 0 | U96: 0 | V96: 0 | W96: 0 | X96: 0
A97: S203Pa11 | B97: 11 | C97: 1 | D97: 1 | E97: 0 | F97: 0 | G97: 0 | H97: 1 | I97: 1 | J97: 0 | K97: 0 | L97: 0 | M97: * | N97: 73.33333333 | O97: 6.666666667 | P97: 6.666666667 | Q97: 0 | R97: 0 | S97: 0 | T97: 6.666666667 | U97: 6.666666667 | V97: 0 | W97: 0 | X97: 0
A98: S400Pa11 | B98: 0 | C98: 0 | D98: 0 | E98: 0 | F98: 0 | G98: 0 | H98: 1 | I98: 0 | J98: 0 | K98: 0 | L98: 0 | M98: * | N98: 0 | O98: 0 | P98: 0 | Q98: 0 | R98: 0 | S98: 0 | T98: 100 | U98: 0 | V98: 0 | W98: 0 | X98: 0
A99: V101Pa11 | B99: 1 | C99: 2 | D99: 0 | E99: 1 | F99: 0 | G99: 0 | H99: 0 | I99: 0 | J99: 0 | K99: 0 | L99: 0 | M99: * | N99: 25 | O99: 50 | P99: 0 | Q99: 25 | R99: 0 | S99: 0 | T99: 0 | U99: 0 | V99: 0 | W99: 0 | X99: 0
A100: S203Pa12 | B100: 0 | C100: 0 | D100: 0 | E100: 0 | F100: 0 | G100: 0 | H100: 1 | I100: 1 | J100: 0 | K100: 0 | L100: 0 | M100: * | N100: 0 | O100: 0 | P100: 0 | Q100: 0 | R100: 0 | S100: 0 | T100: 50 | U100: 50 | V100: 0 | W100: 0 | X100: 0
A101: T101Pa12 | B101: 1 | C101: 0 | D101: 0 | E101: 0 | F101: 0 | G101: 0 | H101: 0 | I101: 0 | J101: 0 | K101: 0 | L101: 0 | M101: * | N101: 100 | O101: 0 | P101: 0 | Q101: 0 | R101: 0 | S101: 0 | T101: 0 | U101: 0 | V101: 0 | W101: 0 | X101: 0
A102: V101Pa12 | B102: 1 | C102: 3 | D102: 1 | E102: 0 | F102: 1 | G102: 0 | H102: 0 | I102: 0 | J102: 0 | K102: 0 | L102: 0 | M102: 6 | N102: 16.66666667 | O102: 50 | P102: 16.66666667 | Q102: 0 | R102: 16.66666667 | S102: 0 | T102: 0 | U102: 0 | V102: 0 | W102: 0 | X102: 0
A103: H202Pa21 | B103: 1 | C103: 0 | D103: 2 | E103: 0 | F103: 0 | G103: 1 | H103: 0 | I103: 0 | J103: 0 | K103: 0 | L103: 0 | M103: * | N103: 25 | O103: 0 | P103: 50 | Q103: 0 | R103: 0 | S103: 25 | T103: 0 | U103: 0 | V103: 0 | W103: 0 | X103: 0
A104: S203Pa21 | B104: 1 | C104: 0 | D104: 0 | E104: 0 | F104: 0 | G104: 0 | H104: 0 | I104: 0 | J104: 0 | K104: 0 | L104: 1 | M104: * | N104: 50 | O104: 0 | P104: 0 | Q104: 0 | R104: 0 | S104: 0 | T104: 0 | U104: 0 | V104: 0 | W104: 0 | X104: 50
A105: S400Pa21 | B105: 0 | C105: 2 | D105: 0 | E105: 0 | F105: 0 | G105: 0 | H105: 0 | I105: 0 | J105: 0 | K105: 0 | L105: 0 | M105: * | N105: 0 | O105: 100 | P105: 0 | Q105: 0 | R105: 0 | S105: 0 | T105: 0 | U105: 0 | V105: 0 | W105: 0 | X105: 0
A106: V203Pa21 | B106: 1 | C106: 1 | D106: 0 | E106: 0 | F106: 0 | G106: 0 | H106: 0 | I106: 0 | J106: 0 | K106: 0 | L106: 0 | M106: * | N106: 50 | O106: 50 | P106: 0 | Q106: 0 | R106: 0 | S106: 0 | T106: 0 | U106: 0 | V106: 0 | W106: 0 | X106: 0
A107: C203Pa31 | B107: 1 | C107: 0 | D107: 0 | E107: 0 | F107: 0 | G107: 0 | H107: 0 | I107: 0 | J107: 0 | K107: 0 | L107: 0 | M107: * | N107: 100 | O107: 0 | P107: 0 | Q107: 0 | R107: 0 | S107: 0 | T107: 0 | U107: 0 | V107: 0 | W107: 0 | X107: 0
A108: S203Pa31 | B108: 4 | C108: 1 | D108: 3 | E108: 0 | F108: 0 | G108: 0 | H108: 0 | I108: 1 | J108: 0 | K108: 0 | L108: 1 | M108: 10 | N108: 40 | O108: 10 | P108: 30 | Q108: 0 | R108: 0 | S108: 0 | T108: 0 | U108: 10 | V108: 0 | W108: 0 | X108: 10
A109: V101Pa31 | B109: 1 | C109: 0 | D109: 1 | E109: 1 | F109: 0 | G109: 0 | H109: 0 | I109: 0 | J109: 0 | K109: 0 | L109: 0 | M109: * | N109: 33.33333333 | O109: 0 | P109: 33.33333333 | Q109: 33.33333333 | R109: 0 | S109: 0 | T109: 0 | U109: 0 | V109: 0 | W109: 0 | X109: 0
A110: H202Pa41 | B110: 1 | C110: 1 | D110: 0 | E110: 0 | F110: 0 | G110: 0 | H110: 0 | I110: 0 | J110: 0 | K110: 0 | L110: 0 | M110: * | N110: 50 | O110: 50 | P110: 0 | Q110: 0 | R110: 0 | S110: 0 | T110: 0 | U110: 0 | V110: 0 | W110: 0 | X110: 0
A111: S203Pa41 | B111: 0 | C111: 4 | D111: 0 | E111: 0 | F111: 0 | G111: 0 | H111: 0 | I111: 1 | J111: 2 | K111: 0 | L111: 0 | M111: 7 | N111: 0 | O111: 57.14285714 | P111: 0 | Q111: 0 | R111: 0 | S111: 0 | T111: 0 | U111: 14.28571429 | V111: 28.57142857 | W111: 0 | X111: 0
A112: 202b11 | B112: 8 | C112: 2 | D112: 1 | E112: 0 | F112: 0 | G112: 0 | H112: 0 | I112: 0 | J112: 0 | K112: 0 | L112: 0 | M112: 11 | N112: 72.72727273 | O112: 18.18181818 | P112: 9.090909091 | Q112: 0 | R112: 0 | S112: 0 | T112: 0 | U112: 0 | V112: 0 | W112: 0 | X112: 0
A113: 204b11 | B113: 0 | C113: 1 | D113: 0 | E113: 0 | F113: 0 | G113: 0 | H113: 0 | I113: 0 | J113: 0 | K113: 0 | L113: 1 | M113: * | N113: 0 | O113: 50 | P113: 0 | Q113: 0 | R113: 0 | S113: 0 | T113: 0 | U113: 0 | V113: 0 | W113: 0 | X113: 50
A114: 206b11 | B114: 2 | C114: 5 | D114: 1 | E114: 2 | F114: 0 | G114: 0 | H114: 2 | I114: 0 | J114: 0 | K114: 0 | L114: 0 | M114: 12 | N114: 16.66666667 | O114: 41.66666667 | P114: 8.333333333 | Q114: 16.66666667 | R114: 0 | S114: 0 | T114: 16.66666667 | U114: 0 | V114: 0 | W114: 0 | X114: 0
A115: 209b11 | B115: 4 | C115: 1 | D115: 1 | E115: 0 | F115: 0 | G115: 0 | H115: 0 | I115: 0 | J115: 0 | K115: 0 | L115: 0 | M115: 6 | N115: 66.66666667 | O115: 16.66666667 | P115: 16.66666667 | Q115: 0 | R115: 0 | S115: 0 | T115: 0 | U115: 0 | V115: 0 | W115: 0 | X115: 0
A116: 210b11 | B116: 1 | C116: 0 | D116: 0 | E116: 0 | F116: 0 | G116: 0 | H116: 0 | I116: 0 | J116: 0 | K116: 0 | L116: 0 | M116: * | N116: 100 | O116: 0 | P116: 0 | Q116: 0 | R116: 0 | S116: 0 | T116: 0 | U116: 0 | V116: 0 | W116: 0 | X116: 0
A117: 211b11 | B117: 25 | C117: 18 | D117: 11 | E117: 6 | F117: 2 | G117: 1 | H117: 3 | I117: 2 | J117: 0 | K117: 0 | L117: 4 | M117: 72 | N117: 34.72222222 | O117: 25 | P117: 15.27777778 | Q117: 8.333333333 | R117: 2.777777778 | S117: 1.388888889 | T117: 4.166666667 | U117: 2.777777778 | V117: 0 | W117: 0 | X117: 5.555555556
A118: 214b11 | B118: 6 | C118: 4 | D118: 2 | E118: 0 | F118: 0 | G118: 0 | H118: 0 | I118: 0 | J118: 0 | K118: 0 | L118: 0 | M118: 12 | N118: 50 | O118: 33.33333333 | P118: 16.66666667 | Q118: 0 | R118: 0 | S118: 0 | T118: 0 | U118: 0 | V118: 0 | W118: 0 | X118: 0
A119: 202b12 | B119: 1 | C119: 0 | D119: 0 | E119: 0 | F119: 0 | G119: 0 | H119: 0 | I119: 0 | J119: 0 | K119: 0 | L119: 0 | M119: * | N119: 100 | O119: 0 | P119: 0 | Q119: 0 | R119: 0 | S119: 0 | T119: 0 | U119: 0 | V119: 0 | W119: 0 | X119: 0
A120: 206b12 | B120: 5 | C120: 8 | D120: 7 | E120: 2 | F120: 1 | G120: 4 | H120: 0 | I120: 0 | J120: 0 | K120: 0 | L120: 0 | M120: 27 | N120: 18.51851852 | O120: 29.62962963 | P120: 25.92592593 | Q120: 7.407407407 | R120: 3.703703704 | S120: 14.81481481 | T120: 0 | U120: 0 | V120: 0 | W120: 0 | X120: 0
A121: 210b12 | B121: 1 | C121: 0 | D121: 0 | E121: 0 | F121: 0 | G121: 0 | H121: 0 | I121: 0 | J121: 0 | K121: 0 | L121: 0 | M121: * | N121: 100 | O121: 0 | P121: 0 | Q121: 0 | R121: 0 | S121: 0 | T121: 0 | U121: 0 | V121: 0 | W121: 0 | X121: 0
A122: 211b12 | B122: 3 | C122: 3 | D122: 2 | E122: 8 | F122: 3 | G122: 6 | H122: 6 | I122: 4 | J122: 4 | K122: 1 | L122: 14 | M122: 54 | N122: 5.555555556 | O122: 5.555555556 | P122: 3.703703704 | Q122: 14.81481481 | R122: 5.555555556 | S122: 11.11111111 | T122: 11.11111111 | U122: 7.407407407 | V122: 7.407407407 | W122: 1.851851852 | X122: 25.92592593
A123: 214b12 | B123: 8 | C123: 0 | D123: 2 | E123: 0 | F123: 0 | G123: 0 | H123: 1 | I123: 1 | J123: 0 | K123: 0 | L123: 0 | M123: 12 | N123: 66.66666667 | O123: 0 | P123: 16.66666667 | Q123: 0 | R123: 0 | S123: 0 | T123: 8.333333333 | U123: 8.333333333 | V123: 0 | W123: 0 | X123: 0
A124: 218b12 | B124: 5 | C124: 1 | D124: 2 | E124: 1 | F124: 0 | G124: 0 | H124: 0 | I124: 0 | J124: 0 | K124: 0 | L124: 0 | M124: 9 | N124: 55.55555556 | O124: 11.11111111 | P124: 22.22222222 | Q124: 11.11111111 | R124: 0 | S124: 0 | T124: 0 | U124: 0 | V124: 0 | W124: 0 | X124: 0
A125: 202b21 | B125: 3 | C125: 0 | D125: 0 | E125: 0 | F125: 0 | G125: 0 | H125: 0 | I125: 0 | J125: 0 | K125: 0 | L125: 0 | M125: * | N125: 100 | O125: 0 | P125: 0 | Q125: 0 | R125: 0 | S125: 0 | T125: 0 | U125: 0 | V125: 0 | W125: 0 | X125: 0
A126: 204b21 | B126: 0 | C126: 0 | D126: 0 | E126: 0 | F126: 0 | G126: 0 | H126: 0 | I126: 0 | J126: 1 | K126: 0 | L126: 1 | M126: * | N126: 0 | O126: 0 | P126: 0 | Q126: 0 | R126: 0 | S126: 0 | T126: 0 | U126: 0 | V126: 50 | W126: 0 | X126: 50
A127: 206b21 | B127: 4 | C127: 4 | D127: 1 | E127: 0 | F127: 0 | G127: 0 | H127: 0 | I127: 0 | J127: 0 | K127: 0 | L127: 0 | M127: 9 | N127: 44.44444444 | O127: 44.44444444 | P127: 11.11111111 | Q127: 0 | R127: 0 | S127: 0 | T127: 0 | U127: 0 | V127: 0 | W127: 0 | X127: 0
A128: 209b21 | B128: 1 | C128: 1 | D128: 2 | E128: 0 | F128: 0 | G128: 1 | H128: 0 | I128: 0 | J128: 0 | K128: 0 | L128: 0 | M128: 5 | N128: 20 | O128: 20 | P128: 40 | Q128: 0 | R128: 0 | S128: 20 | T128: 0 | U128: 0 | V128: 0 | W128: 0 | X128: 0
A129: 210b21 | B129: 4 | C129: 0 | D129: 0 | E129: 0 | F129: 0 | G129: 0 | H129: 0 | I129: 0 | J129: 0 | K129: 0 | L129: 0 | M129: * | N129: 100 | O129: 0 | P129: 0 | Q129: 0 | R129: 0 | S129: 0 | T129: 0 | U129: 0 | V129: 0 | W129: 0 | X129: 0
A130: 211b21 | B130: 18 | C130: 23 | D130: 4 | E130: 6 | F130: 1 | G130: 1 | H130: 1 | I130: 0 | J130: 0 | K130: 1 | L130: 5 | M130: 60 | N130: 30 | O130: 38.33333333 | P130: 6.666666667 | Q130: 10 | R130: 1.666666667 | S130: 1.666666667 | T130: 1.666666667 | U130: 0 | V130: 0 | W130: 1.666666667 | X130: 8.333333333
A131: 214b21 | B131: 6 | C131: 11 | D131: 0 | E131: 4 | F131: 4 | G131: 0 | H131: 0 | I131: 1 | J131: 0 | K131: 0 | L131: 0 | M131: 26 | N131: 23.07692308 | O131: 42.30769231 | P131: 0 | Q131: 15.38461538 | R131: 15.38461538 | S131: 0 | T131: 0 | U131: 3.846153846 | V131: 0 | W131: 0 | X131: 0
A132: 202b31 | B132: 6 | C132: 3 | D132: 0 | E132: 0 | F132: 0 | G132: 0 | H132: 0 | I132: 0 | J132: 0 | K132: 0 | L132: 0 | M132: 9 | N132: 66.66666667 | O132: 33.33333333 | P132: 0 | Q132: 0 | R132: 0 | S132: 0 | T132: 0 | U132: 0 | V132: 0 | W132: 0 | X132: 0
A133: 204b31 | B133: 0 | C133: 0 | D133: 0 | E133: 0 | F133: 0 | G133: 0 | H133: 0 | I133: 0 | J133: 0 | K133: 0 | L133: 2 | M133: * | N133: 0 | O133: 0 | P133: 0 | Q133: 0 | R133: 0 | S133: 0 | T133: 0 | U133: 0 | V133: 0 | W133: 0 | X133: 100
A134: 206b31 | B134: 14 | C134: 1 | D134: 6 | E134: 4 | F134: 0 | G134: 0 | H134: 0 | I134: 0 | J134: 0 | K134: 0 | L134: 0 | M134: 25 | N134: 56 | O134: 4 | P134: 24 | Q134: 16 | R134: 0 | S134: 0 | T134: 0 | U134: 0 | V134: 0 | W134: 0 | X134: 0
A135: 211b31 | B135: 25 | C135: 17 | D135: 12 | E135: 6 | F135: 3 | G135: 1 | H135: 3 | I135: 3 | J135: 2 | K135: 1 | L135: 7 | M135: 80 | N135: 31.25 | O135: 21.25 | P135: 15 | Q135: 7.5 | R135: 3.75 | S135: 1.25 | T135: 3.75 | U135: 3.75 | V135: 2.5 | W135: 1.25 | X135: 8.75
A136: 214b31 | B136: 4 | C136: 6 | D136: 2 | E136: 1 | F136: 1 | G136: 0 | H136: 0 | I136: 0 | J136: 0 | K136: 0 | L136: 0 | M136: 14 | N136: 28.57142857 | O136: 42.85714286 | P136: 14.28571429 | Q136: 7.142857143 | R136: 7.142857143 | S136: 0 | T136: 0 | U136: 0 | V136: 0 | W136: 0 | X136: 0
A137: 218b31 | B137: 1 | C137: 0 | D137: 0 | E137: 0 | F137: 0 | G137: 0 | H137: 0 | I137: 0 | J137: 0 | K137: 0 | L137: 0 | M137: * | N137: 100 | O137: 0 | P137: 0 | Q137: 0 | R137: 0 | S137: 0 | T137: 0 | U137: 0 | V137: 0 | W137: 0 | X137: 0
A138: 202b41 | B138: 1 | C138: 2 | D138: 0 | E138: 0 | F138: 0 | G138: 0 | H138: 0 | I138: 0 | J138: 0 | K138: 0 | L138: 0 | M138: * | N138: 33.33333333 | O138: 66.66666667 | P138: 0 | Q138: 0 | R138: 0 | S138: 0 | T138: 0 | U138: 0 | V138: 0 | W138: 0 | X138: 0
A139: 206b41 | B139: 3 | C139: 1 | D139: 3 | E139: 1 | F139: 0 | G139: 0 | H139: 0 | I139: 0 | J139: 0 | K139: 0 | L139: 0 | M139: * | N139: 37.5 | O139: 12.5 | P139: 37.5 | Q139: 12.5 | R139: 0 | S139: 0 | T139: 0 | U139: 0 | V139: 0 | W139: 0 | X139: 0
A140: 209b41 | B140: 4 | C140: 4 | D140: 1 | E140: 0 | F140: 0 | G140: 0 | H140: 0 | I140: 0 | J140: 0 | K140: 0 | L140: 0 | M140: 9 | N140: 44.44444444 | O140: 44.44444444 | P140: 11.11111111 | Q140: 0 | R140: 0 | S140: 0 | T140: 0 | U140: 0 | V140: 0 | W140: 0 | X140: 0
A141: 211b41 | B141: 23 | C141: 21 | D141: 14 | E141: 1 | F141: 0 | G141: 0 | H141: 8 | I141: 7 | J141: 5 | K141: 2 | L141: 10 | M141: 91 | N141: 25.27472527 | O141: 23.07692308 | P141: 15.38461538 | Q141: 1.098901099 | R141: 0 | S141: 0 | T141: 8.791208791 | U141: 7.692307692 | V141: 5.494505495 | W141: 2.197802198 | X141: 10.98901099
A142: 214b41 | B142: 7 | C142: 5 | D142: 4 | E142: 4 | F142: 1 | G142: 1 | H142: 0 | I142: 0 | J142: 0 | K142: 0 | L142: 0 | M142: 22 | N142: 31.81818182 | O142: 22.72727273 | P142: 18.18181818 | Q142: 18.18181818 | R142: 4.545454545 | S142: 4.545454545 | T142: 0 | U142: 0 | V142: 0 | W142: 0 | X142: 0
A143: 218b41 | B143: 7 | C143: 1 | D143: 1 | E143: 0 | F143: 0 | G143: 0 | H143: 1 | I143: 0 | J143: 0 | K143: 0 | L143: 0 | M143: 10 | N143: 70 | O143: 10 | P143: 10 | Q143: 0 | R143: 0 | S143: 0 | T143: 10 | U143: 0 | V143: 0 | W143: 0 | X143: 0
A144: 202d11 | B144: 8 | C144: 2 | D144: 1 | E144: 0 | F144: 0 | G144: 0 | H144: 0 | I144: 0 | J144: 0 | K144: 0 | L144: 0 | M144: 11 | N144: 72.72727273 | O144: 18.18181818 | P144: 9.090909091 | Q144: 0 | R144: 0 | S144: 0 | T144: 0 | U144: 0 | V144: 0 | W144: 0 | X144: 0
A145: 204d11 | B145: 0 | C145: 1 | D145: 0 | E145: 0 | F145: 0 | G145: 0 | H145: 0 | I145: 0 | J145: 0 | K145: 0 | L145: 1 | M145: * | N145: 0 | O145: 50 | P145: 0 | Q145: 0 | R145: 0 | S145: 0 | T145: 0 | U145: 0 | V145: 0 | W145: 0 | X145: 50
A146: 206d11 | B146: 1 | C146: 3 | D146: 1 | E146: 1 | F146: 0 | G146: 0 | H146: 2 | I146: 0 | J146: 0 | K146: 0 | L146: 0 | M146: * | N146: 12.5 | O146: 37.5 | P146: 12.5 | Q146: 12.5 | R146: 0 | S146: 0 | T146: 25 | U146: 0 | V146: 0 | W146: 0 | X146: 0
A147: 209d11 | B147: 3 | C147: 0 | D147: 1 | E147: 0 | F147: 0 | G147: 0 | H147: 0 | I147: 0 | J147: 0 | K147: 0 | L147: 0 | M147: * | N147: 75 | O147: 0 | P147: 25 | Q147: 0 | R147: 0 | S147: 0 | T147: 0 | U147: 0 | V147: 0 | W147: 0 | X147: 0
A148: 210d11 | B148: 1 | C148: 0 | D148: 0 | E148: 0 | F148: 0 | G148: 0 | H148: 0 | I148: 0 | J148: 0 | K148: 0 | L148: 0 | M148: * | N148: 100 | O148: 0 | P148: 0 | Q148: 0 | R148: 0 | S148: 0 | T148: 0 | U148: 0 | V148: 0 | W148: 0 | X148: 0
A149: 211d11 | B149: 14 | C149: 17 | D149: 10 | E149: 6 | F149: 2 | G149: 1 | H149: 1 | I149: 1 | J149: 0 | K149: 0 | L149: 4 | M149: 56 | N149: 25 | O149: 30.35714286 | P149: 17.85714286 | Q149: 10.71428571 | R149: 3.571428571 | S149: 1.785714286 | T149: 1.785714286 | U149: 1.785714286 | V149: 0 | W149: 0 | X149: 7.142857143
A150: 214d11 | B150: 6 | C150: 4 | D150: 2 | E150: 0 | F150: 0 | G150: 0 | H150: 0 | I150: 0 | J150: 0 | K150: 0 | L150: 0 | M150: 12 | N150: 50 | O150: 33.33333333 | P150: 16.66666667 | Q150: 0 | R150: 0 | S150: 0 | T150: 0 | U150: 0 | V150: 0 | W150: 0 | X150: 0
A151: 202d12 | B151: 1 | C151: 0 | D151: 0 | E151: 0 | F151: 0 | G151: 0 | H151: 0 | I151: 0 | J151: 0 | K151: 0 | L151: 0 | M151: * | N151: 100 | O151: 0 | P151: 0 | Q151: 0 | R151: 0 | S151: 0 | T151: 0 | U151: 0 | V151: 0 | W151: 0 | X151: 0
A152: 206d12 | B152: 4 | C152: 5 | D152: 6 | E152: 2 | F152: 0 | G152: 4 | H152: 0 | I152: 0 | J152: 0 | K152: 0 | L152: 0 | M152: 21 | N152: 19.04761905 | O152: 23.80952381 | P152: 28.57142857 | Q152: 9.523809524 | R152: 0 | S152: 19.04761905 | T152: 0 | U152: 0 | V152: 0 | W152: 0 | X152: 0
A153: 210d12 | B153: 1 | C153: 0 | D153: 0 | E153: 0 | F153: 0 | G153: 0 | H153: 0 | I153: 0 | J153: 0 | K153: 0 | L153: 0 | M153: * | N153: 100 | O153: 0 | P153: 0 | Q153: 0 | R153: 0 | S153: 0 | T153: 0 | U153: 0 | V153: 0 | W153: 0 | X153: 0
A154: 211d12 | B154: 3 | C154: 3 | D154: 2 | E154: 8 | F154: 3 | G154: 6 | H154: 5 | I154: 3 | J154: 4 | K154: 1 | L154: 14 | M154: * | N154: 5.769230769 | O154: 5.769230769 | P154: 3.846153846 | Q154: 15.38461538 | R154: 5.769230769 | S154: 11.53846154 | T154: 9.615384615 | U154: 5.769230769 | V154: 7.692307692 | W154: 1.923076923 | X154: 26.92307692
A155: 214d12 | B155: 7 | C155: 0 | D155: 2 | E155: 0 | F155: 0 | G155: 0 | H155: 1 | I155: 1 | J155: 0 | K155: 0 | L155: 0 | M155: * | N155: 63.63636364 | O155: 0 | P155: 18.18181818 | Q155: 0 | R155: 0 | S155: 0 | T155: 9.090909091 | U155: 9.090909091 | V155: 0 | W155: 0 | X155: 0
A156: 218d12 | B156: 5 | C156: 1 | D156: 2 | E156: 1 | F156: 0 | G156: 0 | H156: 0 | I156: 0 | J156: 0 | K156: 0 | L156: 0 | M156: 9 | N156: 55.55555556 | O156: 11.11111111 | P156: 22.22222222 | Q156: 11.11111111 | R156: 0 | S156: 0 | T156: 0 | U156: 0 | V156: 0 | W156: 0 | X156: 0
A157: 202d21 | B157: 3 | C157: 0 | D157: 0 | E157: 0 | F157: 0 | G157: 0 | H157: 0 | I157: 0 | J157: 0 | K157: 0 | L157: 0 | M157: * | N157: 100 | O157: 0 | P157: 0 | Q157: 0 | R157: 0 | S157: 0 | T157: 0 | U157: 0 | V157: 0 | W157: 0 | X157: 0
A158: 204d21 | B158: 0 | C158: 0 | D158: 0 | E158: 0 | F158: 0 | G158: 0 | H158: 0 | I158: 0 | J158: 1 | K158: 0 | L158: 1 | M158: * | N158: 0 | O158: 0 | P158: 0 | Q158: 0 | R158: 0 | S158: 0 | T158: 0 | U158: 0 | V158: 50 | W158: 0 | X158: 50
A159: 206d21 | B159: 3 | C159: 3 | D159: 1 | E159: 0 | F159: 0 | G159: 0 | H159: 0 | I159: 0 | J159: 0 | K159: 0 | L159: 0 | M159: * | N159: 42.85714286 | O159: 42.85714286 | P159: 14.28571429 | Q159: 0 | R159: 0 | S159: 0 | T159: 0 | U159: 0 | V159: 0 | W159: 0 | X159: 0
A160: 209d21 | B160: 0 | C160: 1 | D160: 0 | E160: 0 | F160: 0 | G160: 0 | H160: 0 | I160: 0 | J160: 0 | K160: 0 | L160: 0 | M160: * | N160: 0 | O160: 100 | P160: 0 | Q160: 0 | R160: 0 | S160: 0 | T160: 0 | U160: 0 | V160: 0 | W160: 0 | X160: 0
A161: 210d21 | B161: 4 | C161: 0 | D161: 0 | E161: 0 | F161: 0 | G161: 0 | H161: 0 | I161: 0 | J161: 0 | K161: 0 | L161: 0 | M161: * | N161: 100 | O161: 0 | P161: 0 | Q161: 0 | R161: 0 | S161: 0 | T161: 0 | U161: 0 | V161: 0 | W161: 0 | X161: 0
A162: 211d21 | B162: 17 | C162: 21 | D162: 4 | E162: 6 | F162: 1 | G162: 1 | H162: 1 | I162: 0 | J162: 0 | K162: 1 | L162: 4 | M162: * | N162: 30.35714286 | O162: 37.5 | P162: 7.142857143 | Q162: 10.71428571 | R162: 1.785714286 | S162: 1.785714286 | T162: 1.785714286 | U162: 0 | V162: 0 | W162: 1.785714286 | X162: 7.142857143
A163: 214d21 | B163: 6 | C163: 11 | D163: 0 | E163: 4 | F163: 4 | G163: 0 | H163: 0 | I163: 1 | J163: 0 | K163: 0 | L163: 0 | M163: 26 | N163: 23.07692308 | O163: 42.30769231 | P163: 0 | Q163: 15.38461538 | R163: 15.38461538 | S163: 0 | T163: 0 | U163: 3.846153846 | V163: 0 | W163: 0 | X163: 0
A164: 202d31 | B164: 6 | C164: 3 | D164: 0 | E164: 0 | F164: 0 | G164: 0 | H164: 0 | I164: 0 | J164: 0 | K164: 0 | L164: 0 | M164: 9 | N164: 66.66666667 | O164: 33.33333333 | P164: 0 | Q164: 0 | R164: 0 | S164: 0 | T164: 0 | U164: 0 | V164: 0 | W164: 0 | X164: 0
A165: 204d31 | B165: 0 | C165: 0 | D165: 0 | E165: 0 | F165: 0 | G165: 0 | H165: 0 | I165: 0 | J165: 0 | K165: 0 | L165: 2 | M165: * | N165: 0 | O165: 0 | P165: 0 | Q165: 0 | R165: 0 | S165: 0 | T165: 0 | U165: 0 | V165: 0 | W165: 0 | X165: 100
A166: 206d31 | B166: 13 | C166: 1 | D166: 5 | E166: 3 | F166: 0 | G166: 0 | H166: 0 | I166: 0 | J166: 0 | K166: 0 | L166: 0 | M166: * | N166: 59.09090909 | O166: 4.545454545 | P166: 22.72727273 | Q166: 13.63636364 | R166: 0 | S166: 0 | T166: 0 | U166: 0 | V166: 0 | W166: 0 | X166: 0
A167: 211d31 | B167: 21 | C167: 16 | D167: 9 | E167: 6 | F167: 3 | G167: 1 | H167: 3 | I167: 2 | J167: 2 | K167: 1 | L167: 6 | M167: 70 | N167: 30 | O167: 22.85714286 | P167: 12.85714286 | Q167: 8.571428571 | R167: 4.285714286 | S167: 1.428571429 | T167: 4.285714286 | U167: 2.857142857 | V167: 2.857142857 | W167: 1.428571429 | X167: 8.571428571
A168: 214d31 | B168: 4 | C168: 6 | D168: 2 | E168: 1 | F168: 1 | G168: 0 | H168: 0 | I168: 0 | J168: 0 | K168: 0 | L168: 0 | M168: 14 | N168: 28.57142857 | O168: 42.85714286 | P168: 14.28571429 | Q168: 7.142857143 | R168: 7.142857143 | S168: 0 | T168: 0 | U168: 0 | V168: 0 | W168: 0 | X168: 0
A169: 202d41 | B169: 1 | C169: 2 | D169: 0 | E169: 0 | F169: 0 | G169: 0 | H169: 0 | I169: 0 | J169: 0 | K169: 0 | L169: 0 | M169: * | N169: 33.33333333 | O169: 66.66666667 | P169: 0 | Q169: 0 | R169: 0 | S169: 0 | T169: 0 | U169: 0 | V169: 0 | W169: 0 | X169: 0
A170: 206d41 | B170: 3 | C170: 1 | D170: 3 | E170: 1 | F170: 0 | G170: 0 | H170: 0 | I170: 0 | J170: 0 | K170: 0 | L170: 0 | M170: * | N170: 37.5 | O170: 12.5 | P170: 37.5 | Q170: 12.5 | R170: 0 | S170: 0 | T170: 0 | U170: 0 | V170: 0 | W170: 0 | X170: 0
A171: 209d41 | B171: 3 | C171: 3 | D171: 1 | E171: 0 | F171: 0 | G171: 0 | H171: 0 | I171: 0 | J171: 0 | K171: 0 | L171: 0 | M171: * | N171: 42.85714286 | O171: 42.85714286 | P171: 14.28571429 | Q171: 0 | R171: 0 | S171: 0 | T171: 0 | U171: 0 | V171: 0 | W171: 0 | X171: 0
A172: 211d41 | B172: 23 | C172: 17 | D172: 14 | E172: 1 | F172: 0 | G172: 0 | H172: 8 | I172: 6 | J172: 3 | K172: 2 | L172: 10 | M172: 84 | N172: 27.38095238 | O172: 20.23809524 | P172: 16.66666667 | Q172: 1.19047619 | R172: 0 | S172: 0 | T172: 9.523809524 | U172: 7.142857143 | V172: 3.571428571 | W172: 2.380952381 | X172: 11.9047619
A173: 214d41 | B173: 7 | C173: 5 | D173: 4 | E173: 4 | F173: 1 | G173: 1 | H173: 0 | I173: 0 | J173: 0 | K173: 0 | L173: 0 | M173: 22 | N173: 31.81818182 | O173: 22.72727273 | P173: 18.18181818 | Q173: 18.18181818 | R173: 4.545454545 | S173: 4.545454545 | T173: 0 | U173: 0 | V173: 0 | W173: 0 | X173: 0
A174: 218d41 | B174: 7 | C174: 1 | D174: 1 | E174: 0 | F174: 0 | G174: 0 | H174: 1 | I174: 0 | J174: 0 | K174: 0 | L174: 0 | M174: 10 | N174: 70 | O174: 10 | P174: 10 | Q174: 0 | R174: 0 | S174: 0 | T174: 10 | U174: 0 | V174: 0 | W174: 0 | X174: 0
A175: 206a11 | B175: 1 | C175: 2 | D175: 0 | E175: 1 | F175: 0 | G175: 0 | H175: 0 | I175: 0 | J175: 0 | K175: 0 | L175: 0 | M175: * | N175: 25 | O175: 50 | P175: 0 | Q175: 25 | R175: 0 | S175: 0 | T175: 0 | U175: 0 | V175: 0 | W175: 0 | X175: 0
A176: 209a11 | B176: 1 | C176: 1 | D176: 0 | E176: 0 | F176: 0 | G176: 0 | H176: 0 | I176: 0 | J176: 0 | K176: 0 | L176: 0 | M176: * | N176: 50 | O176: 50 | P176: 0 | Q176: 0 | R176: 0 | S176: 0 | T176: 0 | U176: 0 | V176: 0 | W176: 0 | X176: 0
A177: 211a11 | B177: 11 | C177: 1 | D177: 1 | E177: 0 | F177: 0 | G177: 0 | H177: 2 | I177: 1 | J177: 0 | K177: 0 | L177: 0 | M177: 16 | N177: 68.75 | O177: 6.25 | P177: 6.25 | Q177: 0 | R177: 0 | S177: 0 | T177: 12.5 | U177: 6.25 | V177: 0 | W177: 0 | X177: 0
A178: 206a12 | B178: 1 | C178: 3 | D178: 1 | E178: 0 | F178: 1 | G178: 0 | H178: 0 | I178: 0 | J178: 0 | K178: 0 | L178: 0 | M178: 6 | N178: 16.66666667 | O178: 50 | P178: 16.66666667 | Q178: 0 | R178: 16.66666667 | S178: 0 | T178: 0 | U178: 0 | V178: 0 | W178: 0 | X178: 0
A179: 211a12 | B179: 0 | C179: 0 | D179: 0 | E179: 0 | F179: 0 | G179: 0 | H179: 1 | I179: 1 | J179: 0 | K179: 0 | L179: 0 | M179: * | N179: 0 | O179: 0 | P179: 0 | Q179: 0 | R179: 0 | S179: 0 | T179: 50 | U179: 50 | V179: 0 | W179: 0 | X179: 0
A180: 214a12 | B180: 1 | C180: 0 | D180: 0 | E180: 0 | F180: 0 | G180: 0 | H180: 0 | I180: 0 | J180: 0 | K180: 0 | L180: 0 | M180: * | N180: 100 | O180: 0 | P180: 0 | Q180: 0 | R180: 0 | S180: 0 | T180: 0 | U180: 0 | V180: 0 | W180: 0 | X180: 0
A181: 206a21 | B181: 1 | C181: 1 | D181: 0 | E181: 0 | F181: 0 | G181: 0 | H181: 0 | I181: 0 | J181: 0 | K181: 0 | L181: 0 | M181: * | N181: 50 | O181: 50 | P181: 0 | Q181: 0 | R181: 0 | S181: 0 | T181: 0 | U181: 0 | V181: 0 | W181: 0 | X181: 0
A182: 209a21 | B182: 1 | C182: 0 | D182: 2 | E182: 0 | F182: 0 | G182: 1 | H182: 0 | I182: 0 | J182: 0 | K182: 0 | L182: 0 | M182: * | N182: 25 | O182: 0 | P182: 50 | Q182: 0 | R182: 0 | S182: 25 | T182: 0 | U182: 0 | V182: 0 | W182: 0 | X182: 0
A183: 211a21 | B183: 1 | C183: 2 | D183: 0 | E183: 0 | F183: 0 | G183: 0 | H183: 0 | I183: 0 | J183: 0 | K183: 0 | L183: 1 | M183: * | N183: 25 | O183: 50 | P183: 0 | Q183: 0 | R183: 0 | S183: 0 | T183: 0 | U183: 0 | V183: 0 | W183: 0 | X183: 25
A184: 206a31 | B184: 1 | C184: 0 | D184: 1 | E184: 1 | F184: 0 | G184: 0 | H184: 0 | I184: 0 | J184: 0 | K184: 0 | L184: 0 | M184: * | N184: 33.33333333 | O184: 0 | P184: 33.33333333 | Q184: 33.33333333 | R184: 0 | S184: 0 | T184: 0 | U184: 0 | V184: 0 | W184: 0 | X184: 0
A185: 211a31 | B185: 4 | C185: 1 | D185: 3 | E185: 0 | F185: 0 | G185: 0 | H185: 0 | I185: 1 | J185: 0 | K185: 0 | L185: 1 | M185: 10 | N185: 40 | O185: 10 | P185: 30 | Q185: 0 | R185: 0 | S185: 0 | T185: 0 | U185: 10 | V185: 0 | W185: 0 | X185: 10
A186: 218a31 | B186: 1 | C186: 0 | D186: 0 | E186: 0 | F186: 0 | G186: 0 | H186: 0 | I186: 0 | J186: 0 | K186: 0 | L186: 0 | M186: * | N186: 100 | O186: 0 | P186: 0 | Q186: 0 | R186: 0 | S186: 0 | T186: 0 | U186: 0 | V186: 0 | W186: 0 | X186: 0
A187: 209a41 | B187: 1 | C187: 1 | D187: 0 | E187: 0 | F187: 0 | G187: 0 | H187: 0 | I187: 0 | J187: 0 | K187: 0 | L187: 0 | M187: * | N187: 50 | O187: 50 | P187: 0 | Q187: 0 | R187: 0 | S187: 0 | T187: 0 | U187: 0 | V187: 0 | W187: 0 | X187: 0
A188: 211a41 | B188: 0 | C188: 4 | D188: 0 | E188: 0 | F188: 0 | G188: 0 | H188: 0 | I188: 1 | J188: 2 | K188: 0 | L188: 0 | M188: 7 | N188: 0 | O188: 57.14285714 | P188: 0 | Q188: 0 | R188: 0 | S188: 0 | T188: 0 | U188: 14.28571429 | V188: 28.57142857 | W188: 0 | X188: 0
A189: 999b11 | B189: 46 | C189: 31 | D189: 16 | E189: 8 | F189: 2 | G189: 1 | H189: 5 | I189: 2 | J189: 0 | K189: 0 | L189: 5 | M189: 116 | N189: 39.65517241 | O189: 26.72413793 | P189: 13.79310345 | Q189: 6.896551724 | R189: 1.724137931 | S189: 0.8620689655 | T189: 4.310344828 | U189: 1.724137931 | V189: 0 | W189: 0 | X189: 4.310344828
A190: 999b12 | B190: 23 | C190: 12 | D190: 13 | E190: 11 | F190: 4 | G190: 10 | H190: 7 | I190: 5 | J190: 4 | K190: 1 | L190: 14 | M190: 104 | N190: 22.11538462 | O190: 11.53846154 | P190: 12.5 | Q190: 10.57692308 | R190: 3.846153846 | S190: 9.615384615 | T190: 6.730769231 | U190: 4.807692308 | V190: 3.846153846 | W190: 0.9615384615 | X190: 13.46153846
A191: 999b21 | B191: 36 | C191: 39 | D191: 7 | E191: 10 | F191: 5 | G191: 2 | H191: 1 | I191: 1 | J191: 1 | K191: 1 | L191: 6 | M191: 109 | N191: 33.02752294 | O191: 35.77981651 | P191: 6.422018349 | Q191: 9.174311927 | R191: 4.587155963 | S191: 1.834862385 | T191: 0.9174311927 | U191: 0.9174311927 | V191: 0.9174311927 | W191: 0.9174311927 | X191: 5.504587156
A192: 999b31 | B192: 50 | C192: 27 | D192: 20 | E192: 11 | F192: 4 | G192: 1 | H192: 3 | I192: 3 | J192: 2 | K192: 1 | L192: 9 | M192: 131 | N192: 38.16793893 | O192: 20.61068702 | P192: 15.26717557 | Q192: 8.396946565 | R192: 3.053435115 | S192: 0.7633587786 | T192: 2.290076336 | U192: 2.290076336 | V192: 1.526717557 | W192: 0.7633587786 | X192: 6.870229008
A193: 999b41 | B193: 45 | C193: 34 | D193: 23 | E193: 6 | F193: 1 | G193: 1 | H193: 9 | I193: 7 | J193: 5 | K193: 2 | L193: 10 | M193: 143 | N193: 31.46853147 | O193: 23.77622378 | P193: 16.08391608 | Q193: 4.195804196 | R193: 0.6993006993 | S193: 0.6993006993 | T193: 6.293706294 | U193: 4.895104895 | V193: 3.496503497 | W193: 1.398601399 | X193: 6.993006993
A194: 999d11 | B194: 33 | C194: 27 | D194: 15 | E194: 7 | F194: 2 | G194: 1 | H194: 3 | I194: 1 | J194: 0 | K194: 0 | L194: 5 | M194: 94 | N194: 35.10638298 | O194: 28.72340426 | P194: 15.95744681 | Q194: 7.446808511 | R194: 2.127659574 | S194: 1.063829787 | T194: 3.191489362 | U194: 1.063829787 | V194: 0 | W194: 0 | X194: 5.319148936
A195: 999d12 | B195: 21 | C195: 9 | D195: 12 | E195: 11 | F195: 3 | G195: 10 | H195: 6 | I195: 4 | J195: 4 | K195: 1 | L195: 14 | M195: 95 | N195: 22.10526316 | O195: 9.473684211 | P195: 12.63157895 | Q195: 11.57894737 | R195: 3.157894737 | S195: 10.52631579 | T195: 6.315789474 | U195: 4.210526316 | V195: 4.210526316 | W195: 1.052631579 | X195: 14.73684211
A196: 999d21 | B196: 33 | C196: 36 | D196: 5 | E196: 10 | F196: 5 | G196: 1 | H196: 1 | I196: 1 | J196: 1 | K196: 1 | L196: 5 | M196: 99 | N196: 33.33333333 | O196: 36.36363636 | P196: 5.050505051 | Q196: 10.1010101 | R196: 5.050505051 | S196: 1.01010101 | T196: 1.01010101 | U196: 1.01010101 | V196: 1.01010101 | W196: 1.01010101 | X196: 5.050505051
A197: 999d31 | B197: 44 | C197: 26 | D197: 16 | E197: 10 | F197: 4 | G197: 1 | H197: 3 | I197: 2 | J197: 2 | K197: 1 | L197: 8 | M197: 117 | N197: 37.60683761 | O197: 22.22222222 | P197: 13.67521368 | Q197: 8.547008547 | R197: 3.418803419 | S197: 0.8547008547 | T197: 2.564102564 | U197: 1.709401709 | V197: 1.709401709 | W197: 0.8547008547 | X197: 6.837606838
A198: 999d41 | B198: 44 | C198: 29 | D198: 23 | E198: 6 | F198: 1 | G198: 1 | H198: 9 | I198: 6 | J198: 3 | K198: 2 | L198: 10 | M198: 134 | N198: 32.8358209 | O198: 21.64179104 | P198: 17.1641791 | Q198: 4.47761194 | R198: 0.7462686567 | S198: 0.7462686567 | T198: 6.71641791 | U198: 4.47761194 | V198: 2.23880597 | W198: 1.492537313 | X198: 7.462686567
A199: 999a11 | B199: 13 | C199: 4 | D199: 1 | E199: 1 | F199: 0 | G199: 0 | H199: 2 | I199: 1 | J199: 0 | K199: 0 | L199: 0 | M199: 22 | N199: 59.09090909 | O199: 18.18181818 | P199: 4.545454545 | Q199: 4.545454545 | R199: 0 | S199: 0 | T199: 9.090909091 | U199: 4.545454545 | V199: 0 | W199: 0 | X199: 0
A200: 999a12 | B200: 2 | C200: 3 | D200: 1 | E200: 0 | F200: 1 | G200: 0 | H200: 1 | I200: 1 | J200: 0 | K200: 0 | L200: 0 | M200: 9 | N200: 22.22222222 | O200: 33.33333333 | P200: 11.11111111 | Q200: 0 | R200: 11.11111111 | S200: 0 | T200: 11.11111111 | U200: 11.11111111 | V200: 0 | W200: 0 | X200: 0
... 3 more rows

Sheet percentage ongoing (hidden)
A1: desc | B1: t1 | C1: pc_u8 | D1: pc_d8to14 | E1: pc_d15to21 | F1: pc_d22to28 | G1: pc_d29to35 | H1: pc_d36to42 | I1: pc_w7to8wk | J1: pc_w9to12wk | K1: pc_w13to16wk | L1: pc_w17to20wk | M1: pc_w21plus | O1: 3weeks | P1: 6weeks
A2: A202Pb11 | B2: 11 | C2: 72.72727273 | D2: 18.18181818 | E2: 9.090909091 | F2: 0 | G2: 0 | H2: 0 | I2: 0 | J2: 0 | K2: 0 | L2: 0 | M2: 0 | O2: =SUM(C2:E2) -> 100 | P2: =SUM(C2:H2) -> 100
A3: H202Pb11 | B3: 6 | C3: 66.66666667 | D3: 16.66666667 | E3: 16.66666667 | F3: 0 | G3: 0 | H3: 0 | I3: 0 | J3: 0 | K3: 0 | L3: 0 | M3: 0 | O3: =SUM(C3:E3) -> 100 | P3: =SUM(C3:H3) -> 100
A4: L202Pb11 | B4: 1 | C4: 100 | D4: 0 | E4: 0 | F4: 0 | G4: 0 | H4: 0 | I4: 0 | J4: 0 | K4: 0 | L4: 0 | M4: 0 | O4: 100 | P4: 100
A5: S203Pb11 | B5: 32 | C5: 53.125 | D5: 18.75 | E5: 18.75 | F5: 0 | G5: 0 | H5: 0 | I5: 3.125 | J5: 6.25 | K5: 0 | L5: 0 | M5: 0 | O5: 90.625 | P5: 90.625
A6: S400Pb11 | B6: 40 | C6: 20 | D6: 30 | E6: 12.5 | F6: 15 | G6: 5 | H6: 2.5 | I6: 5 | J6: 0 | K6: 0 | L6: 0 | M6: 10 | O6: 62.5 | P6: 85
A7: T101Pb11 | B7: 12 | C7: 50 | D7: 33.33333333 | E7: 16.66666667 | F7: 0 | G7: 0 | H7: 0 | I7: 0 | J7: 0 | K7: 0 | L7: 0 | M7: 0 | O7: 100 | P7: 100
A8: V101Pb11 | B8: 10 | C8: 20 | D8: 30 | E8: 10 | F8: 20 | G8: 0 | H8: 0 | I8: 20 | J8: 0 | K8: 0 | L8: 0 | M8: 0 | O8: 60 | P8: 80
A9: V202Pb11 | B9: 2 | C9: 0 | D9: 100 | E9: 0 | F9: 0 | G9: 0 | H9: 0 | I9: 0 | J9: 0 | K9: 0 | L9: 0 | M9: 0 | O9: 100 | P9: 100
A10: Y101Pb11 | B10: 2 | C10: 0 | D10: 50 | E10: 0 | F10: 0 | G10: 0 | H10: 0 | I10: 0 | J10: 0 | K10: 0 | L10: 0 | M10: 50 | O10: 50 | P10: 50
A11: A202Pb12 | B11: 1 | C11: 100 | D11: 0 | E11: 0 | F11: 0 | G11: 0 | H11: 0 | I11: 0 | J11: 0 | K11: 0 | L11: 0 | M11: 0 | O11: 100 | P11: 100
A12: C203Pb12 | B12: 6 | C12: 33.33333333 | D12: 16.66666667 | E12: 33.33333333 | F12: 16.66666667 | G12: 0 | H12: 0 | I12: 0 | J12: 0 | K12: 0 | L12: 0 | M12: 0 | O12: 83.33333333 | P12: 100
A13: G101Pb12 | B13: 3 | C13: 100 | D13: 0 | E13: 0 | F13: 0 | G13: 0 | H13: 0 | I13: 0 | J13: 0 | K13: 0 | L13: 0 | M13: 0 | O13: 100 | P13: 100
A14: L202Pb12 | B14: 1 | C14: 100 | D14: 0 | E14: 0 | F14: 0 | G14: 0 | H14: 0 | I14: 0 | J14: 0 | K14: 0 | L14: 0 | M14: 0 | O14: 100 | P14: 100
A15: S203Pb12 | B15: 7 | C15: 0 | D15: 28.57142857 | E15: 0 | F15: 0 | G15: 28.57142857 | H15: 0 | I15: 14.28571429 | J15: 14.28571429 | K15: 0 | L15: 0 | M15: 14.28571429 | O15: 28.57142857 | P15: 57.14285714
A16: S400Pb12 | B16: 47 | C16: 6.382978723 | D16: 2.127659574 | E16: 4.255319149 | F16: 17.0212766 | G16: 2.127659574 | H16: 12.76595745 | I16: 10.63829787 | J16: 6.382978723 | K16: 8.510638298 | L16: 2.127659574 | M16: 27.65957447 | O16: 12.76595745 | P16: 44.68085106
A17: T101Pb12 | B17: 12 | C17: 66.66666667 | D17: 0 | E17: 16.66666667 | F17: 0 | G17: 0 | H17: 0 | I17: 8.333333333 | J17: 8.333333333 | K17: 0 | L17: 0 | M17: 0 | O17: 83.33333333 | P17: 83.33333333
A18: V101Pb12 | B18: 23 | C18: 13.04347826 | D18: 34.7826087 | E18: 30.43478261 | F18: 0 | G18: 4.347826087 | H18: 17.39130435 | I18: 0 | J18: 0 | K18: 0 | L18: 0 | M18: 0 | O18: 78.26086957 | P18: 100
A19: V202Pb12 | B19: 2 | C19: 0 | D19: 0 | E19: 0 | F19: 100 | G19: 0 | H19: 0 | I19: 0 | J19: 0 | K19: 0 | L19: 0 | M19: 0 | O19: 0 | P19: 100
A20: V203Pb12 | B20: 2 | C20: 100 | D20: 0 | E20: 0 | F20: 0 | G20: 0 | H20: 0 | I20: 0 | J20: 0 | K20: 0 | L20: 0 | M20: 0 | O20: 100 | P20: 100
A21: A202Pb21 | B21: 3 | C21: 100 | D21: 0 | E21: 0 | F21: 0 | G21: 0 | H21: 0 | I21: 0 | J21: 0 | K21: 0 | L21: 0 | M21: 0 | O21: 100 | P21: 100
A22: H202Pb21 | B22: 5 | C22: 20 | D22: 20 | E22: 40 | F22: 0 | G22: 0 | H22: 20 | I22: 0 | J22: 0 | K22: 0 | L22: 0 | M22: 0 | O22: 80 | P22: 100
A23: L202Pb21 | B23: 4 | C23: 100 | D23: 0 | E23: 0 | F23: 0 | G23: 0 | H23: 0 | I23: 0 | J23: 0 | K23: 0 | L23: 0 | M23: 0 | O23: 100 | P23: 100
A24: S203Pb21 | B24: 18 | C24: 27.77777778 | D24: 22.22222222 | E24: 11.11111111 | F24: 33.33333333 | G24: 0 | H24: 0 | I24: 0 | J24: 0 | K24: 0 | L24: 0 | M24: 5.555555556 | O24: 61.11111111 | P24: 94.44444444
A25: S400Pb21 | B25: 42 | C25: 30.95238095 | D25: 45.23809524 | E25: 4.761904762 | F25: 0 | G25: 2.380952381 | H25: 2.380952381 | I25: 2.380952381 | J25: 0 | K25: 0 | L25: 2.380952381 | M25: 9.523809524 | O25: 80.95238095 | P25: 85.71428571
A26: T101Pb21 | B26: 26 | C26: 23.07692308 | D26: 42.30769231 | E26: 0 | F26: 15.38461538 | G26: 15.38461538 | H26: 0 | I26: 0 | J26: 3.846153846 | K26: 0 | L26: 0 | M26: 0 | O26: 65.38461538 | P26: 96.15384615
A27: V101Pb21 | B27: 6 | C27: 50 | D27: 33.33333333 | E27: 16.66666667 | F27: 0 | G27: 0 | H27: 0 | I27: 0 | J27: 0 | K27: 0 | L27: 0 | M27: 0 | O27: 100 | P27: 100
A28: V202Pb21 | B28: 1 | C28: 0 | D28: 100 | E28: 0 | F28: 0 | G28: 0 | H28: 0 | I28: 0 | J28: 0 | K28: 0 | L28: 0 | M28: 0 | O28: 100 | P28: 100
A29: V203Pb21 | B29: 2 | C29: 50 | D29: 50 | E29: 0 | F29: 0 | G29: 0 | H29: 0 | I29: 0 | J29: 0 | K29: 0 | L29: 0 | M29: 0 | O29: 100 | P29: 100
A30: Y101Pb21 | B30: 2 | C30: 0 | D30: 0 | E30: 0 | F30: 0 | G30: 0 | H30: 0 | I30: 0 | J30: 0 | K30: 50 | L30: 0 | M30: 50 | O30: 0 | P30: 0
A31: A202Pb31 | B31: 9 | C31: 66.66666667 | D31: 33.33333333 | E31: 0 | F31: 0 | G31: 0 | H31: 0 | I31: 0 | J31: 0 | K31: 0 | L31: 0 | M31: 0 | O31: 100 | P31: 100
A32: C203Pb31 | B32: 1 | C32: 100 | D32: 0 | E32: 0 | F32: 0 | G32: 0 | H32: 0 | I32: 0 | J32: 0 | K32: 0 | L32: 0 | M32: 0 | O32: 100 | P32: 100
A33: S203Pb31 | B33: 46 | C33: 26.08695652 | D33: 23.91304348 | E33: 23.91304348 | F33: 10.86956522 | G33: 2.173913043 | H33: 2.173913043 | I33: 2.173913043 | J33: 6.52173913 | K33: 0 | L33: 0 | M33: 2.173913043 | O33: 73.91304348 | P33: 89.13043478
A34: S400Pb31 | B34: 34 | C34: 38.23529412 | D34: 17.64705882 | E34: 2.941176471 | F34: 2.941176471 | G34: 5.882352941 | H34: 0 | I34: 5.882352941 | J34: 0 | K34: 5.882352941 | L34: 2.941176471 | M34: 17.64705882 | O34: 58.82352941 | P34: 67.64705882
A35: T101Pb31 | B35: 14 | C35: 28.57142857 | D35: 42.85714286 | E35: 14.28571429 | F35: 7.142857143 | G35: 7.142857143 | H35: 0 | I35: 0 | J35: 0 | K35: 0 | L35: 0 | M35: 0 | O35: 85.71428571 | P35: 100
A36: V101Pb31 | B36: 19 | C36: 47.36842105 | D36: 0 | E36: 31.57894737 | F36: 21.05263158 | G36: 0 | H36: 0 | I36: 0 | J36: 0 | K36: 0 | L36: 0 | M36: 0 | O36: 78.94736842 | P36: 100
A37: V202Pb31 | B37: 3 | C37: 100 | D37: 0 | E37: 0 | F37: 0 | G37: 0 | H37: 0 | I37: 0 | J37: 0 | K37: 0 | L37: 0 | M37: 0 | O37: 100 | P37: 100
A38: V203Pb31 | B38: 3 | C38: 66.66666667 | D38: 33.33333333 | E38: 0 | F38: 0 | G38: 0 | H38: 0 | I38: 0 | J38: 0 | K38: 0 | L38: 0 | M38: 0 | O38: 100 | P38: 100
A39: Y101Pb31 | B39: 2 | C39: 0 | D39: 0 | E39: 0 | F39: 0 | G39: 0 | H39: 0 | I39: 0 | J39: 0 | K39: 0 | L39: 0 | M39: 100 | O39: 0 | P39: 0
A40: A202Pb41 | B40: 3 | C40: 33.33333333 | D40: 66.66666667 | E40: 0 | F40: 0 | G40: 0 | H40: 0 | I40: 0 | J40: 0 | K40: 0 | L40: 0 | M40: 0 | O40: 100 | P40: 100
A41: C203Pb41 | B41: 4 | C41: 25 | D41: 25 | E41: 25 | F41: 0 | G41: 0 | H41: 0 | I41: 25 | J41: 0 | K41: 0 | L41: 0 | M41: 0 | O41: 75 | P41: 75
A42: G101Pb41 | B42: 6 | C42: 100 | D42: 0 | E42: 0 | F42: 0 | G42: 0 | H42: 0 | I42: 0 | J42: 0 | K42: 0 | L42: 0 | M42: 0 | O42: 100 | P42: 100
A43: H202Pb41 | B43: 9 | C43: 44.44444444 | D43: 44.44444444 | E43: 11.11111111 | F43: 0 | G43: 0 | H43: 0 | I43: 0 | J43: 0 | K43: 0 | L43: 0 | M43: 0 | O43: 100 | P43: 100
A44: S203Pb41 | B44: 54 | C44: 25.92592593 | D44: 27.77777778 | E44: 14.81481481 | F44: 0 | G44: 0 | H44: 0 | I44: 9.259259259 | J44: 11.11111111 | K44: 7.407407407 | L44: 1.851851852 | M44: 1.851851852 | O44: 68.51851852 | P44: 68.51851852
A45: S400Pb41 | B45: 37 | C45: 24.32432432 | D45: 16.21621622 | E45: 16.21621622 | F45: 2.702702703 | G45: 0 | H45: 0 | I45: 8.108108108 | J45: 2.702702703 | K45: 2.702702703 | L45: 2.702702703 | M45: 24.32432432 | O45: 56.75675676 | P45: 59.45945946
A46: T101Pb41 | B46: 22 | C46: 31.81818182 | D46: 22.72727273 | E46: 18.18181818 | F46: 18.18181818 | G46: 4.545454545 | H46: 4.545454545 | I46: 0 | J46: 0 | K46: 0 | L46: 0 | M46: 0 | O46: 72.72727273 | P46: 100
A47: V101Pb41 | B47: 4 | C47: 0 | D47: 0 | E47: 75 | F47: 25 | G47: 0 | H47: 0 | I47: 0 | J47: 0 | K47: 0 | L47: 0 | M47: 0 | O47: 75 | P47: 100
A48: V202Pb41 | B48: 2 | C48: 100 | D48: 0 | E48: 0 | F48: 0 | G48: 0 | H48: 0 | I48: 0 | J48: 0 | K48: 0 | L48: 0 | M48: 0 | O48: 100 | P48: 100
A49: V203Pb41 | B49: 2 | C49: 50 | D49: 50 | E49: 0 | F49: 0 | G49: 0 | H49: 0 | I49: 0 | J49: 0 | K49: 0 | L49: 0 | M49: 0 | O49: 100 | P49: 100
A50: A202Pd11 | B50: 11 | C50: 72.72727273 | D50: 18.18181818 | E50: 9.090909091 | F50: 0 | G50: 0 | H50: 0 | I50: 0 | J50: 0 | K50: 0 | L50: 0 | M50: 0 | O50: 100 | P50: 100
A51: H202Pd11 | B51: 4 | C51: 75 | D51: 0 | E51: 25 | F51: 0 | G51: 0 | H51: 0 | I51: 0 | J51: 0 | K51: 0 | L51: 0 | M51: 0 | O51: 100 | P51: 100
A52: L202Pd11 | B52: 1 | C52: 100 | D52: 0 | E52: 0 | F52: 0 | G52: 0 | H52: 0 | I52: 0 | J52: 0 | K52: 0 | L52: 0 | M52: 0 | O52: 100 | P52: 100
A53: S203Pd11 | B53: 17 | C53: 35.29411765 | D53: 29.41176471 | E53: 29.41176471 | F53: 0 | G53: 0 | H53: 0 | I53: 0 | J53: 5.882352941 | K53: 0 | L53: 0 | M53: 0 | O53: 94.11764706 | P53: 94.11764706
A54: S400Pd11 | B54: 39 | C54: 20.51282051 | D54: 30.76923077 | E54: 12.82051282 | F54: 15.38461538 | G54: 5.128205128 | H54: 2.564102564 | I54: 2.564102564 | J54: 0 | K54: 0 | L54: 0 | M54: 10.25641026 | O54: 64.1025641 | P54: 87.17948718
A55: T101Pd11 | B55: 12 | C55: 50 | D55: 33.33333333 | E55: 16.66666667 | F55: 0 | G55: 0 | H55: 0 | I55: 0 | J55: 0 | K55: 0 | L55: 0 | M55: 0 | O55: 100 | P55: 100
A56: V101Pd11 | B56: 6 | C56: 16.66666667 | D56: 16.66666667 | E56: 16.66666667 | F56: 16.66666667 | G56: 0 | H56: 0 | I56: 33.33333333 | J56: 0 | K56: 0 | L56: 0 | M56: 0 | O56: 50 | P56: 66.66666667
A57: V202Pd11 | B57: 2 | C57: 0 | D57: 100 | E57: 0 | F57: 0 | G57: 0 | H57: 0 | I57: 0 | J57: 0 | K57: 0 | L57: 0 | M57: 0 | O57: 100 | P57: 100
A58: Y101Pd11 | B58: 2 | C58: 0 | D58: 50 | E58: 0 | F58: 0 | G58: 0 | H58: 0 | I58: 0 | J58: 0 | K58: 0 | L58: 0 | M58: 50 | O58: 50 | P58: 50
A59: A202Pd12 | B59: 1 | C59: 100 | D59: 0 | E59: 0 | F59: 0 | G59: 0 | H59: 0 | I59: 0 | J59: 0 | K59: 0 | L59: 0 | M59: 0 | O59: 100 | P59: 100
A60: C203Pd12 | B60: 6 | C60: 33.33333333 | D60: 16.66666667 | E60: 33.33333333 | F60: 16.66666667 | G60: 0 | H60: 0 | I60: 0 | J60: 0 | K60: 0 | L60: 0 | M60: 0 | O60: 83.33333333 | P60: 100
A61: G101Pd12 | B61: 3 | C61: 100 | D61: 0 | E61: 0 | F61: 0 | G61: 0 | H61: 0 | I61: 0 | J61: 0 | K61: 0 | L61: 0 | M61: 0 | O61: 100 | P61: 100
A62: L202Pd12 | B62: 1 | C62: 100 | D62: 0 | E62: 0 | F62: 0 | G62: 0 | H62: 0 | I62: 0 | J62: 0 | K62: 0 | L62: 0 | M62: 0 | O62: 100 | P62: 100
A63: S203Pd12 | B63: 5 | C63: 0 | D63: 40 | E63: 0 | F63: 0 | G63: 40 | H63: 0 | I63: 0 | J63: 0 | K63: 0 | L63: 0 | M63: 20 | O63: 40 | P63: 80
A64: S400Pd12 | B64: 47 | C64: 6.382978723 | D64: 2.127659574 | E64: 4.255319149 | F64: 17.0212766 | G64: 2.127659574 | H64: 12.76595745 | I64: 10.63829787 | J64: 6.382978723 | K64: 8.510638298 | L64: 2.127659574 | M64: 27.65957447 | O64: 12.76595745 | P64: 44.68085106
A65: T101Pd12 | B65: 11 | C65: 63.63636364 | D65: 0 | E65: 18.18181818 | F65: 0 | G65: 0 | H65: 0 | I65: 9.090909091 | J65: 9.090909091 | K65: 0 | L65: 0 | M65: 0 | O65: 81.81818182 | P65: 81.81818182
A66: V101Pd12 | B66: 17 | C66: 11.76470588 | D66: 29.41176471 | E66: 35.29411765 | F66: 0 | G66: 0 | H66: 23.52941176 | I66: 0 | J66: 0 | K66: 0 | L66: 0 | M66: 0 | O66: 76.47058824 | P66: 100
A67: V202Pd12 | B67: 2 | C67: 0 | D67: 0 | E67: 0 | F67: 100 | G67: 0 | H67: 0 | I67: 0 | J67: 0 | K67: 0 | L67: 0 | M67: 0 | O67: =SUM(C67:E67) -> 0 | P67: =SUM(C67:H67) -> 100
A68: V203Pd12 | B68: 2 | C68: 100 | D68: 0 | E68: 0 | F68: 0 | G68: 0 | H68: 0 | I68: 0 | J68: 0 | K68: 0 | L68: 0 | M68: 0 | O68: 100 | P68: 100
A69: A202Pd21 | B69: 3 | C69: 100 | D69: 0 | E69: 0 | F69: 0 | G69: 0 | H69: 0 | I69: 0 | J69: 0 | K69: 0 | L69: 0 | M69: 0 | O69: 100 | P69: 100
A70: H202Pd21 | B70: 1 | C70: 0 | D70: 100 | E70: 0 | F70: 0 | G70: 0 | H70: 0 | I70: 0 | J70: 0 | K70: 0 | L70: 0 | M70: 0 | O70: 100 | P70: 100
A71: L202Pd21 | B71: 4 | C71: 100 | D71: 0 | E71: 0 | F71: 0 | G71: 0 | H71: 0 | I71: 0 | J71: 0 | K71: 0 | L71: 0 | M71: 0 | O71: 100 | P71: 100
A72: S203Pd21 | B72: 16 | C72: 25 | D72: 25 | E72: 12.5 | F72: 37.5 | G72: 0 | H72: 0 | I72: 0 | J72: 0 | K72: 0 | L72: 0 | M72: 0 | O72: 62.5 | P72: 100
A73: S400Pd21 | B73: 40 | C73: 32.5 | D73: 42.5 | E73: 5 | F73: 0 | G73: 2.5 | H73: 2.5 | I73: 2.5 | J73: 0 | K73: 0 | L73: 2.5 | M73: 10 | O73: 80 | P73: 85
A74: T101Pd21 | B74: 26 | C74: 23.07692308 | D74: 42.30769231 | E74: 0 | F74: 15.38461538 | G74: 15.38461538 | H74: 0 | I74: 0 | J74: 3.846153846 | K74: 0 | L74: 0 | M74: 0 | O74: 65.38461538 | P74: 96.15384615
A75: V101Pd21 | B75: 6 | C75: 50 | D75: 33.33333333 | E75: 16.66666667 | F75: 0 | G75: 0 | H75: 0 | I75: 0 | J75: 0 | K75: 0 | L75: 0 | M75: 0 | O75: 100 | P75: 100
A76: V202Pd21 | B76: 1 | C76: 0 | D76: 100 | E76: 0 | F76: 0 | G76: 0 | H76: 0 | I76: 0 | J76: 0 | K76: 0 | L76: 0 | M76: 0 | O76: 100 | P76: 100
A77: Y101Pd21 | B77: 2 | C77: 0 | D77: 0 | E77: 0 | F77: 0 | G77: 0 | H77: 0 | I77: 0 | J77: 0 | K77: 50 | L77: 0 | M77: 50 | O77: 0 | P77: 0
A78: A202Pd31 | B78: 9 | C78: 66.66666667 | D78: 33.33333333 | E78: 0 | F78: 0 | G78: 0 | H78: 0 | I78: 0 | J78: 0 | K78: 0 | L78: 0 | M78: 0 | O78: 100 | P78: 100
A79: S203Pd31 | B79: 36 | C79: 22.22222222 | D79: 27.77777778 | E79: 22.22222222 | F79: 13.88888889 | G79: 2.777777778 | H79: 2.777777778 | I79: 2.777777778 | J79: 5.555555556 | K79: 0 | L79: 0 | M79: 0 | O79: 72.22222222 | P79: 91.66666667
A80: S400Pd31 | B80: 34 | C80: 38.23529412 | D80: 17.64705882 | E80: 2.941176471 | F80: 2.941176471 | G80: 5.882352941 | H80: 0 | I80: 5.882352941 | J80: 0 | K80: 5.882352941 | L80: 2.941176471 | M80: 17.64705882 | O80: 58.82352941 | P80: 67.64705882
A81: T101Pd31 | B81: 14 | C81: 28.57142857 | D81: 42.85714286 | E81: 14.28571429 | F81: 7.142857143 | G81: 7.142857143 | H81: 0 | I81: 0 | J81: 0 | K81: 0 | L81: 0 | M81: 0 | O81: 85.71428571 | P81: 100
A82: V101Pd31 | B82: 16 | C82: 50 | D82: 0 | E82: 31.25 | F82: 18.75 | G82: 0 | H82: 0 | I82: 0 | J82: 0 | K82: 0 | L82: 0 | M82: 0 | O82: 81.25 | P82: 100
A83: V202Pd31 | B83: 3 | C83: 100 | D83: 0 | E83: 0 | F83: 0 | G83: 0 | H83: 0 | I83: 0 | J83: 0 | K83: 0 | L83: 0 | M83: 0 | O83: 100 | P83: 100
A84: V203Pd31 | B84: 3 | C84: 66.66666667 | D84: 33.33333333 | E84: 0 | F84: 0 | G84: 0 | H84: 0 | I84: 0 | J84: 0 | K84: 0 | L84: 0 | M84: 0 | O84: 100 | P84: 100
A85: Y101Pd31 | B85: 2 | C85: 0 | D85: 0 | E85: 0 | F85: 0 | G85: 0 | H85: 0 | I85: 0 | J85: 0 | K85: 0 | L85: 0 | M85: 100 | O85: 0 | P85: 0
A86: A202Pd41 | B86: 3 | C86: 33.33333333 | D86: 66.66666667 | E86: 0 | F86: 0 | G86: 0 | H86: 0 | I86: 0 | J86: 0 | K86: 0 | L86: 0 | M86: 0 | O86: 100 | P86: 100
A87: C203Pd41 | B87: 4 | C87: 25 | D87: 25 | E87: 25 | F87: 0 | G87: 0 | H87: 0 | I87: 25 | J87: 0 | K87: 0 | L87: 0 | M87: 0 | O87: 75 | P87: 75
A88: G101Pd41 | B88: 6 | C88: 100 | D88: 0 | E88: 0 | F88: 0 | G88: 0 | H88: 0 | I88: 0 | J88: 0 | K88: 0 | L88: 0 | M88: 0 | O88: 100 | P88: 100
A89: H202Pd41 | B89: 7 | C89: 42.85714286 | D89: 42.85714286 | E89: 14.28571429 | F89: 0 | G89: 0 | H89: 0 | I89: 0 | J89: 0 | K89: 0 | L89: 0 | M89: 0 | O89: 100 | P89: 100
A90: S203Pd41 | B90: 47 | C90: 29.78723404 | D90: 23.40425532 | E90: 17.0212766 | F90: 0 | G90: 0 | H90: 0 | I90: 10.63829787 | J90: 10.63829787 | K90: 4.255319149 | L90: 2.127659574 | M90: 2.127659574 | O90: 70.21276596 | P90: 70.21276596
A91: S400Pd41 | B91: 37 | C91: 24.32432432 | D91: 16.21621622 | E91: 16.21621622 | F91: 2.702702703 | G91: 0 | H91: 0 | I91: 8.108108108 | J91: 2.702702703 | K91: 2.702702703 | L91: 2.702702703 | M91: 24.32432432 | O91: 56.75675676 | P91: 59.45945946
A92: T101Pd41 | B92: 22 | C92: 31.81818182 | D92: 22.72727273 | E92: 18.18181818 | F92: 18.18181818 | G92: 4.545454545 | H92: 4.545454545 | I92: 0 | J92: 0 | K92: 0 | L92: 0 | M92: 0 | O92: 72.72727273 | P92: 100
A93: V101Pd41 | B93: 4 | C93: 0 | D93: 0 | E93: 75 | F93: 25 | G93: 0 | H93: 0 | I93: 0 | J93: 0 | K93: 0 | L93: 0 | M93: 0 | O93: 75 | P93: 100
A94: V202Pd41 | B94: 2 | C94: 100 | D94: 0 | E94: 0 | F94: 0 | G94: 0 | H94: 0 | I94: 0 | J94: 0 | K94: 0 | L94: 0 | M94: 0 | O94: 100 | P94: 100
A95: V203Pd41 | B95: 2 | C95: 50 | D95: 50 | E95: 0 | F95: 0 | G95: 0 | H95: 0 | I95: 0 | J95: 0 | K95: 0 | L95: 0 | M95: 0 | O95: 100 | P95: 100
A96: H202Pa11 | B96: 2 | C96: 50 | D96: 50 | E96: 0 | F96: 0 | G96: 0 | H96: 0 | I96: 0 | J96: 0 | K96: 0 | L96: 0 | M96: 0 | O96: 100 | P96: 100
A97: S203Pa11 | B97: 15 | C97: 73.33333333 | D97: 6.666666667 | E97: 6.666666667 | F97: 0 | G97: 0 | H97: 0 | I97: 6.666666667 | J97: 6.666666667 | K97: 0 | L97: 0 | M97: 0 | O97: 86.66666667 | P97: 86.66666667
A98: S400Pa11 | B98: 1 | C98: 0 | D98: 0 | E98: 0 | F98: 0 | G98: 0 | H98: 0 | I98: 100 | J98: 0 | K98: 0 | L98: 0 | M98: 0 | O98: 0 | P98: 0
A99: V101Pa11 | B99: 4 | C99: 25 | D99: 50 | E99: 0 | F99: 25 | G99: 0 | H99: 0 | I99: 0 | J99: 0 | K99: 0 | L99: 0 | M99: 0 | O99: 75 | P99: 100
A100: S203Pa12 | B100: 2 | C100: 0 | D100: 0 | E100: 0 | F100: 0 | G100: 0 | H100: 0 | I100: 50 | J100: 50 | K100: 0 | L100: 0 | M100: 0 | O100: 0 | P100: 0
A101: T101Pa12 | B101: 1 | C101: 100 | D101: 0 | E101: 0 | F101: 0 | G101: 0 | H101: 0 | I101: 0 | J101: 0 | K101: 0 | L101: 0 | M101: 0 | O101: 100 | P101: 100
A102: V101Pa12 | B102: 6 | C102: 16.66666667 | D102: 50 | E102: 16.66666667 | F102: 0 | G102: 16.66666667 | H102: 0 | I102: 0 | J102: 0 | K102: 0 | L102: 0 | M102: 0 | O102: 83.33333333 | P102: 100
A103: H202Pa21 | B103: 4 | C103: 25 | D103: 0 | E103: 50 | F103: 0 | G103: 0 | H103: 25 | I103: 0 | J103: 0 | K103: 0 | L103: 0 | M103: 0 | O103: 75 | P103: 100
A104: S203Pa21 | B104: 2 | C104: 50 | D104: 0 | E104: 0 | F104: 0 | G104: 0 | H104: 0 | I104: 0 | J104: 0 | K104: 0 | L104: 0 | M104: 50 | O104: 50 | P104: 50
A105: S400Pa21 | B105: 2 | C105: 0 | D105: 100 | E105: 0 | F105: 0 | G105: 0 | H105: 0 | I105: 0 | J105: 0 | K105: 0 | L105: 0 | M105: 0 | O105: 100 | P105: 100
A106: V203Pa21 | B106: 2 | C106: 50 | D106: 50 | E106: 0 | F106: 0 | G106: 0 | H106: 0 | I106: 0 | J106: 0 | K106: 0 | L106: 0 | M106: 0 | O106: 100 | P106: 100
A107: C203Pa31 | B107: 1 | C107: 100 | D107: 0 | E107: 0 | F107: 0 | G107: 0 | H107: 0 | I107: 0 | J107: 0 | K107: 0 | L107: 0 | M107: 0 | O107: 100 | P107: 100
A108: S203Pa31 | B108: 10 | C108: 40 | D108: 10 | E108: 30 | F108: 0 | G108: 0 | H108: 0 | I108: 0 | J108: 10 | K108: 0 | L108: 0 | M108: 10 | O108: 80 | P108: 80
A109: V101Pa31 | B109: 3 | C109: 33.33333333 | D109: 0 | E109: 33.33333333 | F109: 33.33333333 | G109: 0 | H109: 0 | I109: 0 | J109: 0 | K109: 0 | L109: 0 | M109: 0 | O109: 66.66666667 | P109: 100
A110: H202Pa41 | B110: 2 | C110: 50 | D110: 50 | E110: 0 | F110: 0 | G110: 0 | H110: 0 | I110: 0 | J110: 0 | K110: 0 | L110: 0 | M110: 0 | O110: 100 | P110: 100
A111: S203Pa41 | B111: 7 | C111: 0 | D111: 57.14285714 | E111: 0 | F111: 0 | G111: 0 | H111: 0 | I111: 0 | J111: 14.28571429 | K111: 28.57142857 | L111: 0 | M111: 0 | O111: 57.14285714 | P111: 57.14285714
A112: 202b11 | B112: 11 | C112: 72.72727273 | D112: 18.18181818 | E112: 9.090909091 | F112: 0 | G112: 0 | H112: 0 | I112: 0 | J112: 0 | K112: 0 | L112: 0 | M112: 0 | O112: 100 | P112: 100
A113: 204b11 | B113: 2 | C113: 0 | D113: 50 | E113: 0 | F113: 0 | G113: 0 | H113: 0 | I113: 0 | J113: 0 | K113: 0 | L113: 0 | M113: 50 | O113: 50 | P113: 50
A114: 206b11 | B114: 12 | C114: 16.66666667 | D114: 41.66666667 | E114: 8.333333333 | F114: 16.66666667 | G114: 0 | H114: 0 | I114: 16.66666667 | J114: 0 | K114: 0 | L114: 0 | M114: 0 | O114: 66.66666667 | P114: 83.33333333
A115: 209b11 | B115: 6 | C115: 66.66666667 | D115: 16.66666667 | E115: 16.66666667 | F115: 0 | G115: 0 | H115: 0 | I115: 0 | J115: 0 | K115: 0 | L115: 0 | M115: 0 | O115: 100 | P115: 100
A116: 210b11 | B116: 1 | C116: 100 | D116: 0 | E116: 0 | F116: 0 | G116: 0 | H116: 0 | I116: 0 | J116: 0 | K116: 0 | L116: 0 | M116: 0 | O116: 100 | P116: 100
A117: 211b11 | B117: 72 | C117: 34.72222222 | D117: 25 | E117: 15.27777778 | F117: 8.333333333 | G117: 2.777777778 | H117: 1.388888889 | I117: 4.166666667 | J117: 2.777777778 | K117: 0 | L117: 0 | M117: 5.555555556 | O117: 75 | P117: 87.5
A118: 214b11 | B118: 12 | C118: 50 | D118: 33.33333333 | E118: 16.66666667 | F118: 0 | G118: 0 | H118: 0 | I118: 0 | J118: 0 | K118: 0 | L118: 0 | M118: 0 | O118: 100 | P118: 100
A119: 202b12 | B119: 1 | C119: 100 | D119: 0 | E119: 0 | F119: 0 | G119: 0 | H119: 0 | I119: 0 | J119: 0 | K119: 0 | L119: 0 | M119: 0 | O119: 100 | P119: 100
A120: 206b12 | B120: 27 | C120: 18.51851852 | D120: 29.62962963 | E120: 25.92592593 | F120: 7.407407407 | G120: 3.703703704 | H120: 14.81481481 | I120: 0 | J120: 0 | K120: 0 | L120: 0 | M120: 0 | O120: 74.07407407 | P120: 100
A121: 210b12 | B121: 1 | C121: 100 | D121: 0 | E121: 0 | F121: 0 | G121: 0 | H121: 0 | I121: 0 | J121: 0 | K121: 0 | L121: 0 | M121: 0 | O121: 100 | P121: 100
A122: 211b12 | B122: 54 | C122: 5.555555556 | D122: 5.555555556 | E122: 3.703703704 | F122: 14.81481481 | G122: 5.555555556 | H122: 11.11111111 | I122: 11.11111111 | J122: 7.407407407 | K122: 7.407407407 | L122: 1.851851852 | M122: 25.92592593 | O122: 14.81481481 | P122: 46.2962963
A123: 214b12 | B123: 12 | C123: 66.66666667 | D123: 0 | E123: 16.66666667 | F123: 0 | G123: 0 | H123: 0 | I123: 8.333333333 | J123: 8.333333333 | K123: 0 | L123: 0 | M123: 0 | O123: 83.33333333 | P123: 83.33333333
A124: 218b12 | B124: 9 | C124: 55.55555556 | D124: 11.11111111 | E124: 22.22222222 | F124: 11.11111111 | G124: 0 | H124: 0 | I124: 0 | J124: 0 | K124: 0 | L124: 0 | M124: 0 | O124: 88.88888889 | P124: 100
A125: 202b21 | B125: 3 | C125: 100 | D125: 0 | E125: 0 | F125: 0 | G125: 0 | H125: 0 | I125: 0 | J125: 0 | K125: 0 | L125: 0 | M125: 0 | O125: 100 | P125: 100
A126: 204b21 | B126: 2 | C126: 0 | D126: 0 | E126: 0 | F126: 0 | G126: 0 | H126: 0 | I126: 0 | J126: 0 | K126: 50 | L126: 0 | M126: 50 | O126: 0 | P126: 0
A127: 206b21 | B127: 9 | C127: 44.44444444 | D127: 44.44444444 | E127: 11.11111111 | F127: 0 | G127: 0 | H127: 0 | I127: 0 | J127: 0 | K127: 0 | L127: 0 | M127: 0 | O127: 100 | P127: 100
A128: 209b21 | B128: 5 | C128: 20 | D128: 20 | E128: 40 | F128: 0 | G128: 0 | H128: 20 | I128: 0 | J128: 0 | K128: 0 | L128: 0 | M128: 0 | O128: 80 | P128: 100
A129: 210b21 | B129: 4 | C129: 100 | D129: 0 | E129: 0 | F129: 0 | G129: 0 | H129: 0 | I129: 0 | J129: 0 | K129: 0 | L129: 0 | M129: 0 | O129: 100 | P129: 100
A130: 211b21 | B130: 60 | C130: 30 | D130: 38.33333333 | E130: 6.666666667 | F130: 10 | G130: 1.666666667 | H130: 1.666666667 | I130: 1.666666667 | J130: 0 | K130: 0 | L130: 1.666666667 | M130: 8.333333333 | O130: 75 | P130: 88.33333333
A131: 214b21 | B131: 26 | C131: 23.07692308 | D131: 42.30769231 | E131: 0 | F131: 15.38461538 | G131: 15.38461538 | H131: 0 | I131: 0 | J131: 3.846153846 | K131: 0 | L131: 0 | M131: 0 | O131: =SUM(C131:E131) -> 65.38461538 | P131: =SUM(C131:H131) -> 96.15384615
A132: 202b31 | B132: 9 | C132: 66.66666667 | D132: 33.33333333 | E132: 0 | F132: 0 | G132: 0 | H132: 0 | I132: 0 | J132: 0 | K132: 0 | L132: 0 | M132: 0 | O132: 100 | P132: 100
A133: 204b31 | B133: 2 | C133: 0 | D133: 0 | E133: 0 | F133: 0 | G133: 0 | H133: 0 | I133: 0 | J133: 0 | K133: 0 | L133: 0 | M133: 100 | O133: 0 | P133: 0
A134: 206b31 | B134: 25 | C134: 56 | D134: 4 | E134: 24 | F134: 16 | G134: 0 | H134: 0 | I134: 0 | J134: 0 | K134: 0 | L134: 0 | M134: 0 | O134: 84 | P134: 100
A135: 211b31 | B135: 80 | C135: 31.25 | D135: 21.25 | E135: 15 | F135: 7.5 | G135: 3.75 | H135: 1.25 | I135: 3.75 | J135: 3.75 | K135: 2.5 | L135: 1.25 | M135: 8.75 | O135: 67.5 | P135: 80
A136: 214b31 | B136: 14 | C136: 28.57142857 | D136: 42.85714286 | E136: 14.28571429 | F136: 7.142857143 | G136: 7.142857143 | H136: 0 | I136: 0 | J136: 0 | K136: 0 | L136: 0 | M136: 0 | O136: 85.71428571 | P136: 100
A137: 218b31 | B137: 1 | C137: 100 | D137: 0 | E137: 0 | F137: 0 | G137: 0 | H137: 0 | I137: 0 | J137: 0 | K137: 0 | L137: 0 | M137: 0 | O137: 100 | P137: 100
A138: 202b41 | B138: 3 | C138: 33.33333333 | D138: 66.66666667 | E138: 0 | F138: 0 | G138: 0 | H138: 0 | I138: 0 | J138: 0 | K138: 0 | L138: 0 | M138: 0 | O138: 100 | P138: 100
A139: 206b41 | B139: 8 | C139: 37.5 | D139: 12.5 | E139: 37.5 | F139: 12.5 | G139: 0 | H139: 0 | I139: 0 | J139: 0 | K139: 0 | L139: 0 | M139: 0 | O139: 87.5 | P139: 100
A140: 209b41 | B140: 9 | C140: 44.44444444 | D140: 44.44444444 | E140: 11.11111111 | F140: 0 | G140: 0 | H140: 0 | I140: 0 | J140: 0 | K140: 0 | L140: 0 | M140: 0 | O140: 100 | P140: 100
A141: 211b41 | B141: 91 | C141: 25.27472527 | D141: 23.07692308 | E141: 15.38461538 | F141: 1.098901099 | G141: 0 | H141: 0 | I141: 8.791208791 | J141: 7.692307692 | K141: 5.494505495 | L141: 2.197802198 | M141: 10.98901099 | O141: 63.73626374 | P141: 64.83516484
A142: 214b41 | B142: 22 | C142: 31.81818182 | D142: 22.72727273 | E142: 18.18181818 | F142: 18.18181818 | G142: 4.545454545 | H142: 4.545454545 | I142: 0 | J142: 0 | K142: 0 | L142: 0 | M142: 0 | O142: 72.72727273 | P142: 100
A143: 218b41 | B143: 10 | C143: 70 | D143: 10 | E143: 10 | F143: 0 | G143: 0 | H143: 0 | I143: 10 | J143: 0 | K143: 0 | L143: 0 | M143: 0 | O143: 90 | P143: 90
A144: 202d11 | B144: 11 | C144: 72.72727273 | D144: 18.18181818 | E144: 9.090909091 | F144: 0 | G144: 0 | H144: 0 | I144: 0 | J144: 0 | K144: 0 | L144: 0 | M144: 0 | O144: 100 | P144: 100
A145: 204d11 | B145: 2 | C145: 0 | D145: 50 | E145: 0 | F145: 0 | G145: 0 | H145: 0 | I145: 0 | J145: 0 | K145: 0 | L145: 0 | M145: 50 | O145: 50 | P145: 50
A146: 206d11 | B146: 8 | C146: 12.5 | D146: 37.5 | E146: 12.5 | F146: 12.5 | G146: 0 | H146: 0 | I146: 25 | J146: 0 | K146: 0 | L146: 0 | M146: 0 | O146: 62.5 | P146: 75
A147: 209d11 | B147: 4 | C147: 75 | D147: 0 | E147: 25 | F147: 0 | G147: 0 | H147: 0 | I147: 0 | J147: 0 | K147: 0 | L147: 0 | M147: 0 | O147: 100 | P147: 100
A148: 210d11 | B148: 1 | C148: 100 | D148: 0 | E148: 0 | F148: 0 | G148: 0 | H148: 0 | I148: 0 | J148: 0 | K148: 0 | L148: 0 | M148: 0 | O148: 100 | P148: 100
A149: 211d11 | B149: 56 | C149: 25 | D149: 30.35714286 | E149: 17.85714286 | F149: 10.71428571 | G149: 3.571428571 | H149: 1.785714286 | I149: 1.785714286 | J149: 1.785714286 | K149: 0 | L149: 0 | M149: 7.142857143 | O149: 73.21428571 | P149: 89.28571429
A150: 214d11 | B150: 12 | C150: 50 | D150: 33.33333333 | E150: 16.66666667 | F150: 0 | G150: 0 | H150: 0 | I150: 0 | J150: 0 | K150: 0 | L150: 0 | M150: 0 | O150: 100 | P150: 100
A151: 202d12 | B151: 1 | C151: 100 | D151: 0 | E151: 0 | F151: 0 | G151: 0 | H151: 0 | I151: 0 | J151: 0 | K151: 0 | L151: 0 | M151: 0 | O151: 100 | P151: 100
A152: 206d12 | B152: 21 | C152: 19.04761905 | D152: 23.80952381 | E152: 28.57142857 | F152: 9.523809524 | G152: 0 | H152: 19.04761905 | I152: 0 | J152: 0 | K152: 0 | L152: 0 | M152: 0 | O152: 71.42857143 | P152: 100
A153: 210d12 | B153: 1 | C153: 100 | D153: 0 | E153: 0 | F153: 0 | G153: 0 | H153: 0 | I153: 0 | J153: 0 | K153: 0 | L153: 0 | M153: 0 | O153: 100 | P153: 100
A154: 211d12 | B154: 52 | C154: 5.769230769 | D154: 5.769230769 | E154: 3.846153846 | F154: 15.38461538 | G154: 5.769230769 | H154: 11.53846154 | I154: 9.615384615 | J154: 5.769230769 | K154: 7.692307692 | L154: 1.923076923 | M154: 26.92307692 | O154: 15.38461538 | P154: 48.07692308
A155: 214d12 | B155: 11 | C155: 63.63636364 | D155: 0 | E155: 18.18181818 | F155: 0 | G155: 0 | H155: 0 | I155: 9.090909091 | J155: 9.090909091 | K155: 0 | L155: 0 | M155: 0 | O155: 81.81818182 | P155: 81.81818182
A156: 218d12 | B156: 9 | C156: 55.55555556 | D156: 11.11111111 | E156: 22.22222222 | F156: 11.11111111 | G156: 0 | H156: 0 | I156: 0 | J156: 0 | K156: 0 | L156: 0 | M156: 0 | O156: 88.88888889 | P156: 100
A157: 202d21 | B157: 3 | C157: 100 | D157: 0 | E157: 0 | F157: 0 | G157: 0 | H157: 0 | I157: 0 | J157: 0 | K157: 0 | L157: 0 | M157: 0 | O157: 100 | P157: 100
A158: 204d21 | B158: 2 | C158: 0 | D158: 0 | E158: 0 | F158: 0 | G158: 0 | H158: 0 | I158: 0 | J158: 0 | K158: 50 | L158: 0 | M158: 50 | O158: 0 | P158: 0
A159: 206d21 | B159: 7 | C159: 42.85714286 | D159: 42.85714286 | E159: 14.28571429 | F159: 0 | G159: 0 | H159: 0 | I159: 0 | J159: 0 | K159: 0 | L159: 0 | M159: 0 | O159: 100 | P159: 100
A160: 209d21 | B160: 1 | C160: 0 | D160: 100 | E160: 0 | F160: 0 | G160: 0 | H160: 0 | I160: 0 | J160: 0 | K160: 0 | L160: 0 | M160: 0 | O160: 100 | P160: 100
A161: 210d21 | B161: 4 | C161: 100 | D161: 0 | E161: 0 | F161: 0 | G161: 0 | H161: 0 | I161: 0 | J161: 0 | K161: 0 | L161: 0 | M161: 0 | O161: 100 | P161: 100
A162: 211d21 | B162: 56 | C162: 30.35714286 | D162: 37.5 | E162: 7.142857143 | F162: 10.71428571 | G162: 1.785714286 | H162: 1.785714286 | I162: 1.785714286 | J162: 0 | K162: 0 | L162: 1.785714286 | M162: 7.142857143 | O162: 75 | P162: 89.28571429
A163: 214d21 | B163: 26 | C163: 23.07692308 | D163: 42.30769231 | E163: 0 | F163: 15.38461538 | G163: 15.38461538 | H163: 0 | I163: 0 | J163: 3.846153846 | K163: 0 | L163: 0 | M163: 0 | O163: 65.38461538 | P163: 96.15384615
A164: 202d31 | B164: 9 | C164: 66.66666667 | D164: 33.33333333 | E164: 0 | F164: 0 | G164: 0 | H164: 0 | I164: 0 | J164: 0 | K164: 0 | L164: 0 | M164: 0 | O164: 100 | P164: 100
A165: 204d31 | B165: 2 | C165: 0 | D165: 0 | E165: 0 | F165: 0 | G165: 0 | H165: 0 | I165: 0 | J165: 0 | K165: 0 | L165: 0 | M165: 100 | O165: 0 | P165: 0
A166: 206d31 | B166: 22 | C166: 59.09090909 | D166: 4.545454545 | E166: 22.72727273 | F166: 13.63636364 | G166: 0 | H166: 0 | I166: 0 | J166: 0 | K166: 0 | L166: 0 | M166: 0 | O166: 86.36363636 | P166: 100
A167: 211d31 | B167: 70 | C167: 30 | D167: 22.85714286 | E167: 12.85714286 | F167: 8.571428571 | G167: 4.285714286 | H167: 1.428571429 | I167: 4.285714286 | J167: 2.857142857 | K167: 2.857142857 | L167: 1.428571429 | M167: 8.571428571 | O167: 65.71428571 | P167: 80
A168: 214d31 | B168: 14 | C168: 28.57142857 | D168: 42.85714286 | E168: 14.28571429 | F168: 7.142857143 | G168: 7.142857143 | H168: 0 | I168: 0 | J168: 0 | K168: 0 | L168: 0 | M168: 0 | O168: 85.71428571 | P168: 100
A169: 202d41 | B169: 3 | C169: 33.33333333 | D169: 66.66666667 | E169: 0 | F169: 0 | G169: 0 | H169: 0 | I169: 0 | J169: 0 | K169: 0 | L169: 0 | M169: 0 | O169: 100 | P169: 100
A170: 206d41 | B170: 8 | C170: 37.5 | D170: 12.5 | E170: 37.5 | F170: 12.5 | G170: 0 | H170: 0 | I170: 0 | J170: 0 | K170: 0 | L170: 0 | M170: 0 | O170: 87.5 | P170: 100
A171: 209d41 | B171: 7 | C171: 42.85714286 | D171: 42.85714286 | E171: 14.28571429 | F171: 0 | G171: 0 | H171: 0 | I171: 0 | J171: 0 | K171: 0 | L171: 0 | M171: 0 | O171: 100 | P171: 100
A172: 211d41 | B172: 84 | C172: 27.38095238 | D172: 20.23809524 | E172: 16.66666667 | F172: 1.19047619 | G172: 0 | H172: 0 | I172: 9.523809524 | J172: 7.142857143 | K172: 3.571428571 | L172: 2.380952381 | M172: 11.9047619 | O172: 64.28571429 | P172: 65.47619048
A173: 214d41 | B173: 22 | C173: 31.81818182 | D173: 22.72727273 | E173: 18.18181818 | F173: 18.18181818 | G173: 4.545454545 | H173: 4.545454545 | I173: 0 | J173: 0 | K173: 0 | L173: 0 | M173: 0 | O173: 72.72727273 | P173: 100
A174: 218d41 | B174: 10 | C174: 70 | D174: 10 | E174: 10 | F174: 0 | G174: 0 | H174: 0 | I174: 10 | J174: 0 | K174: 0 | L174: 0 | M174: 0 | O174: 90 | P174: 90
A175: 206a11 | B175: 4 | C175: 25 | D175: 50 | E175: 0 | F175: 25 | G175: 0 | H175: 0 | I175: 0 | J175: 0 | K175: 0 | L175: 0 | M175: 0 | O175: 75 | P175: 100
A176: 209a11 | B176: 2 | C176: 50 | D176: 50 | E176: 0 | F176: 0 | G176: 0 | H176: 0 | I176: 0 | J176: 0 | K176: 0 | L176: 0 | M176: 0 | O176: 100 | P176: 100
A177: 211a11 | B177: 16 | C177: 68.75 | D177: 6.25 | E177: 6.25 | F177: 0 | G177: 0 | H177: 0 | I177: 12.5 | J177: 6.25 | K177: 0 | L177: 0 | M177: 0 | O177: 81.25 | P177: 81.25
A178: 206a12 | B178: 6 | C178: 16.66666667 | D178: 50 | E178: 16.66666667 | F178: 0 | G178: 16.66666667 | H178: 0 | I178: 0 | J178: 0 | K178: 0 | L178: 0 | M178: 0 | O178: 83.33333333 | P178: 100
A179: 211a12 | B179: 2 | C179: 0 | D179: 0 | E179: 0 | F179: 0 | G179: 0 | H179: 0 | I179: 50 | J179: 50 | K179: 0 | L179: 0 | M179: 0 | O179: 0 | P179: 0
A180: 214a12 | B180: 1 | C180: 100 | D180: 0 | E180: 0 | F180: 0 | G180: 0 | H180: 0 | I180: 0 | J180: 0 | K180: 0 | L180: 0 | M180: 0 | O180: 100 | P180: 100
A181: 206a21 | B181: 2 | C181: 50 | D181: 50 | E181: 0 | F181: 0 | G181: 0 | H181: 0 | I181: 0 | J181: 0 | K181: 0 | L181: 0 | M181: 0 | O181: 100 | P181: 100
A182: 209a21 | B182: 4 | C182: 25 | D182: 0 | E182: 50 | F182: 0 | G182: 0 | H182: 25 | I182: 0 | J182: 0 | K182: 0 | L182: 0 | M182: 0 | O182: 75 | P182: 100
A183: 211a21 | B183: 4 | C183: 25 | D183: 50 | E183: 0 | F183: 0 | G183: 0 | H183: 0 | I183: 0 | J183: 0 | K183: 0 | L183: 0 | M183: 25 | O183: 75 | P183: 75
A184: 206a31 | B184: 3 | C184: 33.33333333 | D184: 0 | E184: 33.33333333 | F184: 33.33333333 | G184: 0 | H184: 0 | I184: 0 | J184: 0 | K184: 0 | L184: 0 | M184: 0 | O184: 66.66666667 | P184: 100
A185: 211a31 | B185: 10 | C185: 40 | D185: 10 | E185: 30 | F185: 0 | G185: 0 | H185: 0 | I185: 0 | J185: 10 | K185: 0 | L185: 0 | M185: 10 | O185: 80 | P185: 80
A186: 218a31 | B186: 1 | C186: 100 | D186: 0 | E186: 0 | F186: 0 | G186: 0 | H186: 0 | I186: 0 | J186: 0 | K186: 0 | L186: 0 | M186: 0 | O186: 100 | P186: 100
A187: 209a41 | B187: 2 | C187: 50 | D187: 50 | E187: 0 | F187: 0 | G187: 0 | H187: 0 | I187: 0 | J187: 0 | K187: 0 | L187: 0 | M187: 0 | O187: 100 | P187: 100
A188: 211a41 | B188: 7 | C188: 0 | D188: 57.14285714 | E188: 0 | F188: 0 | G188: 0 | H188: 0 | I188: 0 | J188: 14.28571429 | K188: 28.57142857 | L188: 0 | M188: 0 | O188: 57.14285714 | P188: 57.14285714
A189: 999b11 | B189: 116 | C189: 39.65517241 | D189: 26.72413793 | E189: 13.79310345 | F189: 6.896551724 | G189: 1.724137931 | H189: 0.8620689655 | I189: 4.310344828 | J189: 1.724137931 | K189: 0 | L189: 0 | M189: 4.310344828 | O189: 80.17241379 | P189: 89.65517241
A190: 999b12 | B190: 104 | C190: 22.11538462 | D190: 11.53846154 | E190: 12.5 | F190: 10.57692308 | G190: 3.846153846 | H190: 9.615384615 | I190: 6.730769231 | J190: 4.807692308 | K190: 3.846153846 | L190: 0.9615384615 | M190: 13.46153846 | O190: 46.15384615 | P190: 70.19230769
A191: 999b21 | B191: 109 | C191: 33.02752294 | D191: 35.77981651 | E191: 6.422018349 | F191: 9.174311927 | G191: 4.587155963 | H191: 1.834862385 | I191: 0.9174311927 | J191: 0.9174311927 | K191: 0.9174311927 | L191: 0.9174311927 | M191: 5.504587156 | O191: 75.2293578 | P191: 90.82568807
A192: 999b31 | B192: 131 | C192: 38.16793893 | D192: 20.61068702 | E192: 15.26717557 | F192: 8.396946565 | G192: 3.053435115 | H192: 0.7633587786 | I192: 2.290076336 | J192: 2.290076336 | K192: 1.526717557 | L192: 0.7633587786 | M192: 6.870229008 | O192: 74.04580153 | P192: 86.25954198
A193: 999b41 | B193: 143 | C193: 31.46853147 | D193: 23.77622378 | E193: 16.08391608 | F193: 4.195804196 | G193: 0.6993006993 | H193: 0.6993006993 | I193: 6.293706294 | J193: 4.895104895 | K193: 3.496503497 | L193: 1.398601399 | M193: 6.993006993 | O193: 71.32867133 | P193: 76.92307692
A194: 999d11 | B194: 94 | C194: 35.10638298 | D194: 28.72340426 | E194: 15.95744681 | F194: 7.446808511 | G194: 2.127659574 | H194: 1.063829787 | I194: 3.191489362 | J194: 1.063829787 | K194: 0 | L194: 0 | M194: 5.319148936 | O194: 79.78723404 | P194: 90.42553191
A195: 999d12 | B195: 95 | C195: 22.10526316 | D195: 9.473684211 | E195: 12.63157895 | F195: 11.57894737 | G195: 3.157894737 | H195: 10.52631579 | I195: 6.315789474 | J195: 4.210526316 | K195: 4.210526316 | L195: 1.052631579 | M195: 14.73684211 | O195: =SUM(C195:E195) -> 44.21052632 | P195: =SUM(C195:H195) -> 69.47368421
A196: 999d21 | B196: 99 | C196: 33.33333333 | D196: 36.36363636 | E196: 5.050505051 | F196: 10.1010101 | G196: 5.050505051 | H196: 1.01010101 | I196: 1.01010101 | J196: 1.01010101 | K196: 1.01010101 | L196: 1.01010101 | M196: 5.050505051 | O196: 74.74747475 | P196: 90.90909091
A197: 999d31 | B197: 117 | C197: 37.60683761 | D197: 22.22222222 | E197: 13.67521368 | F197: 8.547008547 | G197: 3.418803419 | H197: 0.8547008547 | I197: 2.564102564 | J197: 1.709401709 | K197: 1.709401709 | L197: 0.8547008547 | M197: 6.837606838 | O197: 73.5042735 | P197: 86.32478632
A198: 999d41 | B198: 134 | C198: 32.8358209 | D198: 21.64179104 | E198: 17.1641791 | F198: 4.47761194 | G198: 0.7462686567 | H198: 0.7462686567 | I198: 6.71641791 | J198: 4.47761194 | K198: 2.23880597 | L198: 1.492537313 | M198: 7.462686567 | O198: 71.64179104 | P198: 77.6119403
A199: 999a11 | B199: 22 | C199: 59.09090909 | D199: 18.18181818 | E199: 4.545454545 | F199: 4.545454545 | G199: 0 | H199: 0 | I199: 9.090909091 | J199: 4.545454545 | K199: 0 | L199: 0 | M199: 0 | O199: 81.81818182 | P199: 86.36363636
A200: 999a12 | B200: 9 | C200: 22.22222222 | D200: 33.33333333 | E200: 11.11111111 | F200: 0 | G200: 11.11111111 | H200: 0 | I200: 11.11111111 | J200: 11.11111111 | K200: 0 | L200: 0 | M200: 0 | O200: 66.66666667 | P200: 77.77777778
... 64 more rows

Sheet 3. Compliance
A1: Table 3 - Compliance by ADP
B4: 2018-12-31 | E4: 2019-03-31 | H4: 2019-06-30 | K4: 2019-09-30 | N4: 2019-12-31 | Q4: 2020-03-31
B5: Total number of services | C5: No. providing waiting times data | D5: % providing waiting times data | E5: Total number of services | F5: No. providing waiting times data | G5: % providing waiting times data | H5: Total number of services | I5: No. providing waiting times data | J5: % providing waiting times data | K5: Total number of services | L5: No. providing waiting times data | M5: % providing waiting times data | N5: Total number of services | O5: No. providing waiting times data | P5: % providing waiting times data | Q5: Total number of services | R5: No. providing waiting times data | S5: % providing waiting times data
A6: Scotland | B6: =SUM(B9:B22) -> 15 | C6: =SUM(C9:C22) -> 14 | D6: =SUM(C6/B6) -> 0.9333333333 | E6: =SUM(E9:E22) -> 15 | F6: =SUM(F9:F22) -> 14 | G6: =SUM(F6/E6) -> 0.9333333333 | H6: =SUM(H9:H22) -> 15 | I6: =SUM(I9:I22) -> 14 | J6: =SUM(I6/H6) -> 0.9333333333 | K6: =SUM(K9:K22) -> 15 | L6: =SUM(L9:L22) -> 15 | M6: =SUM(L6/K6) -> 1 | N6: =SUM(N9:N22) -> 15 | O6: =SUM(O9:O22) -> 15 | P6: =SUM(O6/N6) -> 1 | Q6: =SUM(Q9:Q22) -> 15 | R6: =SUM(R9:R22) -> 15 | S6: =SUM(R6/Q6) -> 1
A8: Alcohol & Drug Partnership
A9: East Ayrshire | B9: 1 | C9: 1 | D9: =SUM(C9/B9) -> 1 | E9: 1 | F9: 1 | G9: =SUM(F9/E9) -> 1 | H9: 1 | I9: 1 | J9: =SUM(I9/H9) -> 1 | K9: 1 | L9: 1 | M9: =SUM(L9/K9) -> 1 | N9: 1 | O9: 1 | P9: =SUM(O9/N9) -> 1 | Q9: 1 | R9: 1 | S9: =SUM(R9/Q9) -> 1
A10: Dumfries & Galloway | B10: 1 | C10: 1 | D10: 1 | E10: 1 | F10: 1 | G10: 1 | H10: 1 | I10: 1 | J10: 1 | K10: 1 | L10: 1 | M10: 1 | N10: 1 | O10: 1 | P10: 1 | Q10: 1 | R10: 1 | S10: 1
A11: Clackmannanshire | B11: 1 | C11: 1 | D11: 1 | E11: 1 | F11: 1 | G11: 1 | H11: 1 | I11: 1 | J11: 1 | K11: 1 | L11: 1 | M11: 1 | N11: 1 | O11: 1 | P11: 1 | Q11: 1 | R11: 1 | S11: 1
A12: Falkirk | B12: 1 | C12: 1 | D12: 1 | E12: 1 | F12: 1 | G12: 1 | H12: 1 | I12: 1 | J12: 1 | K12: 1 | L12: 1 | M12: 1 | N12: 1 | O12: 1 | P12: 1 | Q12: 1 | R12: 1 | S12: 1
A13: Stirling | B13: 1 | C13: 1 | D13: 1 | E13: 1 | F13: 1 | G13: 1 | H13: 1 | I13: 1 | J13: 1 | K13: 1 | L13: 1 | M13: 1 | N13: 1 | O13: 1 | P13: 1 | Q13: 1 | R13: 1 | S13: 1
A14: Grampian | B14: 1 | C14: 1 | D14: 1 | E14: 1 | F14: 1 | G14: 1 | H14: 1 | I14: 1 | J14: 1 | K14: 1 | L14: 1 | M14: 1 | N14: 1 | O14: 1 | P14: 1 | Q14: 1 | R14: 1 | S14: 1
A15: East Dunbartonshire | B15: 1 | C15: 0 | D15: 0 | E15: 1 | F15: 0 | G15: 0 | H15: 1 | I15: 1 | J15: 1 | K15: 1 | L15: 1 | M15: 1 | N15: 1 | O15: 1 | P15: 1 | Q15: 1 | R15: 1 | S15: 1
A16: Glasgow City | B16: 1 | C16: 1 | D16: 1 | E16: 1 | F16: 1 | G16: 1 | H16: 1 | I16: 1 | J16: 1 | K16: 1 | L16: 1 | M16: 1 | N16: 1 | O16: 1 | P16: 1 | Q16: 1 | R16: 1 | S16: 1
A17: Inverclyde | B17: 1 | C17: 1 | D17: 1 | E17: 1 | F17: 1 | G17: 1 | H17: 1 | I17: 1 | J17: 1 | K17: 1 | L17: 1 | M17: 1 | N17: 1 | O17: 1 | P17: 1 | Q17: 1 | R17: 1 | S17: 1
A18: Highland | B18: 1 | C18: 1 | D18: 1 | E18: 1 | F18: 1 | G18: 1 | H18: 1 | I18: 1 | J18: 1 | K18: 1 | L18: 1 | M18: 1 | N18: 1 | O18: 1 | P18: 1 | Q18: 1 | R18: 1 | S18: 1
A19: Lanarkshire | B19: 1 | C19: 1 | D19: 1 | E19: 1 | F19: 1 | G19: 1 | H19: 1 | I19: 0 | J19: 0 | K19: 1 | L19: 1 | M19: 1 | N19: 1 | O19: 1 | P19: 1 | Q19: 1 | R19: 1 | S19: 1
A20: West Lothian | B20: 1 | C20: 1 | D20: 1 | E20: 1 | F20: 1 | G20: 1 | H20: 1 | I20: 1 | J20: 1 | K20: 1 | L20: 1 | M20: 1 | N20: 1 | O20: 1 | P20: 1 | Q20: 1 | R20: 1 | S20: 1
A21: Edinburgh City | B21: 1 | C21: 1 | D21: 1 | E21: 1 | F21: 1 | G21: 1 | H21: 1 | I21: 1 | J21: 1 | K21: 1 | L21: 1 | M21: 1 | N21: 1 | O21: 1 | P21: 1 | Q21: 1 | R21: 1 | S21: 1
A22: Perth and Kinross | B22: 2 | C22: 2 | D22: 1 | E22: 2 | F22: 2 | G22: 1 | H22: 2 | I22: 2 | J22: 1 | K22: 2 | L22: 2 | M22: 1 | N22: 2 | O22: 2 | P22: 1 | Q22: 2 | R22: 2 | S22: 1
A24: Source: Information provided by Alcohol and Drug Partnerships
A26: Index

Sheet List (hidden)
A1: Lookup: HBADAT | E1: Lookup: NHSBOARD | F1: Lookup: ClientType | H1: Lookup: quarter | J1: Not lookup (concatenated on sheets) | P1: Lookup: source
A2: Scotland | B2: 999 | C2: Scotland | D2: 14 of 15 prisons across Scotland submitted complete and accurate data for quarter ending March 2019. See the Compliance sheet for more info. | E2: NHS Scotland | F2: Alcohol and Drugs | G2: B | H2: 31st March 2019 | I2: 11 | J2: NHS ScotlandDrugs | P2: Source | Q2: Source: Drug and Alcohol Treatment Waiting Times Database
A3: Ayrshire & Arran NHS | B3: 202 | C3: Ayrshire & Arran NHS | D3: N/A | E3: NHS Ayrshire & Arran | F3: Alcohol | G3: A | H3: 30th June 2019 | I3: 21 | J3: NHS Ayrshire & ArranDrugs
A4: East Ayrshire ADP | B4: 130 | C4: East Ayrshire ADP | D4: N/A | E4: NHS Borders | F4: Drugs | G4: D | H4: 30th September 2019 | I4: 31 | J4: NHS BordersDrugs
A5: North Ayrshire ADP | B5: 131 | C5: North Ayrshire ADP | D5: N/A | E5: NHS Dumfries & Galloway | H5: 31st December 2019 | I5: 41 | J5: NHS Dumfries & GallowayDrugs
A6: South Ayrshire ADP | B6: 132 | C6: South Ayrshire ADP | D6: N/A | E6: NHS Fife | H6: 31st March 2020 | I6: 12 | J6: NHS FifeDrugs
A7: Borders NHS/ADP | B7: 106 | C7: Borders NHS/ADP | D7: N/A | E7: NHS Forth Valley | J7: NHS Forth ValleyDrugs
A8: Dumfries & Galloway NHS/ADP | B8: 107 | C8: Dumfries & Galloway NHS/ADP | D8: N/A | E8: NHS Grampian | J8: NHS GrampianDrugs
A9: Fife NHS/ADP | B9: 111 | C9: Fife NHS/ADP | D9: N/A | E9: NHS Greater Glasgow & Clyde | J9: NHS Greater Glasgow & ClydeDrugs
A10: Forth Valley NHS | B10: 206 | C10: Forth Valley NHS | D10: N/A | E10: NHS Highland | J10: NHS HighlandDrugs
A11: Clackmannanshire ADP | B11: 133 | C11: Clackmannanshire ADP | D11: Some data for this area has been suppressed due to small numbers | E11: NHS Lanarkshire | J11: NHS LanarkshireDrugs
A12: Falkirk ADP | B12: 134 | C12: Falkirk ADP | D12: Some data for this area has been suppressed due to small numbers | E12: NHS Lothian | J12: NHS LothianDrugs
A13: Stirling ADP | B13: 135 | C13: Stirling ADP | D13: N/A | E13: NHS Orkney | J13: NHS OrkneyDrugs
A14: Grampian NHS | B14: 207 | C14: Grampian NHS | D14: N/A | E14: NHS Shetland | J14: NHS ShetlandDrugs
A15: Aberdeen City ADP | B15: 101 | C15: Aberdeen City ADP | D15: Some data for this area has been suppressed due to small numbers | E15: NHS Tayside | J15: NHS TaysideDrugs
A16: Aberdeenshire ADP | B16: 102 | C16: Aberdeenshire ADP | D16: N/A | E16: NHS Western Isles | J16: NHS Western IslesDrugs
A17: Moray ADP | B17: 117 | C17: Moray ADP | D17: Some data for this area has been suppressed due to small numbers
A18: Greater Glasgow & Clyde NHS | B18: 218 | C18: Greater Glasgow & Clyde NHS | D18: N/A
A19: East Dunbartonshire ADP | B19: 123 | C19: East Dunbartonshire ADP | D19: Some data for this area has been suppressed due to small numbers | F19: Lookup: AREA
A20: East Renfrewshire ADP | B20: 124 | C20: East Renfrewshire ADP | D20: Some data for this area has been suppressed due to small numbers | F20: Health Board
A21: Glasgow City ADP | B21: 125 | C21: Glasgow City ADP | D21: N/A | F21: Alcohol and Drug Partnership
A22: Inverclyde ADP | B22: 126 | C22: Inverclyde ADP | D22: Some data for this area has been suppressed due to small numbers
A23: Renfrewshire ADP | B23: 128 | C23: Renfrewshire ADP | D23: N/A
A24: West Dunbartonshire ADP | B24: 129 | C24: West Dunbartonshire ADP | D24: N/A
A25: Highland NHS | B25: 209 | C25: Highland NHS | D25: N/A
A26: Argyll & Bute ADP | B26: 104 | C26: Argyll & Bute ADP | D26: N/A
A27: Highland ADP | B27: 114 | C27: Highland ADP | D27: N/A
A28: Lanarkshire NHS/ADP | B28: 115 | C28: Lanarkshire NHS/ADP | D28: N/A
A29: Lothian NHS | B29: 211 | C29: Lothian NHS | D29: N/A
A30: Edinburgh City ADP | B30: 110 | C30: Edinburgh City ADP | D30: N/A
A31: Midlothian and East Lothian ADP (MELDAP) | B31: 127 | C31: Midlothian and East Lothian ADP (MELDAP) | D31: N/A
A32: West Lothian ADP | B32: 121 | C32: West Lothian | D32: N/A
A33: Orkney NHS/ADP | B33: 118 | C33: Orkney NHS/ADP | D33: Some data for this area has been suppressed due to small numbers
A34: Shetland NHS/ADP | B34: 120 | C34: Shetland NHS/ADP | D34: Some data for this area has been suppressed due to small numbers
A35: Tayside NHS | B35: 214 | C35: Tayside NHS | D35: N/A
A36: Angus ADP | B36: 103 | C36: Angus ADP | D36: N/A
A37: Dundee City ADP | B37: 108 | C37: Dundee City ADP | D37: N/A
A38: Perth & Kinross ADP | B38: 119 | C38: Perth & Kinross ADP | D38: N/A
A39: Outer Hebrides ADP | B39: 122 | C39: Outer Hebrides ADP | D39: Some data for this area has been suppressed due to small numbers
A43: 202b | C43: Some data for this area has been suppressed due to small numbers
A44: 203b
A45: 204b
A46: 205b
A47: 206b
A48: 207b
A49: 209b
A50: 210b
A51: 211b
A52: 212b
A53: 213b
A54: 214b
A55: 215b
A56: 218b
A57: 999b
A58: 999d
A59: 999a

Sheet Sheet1 (hidden)

Sheet Sheet2 (hidden)

Sheet Sheet3 (hidden)

Sheet Sheet4 (hidden)

Sheet Sheet5 (hidden)
